Workbook

Sheet Introduction
C4: Joint Monitoring Programme for Water Supply, Sanitation and Hygiene
C6: Estimates on household water, sanitation and hygiene by wealth quintile and sub-national region in
C7: =+Water!B5 -> Colombia
C9: Updated May 2021
C11: Follow the links below to find the following information:
C13: JMP Estimates
C14: WASH status and trends by wealth quintile (customized quintiles made without water and sanitation assets)
C15: Water
C16: Sanitation
C17: Hygiene
C19: Data inputs
C20: customized wealth quintiles and subnational data:
C21: =IF(INDIRECT(CONCATENATE("Water","!B105"))=0,"",INDIRECT(CONCATENATE("Water","!B105"))) -> DHS00
C22: =IF(INDIRECT(CONCATENATE("Water","!B106"))=0,"",INDIRECT(CONCATENATE("Water","!B106"))) -> DHS05
C23: =IF(INDIRECT(CONCATENATE("Water","!B107"))=0,"",INDIRECT(CONCATENATE("Water","!B107"))) -> DHS10
C24: =IF(INDIRECT(CONCATENATE("Water","!B108"))=0,"",INDIRECT(CONCATENATE("Water","!B108"))) -> DHS15
C25: =IF(INDIRECT(CONCATENATE("Water","!B109"))=0,"",INDIRECT(CONCATENATE("Water","!B109"))) -> 
C26: =IF(INDIRECT(CONCATENATE("Water","!B110"))=0,"",INDIRECT(CONCATENATE("Water","!B110"))) -> 
C27: =IF(INDIRECT(CONCATENATE("Water","!B111"))=0,"",INDIRECT(CONCATENATE("Water","!B111"))) -> 
C28: =IF(INDIRECT(CONCATENATE("Water","!B112"))=0,"",INDIRECT(CONCATENATE("Water","!B112"))) -> 
C29: =IF(INDIRECT(CONCATENATE("Water","!B113"))=0,"",INDIRECT(CONCATENATE("Water","!B113"))) -> 
C30: =IF(INDIRECT(CONCATENATE("Water","!B114"))=0,"",INDIRECT(CONCATENATE("Water","!B114"))) -> 
C31: =IF(INDIRECT(CONCATENATE("Water","!B115"))=0,"",INDIRECT(CONCATENATE("Water","!B115"))) -> 
C32: =IF(INDIRECT(CONCATENATE("Water","!B116"))=0,"",INDIRECT(CONCATENATE("Water","!B116"))) -> 
L55: =+IF(ISNUMBER(M48), "", "Insufficient data to estimate safely managed sanitation services at national level") -> Insufficient data to estimate safely managed sanitation services at national level

Sheet Water
A1: BGD
B4: Summary of trends in use of drinking water by wealth quintile (%)
B5: =IF(ISERROR(INDIRECT(CONCATENATE($B105,"!A2"))),"",INDIRECT(CONCATENATE($B105,"!A2"))) -> Colombia
B7: =B118 -> National use of drinking water sources, 2000–2020 | J7: =B218 -> Urban use of drinking water sources, 2000–2020 | R7: =B318 -> Rural use of drinking water sources, 2000–2020
B31: =IF(ISERROR(INDIRECT(CONCATENATE($B105,"!A2"))),"",INDIRECT(CONCATENATE($B105,"!A2"))) -> Colombia | F31: Poorest | J31: Poor | N31: Middle | R31: Rich | V31: Richest
F32: Basic | G32: Limited | H32: Unimproved | I32: Surface water | J32: Basic | K32: Limited | L32: Unimproved | M32: Surface water | N32: Basic | O32: Limited | P32: Unimproved | Q32: Surface water | R32: Basic | S32: Limited | T32: Unimproved | U32: Surface water | V32: Basic | W32: Limited | X32: Unimproved | Y32: Surface water
B33: NATIONAL | D33: Estimate | E33: =C99 -> 2000 | F33: =E99 -> 70.05116835 | G33: =F99 -> 0.6007085497 | H33: 12.50125407 | I33: 16.84686903 | J33: =J99 -> 91.36159886 | K33: =K99 -> 0.1830675177 | L33: 4.107129489 | M33: 4.348204137 | N33: =O99 -> 96.76213245 | O33: =P99 -> 0.02084638798 | P33: 1.377584463 | Q33: 1.839436699 | R33: =T99 -> 99.32251483 | S33: =U99 -> 0.02509307832 | T33: 0.345523939 | U33: 0.3068681576 | V33: =Y99 -> 99.72399344 | W33: =Z99 -> 0.00155643137 | X33: 0.1682518899 | Y33: 0.1061982409
E34: =C100 -> 2020 | F34: =E100 -> 76.6207694 | G34: 0.6570447339 | H34: 8.666273403 | I34: 14.05591246 | J34: =J100 -> 95.84737816 | K34: 0.1920559822 | L34: 0.9696149046 | M34: 2.99095095 | N34: =O100 -> 98.92394904 | O34: 0.02131212872 | P34: 0.3845174322 | Q34: 0.6702214008 | R34: =T100 -> 99.57068725 | S34: 0.02515577719 | T34: 0.3443648225 | U34: 0.05979215521 | V34: =Y100 -> 99.65523752 | W34: 0.001555358269 | X34: 0.3386990386 | Y34: 0.004508085418
B36: URBAN | D36: Estimate | E36: =C199 -> 2000 | F36: =E199 -> 97.42518523 | G36: =F199 -> 0.158850308 | H36: 2.245189139 | I36: 0.170775321 | J36: =J199 -> 99.31324293 | K36: =K199 -> 0.04493723492 | L36: 0.6242341983 | M36: 0.01758563459 | N36: =O199 -> 99.69414085 | O36: =P199 -> 0.01248143963 | P36: 0.2652119162 | Q36: 0.02816579859 | R36: =T199 -> 99.92749858 | S36: =U199 -> 0.02183354139 | T36: 0.04222215754 | U36: 0.008445724899 | V36: =Y199 -> 99.91721157 | W36: =Z199 -> 0 | X36: 0.06230972104 | Y36: 0.02047871017
E37: =C200 -> 2020 | F37: =E200 -> 96.36282678 | G37: 0.1571181484 | H37: 2.780456764 | I37: 0.6995983128 | J37: =J200 -> 99.1955661 | K37: 0.04488398854 | L37: 0.4909950492 | M37: 0.2685548574 | N37: =O200 -> 99.46610361 | O37: 0.01245288998 | P37: 0.4404394762 | Q37: 0.08100402017 | R37: =T200 -> 99.53054778 | S37: 0.02174681009 | T37: 0.4314786284 | U37: 0.01622677991 | V37: =Y200 -> 99.59453566 | W37: 0 | X37: 0.395427544 | Y37: 0.01003679457
B39: RURAL | D39: Estimate | E39: =C299 -> 2000 | F39: =E299 -> 48.25209786 | G39: =F299 -> 1.312871251 | H39: 20.35065071 | I39: 30.08438017 | J39: =J299 -> 67.94683784 | K39: =K299 -> 0.4972585457 | L39: 12.98215315 | M39: 18.57375047 | N39: =O299 -> 76.16914931 | O39: =P299 -> 0.2799961254 | P39: 9.86790412 | Q39: 13.68295044 | R39: =T299 -> 80.27799951 | S39: =U299 -> 0.4355937048 | T39: 8.469273243 | U39: 10.81713355 | V39: =Y299 -> 87.02542687 | W39: =Z299 -> 0.1654087379 | X39: 5.463565186 | Y39: 7.345599203
E40: =C300 -> 2020 | F40: =E300 -> 57.81667913 | G40: 1.573109963 | H40: 17.96536436 | I40: 22.64484655 | J40: =J300 -> 71.91458391 | K40: 0.5262958888 | L40: 8.945166689 | M40: 18.61395352 | N40: =O300 -> 78.41626172 | O40: 0.2882564614 | P40: 4.257008054 | Q40: 17.03847377 | R40: =T300 -> 86.63033701 | S40: 0.4700619059 | T40: 1.65740316 | U40: 11.24219792 | V40: =Y300 -> 92.54199917 | W40: 0.1758940558 | X40: 0.4930073026 | Y40: 6.789099471
A97: NATIONAL | D97: Poorest | I97: Poor | N97: Middle | S97: Rich | X97: Richest
D98: Improved | E98: Basic | F98: Limited | G98: Unimproved | H98: Surface water | I98: Improved | J98: Basic | K98: Limited | L98: Unimproved | M98: Surface water | N98: Improved | O98: Basic | P98: Limited | Q98: Unimproved | R98: Surface water | S98: Improved | T98: Basic | U98: Limited | V98: Unimproved | W98: Surface water | X98: Improved | Y98: Basic | Z98: Limited | AA98: Unimproved | AB98: Surface water
A99: Forecast period: | C99: 2000 | D99: =IF((D101+H101)>100,D101*100/(D101+H101),D101) -> 70.6518769 | E99: =D99*AVERAGEIF(E105:E116,">0")/100 -> 70.05116835 | F99: =D99*(100-AVERAGEIF(E105:E116,">0"))/100 -> 0.6007085497 | G99: =100-(E99+F99+H99) -> 12.50125407 | H99: =IF((D101+H101)>100,H101*100/(D101+H101),H101) -> 16.84686903 | I99: =IF((I101+M101)>100,I101*100/(I101+M101),I101) -> 91.54466637 | J99: =I99*AVERAGEIF(J105:J116,">0")/100 -> 91.36159886 | K99: =I99*(100-AVERAGEIF(J105:J116,">0"))/100 -> 0.1830675177 | L99: =100-(J99+K99+M99) -> 4.107129489 | M99: =IF((I101+M101)>100,M101*100/(I101+M101),M101) -> 4.348204137 | N99: =IF((N101+R101)>100,N101*100/(N101+R101),N101) -> 96.78297884 | O99: =N99*AVERAGEIF(O105:O116,">0")/100 -> 96.76213245 | P99: =N99*(100-AVERAGEIF(O105:O116,">0"))/100 -> 0.02084638798 | Q99: =100-(O99+P99+R99) -> 1.377584463 | R99: =IF((N101+R101)>100,R101*100/(N101+R101),R101) -> 1.839436699 | S99: =IF((S101+W101)>100,S101*100/(S101+W101),S101) -> 99.3476079 | T99: =S99*AVERAGEIF(T105:T116,">0")/100 -> 99.32251483 | U99: =S99*(100-AVERAGEIF(T105:T116,">0"))/100 -> 0.02509307832 | V99: =100-(T99+U99+W99) -> 0.345523939 | W99: =IF((S101+W101)>100,W101*100/(S101+W101),W101) -> 0.3068681576 | X99: =IF((X101+AB101)>100,X101*100/(X101+AB101),X101) -> 99.72554987 | Y99: =X99*AVERAGEIF(Y105:Y116,">0")/100 -> 99.72399344 | Z99: =X99*(100-AVERAGEIF(Y105:Y116,">0"))/100 -> 0.00155643137 | AA99: =100-(Y99+Z99+AB99) -> 0.1682518899 | AB99: =IF((X101+AB101)>100,AB101*100/(X101+AB101),AB101) -> 0.1061982409
C100: 2020 | D100: =IF((D102+H102)>100,D102*100/(D102+H102),D102) -> 77.27781414 | E100: =D100*AVERAGEIF(E105:E116,">0")/100 -> 76.6207694 | F100: =D100*(100-AVERAGEIF(E105:E116,">0"))/100 -> 0.6570447339 | G100: =100-(E100+F100+H100) -> 8.666273403 | H100: =IF((D102+H102)>100,H102*100/(D102+H102),H102) -> 14.05591246 | I100: =IF((I102+M102)>100,I102*100/(I102+M102),I102) -> 96.03943415 | J100: =I100*AVERAGEIF(J105:J116,">0")/100 -> 95.84737816 | K100: =I100*(100-AVERAGEIF(J105:J116,">0"))/100 -> 0.1920559822 | L100: =100-(J100+K100+M100) -> 0.9696149046 | M100: =IF((I102+M102)>100,M102*100/(I102+M102),M102) -> 2.99095095 | N100: =IF((N102+R102)>100,N102*100/(N102+R102),N102) -> 98.94526117 | O100: =N100*AVERAGEIF(O105:O116,">0")/100 -> 98.92394904 | P100: =N100*(100-AVERAGEIF(O105:O116,">0"))/100 -> 0.02131212872 | Q100: =100-(O100+P100+R100) -> 0.3845174322 | R100: =IF((N102+R102)>100,R102*100/(N102+R102),R102) -> 0.6702214008 | S100: =IF((S102+W102)>100,S102*100/(S102+W102),S102) -> 99.59584302 | T100: =S100*AVERAGEIF(T105:T116,">0")/100 -> 99.57068725 | U100: =S100*(100-AVERAGEIF(T105:T116,">0"))/100 -> 0.02515577719 | V100: =100-(T100+U100+W100) -> 0.3443648225 | W100: =IF((S102+W102)>100,W102*100/(S102+W102),W102) -> 0.05979215521 | X100: =IF((X102+AB102)>100,X102*100/(X102+AB102),X102) -> 99.65679288 | Y100: =X100*AVERAGEIF(Y105:Y116,">0")/100 -> 99.65523752 | Z100: =X100*(100-AVERAGEIF(Y105:Y116,">0"))/100 -> 0.001555358269 | AA100: =100-(Y100+Z100+AB100) -> 0.3386990386 | AB100: =IF((X102+AB102)>100,AB102*100/(X102+AB102),AB102) -> 0.004508085418
A101: Regression period: | C101: =MinRegYear(C99,C105:C116) -> 2000 | D101: =IF(MAX(C105:C116)-MIN(C105:C116)<5,AVERAGEIF(C105:C116,">0",D105:D116), IF(FORECAST($C101,D$105:D$116,$C$105:$C$116)<0,0, IF(FORECAST($C101,D$105:D$116,$C$105:$C$116)>100,100, FORECAST($C101,D$105:D$116,$C$105:$C$116)))) -> 70.6518769 | H101: =IF(MAX(C105:C116)-MIN(C105:C116)<5,AVERAGEIF(C105:C116,">0",H105:H116), IF(FORECAST($C101,H$105:H$116,$C$105:$C$116)<0,0, IF(FORECAST($C101,H$105:H$116,$C$105:$C$116)>100,100, FORECAST($C101,H$105:H$116,$C$105:$C$116)))) -> 16.84686903 | I101: =IF(MAX(C105:C116)-MIN(C105:C116)<5,AVERAGEIF(C105:C116,">0",I105:I116), IF(FORECAST($C101,I$105:I$116,$C$105:$C$116)<0,0, IF(FORECAST($C101,I$105:I$116,$C$105:$C$116)>100,100, FORECAST($C101,I$105:I$116,$C$105:$C$116)))) -> 91.54466637 | M101: =IF(MAX(C105:C116)-MIN(C105:C116)<5,AVERAGEIF(C105:C116,">0",M105:M116), IF(FORECAST($C101,M$105:M$116,$C$105:$C$116)<0,0, IF(FORECAST($C101,M$105:M$116,$C$105:$C$116)>100,100, FORECAST($C101,M$105:M$116,$C$105:$C$116)))) -> 4.348204137 | N101: =IF(MAX(C105:C116)-MIN(C105:C116)<5,AVERAGEIF(C105:C116,">0",N105:N116), IF(FORECAST($C101,N$105:N$116,$C$105:$C$116)<0,0, IF(FORECAST($C101,N$105:N$116,$C$105:$C$116)>100,100, FORECAST($C101,N$105:N$116,$C$105:$C$116)))) -> 96.78297884 | R101: =IF(MAX(C105:C116)-MIN(C105:C116)<5,AVERAGEIF(C105:C116,">0",R105:R116), IF(FORECAST($C101,R$105:R$116,$C$105:$C$116)<0,0, IF(FORECAST($C101,R$105:R$116,$C$105:$C$116)>100,100, FORECAST($C101,R$105:R$116,$C$105:$C$116)))) -> 1.839436699 | S101: =IF(MAX(C105:C116)-MIN(C105:C116)<5,AVERAGEIF(C105:C116,">0",S105:S116), IF(FORECAST($C101,S$105:S$116,$C$105:$C$116)<0,0, IF(FORECAST($C101,S$105:S$116,$C$105:$C$116)>100,100, FORECAST($C101,S$105:S$116,$C$105:$C$116)))) -> 99.3476079 | W101: =IF(MAX(C105:C116)-MIN(C105:C116)<5,AVERAGEIF(C105:C116,">0",W105:W116), IF(FORECAST($C101,W$105:W$116,$C$105:$C$116)<0,0, IF(FORECAST($C101,W$105:W$116,$C$105:$C$116)>100,100, FORECAST($C101,W$105:W$116,$C$105:$C$116)))) -> 0.3068681576 | X101: =IF(MAX(C105:C116)-MIN(C105:C116)<5,AVERAGEIF(C105:C116,">0",X105:X116), IF(FORECAST($C101,X$105:X$116,$C$105:$C$116)<0,0, IF(FORECAST($C101,X$105:X$116,$C$105:$C$116)>100,100, FORECAST($C101,X$105:X$116,$C$105:$C$116)))) -> 99.72554987 | AB101: =IF(MAX(C105:C116)-MIN(C105:C116)<5,AVERAGEIF(C105:C116,">0",AB105:AB116), IF(FORECAST($C101,AB$105:AB$116,$C$105:$C$116)<0,0, IF(FORECAST($C101,AB$105:AB$116,$C$105:$C$116)>100,100, FORECAST($C101,AB$105:AB$116,$C$105:$C$116)))) -> 0.1061982409
C102: =MaxRegYear(C100,C105:C116) -> 2017 | D102: =IF(MAX(C105:C116)-MIN(C105:C116)<5,AVERAGEIF(C105:C116,">0",D105:D116), IF(FORECAST($C102,D$105:D$116,$C$105:$C$116)<0,0, IF(FORECAST($C102,D$105:D$116,$C$105:$C$116)>100,100, FORECAST($C102,D$105:D$116,$C$105:$C$116)))) -> 77.27781414 | H102: =IF(MAX(C105:C116)-MIN(C105:C116)<5,AVERAGEIF(C105:C116,">0",H105:H116), IF(FORECAST($C102,H$105:H$116,$C$105:$C$116)<0,0, IF(FORECAST($C102,H$105:H$116,$C$105:$C$116)>100,100, FORECAST($C102,H$105:H$116,$C$105:$C$116)))) -> 14.05591246 | I102: =IF(MAX(C105:C116)-MIN(C105:C116)<5,AVERAGEIF(C105:C116,">0",I105:I116), IF(FORECAST($C102,I$105:I$116,$C$105:$C$116)<0,0, IF(FORECAST($C102,I$105:I$116,$C$105:$C$116)>100,100, FORECAST($C102,I$105:I$116,$C$105:$C$116)))) -> 96.03943415 | M102: =IF(MAX(C105:C116)-MIN(C105:C116)<5,AVERAGEIF(C105:C116,">0",M105:M116), IF(FORECAST($C102,M$105:M$116,$C$105:$C$116)<0,0, IF(FORECAST($C102,M$105:M$116,$C$105:$C$116)>100,100, FORECAST($C102,M$105:M$116,$C$105:$C$116)))) -> 2.99095095 | N102: =IF(MAX(C105:C116)-MIN(C105:C116)<5,AVERAGEIF(C105:C116,">0",N105:N116), IF(FORECAST($C102,N$105:N$116,$C$105:$C$116)<0,0, IF(FORECAST($C102,N$105:N$116,$C$105:$C$116)>100,100, FORECAST($C102,N$105:N$116,$C$105:$C$116)))) -> 98.94526117 | R102: =IF(MAX(C105:C116)-MIN(C105:C116)<5,AVERAGEIF(C105:C116,">0",R105:R116), IF(FORECAST($C102,R$105:R$116,$C$105:$C$116)<0,0, IF(FORECAST($C102,R$105:R$116,$C$105:$C$116)>100,100, FORECAST($C102,R$105:R$116,$C$105:$C$116)))) -> 0.6702214008 | S102: =IF(MAX(C105:C116)-MIN(C105:C116)<5,AVERAGEIF(C105:C116,">0",S105:S116), IF(FORECAST($C102,S$105:S$116,$C$105:$C$116)<0,0, IF(FORECAST($C102,S$105:S$116,$C$105:$C$116)>100,100, FORECAST($C102,S$105:S$116,$C$105:$C$116)))) -> 99.59584302 | W102: =IF(MAX(C105:C116)-MIN(C105:C116)<5,AVERAGEIF(C105:C116,">0",W105:W116), IF(FORECAST($C102,W$105:W$116,$C$105:$C$116)<0,0, IF(FORECAST($C102,W$105:W$116,$C$105:$C$116)>100,100, FORECAST($C102,W$105:W$116,$C$105:$C$116)))) -> 0.05979215521 | X102: =IF(MAX(C105:C116)-MIN(C105:C116)<5,AVERAGEIF(C105:C116,">0",X105:X116), IF(FORECAST($C102,X$105:X$116,$C$105:$C$116)<0,0, IF(FORECAST($C102,X$105:X$116,$C$105:$C$116)>100,100, FORECAST($C102,X$105:X$116,$C$105:$C$116)))) -> 99.65679288 | AB102: =IF(MAX(C105:C116)-MIN(C105:C116)<5,AVERAGEIF(C105:C116,">0",AB105:AB116), IF(FORECAST($C102,AB$105:AB$116,$C$105:$C$116)<0,0, IF(FORECAST($C102,AB$105:AB$116,$C$105:$C$116)>100,100, FORECAST($C102,AB$105:AB$116,$C$105:$C$116)))) -> 0.004508085418
B104: Survey | C104: Year | D104: Improved | E104: % Improved < = 30min | H104: Surface water | I104: Improved | J104: % Improved < = 30min | M104: Surface water | N104: Improved | O104: % Improved < = 30min | R104: Surface water | S104: Improved | T104: % Improved < = 30min | W104: Surface water | X104: Improved | Y104: % Improved < = 30min | AB104: Surface water
B105: DHS00 | C105: 2000 | D105: =IF(ISERROR(INDIRECT(CONCATENATE($B105,"!C16"))),"",INDIRECT(CONCATENATE($B105,"!C16"))) -> 67.9411479 | E105: =IF(ISERROR(INDIRECT(CONCATENATE($B105,"!C23"))),"",INDIRECT(CONCATENATE($B105,"!C23"))) -> N/A | H105: =IF(ISERROR(INDIRECT(CONCATENATE($B105,"!C21"))),"",INDIRECT(CONCATENATE($B105,"!C21"))) -> 19.6704344 | I105: =IF(ISERROR(INDIRECT(CONCATENATE($B105,"!D16"))),"",INDIRECT(CONCATENATE($B105,"!D16"))) -> 90.50808208 | J105: =IF(ISERROR(INDIRECT(CONCATENATE($B105,"!D23"))),"",INDIRECT(CONCATENATE($B105,"!D23"))) -> N/A | M105: =IF(ISERROR(INDIRECT(CONCATENATE($B105,"!D21"))),"",INDIRECT(CONCATENATE($B105,"!D21"))) -> 5.144793405 | N105: =IF(ISERROR(INDIRECT(CONCATENATE($B105,"!E16"))),"",INDIRECT(CONCATENATE($B105,"!E16"))) -> 96.20263942 | O105: =IF(ISERROR(INDIRECT(CONCATENATE($B105,"!E23"))),"",INDIRECT(CONCATENATE($B105,"!E23"))) -> N/A | R105: =IF(ISERROR(INDIRECT(CONCATENATE($B105,"!E21"))),"",INDIRECT(CONCATENATE($B105,"!E21"))) -> 2.180983361 | S105: =IF(ISERROR(INDIRECT(CONCATENATE($B105,"!F16"))),"",INDIRECT(CONCATENATE($B105,"!F16"))) -> 99.31790103 | T105: =IF(ISERROR(INDIRECT(CONCATENATE($B105,"!F23"))),"",INDIRECT(CONCATENATE($B105,"!F23"))) -> N/A | W105: =IF(ISERROR(INDIRECT(CONCATENATE($B105,"!F21"))),"",INDIRECT(CONCATENATE($B105,"!F21"))) -> 0.2925522079 | X105: =IF(ISERROR(INDIRECT(CONCATENATE($B105,"!G16"))),"",INDIRECT(CONCATENATE($B105,"!G16"))) -> 99.61903299 | Y105: =IF(ISERROR(INDIRECT(CONCATENATE($B105,"!G23"))),"",INDIRECT(CONCATENATE($B105,"!G23"))) -> N/A | AB105: =IF(ISERROR(INDIRECT(CONCATENATE($B105,"!G221"))),"",INDIRECT(CONCATENATE($B105,"!G21"))) -> 0.1225902732
B106: DHS05 | C106: 2005 | D106: 76.41787096 | E106: 99.41239804 | H106: 12.12519151 | I106: 94.83941213 | J106: 99.73641255 | M106: 2.447394145 | N106: 98.4621349 | O106: 99.95113522 | R106: 0.8024805942 | S106: 99.39504717 | T106: 99.92422642 | W106: 0.2633932938 | X106: 99.79662776 | Y106: 99.99531786 | AB106: 0.07311904685
B107: DHS10 | C107: 2010 | D107: 75.04729603 | E107: 99.3 | H107: 14.53604964 | I107: 93.35288983 | J107: 99.9 | M107: 4.163287863 | N107: 97.70954654 | O107: 100 | R107: 1.513161513 | S107: 99.6338913 | T107: 100 | W107: 0.1460880844 | X107: 99.82205412 | Y107: 100 | AB107: 0.003545055102
B108: DHS15 | C108: 2015 | D108: 74.89402312 | E108: 98.73689031 | H108: 16.13058309 | I108: 95.41022458 | J108: 99.76365893 | M108: 3.242188452 | N108: 98.57338684 | O108: 99.98424684 | R108: 0.7978002132 | S108: 99.48165409 | T108: 100 | W108: 0.08942256947 | X108: 99.54314872 | Y108: 100 | AB108: 0.04608537289
D111: =IF(ISERROR(INDIRECT(CONCATENATE($B111,"!C16"))),"",INDIRECT(CONCATENATE($B111,"!C16"))) ->  | E111: =IF(ISERROR(INDIRECT(CONCATENATE($B111,"!C23"))),"",INDIRECT(CONCATENATE($B111,"!C23"))) ->  | H111: =IF(ISERROR(INDIRECT(CONCATENATE($B111,"!C21"))),"",INDIRECT(CONCATENATE($B111,"!C21"))) ->  | I111: =IF(ISERROR(INDIRECT(CONCATENATE($B111,"!D16"))),"",INDIRECT(CONCATENATE($B111,"!D16"))) ->  | J111: =IF(ISERROR(INDIRECT(CONCATENATE($B111,"!D23"))),"",INDIRECT(CONCATENATE($B111,"!D23"))) ->  | M111: =IF(ISERROR(INDIRECT(CONCATENATE($B111,"!D21"))),"",INDIRECT(CONCATENATE($B111,"!D21"))) ->  | N111: =IF(ISERROR(INDIRECT(CONCATENATE($B111,"!E16"))),"",INDIRECT(CONCATENATE($B111,"!E16"))) ->  | O111: =IF(ISERROR(INDIRECT(CONCATENATE($B111,"!E23"))),"",INDIRECT(CONCATENATE($B111,"!E23"))) ->  | R111: =IF(ISERROR(INDIRECT(CONCATENATE($B111,"!E21"))),"",INDIRECT(CONCATENATE($B111,"!E21"))) ->  | S111: =IF(ISERROR(INDIRECT(CONCATENATE($B111,"!F16"))),"",INDIRECT(CONCATENATE($B111,"!F16"))) ->  | T111: =IF(ISERROR(INDIRECT(CONCATENATE($B111,"!F23"))),"",INDIRECT(CONCATENATE($B111,"!F23"))) ->  | W111: =IF(ISERROR(INDIRECT(CONCATENATE($B111,"!F21"))),"",INDIRECT(CONCATENATE($B111,"!F21"))) ->  | X111: =IF(ISERROR(INDIRECT(CONCATENATE($B111,"!G16"))),"",INDIRECT(CONCATENATE($B111,"!G16"))) ->  | Y111: =IF(ISERROR(INDIRECT(CONCATENATE($B111,"!G23"))),"",INDIRECT(CONCATENATE($B111,"!G23"))) ->  | AB111: =IF(ISERROR(INDIRECT(CONCATENATE($B111,"!G221"))),"",INDIRECT(CONCATENATE($B111,"!G21"))) -> 
D112: =IF(ISERROR(INDIRECT(CONCATENATE($B112,"!C16"))),"",INDIRECT(CONCATENATE($B112,"!C16"))) ->  | E112: =IF(ISERROR(INDIRECT(CONCATENATE($B112,"!C23"))),"",INDIRECT(CONCATENATE($B112,"!C23"))) ->  | H112: =IF(ISERROR(INDIRECT(CONCATENATE($B112,"!C21"))),"",INDIRECT(CONCATENATE($B112,"!C21"))) ->  | I112: =IF(ISERROR(INDIRECT(CONCATENATE($B112,"!D16"))),"",INDIRECT(CONCATENATE($B112,"!D16"))) ->  | J112: =IF(ISERROR(INDIRECT(CONCATENATE($B112,"!D23"))),"",INDIRECT(CONCATENATE($B112,"!D23"))) ->  | M112: =IF(ISERROR(INDIRECT(CONCATENATE($B112,"!D21"))),"",INDIRECT(CONCATENATE($B112,"!D21"))) ->  | N112: =IF(ISERROR(INDIRECT(CONCATENATE($B112,"!E16"))),"",INDIRECT(CONCATENATE($B112,"!E16"))) ->  | O112: =IF(ISERROR(INDIRECT(CONCATENATE($B112,"!E23"))),"",INDIRECT(CONCATENATE($B112,"!E23"))) ->  | R112: =IF(ISERROR(INDIRECT(CONCATENATE($B112,"!E21"))),"",INDIRECT(CONCATENATE($B112,"!E21"))) ->  | S112: =IF(ISERROR(INDIRECT(CONCATENATE($B112,"!F16"))),"",INDIRECT(CONCATENATE($B112,"!F16"))) ->  | T112: =IF(ISERROR(INDIRECT(CONCATENATE($B112,"!F23"))),"",INDIRECT(CONCATENATE($B112,"!F23"))) ->  | W112: =IF(ISERROR(INDIRECT(CONCATENATE($B112,"!F21"))),"",INDIRECT(CONCATENATE($B112,"!F21"))) ->  | X112: =IF(ISERROR(INDIRECT(CONCATENATE($B112,"!G16"))),"",INDIRECT(CONCATENATE($B112,"!G16"))) ->  | Y112: =IF(ISERROR(INDIRECT(CONCATENATE($B112,"!G23"))),"",INDIRECT(CONCATENATE($B112,"!G23"))) ->  | AB112: =IF(ISERROR(INDIRECT(CONCATENATE($B112,"!G221"))),"",INDIRECT(CONCATENATE($B112,"!G21"))) -> 
B118: =CONCATENATE("National use of drinking water sources, ",C99,"–",C100) -> National use of drinking water sources, 2000–2020 | S118: Data points used for regression
E153: =IF(ISERROR(INDIRECT(CONCATENATE($B153,"!M18"))),"",INDIRECT(CONCATENATE($B153,"!M18"))) ->  | F153: =IF(ISERROR(INDIRECT(CONCATENATE($B153,"!M19"))),"",INDIRECT(CONCATENATE($B153,"!M19"))) ->  | G153: =IF(ISERROR(INDIRECT(CONCATENATE($B153,"!M20"))),"",INDIRECT(CONCATENATE($B153,"!M20"))) ->  | H153: =IF(ISERROR(INDIRECT(CONCATENATE($B153,"!M21"))),"",INDIRECT(CONCATENATE($B153,"!M21"))) ->  | J153: =IF(ISERROR(INDIRECT(CONCATENATE($B153,"!N18"))),"",INDIRECT(CONCATENATE($B153,"!N18"))) ->  | K153: =IF(ISERROR(INDIRECT(CONCATENATE($B153,"!N19"))),"",INDIRECT(CONCATENATE($B153,"!N19"))) ->  | L153: =IF(ISERROR(INDIRECT(CONCATENATE($B153,"!N20"))),"",INDIRECT(CONCATENATE($B153,"!N20"))) ->  | M153: =IF(ISERROR(INDIRECT(CONCATENATE($B153,"!N21"))),"",INDIRECT(CONCATENATE($B153,"!N21"))) ->  | O153: =IF(ISERROR(INDIRECT(CONCATENATE($B153,"!O18"))),"",INDIRECT(CONCATENATE($B153,"!O18"))) ->  | P153: =IF(ISERROR(INDIRECT(CONCATENATE($B153,"!O19"))),"",INDIRECT(CONCATENATE($B153,"!O19"))) ->  | Q153: =IF(ISERROR(INDIRECT(CONCATENATE($B153,"!O20"))),"",INDIRECT(CONCATENATE($B153,"!O20"))) ->  | R153: =IF(ISERROR(INDIRECT(CONCATENATE($B153,"!O21"))),"",INDIRECT(CONCATENATE($B153,"!O21"))) ->  | T153: =IF(ISERROR(INDIRECT(CONCATENATE($B153,"!P18"))),"",INDIRECT(CONCATENATE($B153,"!P18"))) ->  | U153: =IF(ISERROR(INDIRECT(CONCATENATE($B153,"!P19"))),"",INDIRECT(CONCATENATE($B153,"!P19"))) ->  | V153: =IF(ISERROR(INDIRECT(CONCATENATE($B153,"!P20"))),"",INDIRECT(CONCATENATE($B153,"!P20"))) ->  | W153: =IF(ISERROR(INDIRECT(CONCATENATE($B153,"!P21"))),"",INDIRECT(CONCATENATE($B153,"!P21"))) ->  | Y153: =IF(ISERROR(INDIRECT(CONCATENATE($B153,"!Q18"))),"",INDIRECT(CONCATENATE($B153,"!Q18"))) ->  | Z153: =IF(ISERROR(INDIRECT(CONCATENATE($B153,"!Q19"))),"",INDIRECT(CONCATENATE($B153,"!Q19"))) ->  | AA153: =IF(ISERROR(INDIRECT(CONCATENATE($B153,"!Q20"))),"",INDIRECT(CONCATENATE($B153,"!Q20"))) ->  | AB153: =IF(ISERROR(INDIRECT(CONCATENATE($B153,"!Q21"))),"",INDIRECT(CONCATENATE($B153,"!Q1"))) -> 
A197: URBAN | D197: Poorest | I197: Poor | N197: Middle | S197: Rich | X197: Richest
D198: Improved | E198: Basic | F198: Limited | G198: Unimproved | H198: Surface water | I198: Improved | J198: Basic | K198: Limited | L198: Unimproved | M198: Surface water | N198: Improved | O198: Basic | P198: Limited | Q198: Unimproved | R198: Surface water | S198: Improved | T198: Basic | U198: Limited | V198: Unimproved | W198: Surface water | X198: Improved | Y198: Basic | Z198: Limited | AA198: Unimproved | AB198: Surface water
A199: Forecast period: | C199: 2000 | D199: =IF((D201+H201)>100,D201*100/(D201+H201),D201) -> 97.58403554 | E199: =D199*AVERAGEIF(E205:E216,">0")/100 -> 97.42518523 | F199: =D199*(100-AVERAGEIF(E205:E216,">0"))/100 -> 0.158850308 | G199: =100-(E199+F199+H199) -> 2.245189139 | H199: =IF((D201+H201)>100,H201*100/(D201+H201),H201) -> 0.170775321 | I199: =IF((I201+M201)>100,I201*100/(I201+M201),I201) -> 99.35818017 | J199: =I199*AVERAGEIF(J205:J216,">0")/100 -> 99.31324293 | K199: =I199*(100-AVERAGEIF(J205:J216,">0"))/100 -> 0.04493723492 | L199: =100-(J199+K199+M199) -> 0.6242341983 | M199: =IF((I201+M201)>100,M201*100/(I201+M201),M201) -> 0.01758563459 | N199: =IF((N201+R201)>100,N201*100/(N201+R201),N201) -> 99.70662229 | O199: =N199*AVERAGEIF(O205:O216,">0")/100 -> 99.69414085 | P199: =N199*(100-AVERAGEIF(O205:O216,">0"))/100 -> 0.01248143963 | Q199: =100-(O199+P199+R199) -> 0.2652119162 | R199: =IF((N201+R201)>100,R201*100/(N201+R201),R201) -> 0.02816579859 | S199: =IF((S201+W201)>100,S201*100/(S201+W201),S201) -> 99.94933212 | T199: =S199*AVERAGEIF(T205:T216,">0")/100 -> 99.92749858 | U199: =S199*(100-AVERAGEIF(T205:T216,">0"))/100 -> 0.02183354139 | V199: =100-(T199+U199+W199) -> 0.04222215754 | W199: =IF((S201+W201)>100,W201*100/(S201+W201),W201) -> 0.008445724899 | X199: =IF((X201+AB201)>100,X201*100/(X201+AB201),X201) -> 99.91721157 | Y199: =X199*AVERAGEIF(Y205:Y216,">0")/100 -> 99.91721157 | Z199: =X199*(100-AVERAGEIF(Y205:Y216,">0"))/100 -> 0 | AA199: =100-(Y199+Z199+AB199) -> 0.06230972104 | AB199: =IF((X201+AB201)>100,AB201*100/(X201+AB201),AB201) -> 0.02047871017
C200: 2020 | D200: =IF((D202+H202)>100,D202*100/(D202+H202),D202) -> 96.51994492 | E200: =D200*AVERAGEIF(E205:E216,">0")/100 -> 96.36282678 | F200: =D200*(100-AVERAGEIF(E205:E216,">0"))/100 -> 0.1571181484 | G200: =100-(E200+F200+H200) -> 2.780456764 | H200: =IF((D202+H202)>100,H202*100/(D202+H202),H202) -> 0.6995983128 | I200: =IF((I202+M202)>100,I202*100/(I202+M202),I202) -> 99.24045009 | J200: =I200*AVERAGEIF(J205:J216,">0")/100 -> 99.1955661 | K200: =I200*(100-AVERAGEIF(J205:J216,">0"))/100 -> 0.04488398854 | L200: =100-(J200+K200+M200) -> 0.4909950492 | M200: =IF((I202+M202)>100,M202*100/(I202+M202),M202) -> 0.2685548574 | N200: =IF((N202+R202)>100,N202*100/(N202+R202),N202) -> 99.4785565 | O200: =N200*AVERAGEIF(O205:O216,">0")/100 -> 99.46610361 | P200: =N200*(100-AVERAGEIF(O205:O216,">0"))/100 -> 0.01245288998 | Q200: =100-(O200+P200+R200) -> 0.4404394762 | R200: =IF((N202+R202)>100,R202*100/(N202+R202),R202) -> 0.08100402017 | S200: =IF((S202+W202)>100,S202*100/(S202+W202),S202) -> 99.55229459 | T200: =S200*AVERAGEIF(T205:T216,">0")/100 -> 99.53054778 | U200: =S200*(100-AVERAGEIF(T205:T216,">0"))/100 -> 0.02174681009 | V200: =100-(T200+U200+W200) -> 0.4314786284 | W200: =IF((S202+W202)>100,W202*100/(S202+W202),W202) -> 0.01622677991 | X200: =IF((X202+AB202)>100,X202*100/(X202+AB202),X202) -> 99.59453566 | Y200: =X200*AVERAGEIF(Y205:Y216,">0")/100 -> 99.59453566 | Z200: =X200*(100-AVERAGEIF(Y205:Y216,">0"))/100 -> 0 | AA200: =100-(Y200+Z200+AB200) -> 0.395427544 | AB200: =IF((X202+AB202)>100,AB202*100/(X202+AB202),AB202) -> 0.01003679457
A201: Regression period: | C201: =MinRegYear(C199,C205:C216) -> 2000 | D201: =IF(MAX(C205:C216)-MIN(C205:C216)<5,AVERAGEIF(C205:C216,">0",D205:D216), IF(FORECAST($C201,D$205:D$216,$C$205:$C$216)<0,0, IF(FORECAST($C201,D$205:D$216,$C$205:$C$216)>100,100, FORECAST($C201,D$205:D$216,$C$205:$C$216)))) -> 97.58403554 | H201: =IF(MAX(C205:C216)-MIN(C205:C216)<5,AVERAGEIF(C205:C216,">0",H205:H216), IF(FORECAST($C201,H$205:H$216,$C$205:$C$216)<0,0, IF(FORECAST($C201,H$205:H$216,$C$205:$C$216)>100,100, FORECAST($C201,H$205:H$216,$C$205:$C$216)))) -> 0.170775321 | I201: =IF(MAX(C205:C216)-MIN(C205:C216)<5,AVERAGEIF(C205:C216,">0",I205:I216), IF(FORECAST($C201,I$205:I$216,$C$205:$C$216)<0,0, IF(FORECAST($C201,I$205:I$216,$C$205:$C$216)>100,100, FORECAST($C201,I$205:I$216,$C$205:$C$216)))) -> 99.35818017 | M201: =IF(MAX(C205:C216)-MIN(C205:C216)<5,AVERAGEIF(C205:C216,">0",M205:M216), IF(FORECAST($C201,M$205:M$216,$C$205:$C$216)<0,0, IF(FORECAST($C201,M$205:M$216,$C$205:$C$216)>100,100, FORECAST($C201,M$205:M$216,$C$205:$C$216)))) -> 0.01758563459 | N201: =IF(MAX(C205:C216)-MIN(C205:C216)<5,AVERAGEIF(C205:C216,">0",N205:N216), IF(FORECAST($C201,N$205:N$216,$C$205:$C$216)<0,0, IF(FORECAST($C201,N$205:N$216,$C$205:$C$216)>100,100, FORECAST($C201,N$205:N$216,$C$205:$C$216)))) -> 99.70662229 | R201: =IF(MAX(C205:C216)-MIN(C205:C216)<5,AVERAGEIF(C205:C216,">0",R205:R216), IF(FORECAST($C201,R$205:R$216,$C$205:$C$216)<0,0, IF(FORECAST($C201,R$205:R$216,$C$205:$C$216)>100,100, FORECAST($C201,R$205:R$216,$C$205:$C$216)))) -> 0.02816579859 | S201: =IF(MAX(C205:C216)-MIN(C205:C216)<5,AVERAGEIF(C205:C216,">0",S205:S216), IF(FORECAST($C201,S$205:S$216,$C$205:$C$216)<0,0, IF(FORECAST($C201,S$205:S$216,$C$205:$C$216)>100,100, FORECAST($C201,S$205:S$216,$C$205:$C$216)))) -> 99.94933212 | W201: =IF(MAX(C205:C216)-MIN(C205:C216)<5,AVERAGEIF(C205:C216,">0",W205:W216), IF(FORECAST($C201,W$205:W$216,$C$205:$C$216)<0,0, IF(FORECAST($C201,W$205:W$216,$C$205:$C$216)>100,100, FORECAST($C201,W$205:W$216,$C$205:$C$216)))) -> 0.008445724899 | X201: =IF(MAX(C205:C216)-MIN(C205:C216)<5,AVERAGEIF(C205:C216,">0",X205:X216), IF(FORECAST($C201,X$205:X$216,$C$205:$C$216)<0,0, IF(FORECAST($C201,X$205:X$216,$C$205:$C$216)>100,100, FORECAST($C201,X$205:X$216,$C$205:$C$216)))) -> 99.91721157 | AB201: =IF(MAX(C205:C216)-MIN(C205:C216)<5,AVERAGEIF(C205:C216,">0",AB205:AB216), IF(FORECAST($C201,AB$205:AB$216,$C$205:$C$216)<0,0, IF(FORECAST($C201,AB$205:AB$216,$C$205:$C$216)>100,100, FORECAST($C201,AB$205:AB$216,$C$205:$C$216)))) -> 0.02047871017
C202: =MaxRegYear(C200,C205:C216) -> 2017 | D202: =IF(MAX(C205:C216)-MIN(C205:C216)<5,AVERAGEIF(C205:C216,">0",D205:D216), IF(FORECAST($C202,D$205:D$216,$C$205:$C$216)<0,0, IF(FORECAST($C202,D$205:D$216,$C$205:$C$216)>100,100, FORECAST($C202,D$205:D$216,$C$205:$C$216)))) -> 96.51994492 | H202: =IF(MAX(C205:C216)-MIN(C205:C216)<5,AVERAGEIF(C205:C216,">0",H205:H216), IF(FORECAST($C202,H$205:H$216,$C$205:$C$216)<0,0, IF(FORECAST($C202,H$205:H$216,$C$205:$C$216)>100,100, FORECAST($C202,H$205:H$216,$C$205:$C$216)))) -> 0.6995983128 | I202: =IF(MAX(C205:C216)-MIN(C205:C216)<5,AVERAGEIF(C205:C216,">0",I205:I216), IF(FORECAST($C202,I$205:I$216,$C$205:$C$216)<0,0, IF(FORECAST($C202,I$205:I$216,$C$205:$C$216)>100,100, FORECAST($C202,I$205:I$216,$C$205:$C$216)))) -> 99.24045009 | M202: =IF(MAX(C205:C216)-MIN(C205:C216)<5,AVERAGEIF(C205:C216,">0",M205:M216), IF(FORECAST($C202,M$205:M$216,$C$205:$C$216)<0,0, IF(FORECAST($C202,M$205:M$216,$C$205:$C$216)>100,100, FORECAST($C202,M$205:M$216,$C$205:$C$216)))) -> 0.2685548574 | N202: =IF(MAX(C205:C216)-MIN(C205:C216)<5,AVERAGEIF(C205:C216,">0",N205:N216), IF(FORECAST($C202,N$205:N$216,$C$205:$C$216)<0,0, IF(FORECAST($C202,N$205:N$216,$C$205:$C$216)>100,100, FORECAST($C202,N$205:N$216,$C$205:$C$216)))) -> 99.4785565 | R202: =IF(MAX(C205:C216)-MIN(C205:C216)<5,AVERAGEIF(C205:C216,">0",R205:R216), IF(FORECAST($C202,R$205:R$216,$C$205:$C$216)<0,0, IF(FORECAST($C202,R$205:R$216,$C$205:$C$216)>100,100, FORECAST($C202,R$205:R$216,$C$205:$C$216)))) -> 0.08100402017 | S202: =IF(MAX(C205:C216)-MIN(C205:C216)<5,AVERAGEIF(C205:C216,">0",S205:S216), IF(FORECAST($C202,S$205:S$216,$C$205:$C$216)<0,0, IF(FORECAST($C202,S$205:S$216,$C$205:$C$216)>100,100, FORECAST($C202,S$205:S$216,$C$205:$C$216)))) -> 99.55229459 | W202: =IF(MAX(C205:C216)-MIN(C205:C216)<5,AVERAGEIF(C205:C216,">0",W205:W216), IF(FORECAST($C202,W$205:W$216,$C$205:$C$216)<0,0, IF(FORECAST($C202,W$205:W$216,$C$205:$C$216)>100,100, FORECAST($C202,W$205:W$216,$C$205:$C$216)))) -> 0.01622677991 | X202: =IF(MAX(C205:C216)-MIN(C205:C216)<5,AVERAGEIF(C205:C216,">0",X205:X216), IF(FORECAST($C202,X$205:X$216,$C$205:$C$216)<0,0, IF(FORECAST($C202,X$205:X$216,$C$205:$C$216)>100,100, FORECAST($C202,X$205:X$216,$C$205:$C$216)))) -> 99.59453566 | AB202: =IF(MAX(C205:C216)-MIN(C205:C216)<5,AVERAGEIF(C205:C216,">0",AB205:AB216), IF(FORECAST($C202,AB$205:AB$216,$C$205:$C$216)<0,0, IF(FORECAST($C202,AB$205:AB$216,$C$205:$C$216)>100,100, FORECAST($C202,AB$205:AB$216,$C$205:$C$216)))) -> 0.01003679457
B204: Survey | C204: Year | D204: Improved | E204: % Improved < = 30min | H204: Surface water | I204: Improved | J204: % Improved < = 30min | M204: Surface water | N204: Improved | O204: % Improved < = 30min | R204: Surface water | S204: Improved | T204: % Improved < = 30min | W204: Surface water | X204: Improved | Y204: % Improved < = 30min | AB204: Surface water
B205: DHS00 | C205: 2000 | D205: =IF(ISERROR(INDIRECT(CONCATENATE($B205,"!H16"))),"",INDIRECT(CONCATENATE($B205,"!H16"))) -> 98.76008553 | E205: =IF(ISERROR(INDIRECT(CONCATENATE($B205,"!H23"))),"",INDIRECT(CONCATENATE($B205,"!H23"))) -> N/A | H205: =IF(ISERROR(INDIRECT(CONCATENATE($B205,"!H21"))),"",INDIRECT(CONCATENATE($B205,"!H21"))) -> 0.04783948063 | I205: =IF(ISERROR(INDIRECT(CONCATENATE($B205,"!I16"))),"",INDIRECT(CONCATENATE($B205,"!I16"))) -> 99.40885886 | J205: =IF(ISERROR(INDIRECT(CONCATENATE($B205,"!I23"))),"",INDIRECT(CONCATENATE($B205,"!I23"))) -> N/A | M205: =IF(ISERROR(INDIRECT(CONCATENATE($B205,"!I21"))),"",INDIRECT(CONCATENATE($B205,"!I21"))) -> 0 | N205: =IF(ISERROR(INDIRECT(CONCATENATE($B205,"!J16"))),"",INDIRECT(CONCATENATE($B205,"!J16"))) -> 99.62437294 | O205: =IF(ISERROR(INDIRECT(CONCATENATE($B205,"!J23"))),"",INDIRECT(CONCATENATE($B205,"!J23"))) -> N/A | R205: =IF(ISERROR(INDIRECT(CONCATENATE($B205,"!J21"))),"",INDIRECT(CONCATENATE($B205,"!J21"))) -> 0 | S205: =IF(ISERROR(INDIRECT(CONCATENATE($B205,"!K16"))),"",INDIRECT(CONCATENATE($B205,"!K16"))) -> 99.9568967 | T205: =IF(ISERROR(INDIRECT(CONCATENATE($B205,"!K23"))),"",INDIRECT(CONCATENATE($B205,"!K23"))) -> N/A | W205: =IF(ISERROR(INDIRECT(CONCATENATE($B205,"!K21"))),"",INDIRECT(CONCATENATE($B205,"!K21"))) -> 0 | X205: =IF(ISERROR(INDIRECT(CONCATENATE($B205,"!L16"))),"",INDIRECT(CONCATENATE($B205,"!L16"))) -> 99.92287237 | Y205: =IF(ISERROR(INDIRECT(CONCATENATE($B205,"!L23"))),"",INDIRECT(CONCATENATE($B205,"!L23"))) -> N/A | AB205: =IF(ISERROR(INDIRECT(CONCATENATE($B205,"!L221"))),"",INDIRECT(CONCATENATE($B205,"!L21"))) -> 0
B206: DHS05 | C206: 2005 | D206: 95.99781315 | E206: 99.93904682 | H206: 0.37062449 | I206: 99.3304943 | J206: 99.97171585 | M206: 0.05929169378 | N206: 99.7642882 | O206: 99.9624455 | R206: 0.05727490383 | S206: 99.74389015 | T206: 99.93446617 | W206: 0.02682980571 | X206: 99.78725596 | Y206: 100 | AB206: 0.05292147388
B207: DHS10 | C207: 2010 | D207: 95.97645905 | E207: 99.8 | H207: 0.7620292005 | I207: 99.12300986 | J207: 99.9 | M207: 0.2821883291 | N207: 99.56972581 | O207: 100 | R207: 0.1166075975 | S207: 99.87041933 | T207: 100 | W207: 0.006168920333 | X207: 99.78052168 | Y207: 100 | AB207: 0.004744706688
B208: DHS15 | C208: 2015 | D208: 97.72397747 | E208: 99.77260391 | H208: 0.4358251573 | I208: 99.3625987 | J208: 99.99260161 | M208: 0.1717493792 | N208: 99.46563317 | O208: 100 | R208: 0.03202461347 | S208: 99.52546783 | T208: 100 | W208: 0.01451544709 | X208: 99.6087682 | Y208: 100 | AB208: 0.005821750241
B218: =CONCATENATE("Urban use of drinking water sources, ",C199,"–",C200) -> Urban use of drinking water sources, 2000–2020 | S218: Data points used for regression
E253: =IF(ISERROR(INDIRECT(CONCATENATE($B253,"!M18"))),"",INDIRECT(CONCATENATE($B253,"!M18"))) ->  | F253: =IF(ISERROR(INDIRECT(CONCATENATE($B253,"!M19"))),"",INDIRECT(CONCATENATE($B253,"!M19"))) ->  | G253: =IF(ISERROR(INDIRECT(CONCATENATE($B253,"!M20"))),"",INDIRECT(CONCATENATE($B253,"!M20"))) ->  | H253: =IF(ISERROR(INDIRECT(CONCATENATE($B253,"!M21"))),"",INDIRECT(CONCATENATE($B253,"!M21"))) ->  | J253: =IF(ISERROR(INDIRECT(CONCATENATE($B253,"!N18"))),"",INDIRECT(CONCATENATE($B253,"!N18"))) ->  | K253: =IF(ISERROR(INDIRECT(CONCATENATE($B253,"!N19"))),"",INDIRECT(CONCATENATE($B253,"!N19"))) ->  | L253: =IF(ISERROR(INDIRECT(CONCATENATE($B253,"!N20"))),"",INDIRECT(CONCATENATE($B253,"!N20"))) ->  | M253: =IF(ISERROR(INDIRECT(CONCATENATE($B253,"!N21"))),"",INDIRECT(CONCATENATE($B253,"!N21"))) ->  | O253: =IF(ISERROR(INDIRECT(CONCATENATE($B253,"!O18"))),"",INDIRECT(CONCATENATE($B253,"!O18"))) ->  | P253: =IF(ISERROR(INDIRECT(CONCATENATE($B253,"!O19"))),"",INDIRECT(CONCATENATE($B253,"!O19"))) ->  | Q253: =IF(ISERROR(INDIRECT(CONCATENATE($B253,"!O20"))),"",INDIRECT(CONCATENATE($B253,"!O20"))) ->  | R253: =IF(ISERROR(INDIRECT(CONCATENATE($B253,"!O21"))),"",INDIRECT(CONCATENATE($B253,"!O21"))) ->  | T253: =IF(ISERROR(INDIRECT(CONCATENATE($B253,"!P18"))),"",INDIRECT(CONCATENATE($B253,"!P18"))) ->  | U253: =IF(ISERROR(INDIRECT(CONCATENATE($B253,"!P19"))),"",INDIRECT(CONCATENATE($B253,"!P19"))) ->  | V253: =IF(ISERROR(INDIRECT(CONCATENATE($B253,"!P20"))),"",INDIRECT(CONCATENATE($B253,"!P20"))) ->  | W253: =IF(ISERROR(INDIRECT(CONCATENATE($B253,"!P21"))),"",INDIRECT(CONCATENATE($B253,"!P21"))) ->  | Y253: =IF(ISERROR(INDIRECT(CONCATENATE($B253,"!Q18"))),"",INDIRECT(CONCATENATE($B253,"!Q18"))) ->  | Z253: =IF(ISERROR(INDIRECT(CONCATENATE($B253,"!Q19"))),"",INDIRECT(CONCATENATE($B253,"!Q19"))) ->  | AA253: =IF(ISERROR(INDIRECT(CONCATENATE($B253,"!Q20"))),"",INDIRECT(CONCATENATE($B253,"!Q20"))) ->  | AB253: =IF(ISERROR(INDIRECT(CONCATENATE($B253,"!Q21"))),"",INDIRECT(CONCATENATE($B253,"!Q1"))) -> 
E254: =IF(ISERROR(INDIRECT(CONCATENATE($B254,"!M18"))),"",INDIRECT(CONCATENATE($B254,"!M18"))) ->  | F254: =IF(ISERROR(INDIRECT(CONCATENATE($B254,"!M19"))),"",INDIRECT(CONCATENATE($B254,"!M19"))) ->  | G254: =IF(ISERROR(INDIRECT(CONCATENATE($B254,"!M20"))),"",INDIRECT(CONCATENATE($B254,"!M20"))) ->  | H254: =IF(ISERROR(INDIRECT(CONCATENATE($B254,"!M21"))),"",INDIRECT(CONCATENATE($B254,"!M21"))) ->  | J254: =IF(ISERROR(INDIRECT(CONCATENATE($B254,"!N18"))),"",INDIRECT(CONCATENATE($B254,"!N18"))) ->  | K254: =IF(ISERROR(INDIRECT(CONCATENATE($B254,"!N19"))),"",INDIRECT(CONCATENATE($B254,"!N19"))) ->  | L254: =IF(ISERROR(INDIRECT(CONCATENATE($B254,"!N20"))),"",INDIRECT(CONCATENATE($B254,"!N20"))) ->  | M254: =IF(ISERROR(INDIRECT(CONCATENATE($B254,"!N21"))),"",INDIRECT(CONCATENATE($B254,"!N21"))) ->  | O254: =IF(ISERROR(INDIRECT(CONCATENATE($B254,"!O18"))),"",INDIRECT(CONCATENATE($B254,"!O18"))) ->  | P254: =IF(ISERROR(INDIRECT(CONCATENATE($B254,"!O19"))),"",INDIRECT(CONCATENATE($B254,"!O19"))) ->  | Q254: =IF(ISERROR(INDIRECT(CONCATENATE($B254,"!O20"))),"",INDIRECT(CONCATENATE($B254,"!O20"))) ->  | R254: =IF(ISERROR(INDIRECT(CONCATENATE($B254,"!O21"))),"",INDIRECT(CONCATENATE($B254,"!O21"))) ->  | T254: =IF(ISERROR(INDIRECT(CONCATENATE($B254,"!P18"))),"",INDIRECT(CONCATENATE($B254,"!P18"))) ->  | U254: =IF(ISERROR(INDIRECT(CONCATENATE($B254,"!P19"))),"",INDIRECT(CONCATENATE($B254,"!P19"))) ->  | V254: =IF(ISERROR(INDIRECT(CONCATENATE($B254,"!P20"))),"",INDIRECT(CONCATENATE($B254,"!P20"))) ->  | W254: =IF(ISERROR(INDIRECT(CONCATENATE($B254,"!P21"))),"",INDIRECT(CONCATENATE($B254,"!P21"))) ->  | Y254: =IF(ISERROR(INDIRECT(CONCATENATE($B254,"!Q18"))),"",INDIRECT(CONCATENATE($B254,"!Q18"))) ->  | Z254: =IF(ISERROR(INDIRECT(CONCATENATE($B254,"!Q19"))),"",INDIRECT(CONCATENATE($B254,"!Q19"))) ->  | AA254: =IF(ISERROR(INDIRECT(CONCATENATE($B254,"!Q20"))),"",INDIRECT(CONCATENATE($B254,"!Q20"))) ->  | AB254: =IF(ISERROR(INDIRECT(CONCATENATE($B254,"!Q21"))),"",INDIRECT(CONCATENATE($B254,"!Q1"))) -> 
E255: =IF(ISERROR(INDIRECT(CONCATENATE($B255,"!M18"))),"",INDIRECT(CONCATENATE($B255,"!M18"))) ->  | F255: =IF(ISERROR(INDIRECT(CONCATENATE($B255,"!M19"))),"",INDIRECT(CONCATENATE($B255,"!M19"))) ->  | G255: =IF(ISERROR(INDIRECT(CONCATENATE($B255,"!M20"))),"",INDIRECT(CONCATENATE($B255,"!M20"))) ->  | H255: =IF(ISERROR(INDIRECT(CONCATENATE($B255,"!M21"))),"",INDIRECT(CONCATENATE($B255,"!M21"))) ->  | J255: =IF(ISERROR(INDIRECT(CONCATENATE($B255,"!N18"))),"",INDIRECT(CONCATENATE($B255,"!N18"))) ->  | K255: =IF(ISERROR(INDIRECT(CONCATENATE($B255,"!N19"))),"",INDIRECT(CONCATENATE($B255,"!N19"))) ->  | L255: =IF(ISERROR(INDIRECT(CONCATENATE($B255,"!N20"))),"",INDIRECT(CONCATENATE($B255,"!N20"))) ->  | M255: =IF(ISERROR(INDIRECT(CONCATENATE($B255,"!N21"))),"",INDIRECT(CONCATENATE($B255,"!N21"))) ->  | O255: =IF(ISERROR(INDIRECT(CONCATENATE($B255,"!O18"))),"",INDIRECT(CONCATENATE($B255,"!O18"))) ->  | P255: =IF(ISERROR(INDIRECT(CONCATENATE($B255,"!O19"))),"",INDIRECT(CONCATENATE($B255,"!O19"))) ->  | Q255: =IF(ISERROR(INDIRECT(CONCATENATE($B255,"!O20"))),"",INDIRECT(CONCATENATE($B255,"!O20"))) ->  | R255: =IF(ISERROR(INDIRECT(CONCATENATE($B255,"!O21"))),"",INDIRECT(CONCATENATE($B255,"!O21"))) ->  | T255: =IF(ISERROR(INDIRECT(CONCATENATE($B255,"!P18"))),"",INDIRECT(CONCATENATE($B255,"!P18"))) ->  | U255: =IF(ISERROR(INDIRECT(CONCATENATE($B255,"!P19"))),"",INDIRECT(CONCATENATE($B255,"!P19"))) ->  | V255: =IF(ISERROR(INDIRECT(CONCATENATE($B255,"!P20"))),"",INDIRECT(CONCATENATE($B255,"!P20"))) ->  | W255: =IF(ISERROR(INDIRECT(CONCATENATE($B255,"!P21"))),"",INDIRECT(CONCATENATE($B255,"!P21"))) ->  | Y255: =IF(ISERROR(INDIRECT(CONCATENATE($B255,"!Q18"))),"",INDIRECT(CONCATENATE($B255,"!Q18"))) ->  | Z255: =IF(ISERROR(INDIRECT(CONCATENATE($B255,"!Q19"))),"",INDIRECT(CONCATENATE($B255,"!Q19"))) ->  | AA255: =IF(ISERROR(INDIRECT(CONCATENATE($B255,"!Q20"))),"",INDIRECT(CONCATENATE($B255,"!Q20"))) ->  | AB255: =IF(ISERROR(INDIRECT(CONCATENATE($B255,"!Q21"))),"",INDIRECT(CONCATENATE($B255,"!Q1"))) -> 
E256: =IF(ISERROR(INDIRECT(CONCATENATE($B256,"!M18"))),"",INDIRECT(CONCATENATE($B256,"!M18"))) ->  | F256: =IF(ISERROR(INDIRECT(CONCATENATE($B256,"!M19"))),"",INDIRECT(CONCATENATE($B256,"!M19"))) ->  | G256: =IF(ISERROR(INDIRECT(CONCATENATE($B256,"!M20"))),"",INDIRECT(CONCATENATE($B256,"!M20"))) ->  | H256: =IF(ISERROR(INDIRECT(CONCATENATE($B256,"!M21"))),"",INDIRECT(CONCATENATE($B256,"!M21"))) ->  | J256: =IF(ISERROR(INDIRECT(CONCATENATE($B256,"!N18"))),"",INDIRECT(CONCATENATE($B256,"!N18"))) ->  | K256: =IF(ISERROR(INDIRECT(CONCATENATE($B256,"!N19"))),"",INDIRECT(CONCATENATE($B256,"!N19"))) ->  | L256: =IF(ISERROR(INDIRECT(CONCATENATE($B256,"!N20"))),"",INDIRECT(CONCATENATE($B256,"!N20"))) ->  | M256: =IF(ISERROR(INDIRECT(CONCATENATE($B256,"!N21"))),"",INDIRECT(CONCATENATE($B256,"!N21"))) ->  | O256: =IF(ISERROR(INDIRECT(CONCATENATE($B256,"!O18"))),"",INDIRECT(CONCATENATE($B256,"!O18"))) ->  | P256: =IF(ISERROR(INDIRECT(CONCATENATE($B256,"!O19"))),"",INDIRECT(CONCATENATE($B256,"!O19"))) ->  | Q256: =IF(ISERROR(INDIRECT(CONCATENATE($B256,"!O20"))),"",INDIRECT(CONCATENATE($B256,"!O20"))) ->  | R256: =IF(ISERROR(INDIRECT(CONCATENATE($B256,"!O21"))),"",INDIRECT(CONCATENATE($B256,"!O21"))) ->  | T256: =IF(ISERROR(INDIRECT(CONCATENATE($B256,"!P18"))),"",INDIRECT(CONCATENATE($B256,"!P18"))) ->  | U256: =IF(ISERROR(INDIRECT(CONCATENATE($B256,"!P19"))),"",INDIRECT(CONCATENATE($B256,"!P19"))) ->  | V256: =IF(ISERROR(INDIRECT(CONCATENATE($B256,"!P20"))),"",INDIRECT(CONCATENATE($B256,"!P20"))) ->  | W256: =IF(ISERROR(INDIRECT(CONCATENATE($B256,"!P21"))),"",INDIRECT(CONCATENATE($B256,"!P21"))) ->  | Y256: =IF(ISERROR(INDIRECT(CONCATENATE($B256,"!Q18"))),"",INDIRECT(CONCATENATE($B256,"!Q18"))) ->  | Z256: =IF(ISERROR(INDIRECT(CONCATENATE($B256,"!Q19"))),"",INDIRECT(CONCATENATE($B256,"!Q19"))) ->  | AA256: =IF(ISERROR(INDIRECT(CONCATENATE($B256,"!Q20"))),"",INDIRECT(CONCATENATE($B256,"!Q20"))) ->  | AB256: =IF(ISERROR(INDIRECT(CONCATENATE($B256,"!Q21"))),"",INDIRECT(CONCATENATE($B256,"!Q1"))) -> 
E257: =IF(ISERROR(INDIRECT(CONCATENATE($B257,"!M18"))),"",INDIRECT(CONCATENATE($B257,"!M18"))) ->  | F257: =IF(ISERROR(INDIRECT(CONCATENATE($B257,"!M19"))),"",INDIRECT(CONCATENATE($B257,"!M19"))) ->  | G257: =IF(ISERROR(INDIRECT(CONCATENATE($B257,"!M20"))),"",INDIRECT(CONCATENATE($B257,"!M20"))) ->  | H257: =IF(ISERROR(INDIRECT(CONCATENATE($B257,"!M21"))),"",INDIRECT(CONCATENATE($B257,"!M21"))) ->  | J257: =IF(ISERROR(INDIRECT(CONCATENATE($B257,"!N18"))),"",INDIRECT(CONCATENATE($B257,"!N18"))) ->  | K257: =IF(ISERROR(INDIRECT(CONCATENATE($B257,"!N19"))),"",INDIRECT(CONCATENATE($B257,"!N19"))) ->  | L257: =IF(ISERROR(INDIRECT(CONCATENATE($B257,"!N20"))),"",INDIRECT(CONCATENATE($B257,"!N20"))) ->  | M257: =IF(ISERROR(INDIRECT(CONCATENATE($B257,"!N21"))),"",INDIRECT(CONCATENATE($B257,"!N21"))) ->  | O257: =IF(ISERROR(INDIRECT(CONCATENATE($B257,"!O18"))),"",INDIRECT(CONCATENATE($B257,"!O18"))) ->  | P257: =IF(ISERROR(INDIRECT(CONCATENATE($B257,"!O19"))),"",INDIRECT(CONCATENATE($B257,"!O19"))) ->  | Q257: =IF(ISERROR(INDIRECT(CONCATENATE($B257,"!O20"))),"",INDIRECT(CONCATENATE($B257,"!O20"))) ->  | R257: =IF(ISERROR(INDIRECT(CONCATENATE($B257,"!O21"))),"",INDIRECT(CONCATENATE($B257,"!O21"))) ->  | T257: =IF(ISERROR(INDIRECT(CONCATENATE($B257,"!P18"))),"",INDIRECT(CONCATENATE($B257,"!P18"))) ->  | U257: =IF(ISERROR(INDIRECT(CONCATENATE($B257,"!P19"))),"",INDIRECT(CONCATENATE($B257,"!P19"))) ->  | V257: =IF(ISERROR(INDIRECT(CONCATENATE($B257,"!P20"))),"",INDIRECT(CONCATENATE($B257,"!P20"))) ->  | W257: =IF(ISERROR(INDIRECT(CONCATENATE($B257,"!P21"))),"",INDIRECT(CONCATENATE($B257,"!P21"))) ->  | Y257: =IF(ISERROR(INDIRECT(CONCATENATE($B257,"!Q18"))),"",INDIRECT(CONCATENATE($B257,"!Q18"))) ->  | Z257: =IF(ISERROR(INDIRECT(CONCATENATE($B257,"!Q19"))),"",INDIRECT(CONCATENATE($B257,"!Q19"))) ->  | AA257: =IF(ISERROR(INDIRECT(CONCATENATE($B257,"!Q20"))),"",INDIRECT(CONCATENATE($B257,"!Q20"))) ->  | AB257: =IF(ISERROR(INDIRECT(CONCATENATE($B257,"!Q21"))),"",INDIRECT(CONCATENATE($B257,"!Q1"))) -> 
A297: RURAL | D297: Poorest | I297: Poor | N297: Middle | S297: Rich | X297: Richest
D298: Improved | E298: Basic | F298: Limited | G298: Unimproved | H298: Surface water | I298: Improved | J298: Basic | K298: Limited | L298: Unimproved | M298: Surface water | N298: Improved | O298: Basic | P298: Limited | Q298: Unimproved | R298: Surface water | S298: Improved | T298: Basic | U298: Limited | V298: Unimproved | W298: Surface water | X298: Improved | Y298: Basic | Z298: Limited | AA298: Unimproved | AB298: Surface water
A299: Forecast period: | C299: 2000 | D299: =IF((D301+H301)>100,D301*100/(D301+H301),D301) -> 49.56496912 | E299: =D299*AVERAGEIF(E305:E316,">0")/100 -> 48.25209786 | F299: =D299*(100-AVERAGEIF(E305:E316,">0"))/100 -> 1.312871251 | G299: =100-(E299+F299+H299) -> 20.35065071 | H299: =IF((D301+H301)>100,H301*100/(D301+H301),H301) -> 30.08438017 | I299: =IF((I301+M301)>100,I301*100/(I301+M301),I301) -> 68.44409638 | J299: =I299*AVERAGEIF(J305:J316,">0")/100 -> 67.94683784 | K299: =I299*(100-AVERAGEIF(J305:J316,">0"))/100 -> 0.4972585457 | L299: =100-(J299+K299+M299) -> 12.98215315 | M299: =IF((I301+M301)>100,M301*100/(I301+M301),M301) -> 18.57375047 | N299: =IF((N301+R301)>100,N301*100/(N301+R301),N301) -> 76.44914544 | O299: =N299*AVERAGEIF(O305:O316,">0")/100 -> 76.16914931 | P299: =N299*(100-AVERAGEIF(O305:O316,">0"))/100 -> 0.2799961254 | Q299: =100-(O299+P299+R299) -> 9.86790412 | R299: =IF((N301+R301)>100,R301*100/(N301+R301),R301) -> 13.68295044 | S299: =IF((S301+W301)>100,S301*100/(S301+W301),S301) -> 80.71359321 | T299: =S299*AVERAGEIF(T305:T316,">0")/100 -> 80.27799951 | U299: =S299*(100-AVERAGEIF(T305:T316,">0"))/100 -> 0.4355937048 | V299: =100-(T299+U299+W299) -> 8.469273243 | W299: =IF((S301+W301)>100,W301*100/(S301+W301),W301) -> 10.81713355 | X299: =IF((X301+AB301)>100,X301*100/(X301+AB301),X301) -> 87.19083561 | Y299: =X299*AVERAGEIF(Y305:Y316,">0")/100 -> 87.02542687 | Z299: =X299*(100-AVERAGEIF(Y305:Y316,">0"))/100 -> 0.1654087379 | AA299: =100-(Y299+Z299+AB299) -> 5.463565186 | AB299: =IF((X301+AB301)>100,AB301*100/(X301+AB301),AB301) -> 7.345599203
C300: 2020 | D300: =IF((D302+H302)>100,D302*100/(D302+H302),D302) -> 59.38978909 | E300: =D300*AVERAGEIF(E305:E316,">0")/100 -> 57.81667913 | F300: =D300*(100-AVERAGEIF(E305:E316,">0"))/100 -> 1.573109963 | G300: =100-(E300+F300+H300) -> 17.96536436 | H300: =IF((D302+H302)>100,H302*100/(D302+H302),H302) -> 22.64484655 | I300: =IF((I302+M302)>100,I302*100/(I302+M302),I302) -> 72.4408798 | J300: =I300*AVERAGEIF(J305:J316,">0")/100 -> 71.91458391 | K300: =I300*(100-AVERAGEIF(J305:J316,">0"))/100 -> 0.5262958888 | L300: =100-(J300+K300+M300) -> 8.945166689 | M300: =IF((I302+M302)>100,M302*100/(I302+M302),M302) -> 18.61395352 | N300: =IF((N302+R302)>100,N302*100/(N302+R302),N302) -> 78.70451818 | O300: =N300*AVERAGEIF(O305:O316,">0")/100 -> 78.41626172 | P300: =N300*(100-AVERAGEIF(O305:O316,">0"))/100 -> 0.2882564614 | Q300: =100-(O300+P300+R300) -> 4.257008054 | R300: =IF((N302+R302)>100,R302*100/(N302+R302),R302) -> 17.03847377 | S300: =IF((S302+W302)>100,S302*100/(S302+W302),S302) -> 87.10039892 | T300: =S300*AVERAGEIF(T305:T316,">0")/100 -> 86.63033701 | U300: =S300*(100-AVERAGEIF(T305:T316,">0"))/100 -> 0.4700619059 | V300: =100-(T300+U300+W300) -> 1.65740316 | W300: =IF((S302+W302)>100,W302*100/(S302+W302),W302) -> 11.24219792 | X300: =IF((X302+AB302)>100,X302*100/(X302+AB302),X302) -> 92.71789323 | Y300: =X300*AVERAGEIF(Y305:Y316,">0")/100 -> 92.54199917 | Z300: =X300*(100-AVERAGEIF(Y305:Y316,">0"))/100 -> 0.1758940558 | AA300: =100-(Y300+Z300+AB300) -> 0.4930073026 | AB300: =IF((X302+AB302)>100,AB302*100/(X302+AB302),AB302) -> 6.789099471
A301: Regression period: | C301: =MinRegYear(C299,C305:C316) -> 2000 | D301: =IF(MAX(C305:C316)-MIN(C305:C316)<5,AVERAGEIF(C305:C316,">0",D305:D316), IF(FORECAST($C301,D$305:D$316,$C$305:$C$316)<0,0, IF(FORECAST($C301,D$305:D$316,$C$305:$C$316)>100,100, FORECAST($C301,D$305:D$316,$C$305:$C$316)))) -> 49.56496912 | H301: =IF(MAX(C305:C316)-MIN(C305:C316)<5,AVERAGEIF(C305:C316,">0",H305:H316), IF(FORECAST($C301,H$305:H$316,$C$305:$C$316)<0,0, IF(FORECAST($C301,H$305:H$316,$C$305:$C$316)>100,100, FORECAST($C301,H$305:H$316,$C$305:$C$316)))) -> 30.08438017 | I301: =IF(MAX(C305:C316)-MIN(C305:C316)<5,AVERAGEIF(C305:C316,">0",I305:I316), IF(FORECAST($C301,I$305:I$316,$C$305:$C$316)<0,0, IF(FORECAST($C301,I$305:I$316,$C$305:$C$316)>100,100, FORECAST($C301,I$305:I$316,$C$305:$C$316)))) -> 68.44409638 | M301: =IF(MAX(C305:C316)-MIN(C305:C316)<5,AVERAGEIF(C305:C316,">0",M305:M316), IF(FORECAST($C301,M$305:M$316,$C$305:$C$316)<0,0, IF(FORECAST($C301,M$305:M$316,$C$305:$C$316)>100,100, FORECAST($C301,M$305:M$316,$C$305:$C$316)))) -> 18.57375047 | N301: =IF(MAX(C305:C316)-MIN(C305:C316)<5,AVERAGEIF(C305:C316,">0",N305:N316), IF(FORECAST($C301,N$305:N$316,$C$305:$C$316)<0,0, IF(FORECAST($C301,N$305:N$316,$C$305:$C$316)>100,100, FORECAST($C301,N$305:N$316,$C$305:$C$316)))) -> 76.44914544 | R301: =IF(MAX(C305:C316)-MIN(C305:C316)<5,AVERAGEIF(C305:C316,">0",R305:R316), IF(FORECAST($C301,R$305:R$316,$C$305:$C$316)<0,0, IF(FORECAST($C301,R$305:R$316,$C$305:$C$316)>100,100, FORECAST($C301,R$305:R$316,$C$305:$C$316)))) -> 13.68295044 | S301: =IF(MAX(C305:C316)-MIN(C305:C316)<5,AVERAGEIF(C305:C316,">0",S305:S316), IF(FORECAST($C301,S$305:S$316,$C$305:$C$316)<0,0, IF(FORECAST($C301,S$305:S$316,$C$305:$C$316)>100,100, FORECAST($C301,S$305:S$316,$C$305:$C$316)))) -> 80.71359321 | W301: =IF(MAX(C305:C316)-MIN(C305:C316)<5,AVERAGEIF(C305:C316,">0",W305:W316), IF(FORECAST($C301,W$305:W$316,$C$305:$C$316)<0,0, IF(FORECAST($C301,W$305:W$316,$C$305:$C$316)>100,100, FORECAST($C301,W$305:W$316,$C$305:$C$316)))) -> 10.81713355 | X301: =IF(MAX(C305:C316)-MIN(C305:C316)<5,AVERAGEIF(C305:C316,">0",X305:X316), IF(FORECAST($C301,X$305:X$316,$C$305:$C$316)<0,0, IF(FORECAST($C301,X$305:X$316,$C$305:$C$316)>100,100, FORECAST($C301,X$305:X$316,$C$305:$C$316)))) -> 87.19083561 | AB301: =IF(MAX(C305:C316)-MIN(C305:C316)<5,AVERAGEIF(C305:C316,">0",AB305:AB316), IF(FORECAST($C301,AB$305:AB$316,$C$305:$C$316)<0,0, IF(FORECAST($C301,AB$305:AB$316,$C$305:$C$316)>100,100, FORECAST($C301,AB$305:AB$316,$C$305:$C$316)))) -> 7.345599203
C302: =MaxRegYear(C300,C305:C316) -> 2017 | D302: =IF(MAX(C305:C316)-MIN(C305:C316)<5,AVERAGEIF(C305:C316,">0",D305:D316), IF(FORECAST($C302,D$305:D$316,$C$305:$C$316)<0,0, IF(FORECAST($C302,D$305:D$316,$C$305:$C$316)>100,100, FORECAST($C302,D$305:D$316,$C$305:$C$316)))) -> 59.38978909 | H302: =IF(MAX(C305:C316)-MIN(C305:C316)<5,AVERAGEIF(C305:C316,">0",H305:H316), IF(FORECAST($C302,H$305:H$316,$C$305:$C$316)<0,0, IF(FORECAST($C302,H$305:H$316,$C$305:$C$316)>100,100, FORECAST($C302,H$305:H$316,$C$305:$C$316)))) -> 22.64484655 | I302: =IF(MAX(C305:C316)-MIN(C305:C316)<5,AVERAGEIF(C305:C316,">0",I305:I316), IF(FORECAST($C302,I$305:I$316,$C$305:$C$316)<0,0, IF(FORECAST($C302,I$305:I$316,$C$305:$C$316)>100,100, FORECAST($C302,I$305:I$316,$C$305:$C$316)))) -> 72.4408798 | M302: =IF(MAX(C305:C316)-MIN(C305:C316)<5,AVERAGEIF(C305:C316,">0",M305:M316), IF(FORECAST($C302,M$305:M$316,$C$305:$C$316)<0,0, IF(FORECAST($C302,M$305:M$316,$C$305:$C$316)>100,100, FORECAST($C302,M$305:M$316,$C$305:$C$316)))) -> 18.61395352 | N302: =IF(MAX(C305:C316)-MIN(C305:C316)<5,AVERAGEIF(C305:C316,">0",N305:N316), IF(FORECAST($C302,N$305:N$316,$C$305:$C$316)<0,0, IF(FORECAST($C302,N$305:N$316,$C$305:$C$316)>100,100, FORECAST($C302,N$305:N$316,$C$305:$C$316)))) -> 78.70451818 | R302: =IF(MAX(C305:C316)-MIN(C305:C316)<5,AVERAGEIF(C305:C316,">0",R305:R316), IF(FORECAST($C302,R$305:R$316,$C$305:$C$316)<0,0, IF(FORECAST($C302,R$305:R$316,$C$305:$C$316)>100,100, FORECAST($C302,R$305:R$316,$C$305:$C$316)))) -> 17.03847377 | S302: =IF(MAX(C305:C316)-MIN(C305:C316)<5,AVERAGEIF(C305:C316,">0",S305:S316), IF(FORECAST($C302,S$305:S$316,$C$305:$C$316)<0,0, IF(FORECAST($C302,S$305:S$316,$C$305:$C$316)>100,100, FORECAST($C302,S$305:S$316,$C$305:$C$316)))) -> 87.10039892 | W302: =IF(MAX(C305:C316)-MIN(C305:C316)<5,AVERAGEIF(C305:C316,">0",W305:W316), IF(FORECAST($C302,W$305:W$316,$C$305:$C$316)<0,0, IF(FORECAST($C302,W$305:W$316,$C$305:$C$316)>100,100, FORECAST($C302,W$305:W$316,$C$305:$C$316)))) -> 11.24219792 | X302: =IF(MAX(C305:C316)-MIN(C305:C316)<5,AVERAGEIF(C305:C316,">0",X305:X316), IF(FORECAST($C302,X$305:X$316,$C$305:$C$316)<0,0, IF(FORECAST($C302,X$305:X$316,$C$305:$C$316)>100,100, FORECAST($C302,X$305:X$316,$C$305:$C$316)))) -> 92.71789323 | AB302: =IF(MAX(C305:C316)-MIN(C305:C316)<5,AVERAGEIF(C305:C316,">0",AB305:AB316), IF(FORECAST($C302,AB$305:AB$316,$C$305:$C$316)<0,0, IF(FORECAST($C302,AB$305:AB$316,$C$305:$C$316)>100,100, FORECAST($C302,AB$305:AB$316,$C$305:$C$316)))) -> 6.789099471
B304: Survey | C304: Year | D304: Improved | E304: % Improved < = 30min | H304: Surface water | I304: Improved | J304: % Improved < = 30min | M304: Surface water | N304: Improved | O304: % Improved < = 30min | R304: Surface water | S304: Improved | T304: % Improved < = 30min | W304: Surface water | X304: Improved | Y304: % Improved < = 30min | AB304: Surface water
B305: DHS00 | C305: 2000 | D305: =IF(ISERROR(INDIRECT(CONCATENATE($B305,"!M16"))),"",INDIRECT(CONCATENATE($B305,"!M16"))) -> 47.3819136 | E305: =IF(ISERROR(INDIRECT(CONCATENATE($B305,"!M23"))),"",INDIRECT(CONCATENATE($B305,"!M23"))) -> N/A | H305: =IF(ISERROR(INDIRECT(CONCATENATE($B305,"!M21"))),"",INDIRECT(CONCATENATE($B305,"!M21"))) -> 34.5958185 | I305: =IF(ISERROR(INDIRECT(CONCATENATE($B305,"!N16"))),"",INDIRECT(CONCATENATE($B305,"!N16"))) -> 63.50770373 | J305: =IF(ISERROR(INDIRECT(CONCATENATE($B305,"!N23"))),"",INDIRECT(CONCATENATE($B305,"!N23"))) -> N/A | M305: =IF(ISERROR(INDIRECT(CONCATENATE($B305,"!N21"))),"",INDIRECT(CONCATENATE($B305,"!N21"))) -> 21.70399478 | N305: =IF(ISERROR(INDIRECT(CONCATENATE($B305,"!O16"))),"",INDIRECT(CONCATENATE($B305,"!O16"))) -> 72.68625551 | O305: =IF(ISERROR(INDIRECT(CONCATENATE($B305,"!O23"))),"",INDIRECT(CONCATENATE($B305,"!O23"))) -> N/A | R305: =IF(ISERROR(INDIRECT(CONCATENATE($B305,"!O21"))),"",INDIRECT(CONCATENATE($B305,"!O21"))) -> 15.88537616 | S305: =IF(ISERROR(INDIRECT(CONCATENATE($B305,"!P16"))),"",INDIRECT(CONCATENATE($B305,"!P16"))) -> 75.62880828 | T305: =IF(ISERROR(INDIRECT(CONCATENATE($B305,"!P23"))),"",INDIRECT(CONCATENATE($B305,"!P23"))) -> N/A | W305: =IF(ISERROR(INDIRECT(CONCATENATE($B305,"!P21"))),"",INDIRECT(CONCATENATE($B305,"!P21"))) -> 14.19435658 | X305: =IF(ISERROR(INDIRECT(CONCATENATE($B305,"!Q16"))),"",INDIRECT(CONCATENATE($B305,"!Q16"))) -> 84.68865985 | Y305: =IF(ISERROR(INDIRECT(CONCATENATE($B305,"!Q23"))),"",INDIRECT(CONCATENATE($B305,"!Q23"))) -> N/A | AB305: =IF(ISERROR(INDIRECT(CONCATENATE($B305,"!Q221"))),"",INDIRECT(CONCATENATE($B305,"!Q21"))) -> 8.746235581
B306: DHS05 | C306: 2005 | D306: 56.38047333 | E306: 97.80975321 | H306: 21.62582467 | I306: 76.29937252 | J306: 99.66276888 | M306: 13.86988704 | N306: 82.09677687 | O306: 99.62763772 | R306: 11.56205197 | S306: 90.20331156 | T306: 99.45670905 | W306: 5.666883527 | X306: 92.53730287 | Y306: 99.5792151 | AB306: 5.039595103
B307: DHS10 | C307: 2010 | D307: 54.04173896 | E307: 98.3 | H307: 24.7147837 | I307: 72.2448202 | J307: 99.5 | M307: 18.63804209 | N307: 79.09593205 | O307: 99.7 | R307: 15.26514474 | S307: 84.50240038 | T307: 100 | W307: 11.48604021 | X307: 90.50684911 | Y307: 99.9 | AB307: 7.100992703
B308: DHS15 | C308: 2015 | D308: 57.79366817 | E308: 95.94388099 | H308: 26.27250508 | I308: 68.77763628 | J308: 98.65767771 | M308: 20.15402452 | N308: 75.89768686 | O308: 99.57360785 | R308: 17.94074065 | S308: 83.79068623 | T308: 98.92425621 | W308: 12.67136746 | X308: 90.7841617 | Y308: 99.95165833 | AB308: 7.513515075
B318: =CONCATENATE("Rural use of drinking water sources, ",C299,"–",C300) -> Rural use of drinking water sources, 2000–2020 | S318: Data points used for regression

Sheet Sanitation
B4: Summary of trends in use of sanitation facilities by wealth quintile (%)
B5: =IF(ISERROR(INDIRECT(CONCATENATE($B105,"!A2"))),"",INDIRECT(CONCATENATE($B105,"!A2"))) -> Colombia
B7: =B118 -> National use of sanitation facilities, 2000–2020 | J7: =B218 -> Urban use of sanitation facilities, 2000–2020 | R7: =B318 -> Rural use of sanitation facilities, 2000–2020
B31: =IF(ISERROR(INDIRECT(CONCATENATE($B105,"!A2"))),"",INDIRECT(CONCATENATE($B105,"!A2"))) -> Colombia | F31: Poorest | J31: Poor | N31: Middle | R31: Rich | V31: Richest
F32: Basic | G32: Limited | H32: Unimproved | I32: Open defecation | J32: Basic | K32: Limited | L32: Unimproved | M32: Open defecation | N32: Basic | O32: Limited | P32: Unimproved | Q32: Open defecation | R32: Basic | S32: Limited | T32: Unimproved | U32: Open defecation | V32: Basic | W32: Limited | X32: Unimproved | Y32: Open defecation
B33: NATIONAL | D33: Estimate | E33: =C99 -> 2000 | F33: =E99 -> 38.50901189 | G33: =F99 -> 9.365583011 | H33: 14.80578388 | I33: 37.31962122 | J33: =J99 -> 63.58846568 | K33: =K99 -> 18.09647026 | L33: 12.65993779 | M33: 5.655126265 | N33: =O99 -> 80.22117341 | O33: =P99 -> 12.61504516 | P33: 6.107211847 | Q33: 1.056569583 | R33: =T99 -> 91.28887802 | S33: =U99 -> 6.765714803 | T33: 1.852203026 | U33: 0.09320415544 | V33: =Y99 -> 96.32919978 | W33: =Z99 -> 3.136422768 | X33: 0.5278875465 | Y33: 0.006489907814
E34: =C100 -> 2020 | F34: =E100 -> 58.14292691 | G34: 14.14064869 | H34: 5.834761213 | I34: 21.88166319 | J34: =J100 -> 76.78770216 | K34: 21.85280543 | L34: 1.246111289 | M34: 0.1133811219 | N34: =O100 -> 86.41150474 | O34: 13.58849526 | P34: 0 | Q34: 0 | R34: =T100 -> 93.10005313 | S34: 6.899946865 | T34: 0 | U34: 0 | V34: =Y100 -> 96.81705507 | W34: 3.152307053 | X34: 0.02966438767 | Y34: 0.0009734861721
B36: URBAN | D36: Estimate | E36: =C199 -> 2000 | F36: =E199 -> 59.69541995 | G36: =F199 -> 25.19157797 | H36: 8.443782541 | I36: 6.669219543 | J36: =J199 -> 79.31233202 | K36: =K199 -> 16.42835768 | L36: 3.404082237 | M36: 0.8552280611 | N36: =O199 -> 88.23536296 | O36: =P199 -> 9.694896518 | P36: 1.996733251 | Q36: 0.07300727144 | R36: =T199 -> 94.09656966 | S36: =U199 -> 5.170484956 | T36: 0.6464329776 | U36: 0.08651240577 | V36: =Y199 -> 97.13112558 | W36: =Z199 -> 2.617070909 | X36: 0.2429743179 | Y36: 0.008829197955
E37: =C200 -> 2020 | F37: =E200 -> 64.83299139 | G37: 27.35964265 | H37: 3.477067324 | I37: 4.330298641 | J37: =J200 -> 82.48443282 | K37: 17.08541069 | L37: 0.4301564821 | M37: 0 | N37: =O200 -> 90.07407047 | O37: 9.896925256 | P37: 0 | Q37: 0.02900426984 | R37: =T200 -> 94.7913384 | S37: 5.208661601 | T37: 0 | U37: 0 | V37: =Y200 -> 97.31309215 | W37: 2.62197376 | X37: 0.06360970659 | Y37: 0.001324379693
B39: RURAL | D39: Estimate | E39: =C299 -> 2000 | F39: =E299 -> 22.95196716 | G39: =F299 -> 2.275823796 | H39: 10.74216545 | I39: 64.0300436 | J39: =J299 -> 41.4000522 | K39: =K299 -> 6.085174654 | L39: 16.01301643 | M39: 36.50175671 | N39: =O299 -> 48.53945548 | O39: =P299 -> 6.06689898 | P39: 22.86470124 | Q39: 22.5289443 | R39: =T299 -> 59.50308531 | S39: =U299 -> 7.573358502 | T39: 23.51598208 | U39: 9.407574104 | V39: =Y299 -> 75.13053958 | W39: =Z299 -> 5.185717618 | X39: 17.16480556 | Y39: 2.518937244
E40: =C300 -> 2020 | F40: =E300 -> 34.68958581 | G40: 3.439678364 | H40: 3.63364571 | I40: 58.23709012 | J40: =J300 -> 63.68655382 | K40: 9.360949626 | L40: 6.317496304 | M40: 20.63500025 | N40: =O300 -> 78.63462648 | O40: 9.828464915 | P40: 5.676809692 | Q40: 5.860098909 | R40: =T300 -> 85.39105367 | S40: 10.86829463 | T40: 2.594162532 | U40: 1.146489172 | V40: =Y300 -> 92.76667127 | W40: 6.4030122 | X40: 0.8303165306 | Y40: 0
A97: NATIONAL | D97: Poorest | I97: Poor | N97: Middle | S97: Rich | X97: Richest
D98: Improved | E98: Basic | F98: Limited | G98: Unimproved | H98: Open defecation | I98: Improved | J98: Basic | K98: Limited | L98: Unimproved | M98: Open defecation | N98: Improved | O98: Basic | P98: Limited | Q98: Unimproved | R98: Open defecation | S98: Improved | T98: Basic | U98: Limited | V98: Unimproved | W98: Open defecation | X98: Improved | Y98: Basic | Z98: Limited | AA98: Unimproved | AB98: Open defecation
A99: Forecast period: | C99: 2000 | D99: =IF((D101+H101)>100,D101*100/(D101+H101),D101) -> 47.8745949 | E99: =D99*AVERAGEIF(E105:E116,">0")/100 -> 38.50901189 | F99: =D99*(100-AVERAGEIF(E105:E116,">0"))/100 -> 9.365583011 | G99: =100-(E99+F99+H99) -> 14.80578388 | H99: =IF((D101+H101)>100,H101*100/(D101+H101),H101) -> 37.31962122 | I99: =IF((I101+M101)>100,I101*100/(I101+M101),I101) -> 81.68493594 | J99: =I99*AVERAGEIF(J105:J116,">0")/100 -> 63.58846568 | K99: =I99*(100-AVERAGEIF(J105:J116,">0"))/100 -> 18.09647026 | L99: =100-(J99+K99+M99) -> 12.65993779 | M99: =IF((I101+M101)>100,M101*100/(I101+M101),M101) -> 5.655126265 | N99: =IF((N101+R101)>100,N101*100/(N101+R101),N101) -> 92.83621857 | O99: =N99*AVERAGEIF(O105:O116,">0")/100 -> 80.22117341 | P99: =N99*(100-AVERAGEIF(O105:O116,">0"))/100 -> 12.61504516 | Q99: =100-(O99+P99+R99) -> 6.107211847 | R99: =IF((N101+R101)>100,R101*100/(N101+R101),R101) -> 1.056569583 | S99: =IF((S101+W101)>100,S101*100/(S101+W101),S101) -> 98.05459282 | T99: =S99*AVERAGEIF(T105:T116,">0")/100 -> 91.28887802 | U99: =S99*(100-AVERAGEIF(T105:T116,">0"))/100 -> 6.765714803 | V99: =100-(T99+U99+W99) -> 1.852203026 | W99: =IF((S101+W101)>100,W101*100/(S101+W101),W101) -> 0.09320415544 | X99: =IF((X101+AB101)>100,X101*100/(X101+AB101),X101) -> 99.46562255 | Y99: =X99*AVERAGEIF(Y105:Y116,">0")/100 -> 96.32919978 | Z99: =X99*(100-AVERAGEIF(Y105:Y116,">0"))/100 -> 3.136422768 | AA99: =100-(Y99+Z99+AB99) -> 0.5278875465 | AB99: =IF((X101+AB101)>100,AB101*100/(X101+AB101),AB101) -> 0.006489907814
C100: 2020 | D100: =IF((D102+H102)>100,D102*100/(D102+H102),D102) -> 72.28357559 | E100: =D100*AVERAGEIF(E105:E116,">0")/100 -> 58.14292691 | F100: =D100*(100-AVERAGEIF(E105:E116,">0"))/100 -> 14.14064869 | G100: =100-(E100+F100+H100) -> 5.834761213 | H100: =IF((D102+H102)>100,H102*100/(D102+H102),H102) -> 21.88166319 | I100: =IF((I102+M102)>100,I102*100/(I102+M102),I102) -> 98.64050759 | J100: =I100*AVERAGEIF(J105:J116,">0")/100 -> 76.78770216 | K100: =I100*(100-AVERAGEIF(J105:J116,">0"))/100 -> 21.85280543 | L100: =100-(J100+K100+M100) -> 1.246111289 | M100: =IF((I102+M102)>100,M102*100/(I102+M102),M102) -> 0.1133811219 | N100: =IF((N102+R102)>100,N102*100/(N102+R102),N102) -> 100 | O100: =N100*AVERAGEIF(O105:O116,">0")/100 -> 86.41150474 | P100: =N100*(100-AVERAGEIF(O105:O116,">0"))/100 -> 13.58849526 | Q100: =100-(O100+P100+R100) -> 0 | R100: =IF((N102+R102)>100,R102*100/(N102+R102),R102) -> 0 | S100: =IF((S102+W102)>100,S102*100/(S102+W102),S102) -> 100 | T100: =S100*AVERAGEIF(T105:T116,">0")/100 -> 93.10005313 | U100: =S100*(100-AVERAGEIF(T105:T116,">0"))/100 -> 6.899946865 | V100: =100-(T100+U100+W100) -> 0 | W100: =IF((S102+W102)>100,W102*100/(S102+W102),W102) -> 0 | X100: =IF((X102+AB102)>100,X102*100/(X102+AB102),X102) -> 99.96936213 | Y100: =X100*AVERAGEIF(Y105:Y116,">0")/100 -> 96.81705507 | Z100: =X100*(100-AVERAGEIF(Y105:Y116,">0"))/100 -> 3.152307053 | AA100: =100-(Y100+Z100+AB100) -> 0.02966438767 | AB100: =IF((X102+AB102)>100,AB102*100/(X102+AB102),AB102) -> 0.0009734861721
A101: Regression period: | C101: =MinRegYear(C99,C105:C116) -> 2000 | D101: =IF(MAX(C105:C116)-MIN(C105:C116)<5,AVERAGEIF(C105:C116,">0",D105:D116), IF(FORECAST($C101,D$105:D$116,$C$105:$C$116)<0,0, IF(FORECAST($C101,D$105:D$116,$C$105:$C$116)>100,100, FORECAST($C101,D$105:D$116,$C$105:$C$116)))) -> 47.8745949 | H101: =IF(MAX(C105:C116)-MIN(C105:C116)<5,AVERAGEIF(C105:C116,">0",H105:H116), IF(FORECAST($C101,H$105:H$116,$C$105:$C$116)<0,0, IF(FORECAST($C101,H$105:H$116,$C$105:$C$116)>100,100, FORECAST($C101,H$105:H$116,$C$105:$C$116)))) -> 37.31962122 | I101: =IF(MAX(C105:C116)-MIN(C105:C116)<5,AVERAGEIF(C105:C116,">0",I105:I116), IF(FORECAST($C101,I$105:I$116,$C$105:$C$116)<0,0, IF(FORECAST($C101,I$105:I$116,$C$105:$C$116)>100,100, FORECAST($C101,I$105:I$116,$C$105:$C$116)))) -> 81.68493594 | M101: =IF(MAX(C105:C116)-MIN(C105:C116)<5,AVERAGEIF(C105:C116,">0",M105:M116), IF(FORECAST($C101,M$105:M$116,$C$105:$C$116)<0,0, IF(FORECAST($C101,M$105:M$116,$C$105:$C$116)>100,100, FORECAST($C101,M$105:M$116,$C$105:$C$116)))) -> 5.655126265 | N101: =IF(MAX(C105:C116)-MIN(C105:C116)<5,AVERAGEIF(C105:C116,">0",N105:N116), IF(FORECAST($C101,N$105:N$116,$C$105:$C$116)<0,0, IF(FORECAST($C101,N$105:N$116,$C$105:$C$116)>100,100, FORECAST($C101,N$105:N$116,$C$105:$C$116)))) -> 92.83621857 | R101: =IF(MAX(C105:C116)-MIN(C105:C116)<5,AVERAGEIF(C105:C116,">0",R105:R116), IF(FORECAST($C101,R$105:R$116,$C$105:$C$116)<0,0, IF(FORECAST($C101,R$105:R$116,$C$105:$C$116)>100,100, FORECAST($C101,R$105:R$116,$C$105:$C$116)))) -> 1.056569583 | S101: =IF(MAX(C105:C116)-MIN(C105:C116)<5,AVERAGEIF(C105:C116,">0",S105:S116), IF(FORECAST($C101,S$105:S$116,$C$105:$C$116)<0,0, IF(FORECAST($C101,S$105:S$116,$C$105:$C$116)>100,100, FORECAST($C101,S$105:S$116,$C$105:$C$116)))) -> 98.05459282 | W101: =IF(MAX(C105:C116)-MIN(C105:C116)<5,AVERAGEIF(C105:C116,">0",W105:W116), IF(FORECAST($C101,W$105:W$116,$C$105:$C$116)<0,0, IF(FORECAST($C101,W$105:W$116,$C$105:$C$116)>100,100, FORECAST($C101,W$105:W$116,$C$105:$C$116)))) -> 0.09320415544 | X101: =IF(MAX(C105:C116)-MIN(C105:C116)<5,AVERAGEIF(C105:C116,">0",X105:X116), IF(FORECAST($C101,X$105:X$116,$C$105:$C$116)<0,0, IF(FORECAST($C101,X$105:X$116,$C$105:$C$116)>100,100, FORECAST($C101,X$105:X$116,$C$105:$C$116)))) -> 99.46562255 | AB101: =IF(MAX(C105:C116)-MIN(C105:C116)<5,AVERAGEIF(C105:C116,">0",AB105:AB116), IF(FORECAST($C101,AB$105:AB$116,$C$105:$C$116)<0,0, IF(FORECAST($C101,AB$105:AB$116,$C$105:$C$116)>100,100, FORECAST($C101,AB$105:AB$116,$C$105:$C$116)))) -> 0.006489907814
C102: =MaxRegYear(C100,C105:C116) -> 2017 | D102: =IF(MAX(C105:C116)-MIN(C105:C116)<5,AVERAGEIF(C105:C116,">0",D105:D116), IF(FORECAST($C102,D$105:D$116,$C$105:$C$116)<0,0, IF(FORECAST($C102,D$105:D$116,$C$105:$C$116)>100,100, FORECAST($C102,D$105:D$116,$C$105:$C$116)))) -> 72.28357559 | H102: =IF(MAX(C105:C116)-MIN(C105:C116)<5,AVERAGEIF(C105:C116,">0",H105:H116), IF(FORECAST($C102,H$105:H$116,$C$105:$C$116)<0,0, IF(FORECAST($C102,H$105:H$116,$C$105:$C$116)>100,100, FORECAST($C102,H$105:H$116,$C$105:$C$116)))) -> 21.88166319 | I102: =IF(MAX(C105:C116)-MIN(C105:C116)<5,AVERAGEIF(C105:C116,">0",I105:I116), IF(FORECAST($C102,I$105:I$116,$C$105:$C$116)<0,0, IF(FORECAST($C102,I$105:I$116,$C$105:$C$116)>100,100, FORECAST($C102,I$105:I$116,$C$105:$C$116)))) -> 98.64050759 | M102: =IF(MAX(C105:C116)-MIN(C105:C116)<5,AVERAGEIF(C105:C116,">0",M105:M116), IF(FORECAST($C102,M$105:M$116,$C$105:$C$116)<0,0, IF(FORECAST($C102,M$105:M$116,$C$105:$C$116)>100,100, FORECAST($C102,M$105:M$116,$C$105:$C$116)))) -> 0.1133811219 | N102: =IF(MAX(C105:C116)-MIN(C105:C116)<5,AVERAGEIF(C105:C116,">0",N105:N116), IF(FORECAST($C102,N$105:N$116,$C$105:$C$116)<0,0, IF(FORECAST($C102,N$105:N$116,$C$105:$C$116)>100,100, FORECAST($C102,N$105:N$116,$C$105:$C$116)))) -> 100 | R102: =IF(MAX(C105:C116)-MIN(C105:C116)<5,AVERAGEIF(C105:C116,">0",R105:R116), IF(FORECAST($C102,R$105:R$116,$C$105:$C$116)<0,0, IF(FORECAST($C102,R$105:R$116,$C$105:$C$116)>100,100, FORECAST($C102,R$105:R$116,$C$105:$C$116)))) -> 0 | S102: =IF(MAX(C105:C116)-MIN(C105:C116)<5,AVERAGEIF(C105:C116,">0",S105:S116), IF(FORECAST($C102,S$105:S$116,$C$105:$C$116)<0,0, IF(FORECAST($C102,S$105:S$116,$C$105:$C$116)>100,100, FORECAST($C102,S$105:S$116,$C$105:$C$116)))) -> 100 | W102: =IF(MAX(C105:C116)-MIN(C105:C116)<5,AVERAGEIF(C105:C116,">0",W105:W116), IF(FORECAST($C102,W$105:W$116,$C$105:$C$116)<0,0, IF(FORECAST($C102,W$105:W$116,$C$105:$C$116)>100,100, FORECAST($C102,W$105:W$116,$C$105:$C$116)))) -> 0 | X102: =IF(MAX(C105:C116)-MIN(C105:C116)<5,AVERAGEIF(C105:C116,">0",X105:X116), IF(FORECAST($C102,X$105:X$116,$C$105:$C$116)<0,0, IF(FORECAST($C102,X$105:X$116,$C$105:$C$116)>100,100, FORECAST($C102,X$105:X$116,$C$105:$C$116)))) -> 99.96936213 | AB102: =IF(MAX(C105:C116)-MIN(C105:C116)<5,AVERAGEIF(C105:C116,">0",AB105:AB116), IF(FORECAST($C102,AB$105:AB$116,$C$105:$C$116)<0,0, IF(FORECAST($C102,AB$105:AB$116,$C$105:$C$116)>100,100, FORECAST($C102,AB$105:AB$116,$C$105:$C$116)))) -> 0.0009734861721
B104: Survey | C104: Year | D104: Improved | E104: Not shared | H104: Open defecation | I104: Improved | J104: Not shared | M104: Open defecation | N104: Improved | O104: Not shared | R104: Open defecation | S104: Improved | T104: Not shared | W104: Open defecation | X104: Improved | Y104: Not shared | AB104: Open defecation
B105: DHS00 | C105: 2000 | D105: =IF(ISERROR(INDIRECT(CONCATENATE($B105,"!C122"))),"",INDIRECT(CONCATENATE($B105,"!C122"))) -> 47.34430108 | E105: =IF(ISERROR(INDIRECT(CONCATENATE($B105,"!C129"))),"",INDIRECT(CONCATENATE($B105,"!C129"))) -> 76.7 | H105: =IF(ISERROR(INDIRECT(CONCATENATE($B105,"!C127"))),"",INDIRECT(CONCATENATE($B105,"!C127"))) -> 38.6 | I105: =IF(ISERROR(INDIRECT(CONCATENATE($B105,"!D122"))),"",INDIRECT(CONCATENATE($B105,"!D122"))) -> 80.80322776 | J105: =IF(ISERROR(INDIRECT(CONCATENATE($B105,"!D129"))),"",INDIRECT(CONCATENATE($B105,"!D129"))) -> 67.3 | M105: =IF(ISERROR(INDIRECT(CONCATENATE($B105,"!D127"))),"",INDIRECT(CONCATENATE($B105,"!D127"))) -> 6 | N105: =IF(ISERROR(INDIRECT(CONCATENATE($B105,"!E122"))),"",INDIRECT(CONCATENATE($B105,"!E122"))) -> 92.15643241 | O105: =IF(ISERROR(INDIRECT(CONCATENATE($B105,"!E129"))),"",INDIRECT(CONCATENATE($B105,"!E129"))) -> 78.4 | R105: =IF(ISERROR(INDIRECT(CONCATENATE($B105,"!E127"))),"",INDIRECT(CONCATENATE($B105,"!E127"))) -> 1.2 | S105: =IF(ISERROR(INDIRECT(CONCATENATE($B105,"!F122"))),"",INDIRECT(CONCATENATE($B105,"!F122"))) -> 97.9007332 | T105: =IF(ISERROR(INDIRECT(CONCATENATE($B105,"!F129"))),"",INDIRECT(CONCATENATE($B105,"!F129"))) -> 87.5 | W105: =IF(ISERROR(INDIRECT(CONCATENATE($B105,"!F127"))),"",INDIRECT(CONCATENATE($B105,"!F127"))) -> 0.1 | X105: =IF(ISERROR(INDIRECT(CONCATENATE($B105,"!G122"))),"",INDIRECT(CONCATENATE($B105,"!G122"))) -> 99.41986688 | Y105: =IF(ISERROR(INDIRECT(CONCATENATE($B105,"!G129"))),"",INDIRECT(CONCATENATE($B105,"!G129"))) -> 93.2 | AB105: =IF(ISERROR(INDIRECT(CONCATENATE($B105,"!G2127"))),"",INDIRECT(CONCATENATE($B105,"!G127"))) -> 0
B106: DHS05 | C106: 2005 | D106: 56.80949334 | E106: 74.1 | H106: 32.65811704 | I106: 88.71161638 | J106: 74.1 | M106: 3.791674617 | N106: 96.17512926 | O106: 84.6 | R106: 0.5369190488 | S106: 98.89196712 | T106: 93.2 | W106: 0.06154822821 | X106: 99.61780661 | Y106: 97.5 | AB106: 0.01622476954
B107: DHS10 | C107: 2010 | D107: 60.31212737 | E107: 82.4 | H107: 24.63918966 | I107: 90.22443097 | J107: 81 | M107: 1.827708187 | N107: 96.88863927 | O107: 89.1 | R107: 0.1615426032 | S107: 99.42082813 | T107: 94.4 | W107: 0.0001349002461 | X107: 99.89115622 | Y107: 97.6 | AB107: 0
B108: DHS15 | C108: 2015 | D108: 70.10712963 | E108: 88.54903595 | H108: 26.13772283 | I108: 96.92206569 | J108: 88.98405116 | M108: 1.221572003 | N108: 99.16099872 | O108: 93.54601897 | R108: 0.07176148364 | S108: 99.87395042 | T108: 97.30021254 | W108: 0.007143129365 | X108: 99.82261267 | Y108: 99.0869074 | AB108: 0
B118: =CONCATENATE("National use of sanitation facilities, ",C99,"–",C100) -> National use of sanitation facilities, 2000–2020 | S118: Data points used for regression
A197: URBAN | D197: Poorest | I197: Poor | N197: Middle | S197: Rich | X197: Richest
D198: Improved | E198: Basic | F198: Limited | G198: Unimproved | H198: Open defecation | I198: Improved | J198: Basic | K198: Limited | L198: Unimproved | M198: Open defecation | N198: Improved | O198: Basic | P198: Limited | Q198: Unimproved | R198: Open defecation | S198: Improved | T198: Basic | U198: Limited | V198: Unimproved | W198: Open defecation | X198: Improved | Y198: Basic | Z198: Limited | AA198: Unimproved | AB198: Open defecation
A199: Forecast period: | C199: 2000 | D199: =IF((D201+H201)>100,D201*100/(D201+H201),D201) -> 84.88699792 | E199: =D199*AVERAGEIF(E205:E216,">0")/100 -> 59.69541995 | F199: =D199*(100-AVERAGEIF(E205:E216,">0"))/100 -> 25.19157797 | G199: =100-(E199+F199+H199) -> 8.443782541 | H199: =IF((D201+H201)>100,H201*100/(D201+H201),H201) -> 6.669219543 | I199: =IF((I201+M201)>100,I201*100/(I201+M201),I201) -> 95.7406897 | J199: =I199*AVERAGEIF(J205:J216,">0")/100 -> 79.31233202 | K199: =I199*(100-AVERAGEIF(J205:J216,">0"))/100 -> 16.42835768 | L199: =100-(J199+K199+M199) -> 3.404082237 | M199: =IF((I201+M201)>100,M201*100/(I201+M201),M201) -> 0.8552280611 | N199: =IF((N201+R201)>100,N201*100/(N201+R201),N201) -> 97.93025948 | O199: =N199*AVERAGEIF(O205:O216,">0")/100 -> 88.23536296 | P199: =N199*(100-AVERAGEIF(O205:O216,">0"))/100 -> 9.694896518 | Q199: =100-(O199+P199+R199) -> 1.996733251 | R199: =IF((N201+R201)>100,R201*100/(N201+R201),R201) -> 0.07300727144 | S199: =IF((S201+W201)>100,S201*100/(S201+W201),S201) -> 99.26705462 | T199: =S199*AVERAGEIF(T205:T216,">0")/100 -> 94.09656966 | U199: =S199*(100-AVERAGEIF(T205:T216,">0"))/100 -> 5.170484956 | V199: =100-(T199+U199+W199) -> 0.6464329776 | W199: =IF((S201+W201)>100,W201*100/(S201+W201),W201) -> 0.08651240577 | X199: =IF((X201+AB201)>100,X201*100/(X201+AB201),X201) -> 99.74819648 | Y199: =X199*AVERAGEIF(Y205:Y216,">0")/100 -> 97.13112558 | Z199: =X199*(100-AVERAGEIF(Y205:Y216,">0"))/100 -> 2.617070909 | AA199: =100-(Y199+Z199+AB199) -> 0.2429743179 | AB199: =IF((X201+AB201)>100,AB201*100/(X201+AB201),AB201) -> 0.008829197955
C200: 2020 | D200: =IF((D202+H202)>100,D202*100/(D202+H202),D202) -> 92.19263404 | E200: =D200*AVERAGEIF(E205:E216,">0")/100 -> 64.83299139 | F200: =D200*(100-AVERAGEIF(E205:E216,">0"))/100 -> 27.35964265 | G200: =100-(E200+F200+H200) -> 3.477067324 | H200: =IF((D202+H202)>100,H202*100/(D202+H202),H202) -> 4.330298641 | I200: =IF((I202+M202)>100,I202*100/(I202+M202),I202) -> 99.56984352 | J200: =I200*AVERAGEIF(J205:J216,">0")/100 -> 82.48443282 | K200: =I200*(100-AVERAGEIF(J205:J216,">0"))/100 -> 17.08541069 | L200: =100-(J200+K200+M200) -> 0.4301564821 | M200: =IF((I202+M202)>100,M202*100/(I202+M202),M202) -> 0 | N200: =IF((N202+R202)>100,N202*100/(N202+R202),N202) -> 99.97099573 | O200: =N200*AVERAGEIF(O205:O216,">0")/100 -> 90.07407047 | P200: =N200*(100-AVERAGEIF(O205:O216,">0"))/100 -> 9.896925256 | Q200: =100-(O200+P200+R200) -> 0 | R200: =IF((N202+R202)>100,R202*100/(N202+R202),R202) -> 0.02900426984 | S200: =IF((S202+W202)>100,S202*100/(S202+W202),S202) -> 100 | T200: =S200*AVERAGEIF(T205:T216,">0")/100 -> 94.7913384 | U200: =S200*(100-AVERAGEIF(T205:T216,">0"))/100 -> 5.208661601 | V200: =100-(T200+U200+W200) -> 0 | W200: =IF((S202+W202)>100,W202*100/(S202+W202),W202) -> 0 | X200: =IF((X202+AB202)>100,X202*100/(X202+AB202),X202) -> 99.93506591 | Y200: =X200*AVERAGEIF(Y205:Y216,">0")/100 -> 97.31309215 | Z200: =X200*(100-AVERAGEIF(Y205:Y216,">0"))/100 -> 2.62197376 | AA200: =100-(Y200+Z200+AB200) -> 0.06360970659 | AB200: =IF((X202+AB202)>100,AB202*100/(X202+AB202),AB202) -> 0.001324379693
A201: Regression period: | C201: =MinRegYear(C199,C205:C216) -> 2000 | D201: =IF(MAX(C205:C216)-MIN(C205:C216)<5,AVERAGEIF(C205:C216,">0",D205:D216), IF(FORECAST($C201,D$205:D$216,$C$205:$C$216)<0,0, IF(FORECAST($C201,D$205:D$216,$C$205:$C$216)>100,100, FORECAST($C201,D$205:D$216,$C$205:$C$216)))) -> 84.88699792 | H201: =IF(MAX(C205:C216)-MIN(C205:C216)<5,AVERAGEIF(C205:C216,">0",H205:H216), IF(FORECAST($C201,H$205:H$216,$C$205:$C$216)<0,0, IF(FORECAST($C201,H$205:H$216,$C$205:$C$216)>100,100, FORECAST($C201,H$205:H$216,$C$205:$C$216)))) -> 6.669219543 | I201: =IF(MAX(C205:C216)-MIN(C205:C216)<5,AVERAGEIF(C205:C216,">0",I205:I216), IF(FORECAST($C201,I$205:I$216,$C$205:$C$216)<0,0, IF(FORECAST($C201,I$205:I$216,$C$205:$C$216)>100,100, FORECAST($C201,I$205:I$216,$C$205:$C$216)))) -> 95.7406897 | M201: =IF(MAX(C205:C216)-MIN(C205:C216)<5,AVERAGEIF(C205:C216,">0",M205:M216), IF(FORECAST($C201,M$205:M$216,$C$205:$C$216)<0,0, IF(FORECAST($C201,M$205:M$216,$C$205:$C$216)>100,100, FORECAST($C201,M$205:M$216,$C$205:$C$216)))) -> 0.8552280611 | N201: =IF(MAX(C205:C216)-MIN(C205:C216)<5,AVERAGEIF(C205:C216,">0",N205:N216), IF(FORECAST($C201,N$205:N$216,$C$205:$C$216)<0,0, IF(FORECAST($C201,N$205:N$216,$C$205:$C$216)>100,100, FORECAST($C201,N$205:N$216,$C$205:$C$216)))) -> 97.93025948 | R201: =IF(MAX(C205:C216)-MIN(C205:C216)<5,AVERAGEIF(C205:C216,">0",R205:R216), IF(FORECAST($C201,R$205:R$216,$C$205:$C$216)<0,0, IF(FORECAST($C201,R$205:R$216,$C$205:$C$216)>100,100, FORECAST($C201,R$205:R$216,$C$205:$C$216)))) -> 0.07300727144 | S201: =IF(MAX(C205:C216)-MIN(C205:C216)<5,AVERAGEIF(C205:C216,">0",S205:S216), IF(FORECAST($C201,S$205:S$216,$C$205:$C$216)<0,0, IF(FORECAST($C201,S$205:S$216,$C$205:$C$216)>100,100, FORECAST($C201,S$205:S$216,$C$205:$C$216)))) -> 99.26705462 | W201: =IF(MAX(C205:C216)-MIN(C205:C216)<5,AVERAGEIF(C205:C216,">0",W205:W216), IF(FORECAST($C201,W$205:W$216,$C$205:$C$216)<0,0, IF(FORECAST($C201,W$205:W$216,$C$205:$C$216)>100,100, FORECAST($C201,W$205:W$216,$C$205:$C$216)))) -> 0.08651240577 | X201: =IF(MAX(C205:C216)-MIN(C205:C216)<5,AVERAGEIF(C205:C216,">0",X205:X216), IF(FORECAST($C201,X$205:X$216,$C$205:$C$216)<0,0, IF(FORECAST($C201,X$205:X$216,$C$205:$C$216)>100,100, FORECAST($C201,X$205:X$216,$C$205:$C$216)))) -> 99.74819648 | AB201: =IF(MAX(C205:C216)-MIN(C205:C216)<5,AVERAGEIF(C205:C216,">0",AB205:AB216), IF(FORECAST($C201,AB$205:AB$216,$C$205:$C$216)<0,0, IF(FORECAST($C201,AB$205:AB$216,$C$205:$C$216)>100,100, FORECAST($C201,AB$205:AB$216,$C$205:$C$216)))) -> 0.008829197955
C202: =MaxRegYear(C200,C205:C216) -> 2017 | D202: =IF(MAX(C205:C216)-MIN(C205:C216)<5,AVERAGEIF(C205:C216,">0",D205:D216), IF(FORECAST($C202,D$205:D$216,$C$205:$C$216)<0,0, IF(FORECAST($C202,D$205:D$216,$C$205:$C$216)>100,100, FORECAST($C202,D$205:D$216,$C$205:$C$216)))) -> 92.19263404 | H202: =IF(MAX(C205:C216)-MIN(C205:C216)<5,AVERAGEIF(C205:C216,">0",H205:H216), IF(FORECAST($C202,H$205:H$216,$C$205:$C$216)<0,0, IF(FORECAST($C202,H$205:H$216,$C$205:$C$216)>100,100, FORECAST($C202,H$205:H$216,$C$205:$C$216)))) -> 4.330298641 | I202: =IF(MAX(C205:C216)-MIN(C205:C216)<5,AVERAGEIF(C205:C216,">0",I205:I216), IF(FORECAST($C202,I$205:I$216,$C$205:$C$216)<0,0, IF(FORECAST($C202,I$205:I$216,$C$205:$C$216)>100,100, FORECAST($C202,I$205:I$216,$C$205:$C$216)))) -> 99.56984352 | M202: =IF(MAX(C205:C216)-MIN(C205:C216)<5,AVERAGEIF(C205:C216,">0",M205:M216), IF(FORECAST($C202,M$205:M$216,$C$205:$C$216)<0,0, IF(FORECAST($C202,M$205:M$216,$C$205:$C$216)>100,100, FORECAST($C202,M$205:M$216,$C$205:$C$216)))) -> 0 | N202: =IF(MAX(C205:C216)-MIN(C205:C216)<5,AVERAGEIF(C205:C216,">0",N205:N216), IF(FORECAST($C202,N$205:N$216,$C$205:$C$216)<0,0, IF(FORECAST($C202,N$205:N$216,$C$205:$C$216)>100,100, FORECAST($C202,N$205:N$216,$C$205:$C$216)))) -> 100 | R202: =IF(MAX(C205:C216)-MIN(C205:C216)<5,AVERAGEIF(C205:C216,">0",R205:R216), IF(FORECAST($C202,R$205:R$216,$C$205:$C$216)<0,0, IF(FORECAST($C202,R$205:R$216,$C$205:$C$216)>100,100, FORECAST($C202,R$205:R$216,$C$205:$C$216)))) -> 0.02901268476 | S202: =IF(MAX(C205:C216)-MIN(C205:C216)<5,AVERAGEIF(C205:C216,">0",S205:S216), IF(FORECAST($C202,S$205:S$216,$C$205:$C$216)<0,0, IF(FORECAST($C202,S$205:S$216,$C$205:$C$216)>100,100, FORECAST($C202,S$205:S$216,$C$205:$C$216)))) -> 100 | W202: =IF(MAX(C205:C216)-MIN(C205:C216)<5,AVERAGEIF(C205:C216,">0",W205:W216), IF(FORECAST($C202,W$205:W$216,$C$205:$C$216)<0,0, IF(FORECAST($C202,W$205:W$216,$C$205:$C$216)>100,100, FORECAST($C202,W$205:W$216,$C$205:$C$216)))) -> 0 | X202: =IF(MAX(C205:C216)-MIN(C205:C216)<5,AVERAGEIF(C205:C216,">0",X205:X216), IF(FORECAST($C202,X$205:X$216,$C$205:$C$216)<0,0, IF(FORECAST($C202,X$205:X$216,$C$205:$C$216)>100,100, FORECAST($C202,X$205:X$216,$C$205:$C$216)))) -> 99.93506591 | AB202: =IF(MAX(C205:C216)-MIN(C205:C216)<5,AVERAGEIF(C205:C216,">0",AB205:AB216), IF(FORECAST($C202,AB$205:AB$216,$C$205:$C$216)<0,0, IF(FORECAST($C202,AB$205:AB$216,$C$205:$C$216)>100,100, FORECAST($C202,AB$205:AB$216,$C$205:$C$216)))) -> 0.001324379693
B204: Survey | C204: Year | D204: Improved | E204: Not shared | H204: Open defecation | I204: Improved | J204: Not shared | M204: Open defecation | N204: Improved | O204: Not shared | R204: Open defecation | S204: Improved | T204: Not shared | W204: Open defecation | X204: Improved | Y204: Not shared | AB204: Open defecation
B205: DHS00 | C205: 2000 | D205: =IF(ISERROR(INDIRECT(CONCATENATE($B205,"!H122"))),"",INDIRECT(CONCATENATE($B205,"!H122"))) -> 85.43723528 | E205: =IF(ISERROR(INDIRECT(CONCATENATE($B205,"!H129"))),"",INDIRECT(CONCATENATE($B205,"!H129"))) -> 58.5 | H205: =IF(ISERROR(INDIRECT(CONCATENATE($B205,"!H127"))),"",INDIRECT(CONCATENATE($B205,"!H127"))) -> 6.2 | I205: =IF(ISERROR(INDIRECT(CONCATENATE($B205,"!I122"))),"",INDIRECT(CONCATENATE($B205,"!I122"))) -> 95.76468718 | J205: =IF(ISERROR(INDIRECT(CONCATENATE($B205,"!I129"))),"",INDIRECT(CONCATENATE($B205,"!I129"))) -> 72 | M205: =IF(ISERROR(INDIRECT(CONCATENATE($B205,"!I127"))),"",INDIRECT(CONCATENATE($B205,"!I127"))) -> 0.9 | N205: =IF(ISERROR(INDIRECT(CONCATENATE($B205,"!J122"))),"",INDIRECT(CONCATENATE($B205,"!J122"))) -> 97.79733227 | O205: =IF(ISERROR(INDIRECT(CONCATENATE($B205,"!J129"))),"",INDIRECT(CONCATENATE($B205,"!J129"))) -> 81.9 | R205: =IF(ISERROR(INDIRECT(CONCATENATE($B205,"!J127"))),"",INDIRECT(CONCATENATE($B205,"!J127"))) -> 0.1 | S205: =IF(ISERROR(INDIRECT(CONCATENATE($B205,"!K122"))),"",INDIRECT(CONCATENATE($B205,"!K122"))) -> 99.19173133 | T205: =IF(ISERROR(INDIRECT(CONCATENATE($B205,"!K129"))),"",INDIRECT(CONCATENATE($B205,"!K129"))) -> 90.3 | W205: =IF(ISERROR(INDIRECT(CONCATENATE($B205,"!K127"))),"",INDIRECT(CONCATENATE($B205,"!K127"))) -> 0.1 | X205: =IF(ISERROR(INDIRECT(CONCATENATE($B205,"!L122"))),"",INDIRECT(CONCATENATE($B205,"!L122"))) -> 99.74785237 | Y205: =IF(ISERROR(INDIRECT(CONCATENATE($B205,"!L129"))),"",INDIRECT(CONCATENATE($B205,"!L129"))) -> 94.6 | AB205: =IF(ISERROR(INDIRECT(CONCATENATE($B205,"!L2127"))),"",INDIRECT(CONCATENATE($B205,"!L127"))) -> 0
B206: DHS05 | C206: 2005 | D206: 88.67720701 | E206: 65.2 | H206: 5.768526762 | I206: 96.9302112 | J206: 80.7 | M206: 0.5045889376 | N206: 98.69960312 | O206: 89.9 | R206: 0.04305255379 | S206: 99.58483515 | T206: 95.4 | W206: 0.04128101443 | X206: 99.77651493 | Y206: 97.8 | AB206: 0.02207299489
B207: DHS10 | C207: 2010 | D207: 84.25073366 | E207: 73.3 | H207: 7.126592086 | I207: 97.79454112 | J207: 86.5 | M207: 0.2602961191 | N207: 99.33906059 | O207: 92.7 | R207: 0.0001801837593 | S207: 99.7212709 | T207: 95.4 | W207: 0 | X207: 99.91243833 | Y207: 98 | AB207: 0
B208: DHS15 | C208: 2015 | D208: 94.07511475 | E208: 84.29358517 | H208: 3.45425185 | I208: 99.23064958 | J208: 92.1631112 | M208: 0.01318562926 | N208: 99.7081021 | O208: 95.90081352 | R208: 0.07115884229 | S208: 99.86609234 | T208: 98.0653536 | W208: 0 | X208: 99.88574989 | Y208: 99.10529032 | AB208: 0
B218: =CONCATENATE("Urban use of sanitation facilities, ",C199,"–",C200) -> Urban use of sanitation facilities, 2000–2020 | S218: Data points used for regression
A297: RURAL | D297: Poorest | I297: Poor | N297: Middle | S297: Rich | X297: Richest
D298: Improved | E298: Basic | F298: Limited | G298: Unimproved | H298: Open defecation | I298: Improved | J298: Basic | K298: Limited | L298: Unimproved | M298: Open defecation | N298: Improved | O298: Basic | P298: Limited | Q298: Unimproved | R298: Open defecation | S298: Improved | T298: Basic | U298: Limited | V298: Unimproved | W298: Open defecation | X298: Improved | Y298: Basic | Z298: Limited | AA298: Unimproved | AB298: Open defecation
A299: Forecast period: | C299: 2000 | D299: =IF((D301+H301)>100,D301*100/(D301+H301),D301) -> 25.22779095 | E299: =D299*AVERAGEIF(E305:E316,">0")/100 -> 22.95196716 | F299: =D299*(100-AVERAGEIF(E305:E316,">0"))/100 -> 2.275823796 | G299: =100-(E299+F299+H299) -> 10.74216545 | H299: =IF((D301+H301)>100,H301*100/(D301+H301),H301) -> 64.0300436 | I299: =IF((I301+M301)>100,I301*100/(I301+M301),I301) -> 47.48522685 | J299: =I299*AVERAGEIF(J305:J316,">0")/100 -> 41.4000522 | K299: =I299*(100-AVERAGEIF(J305:J316,">0"))/100 -> 6.085174654 | L299: =100-(J299+K299+M299) -> 16.01301643 | M299: =IF((I301+M301)>100,M301*100/(I301+M301),M301) -> 36.50175671 | N299: =IF((N301+R301)>100,N301*100/(N301+R301),N301) -> 54.60635446 | O299: =N299*AVERAGEIF(O305:O316,">0")/100 -> 48.53945548 | P299: =N299*(100-AVERAGEIF(O305:O316,">0"))/100 -> 6.06689898 | Q299: =100-(O299+P299+R299) -> 22.86470124 | R299: =IF((N301+R301)>100,R301*100/(N301+R301),R301) -> 22.5289443 | S299: =IF((S301+W301)>100,S301*100/(S301+W301),S301) -> 67.07644381 | T299: =S299*AVERAGEIF(T305:T316,">0")/100 -> 59.50308531 | U299: =S299*(100-AVERAGEIF(T305:T316,">0"))/100 -> 7.573358502 | V299: =100-(T299+U299+W299) -> 23.51598208 | W299: =IF((S301+W301)>100,W301*100/(S301+W301),W301) -> 9.407574104 | X299: =IF((X301+AB301)>100,X301*100/(X301+AB301),X301) -> 80.3162572 | Y299: =X299*AVERAGEIF(Y305:Y316,">0")/100 -> 75.13053958 | Z299: =X299*(100-AVERAGEIF(Y305:Y316,">0"))/100 -> 5.185717618 | AA299: =100-(Y299+Z299+AB299) -> 17.16480556 | AB299: =IF((X301+AB301)>100,AB301*100/(X301+AB301),AB301) -> 2.518937244
C300: 2020 | D300: =IF((D302+H302)>100,D302*100/(D302+H302),D302) -> 38.12926417 | E300: =D300*AVERAGEIF(E305:E316,">0")/100 -> 34.68958581 | F300: =D300*(100-AVERAGEIF(E305:E316,">0"))/100 -> 3.439678364 | G300: =100-(E300+F300+H300) -> 3.63364571 | H300: =IF((D302+H302)>100,H302*100/(D302+H302),H302) -> 58.23709012 | I300: =IF((I302+M302)>100,I302*100/(I302+M302),I302) -> 73.04750345 | J300: =I300*AVERAGEIF(J305:J316,">0")/100 -> 63.68655382 | K300: =I300*(100-AVERAGEIF(J305:J316,">0"))/100 -> 9.360949626 | L300: =100-(J300+K300+M300) -> 6.317496304 | M300: =IF((I302+M302)>100,M302*100/(I302+M302),M302) -> 20.63500025 | N300: =IF((N302+R302)>100,N302*100/(N302+R302),N302) -> 88.4630914 | O300: =N300*AVERAGEIF(O305:O316,">0")/100 -> 78.63462648 | P300: =N300*(100-AVERAGEIF(O305:O316,">0"))/100 -> 9.828464915 | Q300: =100-(O300+P300+R300) -> 5.676809692 | R300: =IF((N302+R302)>100,R302*100/(N302+R302),R302) -> 5.860098909 | S300: =IF((S302+W302)>100,S302*100/(S302+W302),S302) -> 96.2593483 | T300: =S300*AVERAGEIF(T305:T316,">0")/100 -> 85.39105367 | U300: =S300*(100-AVERAGEIF(T305:T316,">0"))/100 -> 10.86829463 | V300: =100-(T300+U300+W300) -> 2.594162532 | W300: =IF((S302+W302)>100,W302*100/(S302+W302),W302) -> 1.146489172 | X300: =IF((X302+AB302)>100,X302*100/(X302+AB302),X302) -> 99.16968347 | Y300: =X300*AVERAGEIF(Y305:Y316,">0")/100 -> 92.76667127 | Z300: =X300*(100-AVERAGEIF(Y305:Y316,">0"))/100 -> 6.4030122 | AA300: =100-(Y300+Z300+AB300) -> 0.8303165306 | AB300: =IF((X302+AB302)>100,AB302*100/(X302+AB302),AB302) -> 0
A301: Regression period: | C301: =MinRegYear(C299,C305:C316) -> 2000 | D301: =IF(MAX(C305:C316)-MIN(C305:C316)<5,AVERAGEIF(C305:C316,">0",D305:D316), IF(FORECAST($C301,D$305:D$316,$C$305:$C$316)<0,0, IF(FORECAST($C301,D$305:D$316,$C$305:$C$316)>100,100, FORECAST($C301,D$305:D$316,$C$305:$C$316)))) -> 25.22779095 | H301: =IF(MAX(C305:C316)-MIN(C305:C316)<5,AVERAGEIF(C305:C316,">0",H305:H316), IF(FORECAST($C301,H$305:H$316,$C$305:$C$316)<0,0, IF(FORECAST($C301,H$305:H$316,$C$305:$C$316)>100,100, FORECAST($C301,H$305:H$316,$C$305:$C$316)))) -> 64.0300436 | I301: =IF(MAX(C305:C316)-MIN(C305:C316)<5,AVERAGEIF(C305:C316,">0",I305:I316), IF(FORECAST($C301,I$305:I$316,$C$305:$C$316)<0,0, IF(FORECAST($C301,I$305:I$316,$C$305:$C$316)>100,100, FORECAST($C301,I$305:I$316,$C$305:$C$316)))) -> 47.48522685 | M301: =IF(MAX(C305:C316)-MIN(C305:C316)<5,AVERAGEIF(C305:C316,">0",M305:M316), IF(FORECAST($C301,M$305:M$316,$C$305:$C$316)<0,0, IF(FORECAST($C301,M$305:M$316,$C$305:$C$316)>100,100, FORECAST($C301,M$305:M$316,$C$305:$C$316)))) -> 36.50175671 | N301: =IF(MAX(C305:C316)-MIN(C305:C316)<5,AVERAGEIF(C305:C316,">0",N305:N316), IF(FORECAST($C301,N$305:N$316,$C$305:$C$316)<0,0, IF(FORECAST($C301,N$305:N$316,$C$305:$C$316)>100,100, FORECAST($C301,N$305:N$316,$C$305:$C$316)))) -> 54.60635446 | R301: =IF(MAX(C305:C316)-MIN(C305:C316)<5,AVERAGEIF(C305:C316,">0",R305:R316), IF(FORECAST($C301,R$305:R$316,$C$305:$C$316)<0,0, IF(FORECAST($C301,R$305:R$316,$C$305:$C$316)>100,100, FORECAST($C301,R$305:R$316,$C$305:$C$316)))) -> 22.5289443 | S301: =IF(MAX(C305:C316)-MIN(C305:C316)<5,AVERAGEIF(C305:C316,">0",S305:S316), IF(FORECAST($C301,S$305:S$316,$C$305:$C$316)<0,0, IF(FORECAST($C301,S$305:S$316,$C$305:$C$316)>100,100, FORECAST($C301,S$305:S$316,$C$305:$C$316)))) -> 67.07644381 | W301: =IF(MAX(C305:C316)-MIN(C305:C316)<5,AVERAGEIF(C305:C316,">0",W305:W316), IF(FORECAST($C301,W$305:W$316,$C$305:$C$316)<0,0, IF(FORECAST($C301,W$305:W$316,$C$305:$C$316)>100,100, FORECAST($C301,W$305:W$316,$C$305:$C$316)))) -> 9.407574104 | X301: =IF(MAX(C305:C316)-MIN(C305:C316)<5,AVERAGEIF(C305:C316,">0",X305:X316), IF(FORECAST($C301,X$305:X$316,$C$305:$C$316)<0,0, IF(FORECAST($C301,X$305:X$316,$C$305:$C$316)>100,100, FORECAST($C301,X$305:X$316,$C$305:$C$316)))) -> 80.3162572 | AB301: =IF(MAX(C305:C316)-MIN(C305:C316)<5,AVERAGEIF(C305:C316,">0",AB305:AB316), IF(FORECAST($C301,AB$305:AB$316,$C$305:$C$316)<0,0, IF(FORECAST($C301,AB$305:AB$316,$C$305:$C$316)>100,100, FORECAST($C301,AB$305:AB$316,$C$305:$C$316)))) -> 2.518937244
C302: =MaxRegYear(C300,C305:C316) -> 2017 | D302: =IF(MAX(C305:C316)-MIN(C305:C316)<5,AVERAGEIF(C305:C316,">0",D305:D316), IF(FORECAST($C302,D$305:D$316,$C$305:$C$316)<0,0, IF(FORECAST($C302,D$305:D$316,$C$305:$C$316)>100,100, FORECAST($C302,D$305:D$316,$C$305:$C$316)))) -> 38.12926417 | H302: =IF(MAX(C305:C316)-MIN(C305:C316)<5,AVERAGEIF(C305:C316,">0",H305:H316), IF(FORECAST($C302,H$305:H$316,$C$305:$C$316)<0,0, IF(FORECAST($C302,H$305:H$316,$C$305:$C$316)>100,100, FORECAST($C302,H$305:H$316,$C$305:$C$316)))) -> 58.23709012 | I302: =IF(MAX(C305:C316)-MIN(C305:C316)<5,AVERAGEIF(C305:C316,">0",I305:I316), IF(FORECAST($C302,I$305:I$316,$C$305:$C$316)<0,0, IF(FORECAST($C302,I$305:I$316,$C$305:$C$316)>100,100, FORECAST($C302,I$305:I$316,$C$305:$C$316)))) -> 73.04750345 | M302: =IF(MAX(C305:C316)-MIN(C305:C316)<5,AVERAGEIF(C305:C316,">0",M305:M316), IF(FORECAST($C302,M$305:M$316,$C$305:$C$316)<0,0, IF(FORECAST($C302,M$305:M$316,$C$305:$C$316)>100,100, FORECAST($C302,M$305:M$316,$C$305:$C$316)))) -> 20.63500025 | N302: =IF(MAX(C305:C316)-MIN(C305:C316)<5,AVERAGEIF(C305:C316,">0",N305:N316), IF(FORECAST($C302,N$305:N$316,$C$305:$C$316)<0,0, IF(FORECAST($C302,N$305:N$316,$C$305:$C$316)>100,100, FORECAST($C302,N$305:N$316,$C$305:$C$316)))) -> 88.4630914 | R302: =IF(MAX(C305:C316)-MIN(C305:C316)<5,AVERAGEIF(C305:C316,">0",R305:R316), IF(FORECAST($C302,R$305:R$316,$C$305:$C$316)<0,0, IF(FORECAST($C302,R$305:R$316,$C$305:$C$316)>100,100, FORECAST($C302,R$305:R$316,$C$305:$C$316)))) -> 5.860098909 | S302: =IF(MAX(C305:C316)-MIN(C305:C316)<5,AVERAGEIF(C305:C316,">0",S305:S316), IF(FORECAST($C302,S$305:S$316,$C$305:$C$316)<0,0, IF(FORECAST($C302,S$305:S$316,$C$305:$C$316)>100,100, FORECAST($C302,S$305:S$316,$C$305:$C$316)))) -> 96.2593483 | W302: =IF(MAX(C305:C316)-MIN(C305:C316)<5,AVERAGEIF(C305:C316,">0",W305:W316), IF(FORECAST($C302,W$305:W$316,$C$305:$C$316)<0,0, IF(FORECAST($C302,W$305:W$316,$C$305:$C$316)>100,100, FORECAST($C302,W$305:W$316,$C$305:$C$316)))) -> 1.146489172 | X302: =IF(MAX(C305:C316)-MIN(C305:C316)<5,AVERAGEIF(C305:C316,">0",X305:X316), IF(FORECAST($C302,X$305:X$316,$C$305:$C$316)<0,0, IF(FORECAST($C302,X$305:X$316,$C$305:$C$316)>100,100, FORECAST($C302,X$305:X$316,$C$305:$C$316)))) -> 99.16968347 | AB302: =IF(MAX(C305:C316)-MIN(C305:C316)<5,AVERAGEIF(C305:C316,">0",AB305:AB316), IF(FORECAST($C302,AB$305:AB$316,$C$305:$C$316)<0,0, IF(FORECAST($C302,AB$305:AB$316,$C$305:$C$316)>100,100, FORECAST($C302,AB$305:AB$316,$C$305:$C$316)))) -> 0
B304: Survey | C304: Year | D304: Improved | E304: Not shared | H304: Open defecation | I304: Improved | J304: Not shared | M304: Open defecation | N304: Improved | O304: Not shared | R304: Open defecation | S304: Improved | T304: Not shared | W304: Open defecation | X304: Improved | Y304: Not shared | AB304: Open defecation
B305: DHS00 | C305: 2000 | D305: =IF(ISERROR(INDIRECT(CONCATENATE($B305,"!M122"))),"",INDIRECT(CONCATENATE($B305,"!M122"))) -> 24.24257095 | E305: =IF(ISERROR(INDIRECT(CONCATENATE($B305,"!M129"))),"",INDIRECT(CONCATENATE($B305,"!M129"))) -> 93.4 | H305: =IF(ISERROR(INDIRECT(CONCATENATE($B305,"!M127"))),"",INDIRECT(CONCATENATE($B305,"!M127"))) -> 65.2 | I305: =IF(ISERROR(INDIRECT(CONCATENATE($B305,"!N122"))),"",INDIRECT(CONCATENATE($B305,"!N122"))) -> 45.74943846 | J305: =IF(ISERROR(INDIRECT(CONCATENATE($B305,"!N129"))),"",INDIRECT(CONCATENATE($B305,"!N129"))) -> 81.5 | M305: =IF(ISERROR(INDIRECT(CONCATENATE($B305,"!N127"))),"",INDIRECT(CONCATENATE($B305,"!N127"))) -> 39.8 | N305: =IF(ISERROR(INDIRECT(CONCATENATE($B305,"!O122"))),"",INDIRECT(CONCATENATE($B305,"!O122"))) -> 54.09096467 | O305: =IF(ISERROR(INDIRECT(CONCATENATE($B305,"!O129"))),"",INDIRECT(CONCATENATE($B305,"!O129"))) -> 87.3 | R305: =IF(ISERROR(INDIRECT(CONCATENATE($B305,"!O127"))),"",INDIRECT(CONCATENATE($B305,"!O127"))) -> 23.3 | S305: =IF(ISERROR(INDIRECT(CONCATENATE($B305,"!P122"))),"",INDIRECT(CONCATENATE($B305,"!P122"))) -> 64.98382789 | T305: =IF(ISERROR(INDIRECT(CONCATENATE($B305,"!P129"))),"",INDIRECT(CONCATENATE($B305,"!P129"))) -> 88.2 | W305: =IF(ISERROR(INDIRECT(CONCATENATE($B305,"!P127"))),"",INDIRECT(CONCATENATE($B305,"!P127"))) -> 10.4 | X305: =IF(ISERROR(INDIRECT(CONCATENATE($B305,"!Q122"))),"",INDIRECT(CONCATENATE($B305,"!Q122"))) -> 79.46838691 | Y305: =IF(ISERROR(INDIRECT(CONCATENATE($B305,"!Q129"))),"",INDIRECT(CONCATENATE($B305,"!Q129"))) -> 93 | AB305: =IF(ISERROR(INDIRECT(CONCATENATE($B305,"!Q2127"))),"",INDIRECT(CONCATENATE($B305,"!Q127"))) -> 2.5
B306: DHS05 | C306: 2005 | D306: 29.30309693 | E306: 85.9 | H306: 63.69620148 | I306: 55.56874297 | J306: 87.7 | M306: 31.76348168 | N306: 67.06015327 | O306: 87.1 | R306: 18.48786436 | S306: 79.65725145 | T306: 85.6 | W306: 6.325142828 | X306: 87.94786117 | Y306: 93 | AB306: 1.989593029
B307: DHS10 | C307: 2010 | D307: 35.21104281 | E307: 92 | H307: 54.37261923 | I307: 66.59882637 | J307: 88.2 | M307: 17.4168046 | N307: 71.07638144 | O307: 88.4 | R307: 8.687530738 | S307: 82.52550511 | T307: 88 | W307: 2.876235516 | X307: 89.7771616 | Y307: 92.8 | AB307: 0.2688308638
B308: DHS15 | C308: 2015 | D308: 34.92175881 | E308: 92.6156072 | H308: 62.62849459 | I308: 67.13379948 | J308: 91.34048156 | M308: 29.0265821 | N308: 85.94510129 | O308: 92.75902576 | R308: 10.22477259 | S308: 92.63843401 | T308: 93.03744772 | W308: 3.450532896 | X308: 97.34237135 | Y308: 95.37350958 | AB308: 0.2689152721
B318: =CONCATENATE("Rural use of sanitation facilities, ",C299,"–",C300) -> Rural use of sanitation facilities, 2000–2020 | S318: Data points used for regression

Sheet Hygiene
B4: Access to hygiene facilities by wealth quintile (%)
B5: =IF(ISERROR(INDIRECT(CONCATENATE($E$32,"!A2"))),"",INDIRECT(CONCATENATE($E$32,"!A2"))) -> Colombia
B7: =CONCATENATE("National ",IF(ISERROR(INDIRECT(CONCATENATE($E$32,"!A2"))),"",INDIRECT(CONCATENATE($E$32,"!A210")))) -> National Access to hygiene facilities | K7: =CONCATENATE("Urban ",IF(ISERROR(INDIRECT(CONCATENATE($E$32,"!A2"))),"",INDIRECT(CONCATENATE($E$32,"!A210")))) -> Urban Access to hygiene facilities | S7: =CONCATENATE("Rural ",IF(ISERROR(INDIRECT(CONCATENATE($E$32,"!A2"))),"",INDIRECT(CONCATENATE($E$32,"!A210")))) -> Rural Access to hygiene facilities
E32: =INDEX(B88:B100,A88) -> DHS15 | G32: =IF(ISERROR(INDIRECT(CONCATENATE($E$32,"!A2"))),"",INDIRECT(CONCATENATE($E$32,"!A2"))) -> Colombia | K32: Poorest | N32: Poor | Q32: Middle | T32: Rich | W32: Richest
K33: Basic | L33: Limited | M33: No facility | N33: Basic | O33: Limited | P33: No facility | Q33: Basic | R33: Limited | S33: No facility | T33: Basic | U33: Limited | V33: No facility | W33: Basic | X33: Limited | Y33: No facility
B34: >>> Select Survey : | G34: NATIONAL | J34: =IF(ISERROR(INDIRECT(CONCATENATE(#REF!,"!A2"))),"",INDIRECT(CONCATENATE(#REF!,"!A210"))) ->  | K34: =IF(ISERROR(INDIRECT(CONCATENATE($E$32,"!C222"))),"",INDIRECT(CONCATENATE($E$32,"!C222"))) -> N/A | L34: =IF(ISERROR(INDIRECT(CONCATENATE($E$32,"!C223"))),"",INDIRECT(CONCATENATE($E$32,"!C223"))) -> N/A | M34: =IF(ISERROR(INDIRECT(CONCATENATE($E$32,"!C224"))),"",INDIRECT(CONCATENATE($E$32,"!C224"))) -> N/A | N34: =IF(ISERROR(INDIRECT(CONCATENATE($E$32,"!D222"))),"",INDIRECT(CONCATENATE($E$32,"!D222"))) -> N/A | O34: =IF(ISERROR(INDIRECT(CONCATENATE($E$32,"!D223"))),"",INDIRECT(CONCATENATE($E$32,"!D223"))) -> N/A | P34: =IF(ISERROR(INDIRECT(CONCATENATE($E$32,"!D224"))),"",INDIRECT(CONCATENATE($E$32,"!D224"))) -> N/A | Q34: =IF(ISERROR(INDIRECT(CONCATENATE($E$32,"!E222"))),"",INDIRECT(CONCATENATE($E$32,"!E222"))) -> N/A | R34: =IF(ISERROR(INDIRECT(CONCATENATE($E$32,"!E223"))),"",INDIRECT(CONCATENATE($E$32,"!E223"))) -> N/A | S34: =IF(ISERROR(INDIRECT(CONCATENATE($E$32,"!E224"))),"",INDIRECT(CONCATENATE($E$32,"!E224"))) -> N/A | T34: =IF(ISERROR(INDIRECT(CONCATENATE($E$32,"!F222"))),"",INDIRECT(CONCATENATE($E$32,"!F222"))) -> N/A | U34: =IF(ISERROR(INDIRECT(CONCATENATE($E$32,"!F223"))),"",INDIRECT(CONCATENATE($E$32,"!F223"))) -> N/A | V34: =IF(ISERROR(INDIRECT(CONCATENATE($E$32,"!F224"))),"",INDIRECT(CONCATENATE($E$32,"!F224"))) -> N/A | W34: =IF(ISERROR(INDIRECT(CONCATENATE($E$32,"!G222"))),"",INDIRECT(CONCATENATE($E$32,"!G222"))) -> N/A | X34: =IF(ISERROR(INDIRECT(CONCATENATE($E$32,"!G223"))),"",INDIRECT(CONCATENATE($E$32,"!G223"))) -> N/A | Y34: =IF(ISERROR(INDIRECT(CONCATENATE($E$32,"!G224"))),"",INDIRECT(CONCATENATE($E$32,"!G224"))) -> N/A
G37: URBAN | J37: =IF(ISERROR(INDIRECT(CONCATENATE(#REF!,"!A2"))),"",INDIRECT(CONCATENATE(#REF!,"!A210"))) ->  | K37: =IF(ISERROR(INDIRECT(CONCATENATE($E$32,"!H222"))),"",INDIRECT(CONCATENATE($E$32,"!H222"))) -> N/A | L37: =IF(ISERROR(INDIRECT(CONCATENATE($E$32,"!H223"))),"",INDIRECT(CONCATENATE($E$32,"!H223"))) -> N/A | M37: =IF(ISERROR(INDIRECT(CONCATENATE($E$32,"!H224"))),"",INDIRECT(CONCATENATE($E$32,"!H224"))) -> N/A | N37: =IF(ISERROR(INDIRECT(CONCATENATE($E$32,"!I222"))),"",INDIRECT(CONCATENATE($E$32,"!I222"))) -> N/A | O37: =IF(ISERROR(INDIRECT(CONCATENATE($E$32,"!I223"))),"",INDIRECT(CONCATENATE($E$32,"!I223"))) -> N/A | P37: =IF(ISERROR(INDIRECT(CONCATENATE($E$32,"!I224"))),"",INDIRECT(CONCATENATE($E$32,"!I224"))) -> N/A | Q37: =IF(ISERROR(INDIRECT(CONCATENATE($E$32,"!J222"))),"",INDIRECT(CONCATENATE($E$32,"!J222"))) -> N/A | R37: =IF(ISERROR(INDIRECT(CONCATENATE($E$32,"!J223"))),"",INDIRECT(CONCATENATE($E$32,"!J223"))) -> N/A | S37: =IF(ISERROR(INDIRECT(CONCATENATE($E$32,"!J224"))),"",INDIRECT(CONCATENATE($E$32,"!J224"))) -> N/A | T37: =IF(ISERROR(INDIRECT(CONCATENATE($E$32,"!K222"))),"",INDIRECT(CONCATENATE($E$32,"!K222"))) -> N/A | U37: =IF(ISERROR(INDIRECT(CONCATENATE($E$32,"!K223"))),"",INDIRECT(CONCATENATE($E$32,"!K223"))) -> N/A | V37: =IF(ISERROR(INDIRECT(CONCATENATE($E$32,"!K224"))),"",INDIRECT(CONCATENATE($E$32,"!K224"))) -> N/A | W37: =IF(ISERROR(INDIRECT(CONCATENATE($E$32,"!L222"))),"",INDIRECT(CONCATENATE($E$32,"!L222"))) -> N/A | X37: =IF(ISERROR(INDIRECT(CONCATENATE($E$32,"!L223"))),"",INDIRECT(CONCATENATE($E$32,"!L223"))) -> N/A | Y37: =IF(ISERROR(INDIRECT(CONCATENATE($E$32,"!L224"))),"",INDIRECT(CONCATENATE($E$32,"!L224"))) -> N/A
G40: RURAL | J40: =IF(ISERROR(INDIRECT(CONCATENATE(#REF!,"!A2"))),"",INDIRECT(CONCATENATE(#REF!,"!A210"))) ->  | K40: =IF(ISERROR(INDIRECT(CONCATENATE($E$32,"!M222"))),"",INDIRECT(CONCATENATE($E$32,"!M222"))) -> N/A | L40: =IF(ISERROR(INDIRECT(CONCATENATE($E$32,"!M223"))),"",INDIRECT(CONCATENATE($E$32,"!M223"))) -> N/A | M40: =IF(ISERROR(INDIRECT(CONCATENATE($E$32,"!M224"))),"",INDIRECT(CONCATENATE($E$32,"!M224"))) -> N/A | N40: =IF(ISERROR(INDIRECT(CONCATENATE($E$32,"!N222"))),"",INDIRECT(CONCATENATE($E$32,"!N222"))) -> N/A | O40: =IF(ISERROR(INDIRECT(CONCATENATE($E$32,"!N223"))),"",INDIRECT(CONCATENATE($E$32,"!N223"))) -> N/A | P40: =IF(ISERROR(INDIRECT(CONCATENATE($E$32,"!N224"))),"",INDIRECT(CONCATENATE($E$32,"!N224"))) -> N/A | Q40: =IF(ISERROR(INDIRECT(CONCATENATE($E$32,"!O222"))),"",INDIRECT(CONCATENATE($E$32,"!O222"))) -> N/A | R40: =IF(ISERROR(INDIRECT(CONCATENATE($E$32,"!O223"))),"",INDIRECT(CONCATENATE($E$32,"!O223"))) -> N/A | S40: =IF(ISERROR(INDIRECT(CONCATENATE($E$32,"!O224"))),"",INDIRECT(CONCATENATE($E$32,"!O224"))) -> N/A | T40: =IF(ISERROR(INDIRECT(CONCATENATE($E$32,"!P222"))),"",INDIRECT(CONCATENATE($E$32,"!P222"))) -> N/A | U40: =IF(ISERROR(INDIRECT(CONCATENATE($E$32,"!P223"))),"",INDIRECT(CONCATENATE($E$32,"!P223"))) -> N/A | V40: =IF(ISERROR(INDIRECT(CONCATENATE($E$32,"!P224"))),"",INDIRECT(CONCATENATE($E$32,"!P224"))) -> N/A | W40: =IF(ISERROR(INDIRECT(CONCATENATE($E$32,"!Q222"))),"",INDIRECT(CONCATENATE($E$32,"!Q222"))) -> N/A | X40: =IF(ISERROR(INDIRECT(CONCATENATE($E$32,"!Q223"))),"",INDIRECT(CONCATENATE($E$32,"!Q223"))) -> N/A | Y40: =IF(ISERROR(INDIRECT(CONCATENATE($E$32,"!Q224"))),"",INDIRECT(CONCATENATE($E$32,"!Q224"))) -> N/A
A88: 4 | B88: DHS00
B89: DHS05
B90: DHS10
B91: DHS15
B92: Template

Sheet DHS00
A2: =A1026 -> Colombia
A3: =A1034 -> 2000
A4: Use of drinking water sources
A5: by wealth quintile and sub-national region
A6: Notes:
A7: WHO/UNICEF JMP customised wealth index excludes water,
A8: sanitation and hygiene assets.
A9: Survey used for analysis: | B9: =A1025 -> DHS00
A10: Improved wells based on: | B10: DHS05
A11: =B1027 -> 
A14: Use of drinking water sources | C14: NATIONAL wealth index quintile | H14: URBAN wealth index quintile | M14: RURAL wealth index quintile | R14: SUB-REGIONS: | BA14: Raw numbers of respondents: | BB14: Use of drinking water sources | BC14: NATIONAL wealth index quintile | BH14: URBAN wealth index quintile | BM14: RURAL wealth index quintile | BR14: SUB-REGIONS:
A15: Weighted percentage (used in graphs) | C15: Poorest | D15: Poor | E15: Middle | F15: Rich | G15: Richest | H15: Poorest | I15: Poor | J15: Middle | K15: Rich | L15: Richest | M15: Poorest | N15: Poor | O15: Middle | P15: Rich | Q15: Richest | R15: Atlantica | S15: Bogota | T15: Central | U15: Oriental | V15: Pacifica | BA15: Water data, raw numbers (weighted) | BC15: Poorest | BD15: Poor | BE15: Middle | BF15: Rich | BG15: Richest | BH15: Poorest | BI15: Poor | BJ15: Middle | BK15: Rich | BL15: Richest | BM15: Poorest | BN15: Poor | BO15: Middle | BP15: Rich | BQ15: Richest | BR15: Atlantica | BS15: Bogota | BT15: Central | BU15: Oriental | BV15: Pacifica
A16: Water | B16: Improved | C16: =C58+C59+C60+C64+C63+C61*'DHS05'!C24/100+C62*0.25 -> 67.9411479 | D16: =D58+D59+D60+D64+D63+D61*'DHS05'!D24/100+D62*0.25 -> 90.50808208 | E16: =E58+E59+E60+E64+E63+E61*'DHS05'!E24/100+E62*0.25 -> 96.20263942 | F16: =F58+F59+F60+F64+F63+F61*'DHS05'!F24/100+F62*0.25 -> 99.31790103 | G16: =G58+G59+G60+G64+G63+G61*'DHS05'!G24/100+G62*0.25 -> 99.61903299 | H16: =H58+H59+H60+H64+H63+H61*'DHS05'!H24/100+H62*0.25 -> 98.76008553 | I16: =I58+I59+I60+I64+I63+I61*'DHS05'!I24/100+I62*0.25 -> 99.40885886 | J16: =J58+J59+J60+J64+J63+J61*'DHS05'!J24/100+J62*0.25 -> 99.62437294 | K16: =K58+K59+K60+K64+K63+K61*'DHS05'!K24/100+K62*0.25 -> 99.9568967 | L16: =L58+L59+L60+L64+L63+L61*'DHS05'!L24/100+L62*0.25 -> 99.92287237 | M16: =M58+M59+M60+M64+M63+M61*'DHS05'!M24/100+M62*0.25 -> 47.3819136 | N16: =N58+N59+N60+N64+N63+N61*'DHS05'!N24/100+N62*0.25 -> 63.50770373 | O16: =O58+O59+O60+O64+O63+O61*'DHS05'!O24/100+O62*0.25 -> 72.68625551 | P16: =P58+P59+P60+P64+P63+P61*'DHS05'!P24/100+P62*0.25 -> 75.62880828 | Q16: =Q58+Q59+Q60+Q64+Q63+Q61*'DHS05'!Q24/100+Q62*0.25 -> 84.68865985 | R16: =R58+R59+R60+R64+R63+R61*'DHS05'!R24/100+R62*0.25 -> 89.83166243 | S16: =S58+S59+S60+S64+S63+S61*'DHS05'!S24/100+S62*0.25 -> 100 | T16: =T58+T59+T60+T64+T63+T61*'DHS05'!T24/100+T62*0.25 -> 92.1770305 | U16: =U58+U59+U60+U64+U63+U61*'DHS05'!U24/100+U62*0.25 -> 89.55921265 | V16: =V58+V59+V60+V64+V63+V61*'DHS05'!V24/100+V62*0.25 -> 82.33275288 | BA16: Water | BB16: Improved | BC16: N/A | BD16: N/A | BE16: N/A | BF16: N/A | BG16: N/A | BH16: N/A | BI16: N/A | BJ16: N/A | BK16: N/A | BL16: N/A | BM16: N/A | BN16: N/A | BO16: N/A | BP16: N/A | BQ16: N/A | BR16: N/A | BS16: N/A | BT16: N/A | BU16: N/A | BV16: N/A
B17: Not Improved | C17: =100-C16 -> 32.0588521 | D17: =100-D16 -> 9.49191792 | E17: 3.79736058 | F17: 0.6820989659 | G17: 0.3809670058 | H17: 1.239914473 | I17: 0.5911411426 | J17: 0.3756270608 | K17: 0.04310330012 | L17: 0.077127633 | M17: 52.6180864 | N17: 36.49229627 | O17: 27.31374449 | P17: 24.37119172 | Q17: 15.31134015 | R17: 10.16833757 | S17: 0 | T17: 7.822969502 | U17: 10.44078735 | V17: 17.66724712 | BB17: Not Improved | BC17: N/A | BD17: N/A | BE17: N/A | BF17: N/A | BG17: N/A | BH17: N/A | BI17: N/A | BJ17: N/A | BK17: N/A | BL17: N/A | BM17: N/A | BN17: N/A | BO17: N/A | BP17: N/A | BQ17: N/A | BR17: N/A | BS17: N/A | BT17: N/A | BU17: N/A | BV17: N/A
A18: Water ladder | B18: Basic | C18: =C16*'DHS05'!C23/100 -> 67.54192439 | D18: =D16*'DHS05'!D23/100 -> 90.26951414 | E18: =E16*'DHS05'!E23/100 -> 96.15563021 | F18: =F16*'DHS05'!F23/100 -> 99.24264431 | G18: =G16*'DHS05'!G23/100 -> 99.61436869 | H18: =H16*'DHS05'!H23/100 -> 98.69988812 | I18: =I16*'DHS05'!I23/100 -> 99.38074191 | J18: =J16*'DHS05'!J23/100 -> 99.58695951 | K18: =K16*'DHS05'!K23/100 -> 99.89139112 | L18: =L16*'DHS05'!L23/100 -> 99.92287237 | M18: =M16*'DHS05'!M23/100 -> 46.34413276 | N18: =N16*'DHS05'!N23/100 -> 63.29353599 | O18: =O16*'DHS05'!O23/100 -> 72.41559931 | P18: =P16*'DHS05'!P23/100 -> 75.21792381 | Q18: =Q16*'DHS05'!Q23/100 -> 84.33230275 | R18: =R16*'DHS05'!R23/100 -> 89.45254636 | S18: =S16*'DHS05'!S23/100 -> 100 | T18: =T16*'DHS05'!T23/100 -> 91.95995563 | U18: =U16*'DHS05'!U23/100 -> 89.46726972 | V18: =V16*'DHS05'!V23/100 -> 82.29501098 | BA18: Water ladder | BB18: Basic | BC18: N/A | BD18: N/A | BE18: N/A | BF18: N/A | BG18: N/A | BH18: N/A | BI18: N/A | BJ18: N/A | BK18: N/A | BL18: N/A | BM18: N/A | BN18: N/A | BO18: N/A | BP18: N/A | BQ18: N/A | BR18: N/A | BS18: N/A | BT18: N/A | BU18: N/A | BV18: N/A
B19: Limited | C19: =C16*'DHS05'!C22/100 -> 0.3992235141 | D19: =D16*'DHS05'!D22/100 -> 0.2385679411 | E19: =E16*'DHS05'!E22/100 -> 0.04700920769 | F19: =F16*'DHS05'!F22/100 -> 0.07525672499 | G19: =G16*'DHS05'!G22/100 -> 0.004664306835 | H19: =H16*'DHS05'!H22/100 -> 0.06019741048 | I19: =I16*'DHS05'!I22/100 -> 0.02811694853 | J19: =J16*'DHS05'!J22/100 -> 0.03741343056 | K19: =K16*'DHS05'!K22/100 -> 0.06550558152 | L19: =L16*'DHS05'!L22/100 -> 0 | M19: =M16*'DHS05'!M22/100 -> 1.037780842 | N19: =N16*'DHS05'!N22/100 -> 0.2141677401 | O19: =O16*'DHS05'!O22/100 -> 0.2706561993 | P19: =P16*'DHS05'!P22/100 -> 0.4108844693 | Q19: =Q16*'DHS05'!Q22/100 -> 0.3563570938 | R19: =R16*'DHS05'!R22/100 -> 0.3791160675 | S19: =S16*'DHS05'!S22/100 -> 0 | T19: =T16*'DHS05'!T22/100 -> 0.2170748643 | U19: =U16*'DHS05'!U22/100 -> 0.09194292505 | V19: =V16*'DHS05'!V22/100 -> 0.03774189704 | BB19: Limited | BC19: N/A | BD19: N/A | BE19: N/A | BF19: N/A | BG19: N/A | BH19: N/A | BI19: N/A | BJ19: N/A | BK19: N/A | BL19: N/A | BM19: N/A | BN19: N/A | BO19: N/A | BP19: N/A | BQ19: N/A | BR19: N/A | BS19: N/A | BT19: N/A | BU19: N/A | BV19: N/A
B20: Unimproved | C20: =100-(C18+C19+C21) -> 12.3884177 | D20: =100-(D18+D19+D21) -> 4.347124515 | E20: 1.616377219 | F20: 0.389546758 | G20: 0.2583767327 | H20: 1.192074992 | I20: 0.5911411426 | J20: 0.3756270608 | K20: 0.04310330012 | L20: 0.077127633 | M20: 18.0222679 | N20: 14.78830149 | O20: 11.42836833 | P20: 10.17683514 | Q20: 6.565104572 | R20: 3.621721557 | S20: 0 | T20: 1.971756748 | U20: 4.064659779 | V20: 10.82407452 | BB20: Unimproved | BC20: N/A | BD20: N/A | BE20: N/A | BF20: N/A | BG20: N/A | BH20: N/A | BI20: N/A | BJ20: N/A | BK20: N/A | BL20: N/A | BM20: N/A | BN20: N/A | BO20: N/A | BP20: N/A | BQ20: N/A | BR20: N/A | BS20: N/A | BT20: N/A | BU20: N/A | BV20: N/A
B21: Surface water | C21: =C62*0.75 -> 19.6704344 | D21: 5.144793405 | E21: 2.180983361 | F21: 0.2925522079 | G21: 0.1225902732 | H21: 0.04783948063 | I21: 0 | J21: 0 | K21: 0 | L21: 0 | M21: 34.5958185 | N21: 21.70399478 | O21: 15.88537616 | P21: 14.19435658 | Q21: 8.746235581 | R21: 6.546616016 | S21: 0 | T21: 5.851212753 | U21: 6.376127573 | V21: 6.843172595 | BB21: Surface water | BC21: N/A | BD21: N/A | BE21: N/A | BF21: N/A | BG21: N/A | BH21: N/A | BI21: N/A | BJ21: N/A | BK21: N/A | BL21: N/A | BM21: N/A | BN21: N/A | BO21: N/A | BP21: N/A | BQ21: N/A | BR21: N/A | BS21: N/A | BT21: N/A | BU21: N/A | BV21: N/A
A22: Improved water point at more than 30 minutes | B22: Yes | C22: N/A | D22: N/A | E22: N/A | F22: N/A | G22: N/A | H22: N/A | I22: N/A | J22: N/A | K22: N/A | L22: N/A | M22: N/A | N22: N/A | O22: N/A | P22: N/A | Q22: N/A | R22: N/A | S22: N/A | T22: N/A | U22: N/A | V22: N/A | BA22: Improved water point at more than 30 minutes | BB22: Yes | BC22: N/A | BD22: N/A | BE22: N/A | BF22: N/A | BG22: N/A | BH22: N/A | BI22: N/A | BJ22: N/A | BK22: N/A | BL22: N/A | BM22: N/A | BN22: N/A | BO22: N/A | BP22: N/A | BQ22: N/A | BR22: N/A | BS22: N/A | BT22: N/A | BU22: N/A | BV22: N/A
B23: No | C23: N/A | D23: N/A | E23: N/A | F23: N/A | G23: N/A | H23: N/A | I23: N/A | J23: N/A | K23: N/A | L23: N/A | M23: N/A | N23: N/A | O23: N/A | P23: N/A | Q23: N/A | R23: N/A | S23: N/A | T23: N/A | U23: N/A | V23: N/A | BB23: No | BC23: N/A | BD23: N/A | BE23: N/A | BF23: N/A | BG23: N/A | BH23: N/A | BI23: N/A | BJ23: N/A | BK23: N/A | BL23: N/A | BM23: N/A | BN23: N/A | BO23: N/A | BP23: N/A | BQ23: N/A | BR23: N/A | BS23: N/A | BT23: N/A | BU23: N/A | BV23: N/A
A24: Manually calculated ratios | B24: Improved wells
B25: Improved springs
B26: Other
C27: NATIONAL wealth index quintile | H27: URBAN wealth index quintile | M27: RURAL wealth index quintile | R27: SUB-REGIONS: | BA27: Raw numbers of respondents: | BB27: Use of drinking water sources | BC27: NATIONAL wealth index quintile | BH27: URBAN wealth index quintile | BM27: RURAL wealth index quintile | BR27: SUB-REGIONS:
A28: Percentage based on weighted population | C28: Poorest | D28: Poor | E28: Middle | F28: Rich | G28: Richest | H28: Poorest | I28: Poor | J28: Middle | K28: Rich | L28: Richest | M28: Poorest | N28: Poor | O28: Middle | P28: Rich | Q28: Richest | R28: Atlantica | S28: Bogota | T28: Central | U28: Oriental | V28: Pacifica | BA28: Water data, raw numbers (weighted) | BC28: Poorest | BD28: Poor | BE28: Middle | BF28: Rich | BG28: Richest | BH28: Poorest | BI28: Poor | BJ28: Middle | BK28: Rich | BL28: Richest | BM28: Poorest | BN28: Poor | BO28: Middle | BP28: Rich | BQ28: Richest | BR28: Atlantica | BS28: Bogota | BT28: Central | BU28: Oriental | BV28: Pacifica
A29: Piped water | B29: Yes | C29: 52.21303365 | D29: 82.37212549 | E29: 91.64564139 | F29: 96.94225773 | G29: 98.03691717 | H29: 96.01731249 | I29: 97.66066443 | J29: 97.82295492 | K29: 99.06738732 | L29: 98.27403131 | M29: 26.11021548 | N29: 44.77366312 | O29: 56.61071461 | P29: 56.29540989 | Q29: 69.97327466 | R29: 81.18217068 | S29: 100 | T29: 88.89504038 | U29: 79.97366392 | V29: 73.35178581 | BA29: Piped water | BB29: Yes | BC29: N/A | BD29: N/A | BE29: N/A | BF29: N/A | BG29: N/A | BH29: N/A | BI29: N/A | BJ29: N/A | BK29: N/A | BL29: N/A | BM29: N/A | BN29: N/A | BO29: N/A | BP29: N/A | BQ29: N/A | BR29: N/A | BS29: N/A | BT29: N/A | BU29: N/A | BV29: N/A
B30: No | C30: 47.78696635 | D30: 17.62787451 | E30: 8.354358607 | F30: 3.057742269 | G30: 1.963082833 | H30: 3.982687512 | I30: 2.339335575 | J30: 2.177045076 | K30: 0.9326126758 | L30: 1.725968693 | M30: 73.88978452 | N30: 55.22633688 | O30: 43.38928539 | P30: 43.70459011 | Q30: 30.02672534 | R30: 18.81782932 | S30: 0 | T30: 11.10495962 | U30: 20.02633608 | V30: 26.64821419 | BB30: No | BC30: N/A | BD30: N/A | BE30: N/A | BF30: N/A | BG30: N/A | BH30: N/A | BI30: N/A | BJ30: N/A | BK30: N/A | BL30: N/A | BM30: N/A | BN30: N/A | BO30: N/A | BP30: N/A | BQ30: N/A | BR30: N/A | BS30: N/A | BT30: N/A | BU30: N/A | BV30: N/A
A31: Piped water on premises | B31: Yes | C31: 52.03894646 | D31: 82.07888147 | E31: 91.60588982 | F31: 96.89686782 | G31: 98.03691717 | H31: 95.69474902 | I31: 97.66066443 | J31: 97.75885173 | K31: 99.06738732 | L31: 98.27403131 | M31: 25.76947044 | N31: 44.62984579 | O31: 56.4901638 | P31: 56.07861661 | Q31: 69.83494648 | R31: 80.78920851 | S31: 100 | T31: 88.89504038 | U31: 79.97366392 | V31: 73.22643013 | BA31: Piped water on premises | BB31: Yes | BC31: N/A | BD31: N/A | BE31: N/A | BF31: N/A | BG31: N/A | BH31: N/A | BI31: N/A | BJ31: N/A | BK31: N/A | BL31: N/A | BM31: N/A | BN31: N/A | BO31: N/A | BP31: N/A | BQ31: N/A | BR31: N/A | BS31: N/A | BT31: N/A | BU31: N/A | BV31: N/A
B32: No | C32: 47.96105354 | D32: 17.92111853 | E32: 8.394110181 | F32: 3.103132177 | G32: 1.963082833 | H32: 4.305250977 | I32: 2.339335575 | J32: 2.241148272 | K32: 0.9326126758 | L32: 1.725968693 | M32: 74.23052956 | N32: 55.37015421 | O32: 43.5098362 | P32: 43.92138339 | Q32: 30.16505352 | R32: 19.21079149 | S32: 0 | T32: 11.10495962 | U32: 20.02633608 | V32: 26.77356987 | BB32: No | BC32: N/A | BD32: N/A | BE32: N/A | BF32: N/A | BG32: N/A | BH32: N/A | BI32: N/A | BJ32: N/A | BK32: N/A | BL32: N/A | BM32: N/A | BN32: N/A | BO32: N/A | BP32: N/A | BQ32: N/A | BR32: N/A | BS32: N/A | BT32: N/A | BU32: N/A | BV32: N/A
A33: Piped water into dwelling | B33: Yes | C33: N/A | D33: N/A | E33: N/A | F33: N/A | G33: N/A | H33: N/A | I33: N/A | J33: N/A | K33: N/A | L33: N/A | M33: N/A | N33: N/A | O33: N/A | P33: N/A | Q33: N/A | R33: N/A | S33: N/A | T33: N/A | U33: N/A | V33: N/A | BA33: Piped water into dwelling | BB33: Yes | BC33: N/A | BD33: N/A | BE33: N/A | BF33: N/A | BG33: N/A | BH33: N/A | BI33: N/A | BJ33: N/A | BK33: N/A | BL33: N/A | BM33: N/A | BN33: N/A | BO33: N/A | BP33: N/A | BQ33: N/A | BR33: N/A | BS33: N/A | BT33: N/A | BU33: N/A | BV33: N/A
B34: No | C34: N/A | D34: N/A | E34: N/A | F34: N/A | G34: N/A | H34: N/A | I34: N/A | J34: N/A | K34: N/A | L34: N/A | M34: N/A | N34: N/A | O34: N/A | P34: N/A | Q34: N/A | R34: N/A | S34: N/A | T34: N/A | U34: N/A | V34: N/A | BB34: No | BC34: N/A | BD34: N/A | BE34: N/A | BF34: N/A | BG34: N/A | BH34: N/A | BI34: N/A | BJ34: N/A | BK34: N/A | BL34: N/A | BM34: N/A | BN34: N/A | BO34: N/A | BP34: N/A | BQ34: N/A | BR34: N/A | BS34: N/A | BT34: N/A | BU34: N/A | BV34: N/A
A35: Water source on premises | B35: Yes | C35: 80.7 | D35: 95.9 | E35: 99.2 | F35: 99.7 | G35: 100 | H35: 98.4 | I35: 99.9 | J35: 99.9 | K35: 99.9 | L35: 100 | M35: 65.7 | N35: 77.5 | O35: 89.5 | P35: 89.7 | Q35: 97.5 | R35: 88.8 | S35: 100 | T35: 98.4 | U35: 95 | V35: 94.5 | BA35: Water source on premises | BB35: Yes | BC35: N/A | BD35: N/A | BE35: N/A | BF35: N/A | BG35: N/A | BH35: N/A | BI35: N/A | BJ35: N/A | BK35: N/A | BL35: N/A | BM35: N/A | BN35: N/A | BO35: N/A | BP35: N/A | BQ35: N/A | BR35: N/A | BS35: N/A | BT35: N/A | BU35: N/A | BV35: N/A
B36: No | C36: 19.3 | D36: 4.1 | E36: 0.8 | F36: 0.3 | G36: 0 | H36: 1.6 | I36: 0.1 | J36: 0.1 | K36: 0.1 | L36: 0 | M36: 34.3 | N36: 22.5 | O36: 10.5 | P36: 10.3 | Q36: 2.5 | R36: 11.2 | S36: 0 | T36: 1.6 | U36: 5 | V36: 5.5 | BB36: No | BC36: N/A | BD36: N/A | BE36: N/A | BF36: N/A | BG36: N/A | BH36: N/A | BI36: N/A | BJ36: N/A | BK36: N/A | BL36: N/A | BM36: N/A | BN36: N/A | BO36: N/A | BP36: N/A | BQ36: N/A | BR36: N/A | BS36: N/A | BT36: N/A | BU36: N/A | BV36: N/A
A37: Improved Water source on premises | B37: Yes | C37: N/A | D37: N/A | E37: N/A | F37: N/A | G37: N/A | H37: N/A | I37: N/A | J37: N/A | K37: N/A | L37: N/A | M37: N/A | N37: N/A | O37: N/A | P37: N/A | Q37: N/A | R37: N/A | S37: N/A | T37: N/A | U37: N/A | V37: N/A | BA37: Improved water source on premises | BB37: Yes | BC37: N/A | BD37: N/A | BE37: N/A | BF37: N/A | BG37: N/A | BH37: N/A | BI37: N/A | BJ37: N/A | BK37: N/A | BL37: N/A | BM37: N/A | BN37: N/A | BO37: N/A | BP37: N/A | BQ37: N/A | BR37: N/A | BS37: N/A | BT37: N/A | BU37: N/A | BV37: N/A
B38: No | C38: N/A | D38: N/A | E38: N/A | F38: N/A | G38: N/A | H38: N/A | I38: N/A | J38: N/A | K38: N/A | L38: N/A | M38: N/A | N38: N/A | O38: N/A | P38: N/A | Q38: N/A | R38: N/A | S38: N/A | T38: N/A | U38: N/A | V38: N/A | BB38: No | BC38: N/A | BD38: N/A | BE38: N/A | BF38: N/A | BG38: N/A | BH38: N/A | BI38: N/A | BJ38: N/A | BK38: N/A | BL38: N/A | BM38: N/A | BN38: N/A | BO38: N/A | BP38: N/A | BQ38: N/A | BR38: N/A | BS38: N/A | BT38: N/A | BU38: N/A | BV38: N/A
A39: Piped water on premises available when needed | B39: Yes | C39: N/A | D39: N/A | E39: N/A | F39: N/A | G39: N/A | H39: N/A | I39: N/A | J39: N/A | K39: N/A | L39: N/A | M39: N/A | N39: N/A | O39: N/A | P39: N/A | Q39: N/A | R39: N/A | S39: N/A | T39: N/A | U39: N/A | V39: N/A | BA39: Piped water on premises available when needed | BB39: Yes | BC39: N/A | BD39: N/A | BE39: N/A | BF39: N/A | BG39: N/A | BH39: N/A | BI39: N/A | BJ39: N/A | BK39: N/A | BL39: N/A | BM39: N/A | BN39: N/A | BO39: N/A | BP39: N/A | BQ39: N/A | BR39: N/A | BS39: N/A | BT39: N/A | BU39: N/A | BV39: N/A
B40: No | C40: N/A | D40: N/A | E40: N/A | F40: N/A | G40: N/A | H40: N/A | I40: N/A | J40: N/A | K40: N/A | L40: N/A | M40: N/A | N40: N/A | O40: N/A | P40: N/A | Q40: N/A | R40: N/A | S40: N/A | T40: N/A | U40: N/A | V40: N/A | BB40: No | BC40: N/A | BD40: N/A | BE40: N/A | BF40: N/A | BG40: N/A | BH40: N/A | BI40: N/A | BJ40: N/A | BK40: N/A | BL40: N/A | BM40: N/A | BN40: N/A | BO40: N/A | BP40: N/A | BQ40: N/A | BR40: N/A | BS40: N/A | BT40: N/A | BU40: N/A | BV40: N/A
A41: Water point at more than 30 minutes | B41: Yes | C41: 1.710695033 | D41: 0.5484482979 | E41: 0.03191621965 | F41: 0 | G41: 0 | H41: 0.1085040324 | I41: 0 | J41: 0 | K41: 0 | L41: 0 | M41: 2.484257058 | N41: 2.381712314 | O41: 1.186778175 | P41: 1.531441755 | Q41: 0.1110625872 | R41: 1.676175938 | S41: 0 | T41: 0.03556146487 | U41: 0.1883191876 | V41: 0.1879518082 | BA41: Water point at more than 30 minutes | BB41: Yes | BC41: N/A | BD41: N/A | BE41: N/A | BF41: N/A | BG41: N/A | BH41: N/A | BI41: N/A | BJ41: N/A | BK41: N/A | BL41: N/A | BM41: N/A | BN41: N/A | BO41: N/A | BP41: N/A | BQ41: N/A | BR41: N/A | BS41: N/A | BT41: N/A | BU41: N/A | BV41: N/A
B42: No | C42: 98.28930497 | D42: 99.4515517 | E42: 99.96808378 | F42: 100 | G42: 100 | H42: 99.89149597 | I42: 100 | J42: 100 | K42: 100 | L42: 100 | M42: 97.51574294 | N42: 97.61828769 | O42: 98.81322182 | P42: 98.46855824 | Q42: 99.88893741 | R42: 98.32382406 | S42: 100 | T42: 99.96443854 | U42: 99.81168081 | V42: 99.81204819 | BB42: No | BC42: N/A | BD42: N/A | BE42: N/A | BF42: N/A | BG42: N/A | BH42: N/A | BI42: N/A | BJ42: N/A | BK42: N/A | BL42: N/A | BM42: N/A | BN42: N/A | BO42: N/A | BP42: N/A | BQ42: N/A | BR42: N/A | BS42: N/A | BT42: N/A | BU42: N/A | BV42: N/A
A43: Water source available when needed | B43: Yes | C43: N/A | D43: N/A | E43: N/A | F43: N/A | G43: N/A | H43: N/A | I43: N/A | J43: N/A | K43: N/A | L43: N/A | M43: N/A | N43: N/A | O43: N/A | P43: N/A | Q43: N/A | R43: N/A | S43: N/A | T43: N/A | U43: N/A | V43: N/A | BA43: Water source available when needed | BB43: Yes | BC43: N/A | BD43: N/A | BE43: N/A | BF43: N/A | BG43: N/A | BH43: N/A | BI43: N/A | BJ43: N/A | BK43: N/A | BL43: N/A | BM43: N/A | BN43: N/A | BO43: N/A | BP43: N/A | BQ43: N/A | BR43: N/A | BS43: N/A | BT43: N/A | BU43: N/A | BV43: N/A
B44: No | C44: N/A | D44: N/A | E44: N/A | F44: N/A | G44: N/A | H44: N/A | I44: N/A | J44: N/A | K44: N/A | L44: N/A | M44: N/A | N44: N/A | O44: N/A | P44: N/A | Q44: N/A | R44: N/A | S44: N/A | T44: N/A | U44: N/A | V44: N/A | BB44: No | BC44: N/A | BD44: N/A | BE44: N/A | BF44: N/A | BG44: N/A | BH44: N/A | BI44: N/A | BJ44: N/A | BK44: N/A | BL44: N/A | BM44: N/A | BN44: N/A | BO44: N/A | BP44: N/A | BQ44: N/A | BR44: N/A | BS44: N/A | BT44: N/A | BU44: N/A | BV44: N/A
A45: Improved water source available when needed | B45: Yes | C45: N/A | D45: N/A | E45: N/A | F45: N/A | G45: N/A | H45: N/A | I45: N/A | J45: N/A | K45: N/A | L45: N/A | M45: N/A | N45: N/A | O45: N/A | P45: N/A | Q45: N/A | R45: N/A | S45: N/A | T45: N/A | U45: N/A | V45: N/A | BA45: Improved water source available when needed | BB45: Yes | BC45: N/A | BD45: N/A | BE45: N/A | BF45: N/A | BG45: N/A | BH45: N/A | BI45: N/A | BJ45: N/A | BK45: N/A | BL45: N/A | BM45: N/A | BN45: N/A | BO45: N/A | BP45: N/A | BQ45: N/A | BR45: N/A | BS45: N/A | BT45: N/A | BU45: N/A | BV45: N/A
B46: No | C46: N/A | D46: N/A | E46: N/A | F46: N/A | G46: N/A | H46: N/A | I46: N/A | J46: N/A | K46: N/A | L46: N/A | M46: N/A | N46: N/A | O46: N/A | P46: N/A | Q46: N/A | R46: N/A | S46: N/A | T46: N/A | U46: N/A | V46: N/A | BB46: No | BC46: N/A | BD46: N/A | BE46: N/A | BF46: N/A | BG46: N/A | BH46: N/A | BI46: N/A | BJ46: N/A | BK46: N/A | BL46: N/A | BM46: N/A | BN46: N/A | BO46: N/A | BP46: N/A | BQ46: N/A | BR46: N/A | BS46: N/A | BT46: N/A | BU46: N/A | BV46: N/A
A47: Microbiological quality at point of collection | B47: Not contaminated (No E. coli in 100 mL) | C47: N/A | D47: N/A | E47: N/A | F47: N/A | G47: N/A | H47: N/A | I47: N/A | J47: N/A | K47: N/A | L47: N/A | M47: N/A | N47: N/A | O47: N/A | P47: N/A | Q47: N/A | R47: N/A | S47: N/A | T47: N/A | U47: N/A | V47: N/A | BA47: Microbiological quality at point of collection | BB47: Not contaminated (No E. coli in 100 mL) | BC47: N/A | BD47: N/A | BE47: N/A | BF47: N/A | BG47: N/A | BH47: N/A | BI47: N/A | BJ47: N/A | BK47: N/A | BL47: N/A | BM47: N/A | BN47: N/A | BO47: N/A | BP47: N/A | BQ47: N/A | BR47: N/A | BS47: N/A | BT47: N/A | BU47: N/A | BV47: N/A
B48: Contaminated (E. coli detected in 100 mL) | C48: N/A | D48: N/A | E48: N/A | F48: N/A | G48: N/A | H48: N/A | I48: N/A | J48: N/A | K48: N/A | L48: N/A | M48: N/A | N48: N/A | O48: N/A | P48: N/A | Q48: N/A | R48: N/A | S48: N/A | T48: N/A | U48: N/A | V48: N/A | BB48: Contaminated (E. coli detected in 100 mL) | BC48: N/A | BD48: N/A | BE48: N/A | BF48: N/A | BG48: N/A | BH48: N/A | BI48: N/A | BJ48: N/A | BK48: N/A | BL48: N/A | BM48: N/A | BN48: N/A | BO48: N/A | BP48: N/A | BQ48: N/A | BR48: N/A | BS48: N/A | BT48: N/A | BU48: N/A | BV48: N/A
B49: Highly contaminated (>100 CFU/100 mL) | C49: N/A | D49: N/A | E49: N/A | F49: N/A | G49: N/A | H49: N/A | I49: N/A | J49: N/A | K49: N/A | L49: N/A | M49: N/A | N49: N/A | O49: N/A | P49: N/A | Q49: N/A | R49: N/A | S49: N/A | T49: N/A | U49: N/A | V49: N/A | BB49: Highly contaminated (>100 CFU/100 mL) | BC49: N/A | BD49: N/A | BE49: N/A | BF49: N/A | BG49: N/A | BH49: N/A | BI49: N/A | BJ49: N/A | BK49: N/A | BL49: N/A | BM49: N/A | BN49: N/A | BO49: N/A | BP49: N/A | BQ49: N/A | BR49: N/A | BS49: N/A | BT49: N/A | BU49: N/A | BV49: N/A
A50: Microbiological quality of improved water sources at point of collection | B50: Not contaminated (No E. coli in 100 mL) | C50: N/A | D50: N/A | E50: N/A | F50: N/A | G50: N/A | H50: N/A | I50: N/A | J50: N/A | K50: N/A | L50: N/A | M50: N/A | N50: N/A | O50: N/A | P50: N/A | Q50: N/A | R50: N/A | S50: N/A | T50: N/A | U50: N/A | V50: N/A | BA50: Microbiological quality of improved water sources at point of collection | BB50: Not contaminated (No E. coli in 100 mL) | BC50: N/A | BD50: N/A | BE50: N/A | BF50: N/A | BG50: N/A | BH50: N/A | BI50: N/A | BJ50: N/A | BK50: N/A | BL50: N/A | BM50: N/A | BN50: N/A | BO50: N/A | BP50: N/A | BQ50: N/A | BR50: N/A | BS50: N/A | BT50: N/A | BU50: N/A | BV50: N/A
B51: Contaminated (E. coli detected in 100 mL) | C51: N/A | D51: N/A | E51: N/A | F51: N/A | G51: N/A | H51: N/A | I51: N/A | J51: N/A | K51: N/A | L51: N/A | M51: N/A | N51: N/A | O51: N/A | P51: N/A | Q51: N/A | R51: N/A | S51: N/A | T51: N/A | U51: N/A | V51: N/A | BB51: Contaminated (E. coli detected in 100 mL) | BC51: N/A | BD51: N/A | BE51: N/A | BF51: N/A | BG51: N/A | BH51: N/A | BI51: N/A | BJ51: N/A | BK51: N/A | BL51: N/A | BM51: N/A | BN51: N/A | BO51: N/A | BP51: N/A | BQ51: N/A | BR51: N/A | BS51: N/A | BT51: N/A | BU51: N/A | BV51: N/A
B52: Highly contaminated (>100 CFU/100 mL) | C52: N/A | D52: N/A | E52: N/A | F52: N/A | G52: N/A | H52: N/A | I52: N/A | J52: N/A | K52: N/A | L52: N/A | M52: N/A | N52: N/A | O52: N/A | P52: N/A | Q52: N/A | R52: N/A | S52: N/A | T52: N/A | U52: N/A | V52: N/A | BB52: Highly contaminated (>100 CFU/100 mL) | BC52: N/A | BD52: N/A | BE52: N/A | BF52: N/A | BG52: N/A | BH52: N/A | BI52: N/A | BJ52: N/A | BK52: N/A | BL52: N/A | BM52: N/A | BN52: N/A | BO52: N/A | BP52: N/A | BQ52: N/A | BR52: N/A | BS52: N/A | BT52: N/A | BU52: N/A | BV52: N/A
A53: Microbiological quality of piped on premises at point of collection | B53: Not contaminated (No E. coli in 100 mL) | C53: N/A | D53: N/A | E53: N/A | F53: N/A | G53: N/A | H53: N/A | I53: N/A | J53: N/A | K53: N/A | L53: N/A | M53: N/A | N53: N/A | O53: N/A | P53: N/A | Q53: N/A | R53: N/A | S53: N/A | T53: N/A | U53: N/A | V53: N/A | BA53: Microbiological quality of piped on premises at point of collection | BB53: Not contaminated (No E. coli in 100 mL) | BC53: N/A | BD53: N/A | BE53: N/A | BF53: N/A | BG53: N/A | BH53: N/A | BI53: N/A | BJ53: N/A | BK53: N/A | BL53: N/A | BM53: N/A | BN53: N/A | BO53: N/A | BP53: N/A | BQ53: N/A | BR53: N/A | BS53: N/A | BT53: N/A | BU53: N/A | BV53: N/A
B54: Contaminated (E. coli detected in 100 mL) | C54: N/A | D54: N/A | E54: N/A | F54: N/A | G54: N/A | H54: N/A | I54: N/A | J54: N/A | K54: N/A | L54: N/A | M54: N/A | N54: N/A | O54: N/A | P54: N/A | Q54: N/A | R54: N/A | S54: N/A | T54: N/A | U54: N/A | V54: N/A | BB54: Contaminated (E. coli detected in 100 mL) | BC54: N/A | BD54: N/A | BE54: N/A | BF54: N/A | BG54: N/A | BH54: N/A | BI54: N/A | BJ54: N/A | BK54: N/A | BL54: N/A | BM54: N/A | BN54: N/A | BO54: N/A | BP54: N/A | BQ54: N/A | BR54: N/A | BS54: N/A | BT54: N/A | BU54: N/A | BV54: N/A
B55: Highly contaminated (>100 CFU/100 mL) | C55: N/A | D55: N/A | E55: N/A | F55: N/A | G55: N/A | H55: N/A | I55: N/A | J55: N/A | K55: N/A | L55: N/A | M55: N/A | N55: N/A | O55: N/A | P55: N/A | Q55: N/A | R55: N/A | S55: N/A | T55: N/A | U55: N/A | V55: N/A | BB55: Highly contaminated (>100 CFU/100 mL) | BC55: N/A | BD55: N/A | BE55: N/A | BF55: N/A | BG55: N/A | BH55: N/A | BI55: N/A | BJ55: N/A | BK55: N/A | BL55: N/A | BM55: N/A | BN55: N/A | BO55: N/A | BP55: N/A | BQ55: N/A | BR55: N/A | BS55: N/A | BT55: N/A | BU55: N/A | BV55: N/A
C56: NATIONAL wealth index quintile | H56: URBAN wealth index quintile | M56: RURAL wealth index quintile | R56: SUB-REGIONS: | BA56: Raw numbers of respondents: | BB56: Use of drinking water sources | BC56: NATIONAL wealth index quintile | BH56: URBAN wealth index quintile | BM56: RURAL wealth index quintile | BR56: SUB-REGIONS:
A57: Percentage based on weighted population | C57: Poorest | D57: Poor | E57: Middle | F57: Rich | G57: Richest | H57: Poorest | I57: Poor | J57: Middle | K57: Rich | L57: Richest | M57: Poorest | N57: Poor | O57: Middle | P57: Rich | Q57: Richest | R57: Atlantica | S57: Bogota | T57: Central | U57: Oriental | V57: Pacifica | BA57: Water data, raw numbers (weighted) | BC57: Poorest | BD57: Poor | BE57: Middle | BF57: Rich | BG57: Richest | BH57: Poorest | BI57: Poor | BJ57: Middle | BK57: Rich | BL57: Richest | BM57: Poorest | BN57: Poor | BO57: Middle | BP57: Rich | BQ57: Richest | BR57: Atlantica | BS57: Bogota | BT57: Central | BU57: Oriental | BV57: Pacifica
A58: Source of drinking water | B58: Public aqueduct | C58: 35.48774461 | D58: 71.76184611 | E58: 85.39593908 | F58: 93.49328414 | G58: 96.62597826 | H58: 93.67412543 | I58: 96.08538348 | J58: 96.14430412 | K58: 98.08744893 | L58: 97.08297584 | M58: 12.19993881 | N58: 21.69107873 | O58: 31.94156414 | P58: 28.89522337 | Q58: 44.55251129 | R58: 73.36247581 | S58: 99.11595471 | T58: 84.58564742 | U58: 61.45024504 | V58: 67.63736609
B59: Private aqueduct | C59: 16.59420694 | D59: 10.31703536 | E59: 6.209950741 | F59: 3.403583679 | G59: 1.410938905 | H59: 2.020623592 | I59: 1.575280944 | J59: 1.614547612 | K59: 0.9799383954 | L59: 1.191055465 | M59: 13.56953164 | N59: 23.02904002 | O59: 24.59675888 | P59: 27.18339324 | Q59: 25.28243519 | R59: 7.448075032 | S59: 0.88404529 | T59: 4.344452308 | U59: 18.52341889 | V59: 5.58906404
B60: Public tap | C60: 0.1742310536 | D60: 0.2932440194 | E60: 0.0397515741 | F60: 0.04538990717 | G60: 0 | H60: 0.3225634648 | I60: 0 | J60: 0.0641031954 | K60: 0 | L60: 0 | M60: 0.3407450338 | N60: 0.1441082362 | O60: 0.1206535754 | P60: 0.216793277 | Q60: 0.1383281828 | R60: 0.3930659776 | S60: 0 | T60: 0 | U60: 0 | V60: 0.1253556808
B61: Well | C61: 15.01980249 | D61: 7.60489986 | E61: 4.544660446 | F61: 2.151735765 | G61: 1.336173966 | H61: 1.30398902 | I61: 1.748880084 | J61: 1.58615057 | K61: 0.791454685 | L61: 1.349275796 | M61: 19.65449331 | N61: 20.27281861 | O61: 16.28868744 | P61: 18.31939263 | Q61: 15.28069375 | R61: 4.228901884 | S61: 0 | T61: 2.53244764 | U61: 10.79848895 | V61: 13.75549512
B62: River, spring, stream | C62: 26.22724586 | D62: 6.85972454 | E62: 2.907977815 | F62: 0.3900696105 | G62: 0.1634536975 | H62: 0.06378597418 | I62: 0 | J62: 0 | K62: 0 | L62: 0 | M62: 46.127758 | N62: 28.93865971 | O62: 21.18050154 | P62: 18.92580877 | Q62: 11.66164744 | R62: 8.728821355 | S62: 0 | T62: 7.801617004 | U62: 8.50150343 | V62: 9.124230127
B63: Rainwater | C63: 4.427266422 | D63: 2.028286929 | E63: 0.3868816196 | F63: 0.3850800335 | G63: 0.2894353477 | H63: 1.322819208 | I63: 0.4295069465 | J63: 0.4179288022 | K63: 0.1411579908 | L63: 0.3766928971 | M63: 6.963803617 | N63: 3.687428572 | O63: 3.402720774 | P63: 4.454223735 | Q63: 0.9732404382 | R63: 3.675310736 | S63: 0 | T63: 0.4001080351 | U63: 0.2879486921 | V63: 2.957334914
B64: Tanker truck | C64: 1.114662764 | D64: 0.6257424091 | E64: 0.2670114969 | F64: 0.01471173399 | G64: 0 | H64: 0.7822196154 | I64: 0 | J64: 0 | K64: 0 | L64: 0 | M64: 0.2228328029 | N64: 0.7722809858 | O64: 2.094779772 | P64: 1.034894658 | Q64: 0.9800999912 | R64: 1.544067995 | S64: 0 | T64: 0.130640788 | U64: 0.03978899511 | V64: 0.07351623141
B65: Other | C65: 0.9548398602 | D65: 0.5092207745 | E65: 0.2478272298 | F65: 0.116145126 | G65: 0.1740198217 | H65: 0.5098736934 | I65: 0.160948544 | J65: 0.1729657041 | K65: 0 | L65: 0 | M65: 0.9208967987 | N65: 1.464585145 | O65: 0.3743338782 | P65: 0.9702703126 | Q65: 1.131043719 | R65: 0.6192812167 | S65: 0 | T65: 0.2050868062 | U65: 0.3986060121 | V65: 0.7376377906
A108: =A1026 -> Colombia
A109: =A1034 -> 2000
A110: Use of sanitation facilities
A111: by wealth quintile and sub-national region
A112: Notes:
A113: WHO/UNICEF JMP customised wealth index excludes water,
A114: sanitation and hygiene assets.
A115: Survey used for analysis: | B115: =A1025 -> DHS00
A116: =B1030 -> Ratio of Improved latrines based on: | B116: 50% Rule
A120: Use of sanitation facilities | C120: NATIONAL wealth index quintile | H120: URBAN wealth index quintile | M120: RURAL wealth index quintile | R120: SUB-REGIONS: | BA120: Raw numbers of respondents: | BB120: Use of sanitation facilities | BC120: NATIONAL wealth index quintile | BH120: URBAN wealth index quintile | BM120: RURAL wealth index quintile | BR120: SUB-REGIONS:
A121: Weighted percentage (used in graphs) | C121: Poorest | D121: Poor | E121: Middle | F121: Rich | G121: Richest | H121: Poorest | I121: Poor | J121: Middle | K121: Rich | L121: Richest | M121: Poorest | N121: Poor | O121: Middle | P121: Rich | Q121: Richest | R121: Atlantica | S121: Bogota | T121: Central | U121: Oriental | V121: Pacifica | BA121: Sanitation data, raw numbers (weighted) | BC121: Poorest | BD121: Poor | BE121: Middle | BF121: Rich | BG121: Richest | BH121: Poorest | BI121: Poor | BJ121: Middle | BK121: Rich | BL121: Richest | BM121: Poorest | BN121: Poor | BO121: Middle | BP121: Rich | BQ121: Richest | BR121: Atlantica | BS121: Bogota | BT121: Central | BU121: Oriental | BV121: Pacifica
A122: Sanitation | B122: Improved | C122: =C153+C154+C156*0.5 -> 47.34430108 | D122: =D153+D154+D156*0.5 -> 80.80322776 | E122: 92.15643241 | F122: 97.9007332 | G122: 99.41986688 | H122: 85.43723528 | I122: 95.76468718 | J122: 97.79733227 | K122: 99.19173133 | L122: 99.74785237 | M122: 24.24257095 | N122: 45.74943846 | O122: 54.09096467 | P122: 64.98382789 | Q122: 79.46838691 | R122: 76.08241969 | S122: 100 | T122: 84.30759739 | U122: 78.15198294 | V122: 85.16633486 | BA122: Sanitation | BB122: Improved | BC122: N/A | BD122: N/A | BE122: N/A | BF122: N/A | BG122: N/A | BH122: N/A | BI122: N/A | BJ122: N/A | BK122: N/A | BL122: N/A | BM122: N/A | BN122: N/A | BO122: N/A | BP122: N/A | BQ122: N/A | BR122: N/A | BS122: N/A | BT122: N/A | BU122: N/A | BV122: N/A
B123: Not Improved | C123: =100-C122 -> 52.65569892 | D123: =100-D122 -> 19.19677224 | E123: 7.843567594 | F123: 2.099266798 | G123: 0.5801331243 | H123: 14.56276472 | I123: 4.235312817 | J123: 2.202667726 | K123: 0.8082686653 | L123: 0.2521476327 | M123: 75.75742905 | N123: 54.25056154 | O123: 45.90903533 | P123: 35.01617211 | Q123: 20.53161309 | R123: 23.91758031 | S123: 0 | T123: 15.69240261 | U123: 21.84801706 | V123: 14.83366514 | BB123: Not Improved | BC123: N/A | BD123: N/A | BE123: N/A | BF123: N/A | BG123: N/A | BH123: N/A | BI123: N/A | BJ123: N/A | BK123: N/A | BL123: N/A | BM123: N/A | BN123: N/A | BO123: N/A | BP123: N/A | BQ123: N/A | BR123: N/A | BS123: N/A | BT123: N/A | BU123: N/A | BV123: N/A
A124: Sanitation ladder | B124: Basic | C124: =C122*C129/100 -> 36.31307893 | D124: =D122*D129/100 -> 54.38057228 | E124: 72.25064301 | F124: 85.66314155 | G124: 92.65931593 | H124: 49.98078264 | I124: 68.95057477 | J124: 80.09601513 | K124: 89.5701334 | L124: 94.36146834 | M124: 22.64256127 | N124: 37.28579235 | O124: 47.22141216 | P124: 57.3157362 | Q124: 73.90559983 | R124: 64.44180948 | S124: 72.8 | T124: 73.85345532 | U124: 63.14680222 | V124: 64.64124816 | BA124: Sanitation ladder | BB124: Basic | BC124: N/A | BD124: N/A | BE124: N/A | BF124: N/A | BG124: N/A | BH124: N/A | BI124: N/A | BJ124: N/A | BK124: N/A | BL124: N/A | BM124: N/A | BN124: N/A | BO124: N/A | BP124: N/A | BQ124: N/A | BR124: N/A | BS124: N/A | BT124: N/A | BU124: N/A | BV124: N/A
B125: Limited | C125: =C122*C128/100 -> 11.03122215 | D125: =D122*D128/100 -> 26.42265548 | E125: 19.9057894 | F125: 12.23759165 | G125: 6.760550948 | H125: 35.45645264 | I125: 26.81411241 | J125: 17.70131714 | K125: 9.621597939 | L125: 5.386384028 | M125: 1.600009683 | N125: 8.463646116 | O125: 6.869552513 | P125: 7.668091691 | Q125: 5.562787084 | R125: 11.64061021 | S125: 27.2 | T125: 10.45414208 | U125: 15.00518072 | V125: 20.5250867 | BB125: Limited | BC125: N/A | BD125: N/A | BE125: N/A | BF125: N/A | BG125: N/A | BH125: N/A | BI125: N/A | BJ125: N/A | BK125: N/A | BL125: N/A | BM125: N/A | BN125: N/A | BO125: N/A | BP125: N/A | BQ125: N/A | BR125: N/A | BS125: N/A | BT125: N/A | BU125: N/A | BV125: N/A
B126: Unimproved | C126: =100-(C124+C125+C127) -> 14.05569892 | D126: =100-(D124+D125+D127) -> 13.19677224 | E126: 6.643567594 | F126: 1.999266798 | G126: 0.5801331243 | H126: 8.362764722 | I126: 3.335312817 | J126: 2.102667726 | K126: 0.7082686653 | L126: 0.2521476327 | M126: 10.55742905 | N126: 14.45056154 | O126: 22.60903533 | P126: 24.61617211 | Q126: 18.03161309 | R126: 8.61758031 | S126: 0 | T126: 8.992402606 | U126: 8.64801706 | V126: 8.13366514 | BB126: Unimproved | BC126: N/A | BD126: N/A | BE126: N/A | BF126: N/A | BG126: N/A | BH126: N/A | BI126: N/A | BJ126: N/A | BK126: N/A | BL126: N/A | BM126: N/A | BN126: N/A | BO126: N/A | BP126: N/A | BQ126: N/A | BR126: N/A | BS126: N/A | BT126: N/A | BU126: N/A | BV126: N/A
B127: Open defecation | C127: 38.6 | D127: 6 | E127: 1.2 | F127: 0.1 | G127: 0 | H127: 6.2 | I127: 0.9 | J127: 0.1 | K127: 0.1 | L127: 0 | M127: 65.2 | N127: 39.8 | O127: 23.3 | P127: 10.4 | Q127: 2.5 | R127: 15.3 | S127: 0 | T127: 6.7 | U127: 13.2 | V127: 6.7 | BB127: Open defecation | BC127: N/A | BD127: N/A | BE127: N/A | BF127: N/A | BG127: N/A | BH127: N/A | BI127: N/A | BJ127: N/A | BK127: N/A | BL127: N/A | BM127: N/A | BN127: N/A | BO127: N/A | BP127: N/A | BQ127: N/A | BR127: N/A | BS127: N/A | BT127: N/A | BU127: N/A | BV127: N/A
A128: Shared among Improved Sanitation | B128: Yes | C128: 23.3 | D128: 32.7 | E128: 21.6 | F128: 12.5 | G128: 6.8 | H128: 41.5 | I128: 28 | J128: 18.1 | K128: 9.7 | L128: 5.4 | M128: 6.6 | N128: 18.5 | O128: 12.7 | P128: 11.8 | Q128: 7 | R128: 15.3 | S128: 27.2 | T128: 12.4 | U128: 19.2 | V128: 24.1 | BA128: Shared among improved sanitation facilities | BB128: Yes | BC128: N/A | BD128: N/A | BE128: N/A | BF128: N/A | BG128: N/A | BH128: N/A | BI128: N/A | BJ128: N/A | BK128: N/A | BL128: N/A | BM128: N/A | BN128: N/A | BO128: N/A | BP128: N/A | BQ128: N/A | BR128: N/A | BS128: N/A | BT128: N/A | BU128: N/A | BV128: N/A
B129: No | C129: 76.7 | D129: 67.3 | E129: 78.4 | F129: 87.5 | G129: 93.2 | H129: 58.5 | I129: 72 | J129: 81.9 | K129: 90.3 | L129: 94.6 | M129: 93.4 | N129: 81.5 | O129: 87.3 | P129: 88.2 | Q129: 93 | R129: 84.7 | S129: 72.8 | T129: 87.6 | U129: 80.8 | V129: 75.9 | BB129: No | BC129: N/A | BD129: N/A | BE129: N/A | BF129: N/A | BG129: N/A | BH129: N/A | BI129: N/A | BJ129: N/A | BK129: N/A | BL129: N/A | BM129: N/A | BN129: N/A | BO129: N/A | BP129: N/A | BQ129: N/A | BR129: N/A | BS129: N/A | BT129: N/A | BU129: N/A | BV129: N/A
A130: Manually calculated ratios | B130: Improved latrines
B131: Other
B132: Other
C133: NATIONAL wealth index quintile | H133: URBAN wealth index quintile | M133: RURAL wealth index quintile | R133: SUB-REGIONS: | BA133: Raw numbers of respondents: | BB133: Use of sanitation facilities | BC133: NATIONAL wealth index quintile | BH133: URBAN wealth index quintile | BM133: RURAL wealth index quintile | BR133: SUB-REGIONS:
A134: Percentage based on weighted population | C134: Poorest | D134: Poor | E134: Middle | F134: Rich | G134: Richest | H134: Poorest | I134: Poor | J134: Middle | K134: Rich | L134: Richest | M134: Poorest | N134: Poor | O134: Middle | P134: Rich | Q134: Richest | R134: Atlantica | S134: Bogota | T134: Central | U134: Oriental | V134: Pacifica | BA134: Sanitation data, raw numbers (weighted) | BC134: Poorest | BD134: Poor | BE134: Middle | BF134: Rich | BG134: Richest | BH134: Poorest | BI134: Poor | BJ134: Middle | BK134: Rich | BL134: Richest | BM134: Poorest | BN134: Poor | BO134: Middle | BP134: Rich | BQ134: Richest | BR134: Atlantica | BS134: Bogota | BT134: Central | BU134: Oriental | BV134: Pacifica
A135: Sanitation type | B135: Sewer connection | C135: 14.48128921 | D135: 56.54741571 | E135: 76.64725255 | F135: 91.72859765 | G135: 97.25682033 | H135: 69.48605013 | I135: 86.49614446 | J135: 92.82362493 | K135: 98.07279144 | L135: 98.27687209 | M135: 1.362069229 | N135: 4.560683332 | O135: 8.990022603 | P135: 19.02099125 | Q135: 34.37865509 | R135: 48.20648816 | S135: 100 | T135: 73.91314708 | U135: 57.54896411 | V135: 67.44395476 | BA135: Sanitation type | BB135: Sewer connection | BC135: N/A | BD135: N/A | BE135: N/A | BF135: N/A | BG135: N/A | BH135: N/A | BI135: N/A | BJ135: N/A | BK135: N/A | BL135: N/A | BM135: N/A | BN135: N/A | BO135: N/A | BP135: N/A | BQ135: N/A | BR135: N/A | BS135: N/A | BT135: N/A | BU135: N/A | BV135: N/A
B136: Septic tank connection | C136: 25.01627304 | D136: 19.81126602 | E136: 13.57688453 | F136: 5.618710623 | G136: 1.895993164 | H136: 11.82362809 | I136: 7.390455764 | J136: 4.142281834 | K136: 0.9374984145 | L136: 1.218832646 | M136: 13.22398178 | N136: 33.36515208 | O136: 37.99505081 | P136: 39.59262323 | Q136: 41.75084847 | R136: 20.56907824 | S136: 0 | T136: 9.334087986 | U136: 19.46819641 | V136: 12.74476502 | BB136: Septic tank connection | BC136: N/A | BD136: N/A | BE136: N/A | BF136: N/A | BG136: N/A | BH136: N/A | BI136: N/A | BJ136: N/A | BK136: N/A | BL136: N/A | BM136: N/A | BN136: N/A | BO136: N/A | BP136: N/A | BQ136: N/A | BR136: N/A | BS136: N/A | BT136: N/A | BU136: N/A | BV136: N/A
B137: Improved latrines | C137: =C156*0.5 -> 7.811487925 | D137: =D156*0.5 -> 4.361322172 | E137: 1.932295321 | F137: 0.5534249285 | G137: 0.2670533783 | H137: 4.072265792 | I137: 1.79985036 | J137: 0.8314255086 | K137: 0.1814414811 | L137: 0.2521476327 | M137: 9.656519936 | N137: 7.773600267 | O137: 7.021366925 | P137: 6.370213414 | Q137: 3.338883348 | R137: 7.275663818 | S137: 0 | T137: 1.036703058 | U137: 1.097016057 | V137: 4.921584134 | BB137: Improved latrines | BC137: N/A | BD137: N/A | BE137: N/A | BF137: N/A | BG137: N/A | BH137: N/A | BI137: N/A | BJ137: N/A | BK137: N/A | BL137: N/A | BM137: N/A | BN137: N/A | BO137: N/A | BP137: N/A | BQ137: N/A | BR137: N/A | BS137: N/A | BT137: N/A | BU137: N/A | BV137: N/A
B138: Unimproved facilities | C138: =100-(C135+C136+C137+C139) -> 14.193616 | D138: =100-(D135+D136+D137+D139) -> 13.30805149 | E138: 6.578771842 | F138: 2.034611533 | G138: 0.5801331243 | H138: 8.057897259 | I138: 3.147699778 | J138: 1.990445272 | K138: 0.7409076605 | L138: 0.2521476327 | M138: 11.52960195 | N138: 14.08951905 | O138: 22.94649918 | P138: 25.16324847 | Q138: 18.63802786 | R138: 7.571098773 | S138: 0 | T138: 9.240662415 | U138: 8.601759519 | V138: 8.441412285 | BB138: Unimproved facilities | BC138: N/A | BD138: N/A | BE138: N/A | BF138: N/A | BG138: N/A | BH138: N/A | BI138: N/A | BJ138: N/A | BK138: N/A | BL138: N/A | BM138: N/A | BN138: N/A | BO138: N/A | BP138: N/A | BQ138: N/A | BR138: N/A | BS138: N/A | BT138: N/A | BU138: N/A | BV138: N/A
B139: Open defecation | C139: 38.49733382 | D139: 5.971944602 | E139: 1.264795752 | F139: 0.06465526445 | G139: 0 | H139: 6.560158726 | I139: 1.165849642 | J139: 0.2122224539 | K139: 0.06736100487 | L139: 0 | M139: 64.2278271 | N139: 40.21104527 | O139: 23.04706048 | P139: 9.852923643 | Q139: 1.893585231 | R139: 16.37767101 | S139: 0 | T139: 6.475399458 | U139: 13.2840639 | V139: 6.448283798 | BB139: Open defecation | BC139: N/A | BD139: N/A | BE139: N/A | BF139: N/A | BG139: N/A | BH139: N/A | BI139: N/A | BJ139: N/A | BK139: N/A | BL139: N/A | BM139: N/A | BN139: N/A | BO139: N/A | BP139: N/A | BQ139: N/A | BR139: N/A | BS139: N/A | BT139: N/A | BU139: N/A | BV139: N/A
A140: Septic tank emptying practices | B140: Not emptied/treated and disposed in situ | C140: N/A | D140: N/A | E140: N/A | F140: N/A | G140: N/A | H140: N/A | I140: N/A | J140: N/A | K140: N/A | L140: N/A | M140: N/A | N140: N/A | O140: N/A | P140: N/A | Q140: N/A | R140: N/A | S140: N/A | T140: N/A | U140: N/A | V140: N/A | BA140: Septic tank emptying practices | BB140: Not emptied/treated and disposed in situ | BC140: N/A | BD140: N/A | BE140: N/A | BF140: N/A | BG140: N/A | BH140: N/A | BI140: N/A | BJ140: N/A | BK140: N/A | BL140: N/A | BM140: N/A | BN140: N/A | BO140: N/A | BP140: N/A | BQ140: N/A | BR140: N/A | BS140: N/A | BT140: N/A | BU140: N/A | BV140: N/A
B141: Emptied and buried on site | C141: N/A | D141: N/A | E141: N/A | F141: N/A | G141: N/A | H141: N/A | I141: N/A | J141: N/A | K141: N/A | L141: N/A | M141: N/A | N141: N/A | O141: N/A | P141: N/A | Q141: N/A | R141: N/A | S141: N/A | T141: N/A | U141: N/A | V141: N/A | BB141: Emptied and buried on site | BC141: N/A | BD141: N/A | BE141: N/A | BF141: N/A | BG141: N/A | BH141: N/A | BI141: N/A | BJ141: N/A | BK141: N/A | BL141: N/A | BM141: N/A | BN141: N/A | BO141: N/A | BP141: N/A | BQ141: N/A | BR141: N/A | BS141: N/A | BT141: N/A | BU141: N/A | BV141: N/A
B142: Emptied and discharged locally | C142: N/A | D142: N/A | E142: N/A | F142: N/A | G142: N/A | H142: N/A | I142: N/A | J142: N/A | K142: N/A | L142: N/A | M142: N/A | N142: N/A | O142: N/A | P142: N/A | Q142: N/A | R142: N/A | S142: N/A | T142: N/A | U142: N/A | V142: N/A | BB142: Emptied and discharged locally | BC142: N/A | BD142: N/A | BE142: N/A | BF142: N/A | BG142: N/A | BH142: N/A | BI142: N/A | BJ142: N/A | BK142: N/A | BL142: N/A | BM142: N/A | BN142: N/A | BO142: N/A | BP142: N/A | BQ142: N/A | BR142: N/A | BS142: N/A | BT142: N/A | BU142: N/A | BV142: N/A
B143: Emptied and removed offsite | C143: N/A | D143: N/A | E143: N/A | F143: N/A | G143: N/A | H143: N/A | I143: N/A | J143: N/A | K143: N/A | L143: N/A | M143: N/A | N143: N/A | O143: N/A | P143: N/A | Q143: N/A | R143: N/A | S143: N/A | T143: N/A | U143: N/A | V143: N/A | BB143: Emptied and removed offsite | BC143: N/A | BD143: N/A | BE143: N/A | BF143: N/A | BG143: N/A | BH143: N/A | BI143: N/A | BJ143: N/A | BK143: N/A | BL143: N/A | BM143: N/A | BN143: N/A | BO143: N/A | BP143: N/A | BQ143: N/A | BR143: N/A | BS143: N/A | BT143: N/A | BU143: N/A | BV143: N/A
A144: Latrine emptying practices | B144: Not emptied/treated and disposed in situ | C144: N/A | D144: N/A | E144: N/A | F144: N/A | G144: N/A | H144: N/A | I144: N/A | J144: N/A | K144: N/A | L144: N/A | M144: N/A | N144: N/A | O144: N/A | P144: N/A | Q144: N/A | R144: N/A | S144: N/A | T144: N/A | U144: N/A | V144: N/A | BA144: Latrine emptying practices | BB144: Not emptied/treated and disposed in situ | BC144: N/A | BD144: N/A | BE144: N/A | BF144: N/A | BG144: N/A | BH144: N/A | BI144: N/A | BJ144: N/A | BK144: N/A | BL144: N/A | BM144: N/A | BN144: N/A | BO144: N/A | BP144: N/A | BQ144: N/A | BR144: N/A | BS144: N/A | BT144: N/A | BU144: N/A | BV144: N/A
B145: Emptied and buried on site | C145: N/A | D145: N/A | E145: N/A | F145: N/A | G145: N/A | H145: N/A | I145: N/A | J145: N/A | K145: N/A | L145: N/A | M145: N/A | N145: N/A | O145: N/A | P145: N/A | Q145: N/A | R145: N/A | S145: N/A | T145: N/A | U145: N/A | V145: N/A | BB145: Emptied and buried on site | BC145: N/A | BD145: N/A | BE145: N/A | BF145: N/A | BG145: N/A | BH145: N/A | BI145: N/A | BJ145: N/A | BK145: N/A | BL145: N/A | BM145: N/A | BN145: N/A | BO145: N/A | BP145: N/A | BQ145: N/A | BR145: N/A | BS145: N/A | BT145: N/A | BU145: N/A | BV145: N/A
B146: Emptied and discharged locally | C146: N/A | D146: N/A | E146: N/A | F146: N/A | G146: N/A | H146: N/A | I146: N/A | J146: N/A | K146: N/A | L146: N/A | M146: N/A | N146: N/A | O146: N/A | P146: N/A | Q146: N/A | R146: N/A | S146: N/A | T146: N/A | U146: N/A | V146: N/A | BB146: Emptied and discharged locally | BC146: N/A | BD146: N/A | BE146: N/A | BF146: N/A | BG146: N/A | BH146: N/A | BI146: N/A | BJ146: N/A | BK146: N/A | BL146: N/A | BM146: N/A | BN146: N/A | BO146: N/A | BP146: N/A | BQ146: N/A | BR146: N/A | BS146: N/A | BT146: N/A | BU146: N/A | BV146: N/A
B147: Emptied and removed offsite | C147: N/A | D147: N/A | E147: N/A | F147: N/A | G147: N/A | H147: N/A | I147: N/A | J147: N/A | K147: N/A | L147: N/A | M147: N/A | N147: N/A | O147: N/A | P147: N/A | Q147: N/A | R147: N/A | S147: N/A | T147: N/A | U147: N/A | V147: N/A | BB147: Emptied and removed offsite | BC147: N/A | BD147: N/A | BE147: N/A | BF147: N/A | BG147: N/A | BH147: N/A | BI147: N/A | BJ147: N/A | BK147: N/A | BL147: N/A | BM147: N/A | BN147: N/A | BO147: N/A | BP147: N/A | BQ147: N/A | BR147: N/A | BS147: N/A | BT147: N/A | BU147: N/A | BV147: N/A
A148: Shared among improved sanitation facilities | B148: Yes | C148: N/A | D148: N/A | E148: N/A | F148: N/A | G148: N/A | H148: N/A | I148: N/A | J148: N/A | K148: N/A | L148: N/A | M148: N/A | N148: N/A | O148: N/A | P148: N/A | Q148: N/A | R148: N/A | S148: N/A | T148: N/A | U148: N/A | V148: N/A | BA148: Shared among improved sanitation facilities | BB148: Yes | BC148: N/A | BD148: N/A | BE148: N/A | BF148: N/A | BG148: N/A | BH148: N/A | BI148: N/A | BJ148: N/A | BK148: N/A | BL148: N/A | BM148: N/A | BN148: N/A | BO148: N/A | BP148: N/A | BQ148: N/A | BR148: N/A | BS148: N/A | BT148: N/A | BU148: N/A | BV148: N/A
B149: No | C149: N/A | D149: N/A | E149: N/A | F149: N/A | G149: N/A | H149: N/A | I149: N/A | J149: N/A | K149: N/A | L149: N/A | M149: N/A | N149: N/A | O149: N/A | P149: N/A | Q149: N/A | R149: N/A | S149: N/A | T149: N/A | U149: N/A | V149: N/A | BB149: No | BC149: N/A | BD149: N/A | BE149: N/A | BF149: N/A | BG149: N/A | BH149: N/A | BI149: N/A | BJ149: N/A | BK149: N/A | BL149: N/A | BM149: N/A | BN149: N/A | BO149: N/A | BP149: N/A | BQ149: N/A | BR149: N/A | BS149: N/A | BT149: N/A | BU149: N/A | BV149: N/A
B150: DK/missing | C150: N/A | D150: N/A | E150: N/A | F150: N/A | G150: N/A | H150: N/A | I150: N/A | J150: N/A | K150: N/A | L150: N/A | M150: N/A | N150: N/A | O150: N/A | P150: N/A | Q150: N/A | R150: N/A | S150: N/A | T150: N/A | U150: N/A | V150: N/A | BB150: DK/missing | BC150: N/A | BD150: N/A | BE150: N/A | BF150: N/A | BG150: N/A | BH150: N/A | BI150: N/A | BJ150: N/A | BK150: N/A | BL150: N/A | BM150: N/A | BN150: N/A | BO150: N/A | BP150: N/A | BQ150: N/A | BR150: N/A | BS150: N/A | BT150: N/A | BU150: N/A | BV150: N/A
A151: Shared among all sanitation facilities | B151: Yes | C151: 17.85253049 | D151: 25.71566342 | E151: 17.48538227 | F151: 10.60080919 | G151: 5.815553882 | H151: 35.66295544 | I151: 23.95389792 | J151: 14.87880472 | K151: 7.930055943 | L151: 4.802805731 | M151: 5.040331374 | N151: 14.2443357 | O151: 7.671285826 | P151: 9.07263152 | Q151: 4.727285912 | R151: 12.68837095 | S151: 22.30793157 | T151: 11.0362031 | U151: 13.19417824 | V151: 20.39679451 | BA151: Shared among all sanitation facilities | BB151: Yes | BC151: N/A | BD151: N/A | BE151: N/A | BF151: N/A | BG151: N/A | BH151: N/A | BI151: N/A | BJ151: N/A | BK151: N/A | BL151: N/A | BM151: N/A | BN151: N/A | BO151: N/A | BP151: N/A | BQ151: N/A | BR151: N/A | BS151: N/A | BT151: N/A | BU151: N/A | BV151: N/A
B152: No | C152: 82.0526265 | D152: 74.18596428 | E152: 82.50966998 | F152: 89.2571778 | G152: 93.97753647 | H152: 64.11104754 | I152: 76.04610208 | J152: 84.97988546 | K152: 91.93517073 | L152: 95.03935494 | M152: 94.95966863 | N152: 85.7556643 | O152: 92.32871417 | P152: 90.92736848 | Q152: 95.10686007 | R152: 87.10041337 | S152: 77.69206843 | T152: 88.79393657 | U152: 86.69822357 | V152: 79.60320549 | BB152: No | BC152: N/A | BD152: N/A | BE152: N/A | BF152: N/A | BG152: N/A | BH152: N/A | BI152: N/A | BJ152: N/A | BK152: N/A | BL152: N/A | BM152: N/A | BN152: N/A | BO152: N/A | BP152: N/A | BQ152: N/A | BR152: N/A | BS152: N/A | BT152: N/A | BU152: N/A | BV152: N/A
A153: Type of toilet facility | B153: Toilet to sewer | C153: 14.49421351 | D153: 56.60904713 | E153: 76.64725255 | F153: 91.72859765 | G153: 97.25682033 | H153: 69.53330123 | I153: 86.56822252 | J153: 92.82362493 | K153: 98.07279144 | L153: 98.27687209 | M153: 1.362069229 | N153: 4.5666963 | O153: 9.006195306 | P153: 19.02099125 | Q153: 34.37865509 | R153: 48.22834963 | S153: 100 | T153: 73.93415356 | U153: 57.57721388 | V153: 67.49108045 | BA153: Type of toilet facility | BB153: Toilet to sewer | BC153: 1359.36741 | BD153: 5279.757946 | BE153: 7208.125457 | BF153: 8585.109005 | BG153: 9137.956057 | BH153: 4641.016628 | BI153: 5845.086131 | BJ153: 6151.474102 | BK153: 6805.50376 | BL153: 6285.327035 | BM153: 36.85295 | BN153: 123.685378 | BO153: 240.275938 | BP153: 512.002881 | BQ153: 929.091072 | BR153: 5104.101089 | BS153: 6418.522743 | BT153: 9289.42622 | BU153: 5323.629129 | BV153: 5434.636694
B154: Toilet to pit | C154: 25.03859964 | D154: 19.83285846 | E154: 13.57688453 | F154: 5.618710623 | G154: 1.895993164 | H154: 11.83166826 | I154: 7.396614302 | J154: 4.142281834 | K154: 0.9374984145 | L154: 1.218832646 | M154: 13.22398178 | N154: 33.4091419 | O154: 38.06340244 | P154: 39.59262323 | Q154: 41.75084847 | R154: 20.57840624 | S154: 0 | T154: 9.336740779 | U154: 19.477753 | V154: 12.75367028 | BB154: Toilet to pit | BC154: 2348.292739 | BD154: 1849.751892 | BE154: 1276.808806 | BF154: 525.869188 | BG154: 178.141771 | BH154: 789.707495 | BI154: 499.419376 | BJ154: 274.511359 | BK154: 65.05524 | BL154: 77.95081 | BM154: 357.795866 | BN154: 904.860335 | BO154: 1015.492049 | BP154: 1065.74557 | BQ154: 1128.326296 | BR154: 2177.853203 | BS154: 0 | BT154: 1173.110943 | BU154: 1800.926552 | BV154: 1026.973698
B155: Toilet to creek, open space | C155: 6.312518958 | D155: 8.856996605 | E155: 4.548301776 | F155: 1.481186605 | G155: 0.313079746 | H155: 3.925879241 | I155: 1.268641302 | J155: 1.019702528 | K155: 0.5594661794 | L155: 0 | M155: 1.873082018 | N155: 6.21290031 | O155: 15.79914716 | P155: 18.79303505 | Q155: 15.29914451 | R155: 0.2568182645 | S155: 0 | T155: 8.17845975 | U155: 7.360561518 | V155: 3.459291544 | BB155: Toilet to creek, open space | BC155: 592.031609 | BD155: 826.065807 | BE155: 427.735225 | BF155: 138.627961 | BG155: 29.416024 | BH155: 262.033738 | BI155: 85.658657 | BJ155: 67.576263 | BK155: 38.822686 | BL155: 0 | BM155: 50.679214 | BN155: 168.271519 | BO155: 421.504839 | BP155: 505.866806 | BQ155: 413.462904 | BR155: 27.179582 | BS155: 0 | BT155: 1027.579201 | BU155: 680.562623 | BV155: 278.55522
B156: Traditional pit toilet | C156: 15.62297585 | D156: 8.722644343 | E156: 3.864590643 | F156: 1.106849857 | G156: 0.5341067567 | H156: 8.144531585 | I156: 3.599700719 | J156: 1.662851017 | K156: 0.3628829622 | L156: 0.5042952654 | M156: 19.31303987 | N156: 15.54720053 | O156: 14.04273385 | P156: 12.74042683 | Q156: 6.677766697 | R156: 14.55132764 | S156: 0 | T156: 2.073406116 | U156: 2.194032114 | V156: 9.843168268 | BB156: Traditional pit toilet | BC156: 1465.230535 | BD156: 813.53517 | BE156: 363.437087 | BF156: 103.592848 | BG156: 50.183052 | BH156: 543.608686 | BI156: 243.051782 | BJ156: 110.198077 | BK156: 25.18131 | BL156: 32.252356 | BM156: 522.54502 | BN156: 421.0837 | BO156: 374.645556 | BP156: 342.944022 | BQ156: 180.468183 | BR156: 1539.995621 | BS156: 0 | BT156: 260.512256 | BU156: 202.861731 | BV156: 792.609084
B157: No facility | C157: 38.53169204 | D157: 5.978453465 | E157: 1.264795752 | F157: 0.06465526445 | G157: 0 | H157: 6.564619689 | I157: 1.166821155 | J157: 0.2122224539 | K157: 0.06736100487 | L157: 0 | M157: 64.2278271 | N157: 40.26406096 | O157: 23.08852125 | P157: 9.852923643 | Q157: 1.893585231 | R157: 16.38509823 | S157: 0 | T157: 6.477239798 | U157: 13.29058482 | V157: 6.452789462 | BB157: No facility | BC157: 3613.768099 | BD157: 557.592625 | BE157: 118.944987 | BF157: 6.051248 | BG157: 0 | BH157: 438.157093 | BI157: 78.783761 | BJ157: 14.064102 | BK157: 4.67434 | BL157: 0 | BM157: 1737.786046 | BN157: 1090.520427 | BO157: 615.97777 | BP157: 265.218843 | BQ157: 51.174577 | BR157: 1734.067169 | BS157: 0 | BT157: 813.830122 | BU157: 1228.85669 | BV157: 519.602978
B158: OTHER | C158: 0 | D158: 0 | E158: 0.09817474472 | F158: 0 | G158: 0 | H158: 0 | I158: 0 | J158: 0.1393172361 | K158: 0 | L158: 0 | M158: 0 | N158: 0 | O158: 0 | P158: 0 | Q158: 0 | R158: 0 | S158: 0 | T158: 0 | U158: 0.09985466952 | V158: 0 | BB158: OTHER | BC158: 0 | BD158: 0 | BE158: 9.232632 | BF158: 0 | BG158: 0 | BH158: 0 | BI158: 0 | BJ158: 9.232632 | BK158: 0 | BL158: 0 | BM158: 0 | BN158: 0 | BO158: 0 | BP158: 0 | BQ158: 0 | BR158: 0 | BS158: 0 | BT158: 0 | BU158: 9.232632 | BV158: 0
BB159: Total | BC159: 9378.690392 | BD159: 9326.70344 | BE159: 9404.284194 | BF159: 9359.25025 | BG159: 9395.696904 | BH159: 6674.52364 | BI159: 6751.999707 | BJ159: 6627.056535 | BK159: 6939.237336 | BL159: 6395.530201 | BM159: 2705.659096 | BN159: 2708.421359 | BO159: 2667.896152 | BP159: 2691.778122 | BQ159: 2702.523032 | BR159: 10583.19666 | BS159: 6418.522743 | BT159: 12564.45874 | BU159: 9246.069357 | BV159: 8052.377674
A208: =A1026 -> Colombia
A209: =A1034 -> 2000
A210: Access to hygiene facilities
A211: by wealth quintile and sub-national region
A212: Notes:
A213: WHO/UNICEF JMP customised wealth index excludes water,
A214: sanitation and hygiene assets.
A215: Survey used for analysis: | B215: =A1025 -> DHS00
A220: Access to handwashing | C220: NATIONAL wealth index quintile | H220: URBAN wealth index quintile | M220: RURAL wealth index quintile | R220: SUB-REGIONS: | BA220: Raw numbers of respondents: | BB220: Access to handwashing | BC220: NATIONAL wealth index quintile | BH220: URBAN wealth index quintile | BM220: RURAL wealth index quintile | BR220: SUB-REGIONS:
A221: Weighted percentage (used in graphs) | C221: Poorest | D221: Poor | E221: Middle | F221: Rich | G221: Richest | H221: Poorest | I221: Poor | J221: Middle | K221: Rich | L221: Richest | M221: Poorest | N221: Poor | O221: Middle | P221: Rich | Q221: Richest | R221: Atlantica | S221: Bogota | T221: Central | U221: Oriental | V221: Pacifica | BA221: Hygiene data, raw numbers (weighted) | BC221: Poorest | BD221: Poor | BE221: Middle | BF221: Rich | BG221: Richest | BH221: Poorest | BI221: Poor | BJ221: Middle | BK221: Rich | BL221: Richest | BM221: Poorest | BN221: Poor | BO221: Middle | BP221: Rich | BQ221: Richest | BR221: Atlantica | BS221: Bogota | BT221: Central | BU221: Oriental | BV221: Pacifica
A222: Hygiene ladder | B222: Basic | C222: N/A | D222: N/A | E222: N/A | F222: N/A | G222: N/A | H222: N/A | I222: N/A | J222: N/A | K222: N/A | L222: N/A | M222: N/A | N222: N/A | O222: N/A | P222: N/A | Q222: N/A | R222: N/A | S222: N/A | T222: N/A | U222: N/A | V222: N/A | BA222: Hygiene ladder | BB222: Basic | BC222: N/A | BD222: N/A | BE222: N/A | BF222: N/A | BG222: N/A | BH222: N/A | BI222: N/A | BJ222: N/A | BK222: N/A | BL222: N/A | BM222: N/A | BN222: N/A | BO222: N/A | BP222: N/A | BQ222: N/A | BR222: N/A | BS222: N/A | BT222: N/A | BU222: N/A | BV222: N/A
B223: Limited | C223: N/A | D223: N/A | E223: N/A | F223: N/A | G223: N/A | H223: N/A | I223: N/A | J223: N/A | K223: N/A | L223: N/A | M223: N/A | N223: N/A | O223: N/A | P223: N/A | Q223: N/A | R223: N/A | S223: N/A | T223: N/A | U223: N/A | V223: N/A | BB223: Limited | BC223: N/A | BD223: N/A | BE223: N/A | BF223: N/A | BG223: N/A | BH223: N/A | BI223: N/A | BJ223: N/A | BK223: N/A | BL223: N/A | BM223: N/A | BN223: N/A | BO223: N/A | BP223: N/A | BQ223: N/A | BR223: N/A | BS223: N/A | BT223: N/A | BU223: N/A | BV223: N/A
B224: No facility | C224: N/A | D224: N/A | E224: N/A | F224: N/A | G224: N/A | H224: N/A | I224: N/A | J224: N/A | K224: N/A | L224: N/A | M224: N/A | N224: N/A | O224: N/A | P224: N/A | Q224: N/A | R224: N/A | S224: N/A | T224: N/A | U224: N/A | V224: N/A | BB224: No facility | BC224: N/A | BD224: N/A | BE224: N/A | BF224: N/A | BG224: N/A | BH224: N/A | BI224: N/A | BJ224: N/A | BK224: N/A | BL224: N/A | BM224: N/A | BN224: N/A | BO224: N/A | BP224: N/A | BQ224: N/A | BR224: N/A | BS224: N/A | BT224: N/A | BU224: N/A | BV224: N/A
BA225: Observed handwashing place | BB225: Fixed | BC225: N/A | BD225: N/A | BE225: N/A | BF225: N/A | BG225: N/A | BH225: N/A | BI225: N/A | BJ225: N/A | BK225: N/A | BL225: N/A | BM225: N/A | BN225: N/A | BO225: N/A | BP225: N/A | BQ225: N/A | BR225: N/A | BS225: N/A | BT225: N/A | BU225: N/A | BV225: N/A
BB226: Mobile | BC226: N/A | BD226: N/A | BE226: N/A | BF226: N/A | BG226: N/A | BH226: N/A | BI226: N/A | BJ226: N/A | BK226: N/A | BL226: N/A | BM226: N/A | BN226: N/A | BO226: N/A | BP226: N/A | BQ226: N/A | BR226: N/A | BS226: N/A | BT226: N/A | BU226: N/A | BV226: N/A
BA227: Water / Soap | BB227: Water and soap | BC227: N/A | BD227: N/A | BE227: N/A | BF227: N/A | BG227: N/A | BH227: N/A | BI227: N/A | BJ227: N/A | BK227: N/A | BL227: N/A | BM227: N/A | BN227: N/A | BO227: N/A | BP227: N/A | BQ227: N/A | BR227: N/A | BS227: N/A | BT227: N/A | BU227: N/A | BV227: N/A
BB228: Water only | BC228: N/A | BD228: N/A | BE228: N/A | BF228: N/A | BG228: N/A | BH228: N/A | BI228: N/A | BJ228: N/A | BK228: N/A | BL228: N/A | BM228: N/A | BN228: N/A | BO228: N/A | BP228: N/A | BQ228: N/A | BR228: N/A | BS228: N/A | BT228: N/A | BU228: N/A | BV228: N/A
BB229: Soap only | BC229: N/A | BD229: N/A | BE229: N/A | BF229: N/A | BG229: N/A | BH229: N/A | BI229: N/A | BJ229: N/A | BK229: N/A | BL229: N/A | BM229: N/A | BN229: N/A | BO229: N/A | BP229: N/A | BQ229: N/A | BR229: N/A | BS229: N/A | BT229: N/A | BU229: N/A | BV229: N/A
BB230: Neither | BC230: N/A | BD230: N/A | BE230: N/A | BF230: N/A | BG230: N/A | BH230: N/A | BI230: N/A | BJ230: N/A | BK230: N/A | BL230: N/A | BM230: N/A | BN230: N/A | BO230: N/A | BP230: N/A | BQ230: N/A | BR230: N/A | BS230: N/A | BT230: N/A | BU230: N/A | BV230: N/A
BA259: Raw numbers of respondents: | BB259: Menstrual health and hygiene | BC259: NATIONAL wealth index quintile | BH259: URBAN wealth index quintile | BM259: RURAL wealth index quintile | BR259: SUB-REGIONS:
BA260: MHH data, raw numbers (weighted) | BC260: Poorest | BD260: Poor | BE260: Middle | BF260: Rich | BG260: Richest | BH260: Poorest | BI260: Poor | BJ260: Middle | BK260: Rich | BL260: Richest | BM260: Poorest | BN260: Poor | BO260: Middle | BP260: Rich | BQ260: Richest | BR260: Atlantica | BS260: Bogota | BT260: Central | BU260: Oriental | BV260: Pacifica
BA261: Private place to wash and change | BB261: Yes | BC261: N/A | BD261: N/A | BE261: N/A | BF261: N/A | BG261: N/A | BH261: N/A | BI261: N/A | BJ261: N/A | BK261: N/A | BL261: N/A | BM261: N/A | BN261: N/A | BO261: N/A | BP261: N/A | BQ261: N/A | BR261: N/A | BS261: N/A | BT261: N/A | BU261: N/A | BV261: N/A
BB262: No | BC262: N/A | BD262: N/A | BE262: N/A | BF262: N/A | BG262: N/A | BH262: N/A | BI262: N/A | BJ262: N/A | BK262: N/A | BL262: N/A | BM262: N/A | BN262: N/A | BO262: N/A | BP262: N/A | BQ262: N/A | BR262: N/A | BS262: N/A | BT262: N/A | BU262: N/A | BV262: N/A
BB263: DK/not sure/missing | BC263: N/A | BD263: N/A | BE263: N/A | BF263: N/A | BG263: N/A | BH263: N/A | BI263: N/A | BJ263: N/A | BK263: N/A | BL263: N/A | BM263: N/A | BN263: N/A | BO263: N/A | BP263: N/A | BQ263: N/A | BR263: N/A | BS263: N/A | BT263: N/A | BU263: N/A | BV263: N/A
BA264: Use of menstrual materials | BB264: Materials reusable | BC264: N/A | BD264: N/A | BE264: N/A | BF264: N/A | BG264: N/A | BH264: N/A | BI264: N/A | BJ264: N/A | BK264: N/A | BL264: N/A | BM264: N/A | BN264: N/A | BO264: N/A | BP264: N/A | BQ264: N/A | BR264: N/A | BS264: N/A | BT264: N/A | BU264: N/A | BV264: N/A
BB265: Materials not reusable | BC265: N/A | BD265: N/A | BE265: N/A | BF265: N/A | BG265: N/A | BH265: N/A | BI265: N/A | BJ265: N/A | BK265: N/A | BL265: N/A | BM265: N/A | BN265: N/A | BO265: N/A | BP265: N/A | BQ265: N/A | BR265: N/A | BS265: N/A | BT265: N/A | BU265: N/A | BV265: N/A
BB266: No materials used | BC266: N/A | BD266: N/A | BE266: N/A | BF266: N/A | BG266: N/A | BH266: N/A | BI266: N/A | BJ266: N/A | BK266: N/A | BL266: N/A | BM266: N/A | BN266: N/A | BO266: N/A | BP266: N/A | BQ266: N/A | BR266: N/A | BS266: N/A | BT266: N/A | BU266: N/A | BV266: N/A
BB267: DK/not sure/missing | BC267: N/A | BD267: N/A | BE267: N/A | BF267: N/A | BG267: N/A | BH267: N/A | BI267: N/A | BJ267: N/A | BK267: N/A | BL267: N/A | BM267: N/A | BN267: N/A | BO267: N/A | BP267: N/A | BQ267: N/A | BR267: N/A | BS267: N/A | BT267: N/A | BU267: N/A | BV267: N/A
BA268: Use of menstrual materials with private place to wash and change | BB268: Materials reusable | BC268: N/A | BD268: N/A | BE268: N/A | BF268: N/A | BG268: N/A | BH268: N/A | BI268: N/A | BJ268: N/A | BK268: N/A | BL268: N/A | BM268: N/A | BN268: N/A | BO268: N/A | BP268: N/A | BQ268: N/A | BR268: N/A | BS268: N/A | BT268: N/A | BU268: N/A | BV268: N/A
BB269: Materials not reusable | BC269: N/A | BD269: N/A | BE269: N/A | BF269: N/A | BG269: N/A | BH269: N/A | BI269: N/A | BJ269: N/A | BK269: N/A | BL269: N/A | BM269: N/A | BN269: N/A | BO269: N/A | BP269: N/A | BQ269: N/A | BR269: N/A | BS269: N/A | BT269: N/A | BU269: N/A | BV269: N/A
BB270: No materials used | BC270: N/A | BD270: N/A | BE270: N/A | BF270: N/A | BG270: N/A | BH270: N/A | BI270: N/A | BJ270: N/A | BK270: N/A | BL270: N/A | BM270: N/A | BN270: N/A | BO270: N/A | BP270: N/A | BQ270: N/A | BR270: N/A | BS270: N/A | BT270: N/A | BU270: N/A | BV270: N/A
BA271: Awareness of menstruation before menarche | BB271: Yes | BC271: N/A | BD271: N/A | BE271: N/A | BF271: N/A | BG271: N/A | BH271: N/A | BI271: N/A | BJ271: N/A | BK271: N/A | BL271: N/A | BM271: N/A | BN271: N/A | BO271: N/A | BP271: N/A | BQ271: N/A | BR271: N/A | BS271: N/A | BT271: N/A | BU271: N/A | BV271: N/A
BB272: No | BC272: N/A | BD272: N/A | BE272: N/A | BF272: N/A | BG272: N/A | BH272: N/A | BI272: N/A | BJ272: N/A | BK272: N/A | BL272: N/A | BM272: N/A | BN272: N/A | BO272: N/A | BP272: N/A | BQ272: N/A | BR272: N/A | BS272: N/A | BT272: N/A | BU272: N/A | BV272: N/A
BB273: DK/not sure/missing | BC273: N/A | BD273: N/A | BE273: N/A | BF273: N/A | BG273: N/A | BH273: N/A | BI273: N/A | BJ273: N/A | BK273: N/A | BL273: N/A | BM273: N/A | BN273: N/A | BO273: N/A | BP273: N/A | BQ273: N/A | BR273: N/A | BS273: N/A | BT273: N/A | BU273: N/A | BV273: N/A
BA274: Participation in (all) activities during menstruation | BB274: Yes | BC274: N/A | BD274: N/A | BE274: N/A | BF274: N/A | BG274: N/A | BH274: N/A | BI274: N/A | BJ274: N/A | BK274: N/A | BL274: N/A | BM274: N/A | BN274: N/A | BO274: N/A | BP274: N/A | BQ274: N/A | BR274: N/A | BS274: N/A | BT274: N/A | BU274: N/A | BV274: N/A
BB275: No | BC275: N/A | BD275: N/A | BE275: N/A | BF275: N/A | BG275: N/A | BH275: N/A | BI275: N/A | BJ275: N/A | BK275: N/A | BL275: N/A | BM275: N/A | BN275: N/A | BO275: N/A | BP275: N/A | BQ275: N/A | BR275: N/A | BS275: N/A | BT275: N/A | BU275: N/A | BV275: N/A
BB276: DK/not sure/missing/no such activity | BC276: N/A | BD276: N/A | BE276: N/A | BF276: N/A | BG276: N/A | BH276: N/A | BI276: N/A | BJ276: N/A | BK276: N/A | BL276: N/A | BM276: N/A | BN276: N/A | BO276: N/A | BP276: N/A | BQ276: N/A | BR276: N/A | BS276: N/A | BT276: N/A | BU276: N/A | BV276: N/A
BA277: Participation in specific activities during menstruation | BB277: Did not go to school (amongst those usually attending school) | BC277: N/A | BD277: N/A | BE277: N/A | BF277: N/A | BG277: N/A | BH277: N/A | BI277: N/A | BJ277: N/A | BK277: N/A | BL277: N/A | BM277: N/A | BN277: N/A | BO277: N/A | BP277: N/A | BQ277: N/A | BR277: N/A | BS277: N/A | BT277: N/A | BU277: N/A | BV277: N/A
BB278: Did not go to work (amongst those who usually work) | BC278: N/A | BD278: N/A | BE278: N/A | BF278: N/A | BG278: N/A | BH278: N/A | BI278: N/A | BJ278: N/A | BK278: N/A | BL278: N/A | BM278: N/A | BN278: N/A | BO278: N/A | BP278: N/A | BQ278: N/A | BR278: N/A | BS278: N/A | BT278: N/A | BU278: N/A | BV278: N/A
BB279: Did not participate in social activities | BC279: N/A | BD279: N/A | BE279: N/A | BF279: N/A | BG279: N/A | BH279: N/A | BI279: N/A | BJ279: N/A | BK279: N/A | BL279: N/A | BM279: N/A | BN279: N/A | BO279: N/A | BP279: N/A | BQ279: N/A | BR279: N/A | BS279: N/A | BT279: N/A | BU279: N/A | BV279: N/A
BB280: Did not cook food | BC280: N/A | BD280: N/A | BE280: N/A | BF280: N/A | BG280: N/A | BH280: N/A | BI280: N/A | BJ280: N/A | BK280: N/A | BL280: N/A | BM280: N/A | BN280: N/A | BO280: N/A | BP280: N/A | BQ280: N/A | BR280: N/A | BS280: N/A | BT280: N/A | BU280: N/A | BV280: N/A
BB281: Did not eat with others | BC281: N/A | BD281: N/A | BE281: N/A | BF281: N/A | BG281: N/A | BH281: N/A | BI281: N/A | BJ281: N/A | BK281: N/A | BL281: N/A | BM281: N/A | BN281: N/A | BO281: N/A | BP281: N/A | BQ281: N/A | BR281: N/A | BS281: N/A | BT281: N/A | BU281: N/A | BV281: N/A
BB282: Did not bathe in regular place | BC282: N/A | BD282: N/A | BE282: N/A | BF282: N/A | BG282: N/A | BH282: N/A | BI282: N/A | BJ282: N/A | BK282: N/A | BL282: N/A | BM282: N/A | BN282: N/A | BO282: N/A | BP282: N/A | BQ282: N/A | BR282: N/A | BS282: N/A | BT282: N/A | BU282: N/A | BV282: N/A
BB283: Did not participate in other activities | BC283: N/A | BD283: N/A | BE283: N/A | BF283: N/A | BG283: N/A | BH283: N/A | BI283: N/A | BJ283: N/A | BK283: N/A | BL283: N/A | BM283: N/A | BN283: N/A | BO283: N/A | BP283: N/A | BQ283: N/A | BR283: N/A | BS283: N/A | BT283: N/A | BU283: N/A | BV283: N/A
BB284: DK/not sure/missing/no such activity | BC284: N/A | BD284: N/A | BE284: N/A | BF284: N/A | BG284: N/A | BH284: N/A | BI284: N/A | BJ284: N/A | BK284: N/A | BL284: N/A | BM284: N/A | BN284: N/A | BO284: N/A | BP284: N/A | BQ284: N/A | BR284: N/A | BS284: N/A | BT284: N/A | BU284: N/A | BV284: N/A
BA339: Raw numbers of respondents: | BB339: Basic water, sanitation and hygiene | BC339: NATIONAL wealth index quintile | BH339: URBAN wealth index quintile | BM339: RURAL wealth index quintile | BR339: SUB-REGIONS:
BA340: WatSan data, raw numbers (weighted) | BC340: Poorest | BD340: Poor | BE340: Middle | BF340: Rich | BG340: Richest | BH340: Poorest | BI340: Poor | BJ340: Middle | BK340: Rich | BL340: Richest | BM340: Poorest | BN340: Poor | BO340: Middle | BP340: Rich | BQ340: Richest | BR340: Atlantica | BS340: Bogota | BT340: Central | BU340: Oriental | BV340: Pacifica
BA341: Use of Basic Water Sanitation and Hygiene | BB341: Yes | BC341: N/A | BD341: N/A | BE341: N/A | BF341: N/A | BG341: N/A | BH341: N/A | BI341: N/A | BJ341: N/A | BK341: N/A | BL341: N/A | BM341: N/A | BN341: N/A | BO341: N/A | BP341: N/A | BQ341: N/A | BR341: N/A | BS341: N/A | BT341: N/A | BU341: N/A | BV341: N/A
BB342: No | BC342: N/A | BD342: N/A | BE342: N/A | BF342: N/A | BG342: N/A | BH342: N/A | BI342: N/A | BJ342: N/A | BK342: N/A | BL342: N/A | BM342: N/A | BN342: N/A | BO342: N/A | BP342: N/A | BQ342: N/A | BR342: N/A | BS342: N/A | BT342: N/A | BU342: N/A | BV342: N/A
BA343: Use of Basic Water and Sanitation | BB343: Yes | BC343: N/A | BD343: N/A | BE343: N/A | BF343: N/A | BG343: N/A | BH343: N/A | BI343: N/A | BJ343: N/A | BK343: N/A | BL343: N/A | BM343: N/A | BN343: N/A | BO343: N/A | BP343: N/A | BQ343: N/A | BR343: N/A | BS343: N/A | BT343: N/A | BU343: N/A | BV343: N/A
BB344: No | BC344: N/A | BD344: N/A | BE344: N/A | BF344: N/A | BG344: N/A | BH344: N/A | BI344: N/A | BJ344: N/A | BK344: N/A | BL344: N/A | BM344: N/A | BN344: N/A | BO344: N/A | BP344: N/A | BQ344: N/A | BR344: N/A | BS344: N/A | BT344: N/A | BU344: N/A | BV344: N/A
BA345: Use of Basic Water and Hygiene | BB345: Yes | BC345: N/A | BD345: N/A | BE345: N/A | BF345: N/A | BG345: N/A | BH345: N/A | BI345: N/A | BJ345: N/A | BK345: N/A | BL345: N/A | BM345: N/A | BN345: N/A | BO345: N/A | BP345: N/A | BQ345: N/A | BR345: N/A | BS345: N/A | BT345: N/A | BU345: N/A | BV345: N/A
BB346: No | BC346: N/A | BD346: N/A | BE346: N/A | BF346: N/A | BG346: N/A | BH346: N/A | BI346: N/A | BJ346: N/A | BK346: N/A | BL346: N/A | BM346: N/A | BN346: N/A | BO346: N/A | BP346: N/A | BQ346: N/A | BR346: N/A | BS346: N/A | BT346: N/A | BU346: N/A | BV346: N/A
BA347: Use of Basic Sanitation and Hygiene | BB347: Yes | BC347: N/A | BD347: N/A | BE347: N/A | BF347: N/A | BG347: N/A | BH347: N/A | BI347: N/A | BJ347: N/A | BK347: N/A | BL347: N/A | BM347: N/A | BN347: N/A | BO347: N/A | BP347: N/A | BQ347: N/A | BR347: N/A | BS347: N/A | BT347: N/A | BU347: N/A | BV347: N/A
BB348: No | BC348: N/A | BD348: N/A | BE348: N/A | BF348: N/A | BG348: N/A | BH348: N/A | BI348: N/A | BJ348: N/A | BK348: N/A | BL348: N/A | BM348: N/A | BN348: N/A | BO348: N/A | BP348: N/A | BQ348: N/A | BR348: N/A | BS348: N/A | BT348: N/A | BU348: N/A | BV348: N/A
BA349: Use of Basic Water | BB349: Yes | BC349: N/A | BD349: N/A | BE349: N/A | BF349: N/A | BG349: N/A | BH349: N/A | BI349: N/A | BJ349: N/A | BK349: N/A | BL349: N/A | BM349: N/A | BN349: N/A | BO349: N/A | BP349: N/A | BQ349: N/A | BR349: N/A | BS349: N/A | BT349: N/A | BU349: N/A | BV349: N/A
BB350: No | BC350: N/A | BD350: N/A | BE350: N/A | BF350: N/A | BG350: N/A | BH350: N/A | BI350: N/A | BJ350: N/A | BK350: N/A | BL350: N/A | BM350: N/A | BN350: N/A | BO350: N/A | BP350: N/A | BQ350: N/A | BR350: N/A | BS350: N/A | BT350: N/A | BU350: N/A | BV350: N/A
BA351: Use of Basic Sanitation | BB351: Yes | BC351: N/A | BD351: N/A | BE351: N/A | BF351: N/A | BG351: N/A | BH351: N/A | BI351: N/A | BJ351: N/A | BK351: N/A | BL351: N/A | BM351: N/A | BN351: N/A | BO351: N/A | BP351: N/A | BQ351: N/A | BR351: N/A | BS351: N/A | BT351: N/A | BU351: N/A | BV351: N/A
BB352: No | BC352: N/A | BD352: N/A | BE352: N/A | BF352: N/A | BG352: N/A | BH352: N/A | BI352: N/A | BJ352: N/A | BK352: N/A | BL352: N/A | BM352: N/A | BN352: N/A | BO352: N/A | BP352: N/A | BQ352: N/A | BR352: N/A | BS352: N/A | BT352: N/A | BU352: N/A | BV352: N/A
BA353: Access to Basic Hygiene | BB353: Yes | BC353: N/A | BD353: N/A | BE353: N/A | BF353: N/A | BG353: N/A | BH353: N/A | BI353: N/A | BJ353: N/A | BK353: N/A | BL353: N/A | BM353: N/A | BN353: N/A | BO353: N/A | BP353: N/A | BQ353: N/A | BR353: N/A | BS353: N/A | BT353: N/A | BU353: N/A | BV353: N/A
BB354: No | BC354: N/A | BD354: N/A | BE354: N/A | BF354: N/A | BG354: N/A | BH354: N/A | BI354: N/A | BJ354: N/A | BK354: N/A | BL354: N/A | BM354: N/A | BN354: N/A | BO354: N/A | BP354: N/A | BQ354: N/A | BR354: N/A | BS354: N/A | BT354: N/A | BU354: N/A | BV354: N/A
C399: INITIAL (national) Wealth Index | H399: URBAN Wealth Index | M399: RURAL Wealth Index
B402: Note: The INITIAL (national) Wealth Index is based on the first component of the Principal Component Analysis (PCA) which has been obtained at national level. The final national-level (NATIONAL) Wealth Index is based on the URBAN and RURAL specific wealth indexes. Regression procedures are used to establish the relationships between the two sets of scores (urban and rural) and the initial (national) wealth factors. This allows best use of the available information for each area and a better precision of the FINAL (NATIONAL) Wealth Index. For dependency reasons, all WASH variables (contained in the generic MICS and DHS scripts) have been excluded from the sets of asset variables used in the PCAs. The PCA can extracts as many components as there are asset variables in the input. Only the first of the components is used to represent the Wealth Index. The scores represent the weights of the asset variables on the Wealth Index (correlations between the variables and the component). The communalities are the proportion of each variable's variance that can be explained by the component. Proportion of explained variance is the part of the model's total variance that is explained by the component. For more information on the procedure used: The DHS Wealth Index, DHS Comparative Reports No. 6, Shea Oscar Rutstein, Kiersten Johnson, ORC Macro International Inc., 2004. The DHS Wealth Index: Approaches for Rural and Urban Areas, Shea O. Rutstein, ORC Macro International Inc., 2008. MICS Methodological Paper No. 4, Review of options for reporting water, sanitation and hygiene coverage by wealth quintile, UNICEF, 2016.
A1025: DHS00
A1026: Colombia | C1026: Count
A1027: W_text_t | C1027: 10907
A1028: W_text_i | C1028: 10907
A1029: S_text_s | B1029: Ratio of Shared improved based on: | C1029: 10907
A1030: S_text_i | B1030: Ratio of Improved latrines based on: | C1030: 10907
A1031: Urban/Rural | B1031: Urban | C1031: 7839
B1032: Rural | C1032: 3068
B1033: Missing | C1033: 0
A1034: 2000
A1036: Sub-national region names | B1036: Weighted population
A1037: =R15 -> Atlantica | B1037: =BR122+BR123 -> 
A1038: =S15 -> Bogota | B1038: =BS122+BS123 -> 
A1039: =T15 -> Central | B1039: =BT122+BT123 -> 
A1040: =U15 -> Oriental | B1040: =BU122+BU123 -> 
A1041: =V15 -> Pacifica | B1041: =BV122+BV123 -> 
A1042: =W15 -> 0 | B1042: =BW122+BW123 -> 0
A1043: =X15 -> 0 | B1043: =BX122+XR123 -> 0
A1044: =Y15 -> 0 | B1044: =BY122+BY123 -> 0
A1045: =Z15 -> 0 | B1045: =BZ122+BZ123 -> 0
A1046: =AA15 -> 0 | B1046: =CA122+CA123 -> 0
A1047: =AB15 -> 0 | B1047: =CB122+CB123 -> 0
A1048: =AC15 -> 0 | B1048: =CC122+CC123 -> 0
A1049: =AD15 -> 0 | B1049: =CD122+CD123 -> 0
A1050: =AE15 -> 0 | B1050: =CE122+CE123 -> 0
A1051: =AF15 -> 0 | B1051: =CF122+CF123 -> 0
... 20 more rows

Sheet DHS05
A2: =A1026 -> Colombia
A3: =A1034 -> 2005
A4: Use of drinking water sources
A5: by wealth quintile and sub-national region
A6: Notes:
A7: WHO/UNICEF JMP customised wealth index excludes water,
A8: sanitation and hygiene assets.
A9: Survey used for analysis: | B9: =A1025 -> DHS05
A10: =B1028 -> 
A11: =B1027 -> 
A14: Use of drinking water sources | C14: NATIONAL wealth index quintile | H14: URBAN wealth index quintile | M14: RURAL wealth index quintile | R14: SUB-REGIONS: | BA14: Raw numbers of respondents: | BB14: Use of drinking water sources | BC14: NATIONAL wealth index quintile | BH14: URBAN wealth index quintile | BM14: RURAL wealth index quintile | BR14: SUB-REGIONS:
A15: Weighted percentage (used in graphs) | C15: Poorest | D15: Poor | E15: Middle | F15: Rich | G15: Richest | H15: Poorest | I15: Poor | J15: Middle | K15: Rich | L15: Richest | M15: Poorest | N15: Poor | O15: Middle | P15: Rich | Q15: Richest | R15: atlantica | S15: bogota | T15: central | U15: oriental | V15: pacifica | W15: territorios nacionales | BA15: Water data, raw numbers (weighted) | BC15: Poorest | BD15: Poor | BE15: Middle | BF15: Rich | BG15: Richest | BH15: Poorest | BI15: Poor | BJ15: Middle | BK15: Rich | BL15: Richest | BM15: Poorest | BN15: Poor | BO15: Middle | BP15: Rich | BQ15: Richest | BR15: atlantica | BS15: bogota | BT15: central | BU15: oriental | BV15: pacifica | BW15: territorios nacionales
A16: Water | B16: Improved | C16: =C58+C59+C60+C61+C64+C65+C66+C67+C63*0.25 -> 76.41787096 | D16: 94.83941213 | E16: 98.4621349 | F16: 99.39504717 | G16: 99.79662776 | H16: 95.99781315 | I16: 99.3304943 | J16: 99.7642882 | K16: 99.74389015 | L16: 99.78725596 | M16: 56.38047333 | N16: 76.29937252 | O16: 82.09677687 | P16: 90.20331156 | Q16: 92.53730287 | R16: 89.96792549 | S16: 99.77513874 | T16: 94.59683135 | U16: 90.83117033 | V16: 94.65690851 | W16: 98.73205853 | BA16: Water | BB16: Improved | BC16: N/A | BD16: N/A | BE16: N/A | BF16: N/A | BG16: N/A | BH16: N/A | BI16: N/A | BJ16: N/A | BK16: N/A | BL16: N/A | BM16: N/A | BN16: N/A | BO16: N/A | BP16: N/A | BQ16: N/A | BR16: N/A | BS16: N/A | BT16: N/A | BU16: N/A | BV16: N/A | BW16: N/A
B17: Not Improved | C17: =100-C16 -> 23.58212904 | D17: =100-D16 -> 5.160587873 | E17: 1.537865104 | F17: 0.6049528335 | G17: 0.2033722359 | H17: 4.002186852 | I17: 0.6695056981 | J17: 0.2357118003 | K17: 0.2561098502 | L17: 0.2127440405 | M17: 43.61952667 | N17: 23.70062748 | O17: 17.90322313 | P17: 9.796688441 | Q17: 7.462697132 | R17: 10.03207451 | S17: 0.2248612557 | T17: 5.403168649 | U17: 9.168829671 | V17: 5.343091487 | W17: 1.267941468 | BB17: Not Improved | BC17: N/A | BD17: N/A | BE17: N/A | BF17: N/A | BG17: N/A | BH17: N/A | BI17: N/A | BJ17: N/A | BK17: N/A | BL17: N/A | BM17: N/A | BN17: N/A | BO17: N/A | BP17: N/A | BQ17: N/A | BR17: N/A | BS17: N/A | BT17: N/A | BU17: N/A | BV17: N/A | BW17: N/A
A18: Water ladder | B18: Basic | C18: =C16*C23/100 -> 75.96883806 | D18: =D16*D23/100 -> 94.58942734 | E18: 98.41402159 | F18: 99.31973199 | G18: 99.79195514 | H18: 95.93929943 | I18: 99.30239952 | J18: 99.72682222 | K18: 99.67852416 | L18: 99.78725596 | M18: 55.14560182 | N18: 76.0420673 | O18: 81.79107944 | P18: 89.71324513 | Q18: 92.14791987 | R18: 89.58823435 | S18: 99.77513874 | T18: 94.37405791 | U18: 90.73792159 | V18: 94.61351714 | W18: 98.59929934 | BA18: Water ladder | BB18: Basic | BC18: N/A | BD18: N/A | BE18: N/A | BF18: N/A | BG18: N/A | BH18: N/A | BI18: N/A | BJ18: N/A | BK18: N/A | BL18: N/A | BM18: N/A | BN18: N/A | BO18: N/A | BP18: N/A | BQ18: N/A | BR18: N/A | BS18: N/A | BT18: N/A | BU18: N/A | BV18: N/A | BW18: N/A
B19: Limited | C19: =C16*C22/100 -> 0.4490329046 | D19: =D16*D22/100 -> 0.2499847833 | E19: 0.04811330517 | F19: 0.07531518137 | G19: 0.004672622078 | H19: 0.05851371769 | I19: 0.02809478378 | J19: 0.03746597503 | K19: 0.06536599017 | L19: 0 | M19: 1.234871508 | N19: 0.257305228 | O19: 0.3056974313 | P19: 0.4900664263 | Q19: 0.3893829986 | R19: 0.3796911377 | S19: 0 | T19: 0.2227734417 | U19: 0.09324873722 | V19: 0.04339137427 | W19: 0.1327591876 | BB19: Limited | BC19: N/A | BD19: N/A | BE19: N/A | BF19: N/A | BG19: N/A | BH19: N/A | BI19: N/A | BJ19: N/A | BK19: N/A | BL19: N/A | BM19: N/A | BN19: N/A | BO19: N/A | BP19: N/A | BQ19: N/A | BR19: N/A | BS19: N/A | BT19: N/A | BU19: N/A | BV19: N/A | BW19: N/A
B20: Unimproved | C20: =100-(C18+C19+C21) -> 11.45693752 | D20: =100-(D18+D19+D21) -> 2.713193728 | E20: 0.7353845097 | F20: 0.3415595397 | G20: 0.1302531891 | H20: 3.631562362 | I20: 0.6102140043 | J20: 0.1784368965 | K20: 0.2292800445 | L20: 0.1598225666 | M20: 21.993702 | N20: 9.830740432 | O20: 6.34117116 | P20: 4.129804914 | Q20: 2.423102029 | R20: 7.590700931 | S20: 0.1649507048 | T20: 2.725589962 | U20: 2.401475289 | V20: 1.407169229 | W20: 1.224169662 | BB20: Unimproved | BC20: N/A | BD20: N/A | BE20: N/A | BF20: N/A | BG20: N/A | BH20: N/A | BI20: N/A | BJ20: N/A | BK20: N/A | BL20: N/A | BM20: N/A | BN20: N/A | BO20: N/A | BP20: N/A | BQ20: N/A | BR20: N/A | BS20: N/A | BT20: N/A | BU20: N/A | BV20: N/A | BW20: N/A
B21: Surface water | C21: =C63*0.75 -> 12.12519151 | D21: 2.447394145 | E21: 0.8024805942 | F21: 0.2633932938 | G21: 0.07311904685 | H21: 0.37062449 | I21: 0.05929169378 | J21: 0.05727490383 | K21: 0.02682980571 | L21: 0.05292147388 | M21: 21.62582467 | N21: 13.86988704 | O21: 11.56205197 | P21: 5.666883527 | Q21: 5.039595103 | R21: 2.441373584 | S21: 0.05991055092 | T21: 2.677578686 | U21: 6.767354382 | V21: 3.935922257 | W21: 0.04377180591 | BB21: Surface water | BC21: N/A | BD21: N/A | BE21: N/A | BF21: N/A | BG21: N/A | BH21: N/A | BI21: N/A | BJ21: N/A | BK21: N/A | BL21: N/A | BM21: N/A | BN21: N/A | BO21: N/A | BP21: N/A | BQ21: N/A | BR21: N/A | BS21: N/A | BT21: N/A | BU21: N/A | BV21: N/A | BW21: N/A
A22: Improved water point at more than 30 minutes | B22: Yes | C22: 0.5876019562 | D22: 0.263587445 | E22: 0.04886477957 | F22: 0.07577357577 | G22: 0.00468214426 | H22: 0.06095317776 | I22: 0.02828414776 | J22: 0.0375544954 | K22: 0.06553382876 | L22: 0 | M22: 2.190246791 | N22: 0.3372311193 | O22: 0.3723622814 | P22: 0.5432909478 | Q22: 0.4207849014 | R22: 0.4220294462 | S22: 0 | T22: 0.2354977842 | U22: 0.1026616049 | V22: 0.04584068395 | W22: 0.1344641138 | BA22: Improved water point at more than 30 minutes | BB22: Yes | BC22: N/A | BD22: N/A | BE22: N/A | BF22: N/A | BG22: N/A | BH22: N/A | BI22: N/A | BJ22: N/A | BK22: N/A | BL22: N/A | BM22: N/A | BN22: N/A | BO22: N/A | BP22: N/A | BQ22: N/A | BR22: N/A | BS22: N/A | BT22: N/A | BU22: N/A | BV22: N/A | BW22: N/A
B23: No | C23: 99.41239804 | D23: 99.73641255 | E23: 99.95113522 | F23: 99.92422642 | G23: 99.99531786 | H23: 99.93904682 | I23: 99.97171585 | J23: 99.9624455 | K23: 99.93446617 | L23: 100 | M23: 97.80975321 | N23: 99.66276888 | O23: 99.62763772 | P23: 99.45670905 | Q23: 99.5792151 | R23: 99.57797055 | S23: 100 | T23: 99.76450222 | U23: 99.8973384 | V23: 99.95415932 | W23: 99.86553589 | BB23: No | BC23: N/A | BD23: N/A | BE23: N/A | BF23: N/A | BG23: N/A | BH23: N/A | BI23: N/A | BJ23: N/A | BK23: N/A | BL23: N/A | BM23: N/A | BN23: N/A | BO23: N/A | BP23: N/A | BQ23: N/A | BR23: N/A | BS23: N/A | BT23: N/A | BU23: N/A | BV23: N/A | BW23: N/A
A24: Manually calculated ratios | B24: Improved wells | C24: =C61/(C61+C62)*100 -> 23.8766432 | D24: 49.53380306 | E24: 69.88663939 | F24: 87.29390307 | G24: 93.68668204 | H24: 47.68350896 | I24: 75.40182415 | J24: 87.22306945 | K24: 94.55391434 | L24: 94.28377554 | M24: 12.99001796 | N24: 34.27792846 | O24: 32.13673912 | P24: 49.74415903 | Q24: 64.4383891 | R24: 29.00189168 | S24: 100 | T24: 30.23863893 | U24: 66.05030774 | V24: 26.67340111 | W24: 92.72972842
B25: Improved springs
B26: Other
C27: NATIONAL wealth index quintile | H27: URBAN wealth index quintile | M27: RURAL wealth index quintile | R27: SUB-REGIONS: | BA27: Raw numbers of respondents: | BB27: Use of drinking water sources | BC27: NATIONAL wealth index quintile | BH27: URBAN wealth index quintile | BM27: RURAL wealth index quintile | BR27: SUB-REGIONS:
A28: Percentage based on weighted population | C28: Poorest | D28: Poor | E28: Middle | F28: Rich | G28: Richest | H28: Poorest | I28: Poor | J28: Middle | K28: Rich | L28: Richest | M28: Poorest | N28: Poor | O28: Middle | P28: Rich | Q28: Richest | R28: atlantica | S28: bogota | T28: central | U28: oriental | V28: pacifica | W28: territorios nacionales | BA28: Water data, raw numbers (weighted) | BC28: Poorest | BD28: Poor | BE28: Middle | BF28: Rich | BG28: Richest | BH28: Poorest | BI28: Poor | BJ28: Middle | BK28: Rich | BL28: Richest | BM28: Poorest | BN28: Poor | BO28: Middle | BP28: Rich | BQ28: Richest | BR28: atlantica | BS28: bogota | BT28: central | BU28: oriental | BV28: pacifica | BW28: territorios nacionales
A29: Piped water | B29: Yes | C29: 59.12247631 | D29: 83.82697232 | E29: 90.9596016 | F29: 93.01398805 | G29: 93.50635854 | H29: 85.59069514 | I29: 92.15764471 | J29: 94.06283031 | K29: 94.42286818 | L29: 93.13987544 | M29: 32.1348189 | N29: 59.71214571 | O29: 66.54934082 | P29: 76.2218883 | Q29: 77.6739776 | R29: 72.69702876 | S29: 96.80513543 | T29: 87.85525108 | U29: 81.14959191 | V29: 85.36149066 | W29: 69.84076484 | BA29: Piped water | BB29: Yes | BC29: N/A | BD29: N/A | BE29: N/A | BF29: N/A | BG29: N/A | BH29: N/A | BI29: N/A | BJ29: N/A | BK29: N/A | BL29: N/A | BM29: N/A | BN29: N/A | BO29: N/A | BP29: N/A | BQ29: N/A | BR29: N/A | BS29: N/A | BT29: N/A | BU29: N/A | BV29: N/A | BW29: N/A
B30: No | C30: 40.87752369 | D30: 16.17302768 | E30: 9.040398404 | F30: 6.986011955 | G30: 6.493641459 | H30: 14.40930486 | I30: 7.842355294 | J30: 5.937169695 | K30: 5.577131816 | L30: 6.860124562 | M30: 67.8651811 | N30: 40.28785429 | O30: 33.45065918 | P30: 23.7781117 | Q30: 22.3260224 | R30: 27.30297124 | S30: 3.194864565 | T30: 12.14474892 | U30: 18.85040809 | V30: 14.63850934 | W30: 30.15923516 | BB30: No | BC30: N/A | BD30: N/A | BE30: N/A | BF30: N/A | BG30: N/A | BH30: N/A | BI30: N/A | BJ30: N/A | BK30: N/A | BL30: N/A | BM30: N/A | BN30: N/A | BO30: N/A | BP30: N/A | BQ30: N/A | BR30: N/A | BS30: N/A | BT30: N/A | BU30: N/A | BV30: N/A | BW30: N/A
A31: Piped water on premises | B31: Yes | C31: 58.60262978 | D31: 83.57150385 | E31: 90.84542969 | F31: 93.00803222 | G31: 93.47599035 | H31: 85.30715207 | I31: 92.04665656 | J31: 94.03533291 | K31: 94.42286818 | L31: 93.09856101 | M31: 31.00645435 | N31: 59.43625977 | O31: 66.26727858 | P31: 76.01308824 | Q31: 77.35898961 | R31: 72.35501605 | S31: 96.77850852 | T31: 87.5531102 | U31: 81.10930725 | V31: 85.23775626 | W31: 69.81117509 | BA31: Piped water on premises | BB31: Yes | BC31: N/A | BD31: N/A | BE31: N/A | BF31: N/A | BG31: N/A | BH31: N/A | BI31: N/A | BJ31: N/A | BK31: N/A | BL31: N/A | BM31: N/A | BN31: N/A | BO31: N/A | BP31: N/A | BQ31: N/A | BR31: N/A | BS31: N/A | BT31: N/A | BU31: N/A | BV31: N/A | BW31: N/A
B32: No | C32: 41.39737022 | D32: 16.42849615 | E32: 9.154570305 | F32: 6.991967784 | G32: 6.524009654 | H32: 14.69284793 | I32: 7.953343442 | J32: 5.964667095 | K32: 5.577131816 | L32: 6.901438988 | M32: 68.99354565 | N32: 40.56374023 | O32: 33.73272142 | P32: 23.98691176 | Q32: 22.64101039 | R32: 27.64498395 | S32: 3.221491477 | T32: 12.4468898 | U32: 18.89069275 | V32: 14.76224374 | W32: 30.18882491 | BB32: No | BC32: N/A | BD32: N/A | BE32: N/A | BF32: N/A | BG32: N/A | BH32: N/A | BI32: N/A | BJ32: N/A | BK32: N/A | BL32: N/A | BM32: N/A | BN32: N/A | BO32: N/A | BP32: N/A | BQ32: N/A | BR32: N/A | BS32: N/A | BT32: N/A | BU32: N/A | BV32: N/A | BW32: N/A
A33: Piped water into dwelling | B33: Yes | C33: N/A | D33: N/A | E33: N/A | F33: N/A | G33: N/A | H33: N/A | I33: N/A | J33: N/A | K33: N/A | L33: N/A | M33: N/A | N33: N/A | O33: N/A | P33: N/A | Q33: N/A | R33: N/A | S33: N/A | T33: N/A | U33: N/A | V33: N/A | W33: N/A | BA33: Piped water into dwelling | BB33: Yes | BC33: N/A | BD33: N/A | BE33: N/A | BF33: N/A | BG33: N/A | BH33: N/A | BI33: N/A | BJ33: N/A | BK33: N/A | BL33: N/A | BM33: N/A | BN33: N/A | BO33: N/A | BP33: N/A | BQ33: N/A | BR33: N/A | BS33: N/A | BT33: N/A | BU33: N/A | BV33: N/A | BW33: N/A
B34: No | C34: N/A | D34: N/A | E34: N/A | F34: N/A | G34: N/A | H34: N/A | I34: N/A | J34: N/A | K34: N/A | L34: N/A | M34: N/A | N34: N/A | O34: N/A | P34: N/A | Q34: N/A | R34: N/A | S34: N/A | T34: N/A | U34: N/A | V34: N/A | W34: N/A | BB34: No | BC34: N/A | BD34: N/A | BE34: N/A | BF34: N/A | BG34: N/A | BH34: N/A | BI34: N/A | BJ34: N/A | BK34: N/A | BL34: N/A | BM34: N/A | BN34: N/A | BO34: N/A | BP34: N/A | BQ34: N/A | BR34: N/A | BS34: N/A | BT34: N/A | BU34: N/A | BV34: N/A | BW34: N/A
A35: Water source on premises | B35: Yes | C35: 76.85429996 | D35: 91.42545313 | E35: 94.62365661 | F35: 95.4638612 | G35: 94.34510875 | H35: 90.77997824 | I35: 94.81922879 | J35: 96.02610467 | K35: 95.75545705 | L35: 93.85311847 | M35: 53.88204886 | N35: 81.26585825 | O35: 86.9979177 | P35: 89.51832881 | Q35: 89.61781473 | R35: 81.32737122 | S35: 97.02208426 | T35: 92.73386126 | U35: 91.66677133 | V35: 92.56087525 | W35: 80.12952854 | BA35: Water source on premises | BB35: Yes | BC35: N/A | BD35: N/A | BE35: N/A | BF35: N/A | BG35: N/A | BH35: N/A | BI35: N/A | BJ35: N/A | BK35: N/A | BL35: N/A | BM35: N/A | BN35: N/A | BO35: N/A | BP35: N/A | BQ35: N/A | BR35: N/A | BS35: N/A | BT35: N/A | BU35: N/A | BV35: N/A | BW35: N/A
B36: No | C36: 23.14570004 | D36: 8.574546869 | E36: 5.376343387 | F36: 4.5361388 | G36: 5.654891246 | H36: 9.220021757 | I36: 5.180771209 | J36: 3.973895327 | K36: 4.244542946 | L36: 6.146881534 | M36: 46.11795114 | N36: 18.73414175 | O36: 13.0020823 | P36: 10.48167119 | Q36: 10.38218527 | R36: 18.67262878 | S36: 2.97791574 | T36: 7.266138744 | U36: 8.33322867 | V36: 7.439124748 | W36: 19.87047146 | BB36: No | BC36: N/A | BD36: N/A | BE36: N/A | BF36: N/A | BG36: N/A | BH36: N/A | BI36: N/A | BJ36: N/A | BK36: N/A | BL36: N/A | BM36: N/A | BN36: N/A | BO36: N/A | BP36: N/A | BQ36: N/A | BR36: N/A | BS36: N/A | BT36: N/A | BU36: N/A | BV36: N/A | BW36: N/A
A37: Improved Water source on premises | B37: Yes | C37: 90.14071391 | D37: 93.7758276 | E37: 95.14903949 | F37: 95.78556937 | G37: 94.53824792 | H37: 92.94497663 | I37: 95.09752649 | J37: 96.15449781 | K37: 95.92983702 | L37: 94.06984083 | M37: 79.21403226 | N37: 92.55966823 | O37: 94.2126028 | P37: 93.86994949 | Q37: 91.98318439 | R37: 88.16031502 | S37: 97.1795244 | T37: 95.20820491 | U37: 95.92873427 | V37: 95.70250092 | W37: 80.83419954 | BA37: Improved water source on premises | BB37: Yes | BC37: N/A | BD37: N/A | BE37: N/A | BF37: N/A | BG37: N/A | BH37: N/A | BI37: N/A | BJ37: N/A | BK37: N/A | BL37: N/A | BM37: N/A | BN37: N/A | BO37: N/A | BP37: N/A | BQ37: N/A | BR37: N/A | BS37: N/A | BT37: N/A | BU37: N/A | BV37: N/A | BW37: N/A
B38: No | C38: 9.859286092 | D38: 6.224172403 | E38: 4.850960509 | F38: 4.214430627 | G38: 5.461752077 | H38: 7.055023367 | I38: 4.90247351 | J38: 3.845502192 | K38: 4.070162976 | L38: 5.930159172 | M38: 20.78596774 | N38: 7.440331773 | O38: 5.787397197 | P38: 6.130050509 | Q38: 8.016815606 | R38: 11.83968498 | S38: 2.820475601 | T38: 4.791795093 | U38: 4.071265728 | V38: 4.297499082 | W38: 19.16580046 | BB38: No | BC38: N/A | BD38: N/A | BE38: N/A | BF38: N/A | BG38: N/A | BH38: N/A | BI38: N/A | BJ38: N/A | BK38: N/A | BL38: N/A | BM38: N/A | BN38: N/A | BO38: N/A | BP38: N/A | BQ38: N/A | BR38: N/A | BS38: N/A | BT38: N/A | BU38: N/A | BV38: N/A | BW38: N/A
A39: Piped water on premises available when needed | B39: Yes | C39: N/A | D39: N/A | E39: N/A | F39: N/A | G39: N/A | H39: N/A | I39: N/A | J39: N/A | K39: N/A | L39: N/A | M39: N/A | N39: N/A | O39: N/A | P39: N/A | Q39: N/A | R39: N/A | S39: N/A | T39: N/A | U39: N/A | V39: N/A | W39: N/A | BA39: Piped water on premises available when needed | BB39: Yes | BC39: N/A | BD39: N/A | BE39: N/A | BF39: N/A | BG39: N/A | BH39: N/A | BI39: N/A | BJ39: N/A | BK39: N/A | BL39: N/A | BM39: N/A | BN39: N/A | BO39: N/A | BP39: N/A | BQ39: N/A | BR39: N/A | BS39: N/A | BT39: N/A | BU39: N/A | BV39: N/A | BW39: N/A
B40: No | C40: N/A | D40: N/A | E40: N/A | F40: N/A | G40: N/A | H40: N/A | I40: N/A | J40: N/A | K40: N/A | L40: N/A | M40: N/A | N40: N/A | O40: N/A | P40: N/A | Q40: N/A | R40: N/A | S40: N/A | T40: N/A | U40: N/A | V40: N/A | W40: N/A | BB40: No | BC40: N/A | BD40: N/A | BE40: N/A | BF40: N/A | BG40: N/A | BH40: N/A | BI40: N/A | BJ40: N/A | BK40: N/A | BL40: N/A | BM40: N/A | BN40: N/A | BO40: N/A | BP40: N/A | BQ40: N/A | BR40: N/A | BS40: N/A | BT40: N/A | BU40: N/A | BV40: N/A | BW40: N/A
A41: Water point at more than 30 minutes | B41: Yes | C41: 1.99969154 | D41: 0.4333281558 | E41: 0.05607253251 | F41: 0.07539473821 | G41: 0.004679881508 | H41: 0.1957564719 | I41: 0.02815888449 | J41: 0.03748534767 | K41: 0.06545815786 | L41: 0 | M41: 5.117846099 | N41: 1.01616597 | O41: 1.074941467 | P41: 0.9193484063 | Q41: 0.5858709279 | R41: 1.29618227 | S41: 0 | T41: 0.4240851765 | U41: 0.5418696391 | V41: 0.2004026305 | W41: 0.1572525028 | BA41: Water point at more than 30 minutes | BB41: Yes | BC41: N/A | BD41: N/A | BE41: N/A | BF41: N/A | BG41: N/A | BH41: N/A | BI41: N/A | BJ41: N/A | BK41: N/A | BL41: N/A | BM41: N/A | BN41: N/A | BO41: N/A | BP41: N/A | BQ41: N/A | BR41: N/A | BS41: N/A | BT41: N/A | BU41: N/A | BV41: N/A | BW41: N/A
B42: No | C42: 98.00030846 | D42: 99.56667184 | E42: 99.94392747 | F42: 99.92460526 | G42: 99.99532012 | H42: 99.80424353 | I42: 99.97184112 | J42: 99.96251465 | K42: 99.93454184 | L42: 100 | M42: 94.8821539 | N42: 98.98383403 | O42: 98.92505853 | P42: 99.08065159 | Q42: 99.41412907 | R42: 98.70381773 | S42: 100 | T42: 99.57591482 | U42: 99.45813036 | V42: 99.79959737 | W42: 99.8427475 | BB42: No | BC42: N/A | BD42: N/A | BE42: N/A | BF42: N/A | BG42: N/A | BH42: N/A | BI42: N/A | BJ42: N/A | BK42: N/A | BL42: N/A | BM42: N/A | BN42: N/A | BO42: N/A | BP42: N/A | BQ42: N/A | BR42: N/A | BS42: N/A | BT42: N/A | BU42: N/A | BV42: N/A | BW42: N/A
A43: Water source available when needed | B43: Yes | C43: N/A | D43: N/A | E43: N/A | F43: N/A | G43: N/A | H43: N/A | I43: N/A | J43: N/A | K43: N/A | L43: N/A | M43: N/A | N43: N/A | O43: N/A | P43: N/A | Q43: N/A | R43: N/A | S43: N/A | T43: N/A | U43: N/A | V43: N/A | W43: N/A | BA43: Water source available when needed | BB43: Yes | BC43: N/A | BD43: N/A | BE43: N/A | BF43: N/A | BG43: N/A | BH43: N/A | BI43: N/A | BJ43: N/A | BK43: N/A | BL43: N/A | BM43: N/A | BN43: N/A | BO43: N/A | BP43: N/A | BQ43: N/A | BR43: N/A | BS43: N/A | BT43: N/A | BU43: N/A | BV43: N/A | BW43: N/A
B44: No | C44: N/A | D44: N/A | E44: N/A | F44: N/A | G44: N/A | H44: N/A | I44: N/A | J44: N/A | K44: N/A | L44: N/A | M44: N/A | N44: N/A | O44: N/A | P44: N/A | Q44: N/A | R44: N/A | S44: N/A | T44: N/A | U44: N/A | V44: N/A | W44: N/A | BB44: No | BC44: N/A | BD44: N/A | BE44: N/A | BF44: N/A | BG44: N/A | BH44: N/A | BI44: N/A | BJ44: N/A | BK44: N/A | BL44: N/A | BM44: N/A | BN44: N/A | BO44: N/A | BP44: N/A | BQ44: N/A | BR44: N/A | BS44: N/A | BT44: N/A | BU44: N/A | BV44: N/A | BW44: N/A
A45: Improved water source available when needed | B45: Yes | C45: N/A | D45: N/A | E45: N/A | F45: N/A | G45: N/A | H45: N/A | I45: N/A | J45: N/A | K45: N/A | L45: N/A | M45: N/A | N45: N/A | O45: N/A | P45: N/A | Q45: N/A | R45: N/A | S45: N/A | T45: N/A | U45: N/A | V45: N/A | W45: N/A | BA45: Improved water source available when needed | BB45: Yes | BC45: N/A | BD45: N/A | BE45: N/A | BF45: N/A | BG45: N/A | BH45: N/A | BI45: N/A | BJ45: N/A | BK45: N/A | BL45: N/A | BM45: N/A | BN45: N/A | BO45: N/A | BP45: N/A | BQ45: N/A | BR45: N/A | BS45: N/A | BT45: N/A | BU45: N/A | BV45: N/A | BW45: N/A
B46: No | C46: N/A | D46: N/A | E46: N/A | F46: N/A | G46: N/A | H46: N/A | I46: N/A | J46: N/A | K46: N/A | L46: N/A | M46: N/A | N46: N/A | O46: N/A | P46: N/A | Q46: N/A | R46: N/A | S46: N/A | T46: N/A | U46: N/A | V46: N/A | W46: N/A | BB46: No | BC46: N/A | BD46: N/A | BE46: N/A | BF46: N/A | BG46: N/A | BH46: N/A | BI46: N/A | BJ46: N/A | BK46: N/A | BL46: N/A | BM46: N/A | BN46: N/A | BO46: N/A | BP46: N/A | BQ46: N/A | BR46: N/A | BS46: N/A | BT46: N/A | BU46: N/A | BV46: N/A | BW46: N/A
A47: Microbiological quality at point of collection | B47: Not contaminated (No E. coli in 100 mL) | C47: N/A | D47: N/A | E47: N/A | F47: N/A | G47: N/A | H47: N/A | I47: N/A | J47: N/A | K47: N/A | L47: N/A | M47: N/A | N47: N/A | O47: N/A | P47: N/A | Q47: N/A | R47: N/A | S47: N/A | T47: N/A | U47: N/A | V47: N/A | W47: N/A | BA47: Microbiological quality at point of collection | BB47: Not contaminated (No E. coli in 100 mL) | BC47: N/A | BD47: N/A | BE47: N/A | BF47: N/A | BG47: N/A | BH47: N/A | BI47: N/A | BJ47: N/A | BK47: N/A | BL47: N/A | BM47: N/A | BN47: N/A | BO47: N/A | BP47: N/A | BQ47: N/A | BR47: N/A | BS47: N/A | BT47: N/A | BU47: N/A | BV47: N/A | BW47: N/A
B48: Contaminated (E. coli detected in 100 mL) | C48: N/A | D48: N/A | E48: N/A | F48: N/A | G48: N/A | H48: N/A | I48: N/A | J48: N/A | K48: N/A | L48: N/A | M48: N/A | N48: N/A | O48: N/A | P48: N/A | Q48: N/A | R48: N/A | S48: N/A | T48: N/A | U48: N/A | V48: N/A | W48: N/A | BB48: Contaminated (E. coli detected in 100 mL) | BC48: N/A | BD48: N/A | BE48: N/A | BF48: N/A | BG48: N/A | BH48: N/A | BI48: N/A | BJ48: N/A | BK48: N/A | BL48: N/A | BM48: N/A | BN48: N/A | BO48: N/A | BP48: N/A | BQ48: N/A | BR48: N/A | BS48: N/A | BT48: N/A | BU48: N/A | BV48: N/A | BW48: N/A
B49: Highly contaminated (>100 CFU/100 mL) | C49: N/A | D49: N/A | E49: N/A | F49: N/A | G49: N/A | H49: N/A | I49: N/A | J49: N/A | K49: N/A | L49: N/A | M49: N/A | N49: N/A | O49: N/A | P49: N/A | Q49: N/A | R49: N/A | S49: N/A | T49: N/A | U49: N/A | V49: N/A | W49: N/A | BB49: Highly contaminated (>100 CFU/100 mL) | BC49: N/A | BD49: N/A | BE49: N/A | BF49: N/A | BG49: N/A | BH49: N/A | BI49: N/A | BJ49: N/A | BK49: N/A | BL49: N/A | BM49: N/A | BN49: N/A | BO49: N/A | BP49: N/A | BQ49: N/A | BR49: N/A | BS49: N/A | BT49: N/A | BU49: N/A | BV49: N/A | BW49: N/A
A50: Microbiological quality of improved water sources at point of collection | B50: Not contaminated (No E. coli in 100 mL) | C50: N/A | D50: N/A | E50: N/A | F50: N/A | G50: N/A | H50: N/A | I50: N/A | J50: N/A | K50: N/A | L50: N/A | M50: N/A | N50: N/A | O50: N/A | P50: N/A | Q50: N/A | R50: N/A | S50: N/A | T50: N/A | U50: N/A | V50: N/A | W50: N/A | BA50: Microbiological quality of improved water sources at point of collection | BB50: Not contaminated (No E. coli in 100 mL) | BC50: N/A | BD50: N/A | BE50: N/A | BF50: N/A | BG50: N/A | BH50: N/A | BI50: N/A | BJ50: N/A | BK50: N/A | BL50: N/A | BM50: N/A | BN50: N/A | BO50: N/A | BP50: N/A | BQ50: N/A | BR50: N/A | BS50: N/A | BT50: N/A | BU50: N/A | BV50: N/A | BW50: N/A
B51: Contaminated (E. coli detected in 100 mL) | C51: N/A | D51: N/A | E51: N/A | F51: N/A | G51: N/A | H51: N/A | I51: N/A | J51: N/A | K51: N/A | L51: N/A | M51: N/A | N51: N/A | O51: N/A | P51: N/A | Q51: N/A | R51: N/A | S51: N/A | T51: N/A | U51: N/A | V51: N/A | W51: N/A | BB51: Contaminated (E. coli detected in 100 mL) | BC51: N/A | BD51: N/A | BE51: N/A | BF51: N/A | BG51: N/A | BH51: N/A | BI51: N/A | BJ51: N/A | BK51: N/A | BL51: N/A | BM51: N/A | BN51: N/A | BO51: N/A | BP51: N/A | BQ51: N/A | BR51: N/A | BS51: N/A | BT51: N/A | BU51: N/A | BV51: N/A | BW51: N/A
B52: Highly contaminated (>100 CFU/100 mL) | C52: N/A | D52: N/A | E52: N/A | F52: N/A | G52: N/A | H52: N/A | I52: N/A | J52: N/A | K52: N/A | L52: N/A | M52: N/A | N52: N/A | O52: N/A | P52: N/A | Q52: N/A | R52: N/A | S52: N/A | T52: N/A | U52: N/A | V52: N/A | W52: N/A | BB52: Highly contaminated (>100 CFU/100 mL) | BC52: N/A | BD52: N/A | BE52: N/A | BF52: N/A | BG52: N/A | BH52: N/A | BI52: N/A | BJ52: N/A | BK52: N/A | BL52: N/A | BM52: N/A | BN52: N/A | BO52: N/A | BP52: N/A | BQ52: N/A | BR52: N/A | BS52: N/A | BT52: N/A | BU52: N/A | BV52: N/A | BW52: N/A
A53: Microbiological quality of piped on premises at point of collection | B53: Not contaminated (No E. coli in 100 mL) | C53: N/A | D53: N/A | E53: N/A | F53: N/A | G53: N/A | H53: N/A | I53: N/A | J53: N/A | K53: N/A | L53: N/A | M53: N/A | N53: N/A | O53: N/A | P53: N/A | Q53: N/A | R53: N/A | S53: N/A | T53: N/A | U53: N/A | V53: N/A | W53: N/A | BA53: Microbiological quality of piped on premises at point of collection | BB53: Not contaminated (No E. coli in 100 mL) | BC53: N/A | BD53: N/A | BE53: N/A | BF53: N/A | BG53: N/A | BH53: N/A | BI53: N/A | BJ53: N/A | BK53: N/A | BL53: N/A | BM53: N/A | BN53: N/A | BO53: N/A | BP53: N/A | BQ53: N/A | BR53: N/A | BS53: N/A | BT53: N/A | BU53: N/A | BV53: N/A | BW53: N/A
B54: Contaminated (E. coli detected in 100 mL) | C54: N/A | D54: N/A | E54: N/A | F54: N/A | G54: N/A | H54: N/A | I54: N/A | J54: N/A | K54: N/A | L54: N/A | M54: N/A | N54: N/A | O54: N/A | P54: N/A | Q54: N/A | R54: N/A | S54: N/A | T54: N/A | U54: N/A | V54: N/A | W54: N/A | BB54: Contaminated (E. coli detected in 100 mL) | BC54: N/A | BD54: N/A | BE54: N/A | BF54: N/A | BG54: N/A | BH54: N/A | BI54: N/A | BJ54: N/A | BK54: N/A | BL54: N/A | BM54: N/A | BN54: N/A | BO54: N/A | BP54: N/A | BQ54: N/A | BR54: N/A | BS54: N/A | BT54: N/A | BU54: N/A | BV54: N/A | BW54: N/A
B55: Highly contaminated (>100 CFU/100 mL) | C55: N/A | D55: N/A | E55: N/A | F55: N/A | G55: N/A | H55: N/A | I55: N/A | J55: N/A | K55: N/A | L55: N/A | M55: N/A | N55: N/A | O55: N/A | P55: N/A | Q55: N/A | R55: N/A | S55: N/A | T55: N/A | U55: N/A | V55: N/A | W55: N/A | BB55: Highly contaminated (>100 CFU/100 mL) | BC55: N/A | BD55: N/A | BE55: N/A | BF55: N/A | BG55: N/A | BH55: N/A | BI55: N/A | BJ55: N/A | BK55: N/A | BL55: N/A | BM55: N/A | BN55: N/A | BO55: N/A | BP55: N/A | BQ55: N/A | BR55: N/A | BS55: N/A | BT55: N/A | BU55: N/A | BV55: N/A | BW55: N/A
C56: NATIONAL wealth index quintile | H56: URBAN wealth index quintile | M56: RURAL wealth index quintile | R56: SUB-REGIONS: | BA56: Raw numbers of respondents: | BB56: Use of drinking water sources | BC56: NATIONAL wealth index quintile | BH56: URBAN wealth index quintile | BM56: RURAL wealth index quintile | BR56: SUB-REGIONS:
A57: Percentage based on weighted population | C57: Poorest | D57: Poor | E57: Middle | F57: Rich | G57: Richest | H57: Poorest | I57: Poor | J57: Middle | K57: Rich | L57: Richest | M57: Poorest | N57: Poor | O57: Middle | P57: Rich | Q57: Richest | R57: atlantica | S57: bogota | T57: central | U57: oriental | V57: pacifica | W57: territorios nacionales | BA57: Water data, raw numbers (weighted) | BC57: Poorest | BD57: Poor | BE57: Middle | BF57: Rich | BG57: Richest | BH57: Poorest | BI57: Poor | BJ57: Middle | BK57: Rich | BL57: Richest | BM57: Poorest | BN57: Poor | BO57: Middle | BP57: Rich | BQ57: Richest | BR57: atlantica | BS57: bogota | BT57: central | BU57: oriental | BV57: pacifica | BW57: territorios nacionales
A58: source of drinking water | B58: piped water from utility company | C58: 29.90942246 | D58: 65.78774361 | E58: 83.83728331 | F58: 90.74860955 | G58: 92.82230249 | H58: 84.04163979 | I58: 91.50373364 | J58: 93.50569285 | K58: 94.18628515 | L58: 93.06157187 | M58: 9.095670556 | N58: 15.39143322 | O58: 17.67920717 | P58: 26.96395068 | Q58: 35.21461232 | R58: 65.77731023 | S58: 96.65702321 | T58: 70.69796315 | U58: 63.82806393 | V58: 71.5392438 | W58: 69.38513048
B59: piped water from rural system | C59: 28.69320733 | D59: 17.78376024 | E59: 7.008146384 | F59: 2.259422667 | G59: 0.6536878513 | H59: 1.26551228 | I59: 0.542922914 | J59: 0.5296400514 | K59: 0.2365830345 | L59: 0.0369891391 | M59: 21.9107838 | N59: 44.04482655 | O59: 48.58807141 | P59: 49.04913756 | Q59: 42.14437729 | R59: 6.577705825 | S59: 0.121485309 | T59: 16.85514705 | U59: 17.28124332 | V59: 13.69851246 | W59: 0.4260446143
B60: public tap | C60: 0.5198465276 | D60: 0.2554684697 | E60: 0.1141719016 | F60: 0.005955828987 | G60: 0.03036819563 | H60: 0.2835430671 | I60: 0.1109881484 | J60: 0.0274974001 | K60: 0 | L60: 0.04131442517 | M60: 1.128364546 | N60: 0.2758859452 | O60: 0.2820622404 | P60: 0.2088000681 | Q60: 0.3149879935 | R60: 0.3420127064 | S60: 0.02662691152 | T60: 0.3021408731 | U60: 0.04028465589 | V60: 0.1237344042 | W60: 0.02958974162
B61: open well with sump pump | C61: 2.849201333 | D61: 1.995102788 | E61: 1.225731234 | F61: 1.025027773 | G61: 0.2848630323 | H61: 1.565861551 | I61: 0.9836983725 | J61: 0.6327539706 | K61: 0.5718800719 | L61: 0.2040814792 | M61: 3.015581744 | N61: 4.061070154 | O61: 2.28866749 | P61: 3.495380911 | Q61: 4.020701457 | R61: 2.402959956 | S61: 0.009774711788 | T61: 1.024678079 | U61: 2.704483922 | V61: 0.4409771397 | W61: 10.71430608
B62: open well without sump pump | C62: 9.083804949 | D62: 2.032657377 | E62: 0.5281536928 | F62: 0.1491983034 | G62: 0.01919622787 | H62: 1.718002378 | I62: 0.3209098165 | J62: 0.09268939496 | K62: 0.03293896273 | L62: 0.01237302532 | M62: 20.19902623 | N62: 7.786408198 | O62: 4.832986893 | P62: 3.531335349 | Q62: 2.218904332 | R62: 5.88256839 | S62: 0 | T62: 2.363960151 | U62: 1.390097942 | V62: 1.212269621 | W62: 0.8400317391
B63: river/stream/spring | C63: 16.16692202 | D63: 3.263192193 | E63: 1.069974126 | F63: 0.3511910584 | G63: 0.09749206247 | H63: 0.4941659867 | I63: 0.07905559171 | J63: 0.07636653844 | K63: 0.03577307428 | L63: 0.07056196517 | M63: 28.83443289 | N63: 18.49318273 | O63: 15.41606929 | P63: 7.555844703 | Q63: 6.719460137 | R63: 3.255164778 | S63: 0.07988073456 | T63: 3.570104915 | U63: 9.023139176 | V63: 5.247896343 | W63: 0.05836240787
B64: rain water | C64: 7.829842706 | D64: 4.015431879 | E64: 1.81912999 | F64: 1.049022262 | G64: 0.3049947745 | H64: 4.45181721 | I64: 1.802920912 | J64: 1.264805648 | K64: 0.6151296967 | L64: 0.2214343113 | M64: 12.89197803 | N64: 6.13810948 | O64: 6.257934201 | P64: 4.567840037 | Q64: 3.660868556 | R64: 4.642332159 | S64: 0 | T64: 2.930742818 | U64: 1.415915759 | V64: 5.345046643 | W64: 2.961422581
B65: tanker truck | C65: 0.4070290567 | D65: 0.4002957978 | E65: 0.1561997708 | F65: 0.05152199856 | G65: 0.003864223543 | H65: 0.1300645393 | I65: 0.0355475764 | J65: 0.03481907013 | K65: 0.004534457351 | L65: 0.005257084628 | M65: 0.3037937676 | N65: 0.4694713012 | O65: 0.8038117398 | P65: 1.028340745 | Q65: 0.6584319757 | R65: 0.8134142531 | S65: 0 | T65: 0 | U65: 0.06145425389 | V65: 0.0804662685 | W65: 0
B66: water in drums/big cans | C66: 1.086763222 | D66: 1.093132068 | E66: 0.8890250306 | F66: 0.5077988192 | G66: 0.2293484261 | H66: 1.198020711 | I66: 1.060524912 | J66: 0.5042818043 | K66: 0.3691514319 | L66: 0.1812011145 | M66: 0.6854315771 | N66: 0.8216471324 | O66: 1.517207306 | P66: 0.9148330145 | Q66: 1.235541209 | R66: 3.055607673 | S66: 0 | T66: 0.0007727760661 | U66: 0.07283941251 | V66: 0.4356341066 | W66: 0.001279029791
B67: bottled water | C67: 1.080827828 | D67: 2.69267923 | E67: 3.144953742 | F67: 3.659890503 | G67: 5.442825751 | H67: 2.937812499 | I67: 3.270393925 | J67: 3.245705767 | K67: 3.751383039 | L67: 6.017766041 | M67: 0.1402610829 | N67: 0.4736330624 | O67: 0.8257979932 | P67: 2.086067371 | Q67: 3.607917036 | R67: 5.542791491 | S67: 2.940258414 | T67: 1.892860373 | U67: 3.171100282 | V67: 1.681319606 | W67: 15.19969541
B68: other | C68: 2.373132575 | D68: 0.6805363508 | E68: 0.2072308169 | F68: 0.1923612362 | G68: 0.1110569612 | H68: 1.913559984 | I68: 0.2893041878 | J68: 0.08574750154 | K68: 0.1963410818 | L68: 0.1474495413 | M68: 1.79467577 | N68: 2.044332234 | O68: 1.508184267 | P68: 0.5984695655 | Q68: 0.204197697 | R68: 1.708132541 | S68: 0.1649507048 | T68: 0.3616298114 | U68: 1.011377347 | V68: 0.1948996089 | W68: 0.3841379225
A108: =A1026 -> Colombia
A109: =A1034 -> 2005
A110: Use of sanitation facilities
A111: by wealth quintile and sub-national region
A112: Notes:
A113: WHO/UNICEF JMP customised wealth index excludes water,
A114: sanitation and hygiene assets.
A115: Survey used for analysis: | B115: =A1025 -> DHS05
A116: =B1030 -> Ratio of Improved latrines based on: | B116: 50% Rule
A120: Use of sanitation facilities | C120: NATIONAL wealth index quintile | H120: URBAN wealth index quintile | M120: RURAL wealth index quintile | R120: SUB-REGIONS: | BA120: Raw numbers of respondents: | BB120: Use of sanitation facilities | BC120: NATIONAL wealth index quintile | BH120: URBAN wealth index quintile | BM120: RURAL wealth index quintile | BR120: SUB-REGIONS:
A121: Weighted percentage (used in graphs) | C121: Poorest | D121: Poor | E121: Middle | F121: Rich | G121: Richest | H121: Poorest | I121: Poor | J121: Middle | K121: Rich | L121: Richest | M121: Poorest | N121: Poor | O121: Middle | P121: Rich | Q121: Richest | R121: atlantica | S121: bogota | T121: central | U121: oriental | V121: pacifica | W121: territorios nacionales | BA121: Sanitation data, raw numbers (weighted) | BC121: Poorest | BD121: Poor | BE121: Middle | BF121: Rich | BG121: Richest | BH121: Poorest | BI121: Poor | BJ121: Middle | BK121: Rich | BL121: Richest | BM121: Poorest | BN121: Poor | BO121: Middle | BP121: Rich | BQ121: Richest | BR121: atlantica | BS121: bogota | BT121: central | BU121: oriental | BV121: pacifica | BW121: territorios nacionales
A122: Sanitation | B122: Improved | C122: =C153+C154+C156*0.5 -> 56.80949334 | D122: =D153+D154+D156*0.5 -> 88.71161638 | E122: 96.17512926 | F122: 98.89196712 | G122: 99.61780661 | H122: 88.67720701 | I122: 96.9302112 | J122: 98.69960312 | K122: 99.58483515 | L122: 99.77651493 | M122: 29.30309693 | N122: 55.56874297 | O122: 67.06015327 | P122: 79.65725145 | Q122: 87.94786117 | R122: 81.75843667 | S122: 99.59374071 | T122: 88.70119626 | U122: 84.62423707 | V122: 87.53041182 | W122: 95.90878753 | BA122: Sanitation | BB122: Improved | BC122: N/A | BD122: N/A | BE122: N/A | BF122: N/A | BG122: N/A | BH122: N/A | BI122: N/A | BJ122: N/A | BK122: N/A | BL122: N/A | BM122: N/A | BN122: N/A | BO122: N/A | BP122: N/A | BQ122: N/A | BR122: N/A | BS122: N/A | BT122: N/A | BU122: N/A | BV122: N/A | BW122: N/A
B123: Not Improved | C123: =100-C122 -> 43.19050666 | D123: =100-D122 -> 11.28838362 | E123: 3.824870742 | F123: 1.10803288 | G123: 0.3821933872 | H123: 11.32279299 | I123: 3.069788805 | J123: 1.300396882 | K123: 0.4151648476 | L123: 0.2234850673 | M123: 70.69690307 | N123: 44.43125703 | O123: 32.93984673 | P123: 20.34274855 | Q123: 12.05213883 | R123: 18.24156333 | S123: 0.4062592893 | T123: 11.29880374 | U123: 15.37576293 | V123: 12.46958818 | W123: 4.09121247 | BB123: Not Improved | BC123: N/A | BD123: N/A | BE123: N/A | BF123: N/A | BG123: N/A | BH123: N/A | BI123: N/A | BJ123: N/A | BK123: N/A | BL123: N/A | BM123: N/A | BN123: N/A | BO123: N/A | BP123: N/A | BQ123: N/A | BR123: N/A | BS123: N/A | BT123: N/A | BU123: N/A | BV123: N/A | BW123: N/A
A124: Sanitation ladder | B124: Basic | C124: =C122*C129/100 -> 42.09583456 | D124: =D122*D129/100 -> 65.73530774 | E124: 81.36415935 | F124: 92.16731336 | G124: 97.12736145 | H124: 57.81753897 | I124: 78.22268043 | J124: 88.7309432 | K124: 95.00393274 | L124: 97.5814316 | M124: 25.17136026 | N124: 48.73378759 | O124: 58.4093935 | P124: 68.18660724 | Q124: 81.79151089 | R124: 70.2304971 | S124: 78.97783638 | T124: 79.29886945 | U124: 71.59210456 | V124: 70.11185987 | W124: 75.48021579 | BA124: Sanitation ladder | BB124: Basic | BC124: N/A | BD124: N/A | BE124: N/A | BF124: N/A | BG124: N/A | BH124: N/A | BI124: N/A | BJ124: N/A | BK124: N/A | BL124: N/A | BM124: N/A | BN124: N/A | BO124: N/A | BP124: N/A | BQ124: N/A | BR124: N/A | BS124: N/A | BT124: N/A | BU124: N/A | BV124: N/A | BW124: N/A
B125: Limited | C125: =C122*C128/100 -> 14.71365877 | D125: =D122*D128/100 -> 22.97630864 | E125: 14.81096991 | F125: 6.724653764 | G125: 2.490445165 | H125: 30.85966804 | I125: 18.70753076 | J125: 9.968659915 | K125: 4.580902417 | L125: 2.195083329 | M125: 4.131736667 | N125: 6.834955386 | O125: 8.650759772 | P125: 11.47064421 | Q125: 6.156350282 | R125: 11.52793957 | S125: 20.61590433 | T125: 9.402326803 | U125: 13.03213251 | V125: 17.41855195 | W125: 20.42857174 | BB125: Limited | BC125: N/A | BD125: N/A | BE125: N/A | BF125: N/A | BG125: N/A | BH125: N/A | BI125: N/A | BJ125: N/A | BK125: N/A | BL125: N/A | BM125: N/A | BN125: N/A | BO125: N/A | BP125: N/A | BQ125: N/A | BR125: N/A | BS125: N/A | BT125: N/A | BU125: N/A | BV125: N/A | BW125: N/A
B126: Unimproved | C126: =100-(C124+C125+C127) -> 10.53238962 | D126: =100-(D124+D125+D127) -> 7.496709002 | E126: 3.287951693 | F126: 1.046484652 | G126: 0.3659686177 | H126: 5.554266228 | I126: 2.565199867 | J126: 1.257344328 | K126: 0.3738838332 | L126: 0.2014120724 | M126: 7.000701595 | N126: 12.66777535 | O126: 14.45198237 | P126: 14.01760572 | Q126: 10.0625458 | R126: 3.944583085 | S126: 0.3696472799 | T126: 6.139980115 | U126: 5.677179644 | V126: 5.670335649 | W126: 3.198565371 | BB126: Unimproved | BC126: N/A | BD126: N/A | BE126: N/A | BF126: N/A | BG126: N/A | BH126: N/A | BI126: N/A | BJ126: N/A | BK126: N/A | BL126: N/A | BM126: N/A | BN126: N/A | BO126: N/A | BP126: N/A | BQ126: N/A | BR126: N/A | BS126: N/A | BT126: N/A | BU126: N/A | BV126: N/A | BW126: N/A
B127: Open defecation | C127: =C158 -> 32.65811704 | D127: =D158 -> 3.791674617 | E127: 0.5369190488 | F127: 0.06154822821 | G127: 0.01622476954 | H127: 5.768526762 | I127: 0.5045889376 | J127: 0.04305255379 | K127: 0.04128101443 | L127: 0.02207299489 | M127: 63.69620148 | N127: 31.76348168 | O127: 18.48786436 | P127: 6.325142828 | Q127: 1.989593029 | R127: 14.29698024 | S127: 0.03661200939 | T127: 5.158823628 | U127: 9.698583286 | V127: 6.799252528 | W127: 0.8926470992 | BB127: Open defecation | BC127: N/A | BD127: N/A | BE127: N/A | BF127: N/A | BG127: N/A | BH127: N/A | BI127: N/A | BJ127: N/A | BK127: N/A | BL127: N/A | BM127: N/A | BN127: N/A | BO127: N/A | BP127: N/A | BQ127: N/A | BR127: N/A | BS127: N/A | BT127: N/A | BU127: N/A | BV127: N/A | BW127: N/A
A128: Shared among Improved Sanitation | B128: Yes | C128: 25.9 | D128: 25.9 | E128: 15.4 | F128: 6.8 | G128: 2.5 | H128: 34.8 | I128: 19.3 | J128: 10.1 | K128: 4.6 | L128: 2.2 | M128: 14.1 | N128: 12.3 | O128: 12.9 | P128: 14.4 | Q128: 7 | R128: 14.1 | S128: 20.7 | T128: 10.6 | U128: 15.4 | V128: 19.9 | W128: 21.3 | BA128: Shared among improved sanitation facilities | BB128: Yes | BC128: N/A | BD128: N/A | BE128: N/A | BF128: N/A | BG128: N/A | BH128: N/A | BI128: N/A | BJ128: N/A | BK128: N/A | BL128: N/A | BM128: N/A | BN128: N/A | BO128: N/A | BP128: N/A | BQ128: N/A | BR128: N/A | BS128: N/A | BT128: N/A | BU128: N/A | BV128: N/A | BW128: N/A
B129: No | C129: 74.1 | D129: 74.1 | E129: 84.6 | F129: 93.2 | G129: 97.5 | H129: 65.2 | I129: 80.7 | J129: 89.9 | K129: 95.4 | L129: 97.8 | M129: 85.9 | N129: 87.7 | O129: 87.1 | P129: 85.6 | Q129: 93 | R129: 85.9 | S129: 79.3 | T129: 89.4 | U129: 84.6 | V129: 80.1 | W129: 78.7 | BB129: No | BC129: N/A | BD129: N/A | BE129: N/A | BF129: N/A | BG129: N/A | BH129: N/A | BI129: N/A | BJ129: N/A | BK129: N/A | BL129: N/A | BM129: N/A | BN129: N/A | BO129: N/A | BP129: N/A | BQ129: N/A | BR129: N/A | BS129: N/A | BT129: N/A | BU129: N/A | BV129: N/A | BW129: N/A
A130: Manually calculated ratios | B130: Improved latrines
B131: Other
B132: Other
C133: NATIONAL wealth index quintile | H133: URBAN wealth index quintile | M133: RURAL wealth index quintile | R133: SUB-REGIONS: | BA133: Raw numbers of respondents: | BB133: Use of sanitation facilities | BC133: NATIONAL wealth index quintile | BH133: URBAN wealth index quintile | BM133: RURAL wealth index quintile | BR133: SUB-REGIONS:
A134: Percentage based on weighted population | C134: Poorest | D134: Poor | E134: Middle | F134: Rich | G134: Richest | H134: Poorest | I134: Poor | J134: Middle | K134: Rich | L134: Richest | M134: Poorest | N134: Poor | O134: Middle | P134: Rich | Q134: Richest | R134: atlantica | S134: bogota | T134: central | U134: oriental | V134: pacifica | W134: territorios nacionales | BA134: Sanitation data, raw numbers (weighted) | BC134: Poorest | BD134: Poor | BE134: Middle | BF134: Rich | BG134: Richest | BH134: Poorest | BI134: Poor | BJ134: Middle | BK134: Rich | BL134: Richest | BM134: Poorest | BN134: Poor | BO134: Middle | BP134: Rich | BQ134: Richest | BR134: atlantica | BS134: bogota | BT134: central | BU134: oriental | BV134: pacifica | BW134: territorios nacionales
A135: Sanitation type | B135: Sewer connection | C135: 22.60863128 | D135: 64.21297072 | E135: 85.49119506 | F135: 94.18458275 | G135: 98.11097142 | H135: 73.66068676 | I135: 89.83107601 | J135: 94.84672375 | K135: 97.52316799 | L135: 99.01354865 | M135: 2.571290528 | N135: 10.95212821 | O135: 18.54851961 | P135: 33.06695631 | Q135: 48.85525886 | R135: 50.85677017 | S135: 99.54381525 | T135: 77.23698881 | U135: 65.93395146 | V135: 76.5591061 | W135: 85.58523474 | BA135: Sanitation type | BB135: Sewer connection | BC135: N/A | BD135: N/A | BE135: N/A | BF135: N/A | BG135: N/A | BH135: N/A | BI135: N/A | BJ135: N/A | BK135: N/A | BL135: N/A | BM135: N/A | BN135: N/A | BO135: N/A | BP135: N/A | BQ135: N/A | BR135: N/A | BS135: N/A | BT135: N/A | BU135: N/A | BV135: N/A | BW135: N/A
B136: Septic tank connection | C136: 31.02850101 | D136: 23.3739334 | E136: 10.44352301 | F136: 4.676987791 | G136: 1.498233191 | H136: 13.99075694 | I136: 6.820210285 | J136: 3.85026776 | K136: 2.037072154 | L136: 0.7629662835 | M136: 22.40580427 | N136: 40.95692752 | O136: 45.5494538 | P136: 44.50146441 | Q136: 38.54682889 | R136: 29.32727793 | S136: 0.04992546515 | T136: 10.94960533 | U136: 18.13028179 | V136: 9.083969056 | W136: 10.19614149 | BB136: Septic tank connection | BC136: N/A | BD136: N/A | BE136: N/A | BF136: N/A | BG136: N/A | BH136: N/A | BI136: N/A | BJ136: N/A | BK136: N/A | BL136: N/A | BM136: N/A | BN136: N/A | BO136: N/A | BP136: N/A | BQ136: N/A | BR136: N/A | BS136: N/A | BT136: N/A | BU136: N/A | BV136: N/A | BW136: N/A
B137: Improved latrines | C137: =C156*0.5 -> 3.172361055 | D137: =D156*0.5 -> 1.124712267 | E137: 0.2404111921 | F137: 0.03039657848 | G137: 0.008602000677 | H137: 1.025763315 | I137: 0.2789248996 | J137: 0.002611612953 | K137: 0.02459501175 | L137: 0 | M137: 4.326002133 | N137: 3.659687242 | O137: 2.962179851 | P137: 2.088830724 | Q137: 0.5457734233 | R137: 1.574388565 | S137: 0 | T137: 0.5146021162 | U137: 0.5600038178 | V137: 1.887336668 | W137: 0.1274113028 | BB137: Improved latrines | BC137: N/A | BD137: N/A | BE137: N/A | BF137: N/A | BG137: N/A | BH137: N/A | BI137: N/A | BJ137: N/A | BK137: N/A | BL137: N/A | BM137: N/A | BN137: N/A | BO137: N/A | BP137: N/A | BQ137: N/A | BR137: N/A | BS137: N/A | BT137: N/A | BU137: N/A | BV137: N/A | BW137: N/A
B138: Unimproved facilities | C138: =100-(C135+C136+C137+C139) -> 10.53238962 | D138: =100-(D135+D136+D137+D139) -> 7.496709002 | E138: 3.287951693 | F138: 1.046484652 | G138: 0.3659686177 | H138: 5.554266228 | I138: 2.565199867 | J138: 1.257344328 | K138: 0.3738838332 | L138: 0.2014120724 | M138: 7.000701595 | N138: 12.66777535 | O138: 14.45198237 | P138: 14.01760572 | Q138: 10.0625458 | R138: 3.944583085 | S138: 0.3696472799 | T138: 6.139980115 | U138: 5.677179644 | V138: 5.670335649 | W138: 3.198565371 | BB138: Unimproved facilities | BC138: N/A | BD138: N/A | BE138: N/A | BF138: N/A | BG138: N/A | BH138: N/A | BI138: N/A | BJ138: N/A | BK138: N/A | BL138: N/A | BM138: N/A | BN138: N/A | BO138: N/A | BP138: N/A | BQ138: N/A | BR138: N/A | BS138: N/A | BT138: N/A | BU138: N/A | BV138: N/A | BW138: N/A
B139: Open defecation | C139: 32.65811704 | D139: 3.791674617 | E139: 0.5369190488 | F139: 0.06154822821 | G139: 0.01622476954 | H139: 5.768526762 | I139: 0.5045889376 | J139: 0.04305255379 | K139: 0.04128101443 | L139: 0.02207299489 | M139: 63.69620148 | N139: 31.76348168 | O139: 18.48786436 | P139: 6.325142828 | Q139: 1.989593029 | R139: 14.29698024 | S139: 0.03661200939 | T139: 5.158823628 | U139: 9.698583286 | V139: 6.799252528 | W139: 0.8926470992 | BB139: Open defecation | BC139: N/A | BD139: N/A | BE139: N/A | BF139: N/A | BG139: N/A | BH139: N/A | BI139: N/A | BJ139: N/A | BK139: N/A | BL139: N/A | BM139: N/A | BN139: N/A | BO139: N/A | BP139: N/A | BQ139: N/A | BR139: N/A | BS139: N/A | BT139: N/A | BU139: N/A | BV139: N/A | BW139: N/A
A140: Septic tank emptying practices | B140: Not emptied/treated and disposed in situ | C140: N/A | D140: N/A | E140: N/A | F140: N/A | G140: N/A | H140: N/A | I140: N/A | J140: N/A | K140: N/A | L140: N/A | M140: N/A | N140: N/A | O140: N/A | P140: N/A | Q140: N/A | R140: N/A | S140: N/A | T140: N/A | U140: N/A | V140: N/A | W140: N/A | BA140: Septic tank emptying practices | BB140: Not emptied/treated and disposed in situ | BC140: N/A | BD140: N/A | BE140: N/A | BF140: N/A | BG140: N/A | BH140: N/A | BI140: N/A | BJ140: N/A | BK140: N/A | BL140: N/A | BM140: N/A | BN140: N/A | BO140: N/A | BP140: N/A | BQ140: N/A | BR140: N/A | BS140: N/A | BT140: N/A | BU140: N/A | BV140: N/A | BW140: N/A
B141: Emptied and buried on site | C141: N/A | D141: N/A | E141: N/A | F141: N/A | G141: N/A | H141: N/A | I141: N/A | J141: N/A | K141: N/A | L141: N/A | M141: N/A | N141: N/A | O141: N/A | P141: N/A | Q141: N/A | R141: N/A | S141: N/A | T141: N/A | U141: N/A | V141: N/A | W141: N/A | BB141: Emptied and buried on site | BC141: N/A | BD141: N/A | BE141: N/A | BF141: N/A | BG141: N/A | BH141: N/A | BI141: N/A | BJ141: N/A | BK141: N/A | BL141: N/A | BM141: N/A | BN141: N/A | BO141: N/A | BP141: N/A | BQ141: N/A | BR141: N/A | BS141: N/A | BT141: N/A | BU141: N/A | BV141: N/A | BW141: N/A
B142: Emptied and discharged locally | C142: N/A | D142: N/A | E142: N/A | F142: N/A | G142: N/A | H142: N/A | I142: N/A | J142: N/A | K142: N/A | L142: N/A | M142: N/A | N142: N/A | O142: N/A | P142: N/A | Q142: N/A | R142: N/A | S142: N/A | T142: N/A | U142: N/A | V142: N/A | W142: N/A | BB142: Emptied and discharged locally | BC142: N/A | BD142: N/A | BE142: N/A | BF142: N/A | BG142: N/A | BH142: N/A | BI142: N/A | BJ142: N/A | BK142: N/A | BL142: N/A | BM142: N/A | BN142: N/A | BO142: N/A | BP142: N/A | BQ142: N/A | BR142: N/A | BS142: N/A | BT142: N/A | BU142: N/A | BV142: N/A | BW142: N/A
B143: Emptied and removed offsite | C143: N/A | D143: N/A | E143: N/A | F143: N/A | G143: N/A | H143: N/A | I143: N/A | J143: N/A | K143: N/A | L143: N/A | M143: N/A | N143: N/A | O143: N/A | P143: N/A | Q143: N/A | R143: N/A | S143: N/A | T143: N/A | U143: N/A | V143: N/A | W143: N/A | BB143: Emptied and removed offsite | BC143: N/A | BD143: N/A | BE143: N/A | BF143: N/A | BG143: N/A | BH143: N/A | BI143: N/A | BJ143: N/A | BK143: N/A | BL143: N/A | BM143: N/A | BN143: N/A | BO143: N/A | BP143: N/A | BQ143: N/A | BR143: N/A | BS143: N/A | BT143: N/A | BU143: N/A | BV143: N/A | BW143: N/A
A144: Latrine emptying practices | B144: Not emptied/treated and disposed in situ | C144: N/A | D144: N/A | E144: N/A | F144: N/A | G144: N/A | H144: N/A | I144: N/A | J144: N/A | K144: N/A | L144: N/A | M144: N/A | N144: N/A | O144: N/A | P144: N/A | Q144: N/A | R144: N/A | S144: N/A | T144: N/A | U144: N/A | V144: N/A | W144: N/A | BA144: Latrine emptying practices | BB144: Not emptied/treated and disposed in situ | BC144: N/A | BD144: N/A | BE144: N/A | BF144: N/A | BG144: N/A | BH144: N/A | BI144: N/A | BJ144: N/A | BK144: N/A | BL144: N/A | BM144: N/A | BN144: N/A | BO144: N/A | BP144: N/A | BQ144: N/A | BR144: N/A | BS144: N/A | BT144: N/A | BU144: N/A | BV144: N/A | BW144: N/A
B145: Emptied and buried on site | C145: N/A | D145: N/A | E145: N/A | F145: N/A | G145: N/A | H145: N/A | I145: N/A | J145: N/A | K145: N/A | L145: N/A | M145: N/A | N145: N/A | O145: N/A | P145: N/A | Q145: N/A | R145: N/A | S145: N/A | T145: N/A | U145: N/A | V145: N/A | W145: N/A | BB145: Emptied and buried on site | BC145: N/A | BD145: N/A | BE145: N/A | BF145: N/A | BG145: N/A | BH145: N/A | BI145: N/A | BJ145: N/A | BK145: N/A | BL145: N/A | BM145: N/A | BN145: N/A | BO145: N/A | BP145: N/A | BQ145: N/A | BR145: N/A | BS145: N/A | BT145: N/A | BU145: N/A | BV145: N/A | BW145: N/A
B146: Emptied and discharged locally | C146: N/A | D146: N/A | E146: N/A | F146: N/A | G146: N/A | H146: N/A | I146: N/A | J146: N/A | K146: N/A | L146: N/A | M146: N/A | N146: N/A | O146: N/A | P146: N/A | Q146: N/A | R146: N/A | S146: N/A | T146: N/A | U146: N/A | V146: N/A | W146: N/A | BB146: Emptied and discharged locally | BC146: N/A | BD146: N/A | BE146: N/A | BF146: N/A | BG146: N/A | BH146: N/A | BI146: N/A | BJ146: N/A | BK146: N/A | BL146: N/A | BM146: N/A | BN146: N/A | BO146: N/A | BP146: N/A | BQ146: N/A | BR146: N/A | BS146: N/A | BT146: N/A | BU146: N/A | BV146: N/A | BW146: N/A
B147: Emptied and removed offsite | C147: N/A | D147: N/A | E147: N/A | F147: N/A | G147: N/A | H147: N/A | I147: N/A | J147: N/A | K147: N/A | L147: N/A | M147: N/A | N147: N/A | O147: N/A | P147: N/A | Q147: N/A | R147: N/A | S147: N/A | T147: N/A | U147: N/A | V147: N/A | W147: N/A | BB147: Emptied and removed offsite | BC147: N/A | BD147: N/A | BE147: N/A | BF147: N/A | BG147: N/A | BH147: N/A | BI147: N/A | BJ147: N/A | BK147: N/A | BL147: N/A | BM147: N/A | BN147: N/A | BO147: N/A | BP147: N/A | BQ147: N/A | BR147: N/A | BS147: N/A | BT147: N/A | BU147: N/A | BV147: N/A | BW147: N/A
A148: Shared among improved sanitation facilities | B148: Yes | C148: N/A | D148: N/A | E148: N/A | F148: N/A | G148: N/A | H148: N/A | I148: N/A | J148: N/A | K148: N/A | L148: N/A | M148: N/A | N148: N/A | O148: N/A | P148: N/A | Q148: N/A | R148: N/A | S148: N/A | T148: N/A | U148: N/A | V148: N/A | W148: N/A | BA148: Shared among improved sanitation facilities | BB148: Yes | BC148: N/A | BD148: N/A | BE148: N/A | BF148: N/A | BG148: N/A | BH148: N/A | BI148: N/A | BJ148: N/A | BK148: N/A | BL148: N/A | BM148: N/A | BN148: N/A | BO148: N/A | BP148: N/A | BQ148: N/A | BR148: N/A | BS148: N/A | BT148: N/A | BU148: N/A | BV148: N/A | BW148: N/A
B149: No | C149: N/A | D149: N/A | E149: N/A | F149: N/A | G149: N/A | H149: N/A | I149: N/A | J149: N/A | K149: N/A | L149: N/A | M149: N/A | N149: N/A | O149: N/A | P149: N/A | Q149: N/A | R149: N/A | S149: N/A | T149: N/A | U149: N/A | V149: N/A | W149: N/A | BB149: No | BC149: N/A | BD149: N/A | BE149: N/A | BF149: N/A | BG149: N/A | BH149: N/A | BI149: N/A | BJ149: N/A | BK149: N/A | BL149: N/A | BM149: N/A | BN149: N/A | BO149: N/A | BP149: N/A | BQ149: N/A | BR149: N/A | BS149: N/A | BT149: N/A | BU149: N/A | BV149: N/A | BW149: N/A
B150: DK/missing | C150: N/A | D150: N/A | E150: N/A | F150: N/A | G150: N/A | H150: N/A | I150: N/A | J150: N/A | K150: N/A | L150: N/A | M150: N/A | N150: N/A | O150: N/A | P150: N/A | Q150: N/A | R150: N/A | S150: N/A | T150: N/A | U150: N/A | V150: N/A | W150: N/A | BB150: DK/missing | BC150: N/A | BD150: N/A | BE150: N/A | BF150: N/A | BG150: N/A | BH150: N/A | BI150: N/A | BJ150: N/A | BK150: N/A | BL150: N/A | BM150: N/A | BN150: N/A | BO150: N/A | BP150: N/A | BQ150: N/A | BR150: N/A | BS150: N/A | BT150: N/A | BU150: N/A | BV150: N/A | BW150: N/A
A151: Shared among all sanitation facilities | B151: Yes | C151: 81.49471154 | D151: 77.89064852 | E151: 85.72716182 | F151: 93.32894732 | G151: 97.58054758 | H151: 68.07603432 | I151: 82.37176342 | J151: 89.89094455 | K151: 95.74118399 | L151: 97.7674893 | M151: 85.97227204 | N151: 89.75088335 | O151: 90.25637722 | P151: 89.15450105 | Q151: 93.04148499 | R151: 87.66670954 | S151: 84.00795983 | T151: 92.17526232 | U151: 88.75551435 | V151: 84.22631689 | W151: 80.18570032 | BA151: Shared among all sanitation facilities | BB151: Yes | BC151: N/A | BD151: N/A | BE151: N/A | BF151: N/A | BG151: N/A | BH151: N/A | BI151: N/A | BJ151: N/A | BK151: N/A | BL151: N/A | BM151: N/A | BN151: N/A | BO151: N/A | BP151: N/A | BQ151: N/A | BR151: N/A | BS151: N/A | BT151: N/A | BU151: N/A | BV151: N/A | BW151: N/A
B152: No | C152: 18.50528846 | D152: 22.10935148 | E152: 14.27283818 | F152: 6.671052675 | G152: 2.419452422 | H152: 31.92396568 | I152: 17.62823658 | J152: 10.10905545 | K152: 4.258816014 | L152: 2.232510699 | M152: 14.02772796 | N152: 10.24911665 | O152: 9.743622776 | P152: 10.84549895 | Q152: 6.95851501 | R152: 12.33329046 | S152: 15.99204017 | T152: 7.824737683 | U152: 11.24448565 | V152: 15.77368311 | W152: 19.81429968 | BB152: No | BC152: N/A | BD152: N/A | BE152: N/A | BF152: N/A | BG152: N/A | BH152: N/A | BI152: N/A | BJ152: N/A | BK152: N/A | BL152: N/A | BM152: N/A | BN152: N/A | BO152: N/A | BP152: N/A | BQ152: N/A | BR152: N/A | BS152: N/A | BT152: N/A | BU152: N/A | BV152: N/A | BW152: N/A
A153: type of toilet facility | B153: toilet connected to sewer | C153: 22.60863128 | D153: 64.21297072 | E153: 85.49119506 | F153: 94.18458275 | G153: 98.11097142 | H153: 73.66068676 | I153: 89.83107601 | J153: 94.84672375 | K153: 97.52316799 | L153: 99.01354865 | M153: 2.571290528 | N153: 10.95212821 | O153: 18.54851961 | P153: 33.06695631 | Q153: 48.85525886 | R153: 50.85677017 | S153: 99.54381525 | T153: 77.23698881 | U153: 65.93395146 | V153: 76.5591061 | W153: 85.58523474 | BA153: type of toilet facility | BB153: toilet connected to sewer
B154: toilet connected to septic well | C154: 31.02850101 | D154: 23.3739334 | E154: 10.44352301 | F154: 4.676987791 | G154: 1.498233191 | H154: 13.99075694 | I154: 6.820210285 | J154: 3.85026776 | K154: 2.037072154 | L154: 0.7629662835 | M154: 22.40580427 | N154: 40.95692752 | O154: 45.5494538 | P154: 44.50146441 | Q154: 38.54682889 | R154: 29.32727793 | S154: 0.04992546515 | T154: 10.94960533 | U154: 18.13028179 | V154: 9.083969056 | W154: 10.19614149 | BB154: toilet connected to septic well
B155: toilet connected to plot/yard | C155: 5.423608975 | D155: 4.338445367 | E155: 1.919735923 | F155: 0.334553283 | G155: 0.1777248938 | H155: 3.082641321 | I155: 1.376463946 | J155: 0.4418618281 | K155: 0.1715282075 | L155: 0.06247232785 | M155: 2.131221651 | N155: 6.672861971 | O155: 8.414581601 | P155: 8.09523813 | Q155: 6.476230263 | R155: 1.893154061 | S155: 0.3114009039 | T155: 4.12700371 | U155: 2.952038174 | V155: 2.18529697 | W155: 0.9588386797 | BB155: toilet connected to plot/yard
B156: traditional pit toilet | C156: 6.34472211 | D156: 2.249424535 | E156: 0.4808223842 | F156: 0.06079315696 | G156: 0.01720400135 | H156: 2.05152663 | I156: 0.5578497992 | J156: 0.005223225907 | K156: 0.0491900235 | L156: 0 | M156: 8.652004266 | N156: 7.319374484 | O156: 5.924359701 | P156: 4.177661449 | Q156: 1.091546847 | R156: 3.14877713 | S156: 0 | T156: 1.029204232 | U156: 1.120007636 | V156: 3.774673337 | W156: 0.2548226057 | BB156: traditional pit toilet
B157: traditional toilet to sea/river (low tide) | C157: 1.694641847 | D157: 1.908512185 | E157: 1.068193137 | F157: 0.6618910217 | G157: 0.144944976 | H157: 1.347227431 | I157: 0.8938485934 | J157: 0.7824202112 | K157: 0.1777606139 | L157: 0.09173653954 | M157: 0.4612613169 | N157: 2.178059517 | O157: 2.51053572 | P157: 3.624201109 | Q157: 2.771856569 | R157: 0.4103500941 | S157: 0.05824637601 | T157: 1.417012574 | U157: 1.869239054 | V157: 1.560353582 | W157: 2.014987375 | BB157: traditional toilet to sea/river (low tide)
B158: no toilet facility | C158: 32.65811704 | D158: 3.791674617 | E158: 0.5369190488 | F158: 0.06154822821 | G158: 0.01622476954 | H158: 5.768526762 | I158: 0.5045889376 | J158: 0.04305255379 | K158: 0.04128101443 | L158: 0.02207299489 | M158: 63.69620148 | N158: 31.76348168 | O158: 18.48786436 | P158: 6.325142828 | Q158: 1.989593029 | R158: 14.29698024 | S158: 0.03661200939 | T158: 5.158823628 | U158: 9.698583286 | V158: 6.799252528 | W158: 0.8926470992 | BB158: no toilet facility
B159: other | C159: 0.2417777421 | D159: 0.1250391828 | E159: 0.0596114403 | F159: 0.01964376873 | G159: 0.03469674716 | H159: 0.09863416056 | I159: 0.015962428 | J159: 0.03045067574 | K159: 0 | L159: 0.04720320502 | M159: 0.08221649427 | N159: 0.1571666198 | O159: 0.5646851993 | P159: 0.2093357602 | Q159: 0.2686855465 | R159: 0.06669036553 | S159: 0 | T159: 0.08136171505 | U159: 0.2958985988 | V159: 0.03734842881 | W159: 0.09732801358 | BB159: other
BB160: Total
A208: =A1026 -> Colombia
A209: =A1034 -> 2005
A210: Access to hygiene facilities
A211: by wealth quintile and sub-national region
A212: Notes:
A213: WHO/UNICEF JMP customised wealth index excludes water,
A214: sanitation and hygiene assets.
A215: Survey used for analysis: | B215: =A1025 -> DHS05
A220: Access to handwashing | C220: NATIONAL wealth index quintile | H220: URBAN wealth index quintile | M220: RURAL wealth index quintile | R220: SUB-REGIONS: | BA220: Raw numbers of respondents: | BB220: Access to handwashing | BC220: NATIONAL wealth index quintile | BH220: URBAN wealth index quintile | BM220: RURAL wealth index quintile | BR220: SUB-REGIONS:
A221: Weighted percentage (used in graphs) | C221: Poorest | D221: Poor | E221: Middle | F221: Rich | G221: Richest | H221: Poorest | I221: Poor | J221: Middle | K221: Rich | L221: Richest | M221: Poorest | N221: Poor | O221: Middle | P221: Rich | Q221: Richest | R221: atlantica | S221: bogota | T221: central | U221: oriental | V221: pacifica | W221: territorios nacionales | BA221: Hygiene data, raw numbers (weighted) | BC221: Poorest | BD221: Poor | BE221: Middle | BF221: Rich | BG221: Richest | BH221: Poorest | BI221: Poor | BJ221: Middle | BK221: Rich | BL221: Richest | BM221: Poorest | BN221: Poor | BO221: Middle | BP221: Rich | BQ221: Richest | BR221: atlantica | BS221: bogota | BT221: central | BU221: oriental | BV221: pacifica | BW221: territorios nacionales
A222: Hygiene ladder | B222: Basic | C222: N/A | D222: N/A | E222: N/A | F222: N/A | G222: N/A | H222: N/A | I222: N/A | J222: N/A | K222: N/A | L222: N/A | M222: N/A | N222: N/A | O222: N/A | P222: N/A | Q222: N/A | R222: N/A | S222: N/A | T222: N/A | U222: N/A | V222: N/A | W222: N/A | BA222: Hygiene ladder | BB222: Basic | BC222: N/A | BD222: N/A | BE222: N/A | BF222: N/A | BG222: N/A | BH222: N/A | BI222: N/A | BJ222: N/A | BK222: N/A | BL222: N/A | BM222: N/A | BN222: N/A | BO222: N/A | BP222: N/A | BQ222: N/A | BR222: N/A | BS222: N/A | BT222: N/A | BU222: N/A | BV222: N/A | BW222: N/A
B223: Limited | C223: N/A | D223: N/A | E223: N/A | F223: N/A | G223: N/A | H223: N/A | I223: N/A | J223: N/A | K223: N/A | L223: N/A | M223: N/A | N223: N/A | O223: N/A | P223: N/A | Q223: N/A | R223: N/A | S223: N/A | T223: N/A | U223: N/A | V223: N/A | W223: N/A | BB223: Limited | BC223: N/A | BD223: N/A | BE223: N/A | BF223: N/A | BG223: N/A | BH223: N/A | BI223: N/A | BJ223: N/A | BK223: N/A | BL223: N/A | BM223: N/A | BN223: N/A | BO223: N/A | BP223: N/A | BQ223: N/A | BR223: N/A | BS223: N/A | BT223: N/A | BU223: N/A | BV223: N/A | BW223: N/A
B224: No facility | C224: N/A | D224: N/A | E224: N/A | F224: N/A | G224: N/A | H224: N/A | I224: N/A | J224: N/A | K224: N/A | L224: N/A | M224: N/A | N224: N/A | O224: N/A | P224: N/A | Q224: N/A | R224: N/A | S224: N/A | T224: N/A | U224: N/A | V224: N/A | W224: N/A | BB224: No facility | BC224: N/A | BD224: N/A | BE224: N/A | BF224: N/A | BG224: N/A | BH224: N/A | BI224: N/A | BJ224: N/A | BK224: N/A | BL224: N/A | BM224: N/A | BN224: N/A | BO224: N/A | BP224: N/A | BQ224: N/A | BR224: N/A | BS224: N/A | BT224: N/A | BU224: N/A | BV224: N/A | BW224: N/A
BA225: Observed handwashing place | BB225: Fixed | BC225: N/A | BD225: N/A | BE225: N/A | BF225: N/A | BG225: N/A | BH225: N/A | BI225: N/A | BJ225: N/A | BK225: N/A | BL225: N/A | BM225: N/A | BN225: N/A | BO225: N/A | BP225: N/A | BQ225: N/A | BR225: N/A | BS225: N/A | BT225: N/A | BU225: N/A | BV225: N/A | BW225: N/A
BB226: Mobile | BC226: N/A | BD226: N/A | BE226: N/A | BF226: N/A | BG226: N/A | BH226: N/A | BI226: N/A | BJ226: N/A | BK226: N/A | BL226: N/A | BM226: N/A | BN226: N/A | BO226: N/A | BP226: N/A | BQ226: N/A | BR226: N/A | BS226: N/A | BT226: N/A | BU226: N/A | BV226: N/A | BW226: N/A
BA227: Water / Soap | BB227: Water and soap | BC227: N/A | BD227: N/A | BE227: N/A | BF227: N/A | BG227: N/A | BH227: N/A | BI227: N/A | BJ227: N/A | BK227: N/A | BL227: N/A | BM227: N/A | BN227: N/A | BO227: N/A | BP227: N/A | BQ227: N/A | BR227: N/A | BS227: N/A | BT227: N/A | BU227: N/A | BV227: N/A | BW227: N/A
BB228: Water only | BC228: N/A | BD228: N/A | BE228: N/A | BF228: N/A | BG228: N/A | BH228: N/A | BI228: N/A | BJ228: N/A | BK228: N/A | BL228: N/A | BM228: N/A | BN228: N/A | BO228: N/A | BP228: N/A | BQ228: N/A | BR228: N/A | BS228: N/A | BT228: N/A | BU228: N/A | BV228: N/A | BW228: N/A
BB229: Soap only | BC229: N/A | BD229: N/A | BE229: N/A | BF229: N/A | BG229: N/A | BH229: N/A | BI229: N/A | BJ229: N/A | BK229: N/A | BL229: N/A | BM229: N/A | BN229: N/A | BO229: N/A | BP229: N/A | BQ229: N/A | BR229: N/A | BS229: N/A | BT229: N/A | BU229: N/A | BV229: N/A | BW229: N/A
BB230: Neither | BC230: N/A | BD230: N/A | BE230: N/A | BF230: N/A | BG230: N/A | BH230: N/A | BI230: N/A | BJ230: N/A | BK230: N/A | BL230: N/A | BM230: N/A | BN230: N/A | BO230: N/A | BP230: N/A | BQ230: N/A | BR230: N/A | BS230: N/A | BT230: N/A | BU230: N/A | BV230: N/A | BW230: N/A
BA259: Raw numbers of respondents: | BB259: Menstrual health and hygiene | BC259: NATIONAL wealth index quintile | BH259: URBAN wealth index quintile | BM259: RURAL wealth index quintile | BR259: SUB-REGIONS:
BA260: MHH data, raw numbers (weighted) | BC260: Poorest | BD260: Poor | BE260: Middle | BF260: Rich | BG260: Richest | BH260: Poorest | BI260: Poor | BJ260: Middle | BK260: Rich | BL260: Richest | BM260: Poorest | BN260: Poor | BO260: Middle | BP260: Rich | BQ260: Richest | BR260: atlantica | BS260: bogota | BT260: central | BU260: oriental | BV260: pacifica | BW260: territorios nacionales
BA261: Private place to wash and change | BB261: Yes | BC261: N/A | BD261: N/A | BE261: N/A | BF261: N/A | BG261: N/A | BH261: N/A | BI261: N/A | BJ261: N/A | BK261: N/A | BL261: N/A | BM261: N/A | BN261: N/A | BO261: N/A | BP261: N/A | BQ261: N/A | BR261: N/A | BS261: N/A | BT261: N/A | BU261: N/A | BV261: N/A | BW261: N/A
BB262: No | BC262: N/A | BD262: N/A | BE262: N/A | BF262: N/A | BG262: N/A | BH262: N/A | BI262: N/A | BJ262: N/A | BK262: N/A | BL262: N/A | BM262: N/A | BN262: N/A | BO262: N/A | BP262: N/A | BQ262: N/A | BR262: N/A | BS262: N/A | BT262: N/A | BU262: N/A | BV262: N/A | BW262: N/A
BB263: DK/not sure/missing | BC263: N/A | BD263: N/A | BE263: N/A | BF263: N/A | BG263: N/A | BH263: N/A | BI263: N/A | BJ263: N/A | BK263: N/A | BL263: N/A | BM263: N/A | BN263: N/A | BO263: N/A | BP263: N/A | BQ263: N/A | BR263: N/A | BS263: N/A | BT263: N/A | BU263: N/A | BV263: N/A | BW263: N/A
BA264: Use of menstrual materials | BB264: Materials reusable | BC264: N/A | BD264: N/A | BE264: N/A | BF264: N/A | BG264: N/A | BH264: N/A | BI264: N/A | BJ264: N/A | BK264: N/A | BL264: N/A | BM264: N/A | BN264: N/A | BO264: N/A | BP264: N/A | BQ264: N/A | BR264: N/A | BS264: N/A | BT264: N/A | BU264: N/A | BV264: N/A | BW264: N/A
BB265: Materials not reusable | BC265: N/A | BD265: N/A | BE265: N/A | BF265: N/A | BG265: N/A | BH265: N/A | BI265: N/A | BJ265: N/A | BK265: N/A | BL265: N/A | BM265: N/A | BN265: N/A | BO265: N/A | BP265: N/A | BQ265: N/A | BR265: N/A | BS265: N/A | BT265: N/A | BU265: N/A | BV265: N/A | BW265: N/A
BB266: No materials used | BC266: N/A | BD266: N/A | BE266: N/A | BF266: N/A | BG266: N/A | BH266: N/A | BI266: N/A | BJ266: N/A | BK266: N/A | BL266: N/A | BM266: N/A | BN266: N/A | BO266: N/A | BP266: N/A | BQ266: N/A | BR266: N/A | BS266: N/A | BT266: N/A | BU266: N/A | BV266: N/A | BW266: N/A
BB267: DK/not sure/missing | BC267: N/A | BD267: N/A | BE267: N/A | BF267: N/A | BG267: N/A | BH267: N/A | BI267: N/A | BJ267: N/A | BK267: N/A | BL267: N/A | BM267: N/A | BN267: N/A | BO267: N/A | BP267: N/A | BQ267: N/A | BR267: N/A | BS267: N/A | BT267: N/A | BU267: N/A | BV267: N/A | BW267: N/A
BA268: Use of menstrual materials with private place to wash and change | BB268: Materials reusable | BC268: N/A | BD268: N/A | BE268: N/A | BF268: N/A | BG268: N/A | BH268: N/A | BI268: N/A | BJ268: N/A | BK268: N/A | BL268: N/A | BM268: N/A | BN268: N/A | BO268: N/A | BP268: N/A | BQ268: N/A | BR268: N/A | BS268: N/A | BT268: N/A | BU268: N/A | BV268: N/A | BW268: N/A
BB269: Materials not reusable | BC269: N/A | BD269: N/A | BE269: N/A | BF269: N/A | BG269: N/A | BH269: N/A | BI269: N/A | BJ269: N/A | BK269: N/A | BL269: N/A | BM269: N/A | BN269: N/A | BO269: N/A | BP269: N/A | BQ269: N/A | BR269: N/A | BS269: N/A | BT269: N/A | BU269: N/A | BV269: N/A | BW269: N/A
BB270: No materials used | BC270: N/A | BD270: N/A | BE270: N/A | BF270: N/A | BG270: N/A | BH270: N/A | BI270: N/A | BJ270: N/A | BK270: N/A | BL270: N/A | BM270: N/A | BN270: N/A | BO270: N/A | BP270: N/A | BQ270: N/A | BR270: N/A | BS270: N/A | BT270: N/A | BU270: N/A | BV270: N/A | BW270: N/A
BA271: Awareness of menstruation before menarche | BB271: Yes | BC271: N/A | BD271: N/A | BE271: N/A | BF271: N/A | BG271: N/A | BH271: N/A | BI271: N/A | BJ271: N/A | BK271: N/A | BL271: N/A | BM271: N/A | BN271: N/A | BO271: N/A | BP271: N/A | BQ271: N/A | BR271: N/A | BS271: N/A | BT271: N/A | BU271: N/A | BV271: N/A | BW271: N/A
BB272: No | BC272: N/A | BD272: N/A | BE272: N/A | BF272: N/A | BG272: N/A | BH272: N/A | BI272: N/A | BJ272: N/A | BK272: N/A | BL272: N/A | BM272: N/A | BN272: N/A | BO272: N/A | BP272: N/A | BQ272: N/A | BR272: N/A | BS272: N/A | BT272: N/A | BU272: N/A | BV272: N/A | BW272: N/A
BB273: DK/not sure/missing | BC273: N/A | BD273: N/A | BE273: N/A | BF273: N/A | BG273: N/A | BH273: N/A | BI273: N/A | BJ273: N/A | BK273: N/A | BL273: N/A | BM273: N/A | BN273: N/A | BO273: N/A | BP273: N/A | BQ273: N/A | BR273: N/A | BS273: N/A | BT273: N/A | BU273: N/A | BV273: N/A | BW273: N/A
BA274: Participation in (all) activities during menstruation | BB274: Yes | BC274: N/A | BD274: N/A | BE274: N/A | BF274: N/A | BG274: N/A | BH274: N/A | BI274: N/A | BJ274: N/A | BK274: N/A | BL274: N/A | BM274: N/A | BN274: N/A | BO274: N/A | BP274: N/A | BQ274: N/A | BR274: N/A | BS274: N/A | BT274: N/A | BU274: N/A | BV274: N/A | BW274: N/A
BB275: No | BC275: N/A | BD275: N/A | BE275: N/A | BF275: N/A | BG275: N/A | BH275: N/A | BI275: N/A | BJ275: N/A | BK275: N/A | BL275: N/A | BM275: N/A | BN275: N/A | BO275: N/A | BP275: N/A | BQ275: N/A | BR275: N/A | BS275: N/A | BT275: N/A | BU275: N/A | BV275: N/A | BW275: N/A
BB276: DK/not sure/missing/no such activity | BC276: N/A | BD276: N/A | BE276: N/A | BF276: N/A | BG276: N/A | BH276: N/A | BI276: N/A | BJ276: N/A | BK276: N/A | BL276: N/A | BM276: N/A | BN276: N/A | BO276: N/A | BP276: N/A | BQ276: N/A | BR276: N/A | BS276: N/A | BT276: N/A | BU276: N/A | BV276: N/A | BW276: N/A
BA277: Participation in specific activities during menstruation | BB277: Did not go to school (amongst those usually attending school) | BC277: N/A | BD277: N/A | BE277: N/A | BF277: N/A | BG277: N/A | BH277: N/A | BI277: N/A | BJ277: N/A | BK277: N/A | BL277: N/A | BM277: N/A | BN277: N/A | BO277: N/A | BP277: N/A | BQ277: N/A | BR277: N/A | BS277: N/A | BT277: N/A | BU277: N/A | BV277: N/A | BW277: N/A
BB278: Did not go to work (amongst those who usually work) | BC278: N/A | BD278: N/A | BE278: N/A | BF278: N/A | BG278: N/A | BH278: N/A | BI278: N/A | BJ278: N/A | BK278: N/A | BL278: N/A | BM278: N/A | BN278: N/A | BO278: N/A | BP278: N/A | BQ278: N/A | BR278: N/A | BS278: N/A | BT278: N/A | BU278: N/A | BV278: N/A | BW278: N/A
BB279: Did not participate in social activities | BC279: N/A | BD279: N/A | BE279: N/A | BF279: N/A | BG279: N/A | BH279: N/A | BI279: N/A | BJ279: N/A | BK279: N/A | BL279: N/A | BM279: N/A | BN279: N/A | BO279: N/A | BP279: N/A | BQ279: N/A | BR279: N/A | BS279: N/A | BT279: N/A | BU279: N/A | BV279: N/A | BW279: N/A
BB280: Did not cook food | BC280: N/A | BD280: N/A | BE280: N/A | BF280: N/A | BG280: N/A | BH280: N/A | BI280: N/A | BJ280: N/A | BK280: N/A | BL280: N/A | BM280: N/A | BN280: N/A | BO280: N/A | BP280: N/A | BQ280: N/A | BR280: N/A | BS280: N/A | BT280: N/A | BU280: N/A | BV280: N/A | BW280: N/A
BB281: Did not eat with others | BC281: N/A | BD281: N/A | BE281: N/A | BF281: N/A | BG281: N/A | BH281: N/A | BI281: N/A | BJ281: N/A | BK281: N/A | BL281: N/A | BM281: N/A | BN281: N/A | BO281: N/A | BP281: N/A | BQ281: N/A | BR281: N/A | BS281: N/A | BT281: N/A | BU281: N/A | BV281: N/A | BW281: N/A
BB282: Did not bathe in regular place | BC282: N/A | BD282: N/A | BE282: N/A | BF282: N/A | BG282: N/A | BH282: N/A | BI282: N/A | BJ282: N/A | BK282: N/A | BL282: N/A | BM282: N/A | BN282: N/A | BO282: N/A | BP282: N/A | BQ282: N/A | BR282: N/A | BS282: N/A | BT282: N/A | BU282: N/A | BV282: N/A | BW282: N/A
BB283: Did not participate in other activities | BC283: N/A | BD283: N/A | BE283: N/A | BF283: N/A | BG283: N/A | BH283: N/A | BI283: N/A | BJ283: N/A | BK283: N/A | BL283: N/A | BM283: N/A | BN283: N/A | BO283: N/A | BP283: N/A | BQ283: N/A | BR283: N/A | BS283: N/A | BT283: N/A | BU283: N/A | BV283: N/A | BW283: N/A
BB284: DK/not sure/missing/no such activity | BC284: N/A | BD284: N/A | BE284: N/A | BF284: N/A | BG284: N/A | BH284: N/A | BI284: N/A | BJ284: N/A | BK284: N/A | BL284: N/A | BM284: N/A | BN284: N/A | BO284: N/A | BP284: N/A | BQ284: N/A | BR284: N/A | BS284: N/A | BT284: N/A | BU284: N/A | BV284: N/A | BW284: N/A
BA339: Raw numbers of respondents: | BB339: Basic water, sanitation and hygiene | BC339: NATIONAL wealth index quintile | BH339: URBAN wealth index quintile | BM339: RURAL wealth index quintile | BR339: SUB-REGIONS:
BA340: WatSan data, raw numbers (weighted) | BC340: Poorest | BD340: Poor | BE340: Middle | BF340: Rich | BG340: Richest | BH340: Poorest | BI340: Poor | BJ340: Middle | BK340: Rich | BL340: Richest | BM340: Poorest | BN340: Poor | BO340: Middle | BP340: Rich | BQ340: Richest | BR340: atlantica | BS340: bogota | BT340: central | BU340: oriental | BV340: pacifica | BW340: territorios nacionales
BA341: Use of Basic Water Sanitation and Hygiene | BB341: Yes | BC341: N/A | BD341: N/A | BE341: N/A | BF341: N/A | BG341: N/A | BH341: N/A | BI341: N/A | BJ341: N/A | BK341: N/A | BL341: N/A | BM341: N/A | BN341: N/A | BO341: N/A | BP341: N/A | BQ341: N/A | BR341: N/A | BS341: N/A | BT341: N/A | BU341: N/A | BV341: N/A | BW341: N/A
BB342: No | BC342: N/A | BD342: N/A | BE342: N/A | BF342: N/A | BG342: N/A | BH342: N/A | BI342: N/A | BJ342: N/A | BK342: N/A | BL342: N/A | BM342: N/A | BN342: N/A | BO342: N/A | BP342: N/A | BQ342: N/A | BR342: N/A | BS342: N/A | BT342: N/A | BU342: N/A | BV342: N/A | BW342: N/A
BA343: Use of Basic Water and Sanitation | BB343: Yes | BC343: N/A | BD343: N/A | BE343: N/A | BF343: N/A | BG343: N/A | BH343: N/A | BI343: N/A | BJ343: N/A | BK343: N/A | BL343: N/A | BM343: N/A | BN343: N/A | BO343: N/A | BP343: N/A | BQ343: N/A | BR343: N/A | BS343: N/A | BT343: N/A | BU343: N/A | BV343: N/A | BW343: N/A
BB344: No | BC344: N/A | BD344: N/A | BE344: N/A | BF344: N/A | BG344: N/A | BH344: N/A | BI344: N/A | BJ344: N/A | BK344: N/A | BL344: N/A | BM344: N/A | BN344: N/A | BO344: N/A | BP344: N/A | BQ344: N/A | BR344: N/A | BS344: N/A | BT344: N/A | BU344: N/A | BV344: N/A | BW344: N/A
BA345: Use of Basic Water and Hygiene | BB345: Yes | BC345: N/A | BD345: N/A | BE345: N/A | BF345: N/A | BG345: N/A | BH345: N/A | BI345: N/A | BJ345: N/A | BK345: N/A | BL345: N/A | BM345: N/A | BN345: N/A | BO345: N/A | BP345: N/A | BQ345: N/A | BR345: N/A | BS345: N/A | BT345: N/A | BU345: N/A | BV345: N/A | BW345: N/A
BB346: No | BC346: N/A | BD346: N/A | BE346: N/A | BF346: N/A | BG346: N/A | BH346: N/A | BI346: N/A | BJ346: N/A | BK346: N/A | BL346: N/A | BM346: N/A | BN346: N/A | BO346: N/A | BP346: N/A | BQ346: N/A | BR346: N/A | BS346: N/A | BT346: N/A | BU346: N/A | BV346: N/A | BW346: N/A
BA347: Use of Basic Sanitation and Hygiene | BB347: Yes | BC347: N/A | BD347: N/A | BE347: N/A | BF347: N/A | BG347: N/A | BH347: N/A | BI347: N/A | BJ347: N/A | BK347: N/A | BL347: N/A | BM347: N/A | BN347: N/A | BO347: N/A | BP347: N/A | BQ347: N/A | BR347: N/A | BS347: N/A | BT347: N/A | BU347: N/A | BV347: N/A | BW347: N/A
BB348: No | BC348: N/A | BD348: N/A | BE348: N/A | BF348: N/A | BG348: N/A | BH348: N/A | BI348: N/A | BJ348: N/A | BK348: N/A | BL348: N/A | BM348: N/A | BN348: N/A | BO348: N/A | BP348: N/A | BQ348: N/A | BR348: N/A | BS348: N/A | BT348: N/A | BU348: N/A | BV348: N/A | BW348: N/A
BA349: Use of Basic Water | BB349: Yes | BC349: N/A | BD349: N/A | BE349: N/A | BF349: N/A | BG349: N/A | BH349: N/A | BI349: N/A | BJ349: N/A | BK349: N/A | BL349: N/A | BM349: N/A | BN349: N/A | BO349: N/A | BP349: N/A | BQ349: N/A | BR349: N/A | BS349: N/A | BT349: N/A | BU349: N/A | BV349: N/A | BW349: N/A
BB350: No | BC350: N/A | BD350: N/A | BE350: N/A | BF350: N/A | BG350: N/A | BH350: N/A | BI350: N/A | BJ350: N/A | BK350: N/A | BL350: N/A | BM350: N/A | BN350: N/A | BO350: N/A | BP350: N/A | BQ350: N/A | BR350: N/A | BS350: N/A | BT350: N/A | BU350: N/A | BV350: N/A | BW350: N/A
BA351: Use of Basic Sanitation | BB351: Yes | BC351: N/A | BD351: N/A | BE351: N/A | BF351: N/A | BG351: N/A | BH351: N/A | BI351: N/A | BJ351: N/A | BK351: N/A | BL351: N/A | BM351: N/A | BN351: N/A | BO351: N/A | BP351: N/A | BQ351: N/A | BR351: N/A | BS351: N/A | BT351: N/A | BU351: N/A | BV351: N/A | BW351: N/A
BB352: No | BC352: N/A | BD352: N/A | BE352: N/A | BF352: N/A | BG352: N/A | BH352: N/A | BI352: N/A | BJ352: N/A | BK352: N/A | BL352: N/A | BM352: N/A | BN352: N/A | BO352: N/A | BP352: N/A | BQ352: N/A | BR352: N/A | BS352: N/A | BT352: N/A | BU352: N/A | BV352: N/A | BW352: N/A
BA353: Access to Basic Hygiene | BB353: Yes | BC353: N/A | BD353: N/A | BE353: N/A | BF353: N/A | BG353: N/A | BH353: N/A | BI353: N/A | BJ353: N/A | BK353: N/A | BL353: N/A | BM353: N/A | BN353: N/A | BO353: N/A | BP353: N/A | BQ353: N/A | BR353: N/A | BS353: N/A | BT353: N/A | BU353: N/A | BV353: N/A | BW353: N/A
BB354: No | BC354: N/A | BD354: N/A | BE354: N/A | BF354: N/A | BG354: N/A | BH354: N/A | BI354: N/A | BJ354: N/A | BK354: N/A | BL354: N/A | BM354: N/A | BN354: N/A | BO354: N/A | BP354: N/A | BQ354: N/A | BR354: N/A | BS354: N/A | BT354: N/A | BU354: N/A | BV354: N/A | BW354: N/A
C399: INITIAL (national) Wealth Index | H399: URBAN Wealth Index | M399: RURAL Wealth Index
C400: Component Matrix | H400: Component Matrix | M400: Component Matrix
E401: Component | J401: Component | O401: Component
B402: Note: The INITIAL (national) Wealth Index is based on the first component of the Principal Component Analysis (PCA) which has been obtained at national level. The final national-level (NATIONAL) Wealth Index is based on the URBAN and RURAL specific wealth indexes. Regression procedures are used to establish the relationships between the two sets of scores (urban and rural) and the initial (national) wealth factors. This allows best use of the available information for each area and a better precision of the FINAL (NATIONAL) Wealth Index. For dependency reasons, all WASH variables (contained in the generic MICS and DHS scripts) have been excluded from the sets of asset variables used in the PCAs. The PCA can extracts as many components as there are asset variables in the input. Only the first of the components is used to represent the Wealth Index. The scores represent the weights of the asset variables on the Wealth Index (correlations between the variables and the component). The communalities are the proportion of each variable's variance that can be explained by the component. Proportion of explained variance is the part of the model's total variance that is explained by the component. For more information on the procedure used: The DHS Wealth Index, DHS Comparative Reports No. 6, Shea Oscar Rutstein, Kiersten Johnson, ORC Macro International Inc., 2004. The DHS Wealth Index: Approaches for Rural and Urban Areas, Shea O. Rutstein, ORC Macro International Inc., 2008. MICS Methodological Paper No. 4, Review of options for reporting water, sanitation and hygiene coverage by wealth quintile, UNICEF, 2016. | E402: 1 | J402: 1 | O402: 1
C403: has telephone | E403: 0.6553094265 | H403: has a washing machine | J403: 0.6208572087 | M403: has an electric/gas stove | O403: 0.6795215165
C404: has refrigerator | E404: 0.649778836 | H404: has telephone | J404: 0.6135004579 | M404: Household fuel type: wood, straw | O404: -0.672601137
C405: has a blender | E405: 0.6179129409 | H405: has refrigerator | J405: 0.5905492319 | M405: has refrigerator | O405: 0.6542312971
C406: Household fuel type: wood, straw | E406: -0.6033629906 | H406: Has ceramic tile floor | J406: 0.5839937628 | M406: Household fuel type: LPG, natural gas | O406: 0.6139694022
C407: Has ceramic tile floor | E407: 0.6029409731 | H407: has a stereo | J407: 0.5790420344 | M407: has a blender | O407: 0.6133509611
C408: has a washing machine | E408: 0.6020297549 | H408: has a blender | J408: 0.5701726157 | M408: has television | O408: 0.5910070154
C409: has an electric/gas stove | E409: 0.5924070996 | H409: has a computer | J409: 0.5388832213 | M409: Has bricks wall | O409: 0.5454803166
C410: has a stereo | E410: 0.5902870405 | H410: has electric/gas oven | J410: 0.5240259237 | M410: has shower | O410: 0.54487865
C411: has shower | E411: 0.5644748467 | H411: has shower | J411: 0.472505961 | M411: has a stereo | O411: 0.530801292
C412: Has bricks wall | E412: 0.555987295 | H412: has television | J412: 0.4613064056 | M412: Has earth/sand floor | O412: -0.4926937177
C413: has television | E413: 0.5526245215 | H413: has microwave oven | J413: 0.4594328318 | M413: has telephone | O413: 0.4925181997
C414: has electric/gas oven | E414: 0.5191847541 | H414: has an electric/gas stove | J414: 0.4509405273 | M414: has electricity | O414: 0.4726727865
C415: has a computer | E415: 0.502471116 | H415: has vhs/betamax | J415: 0.4497884912 | M415: has a washing machine | O415: 0.4429484652
C416: has a dvd player | E416: 0.4342029224 | H416: has a dvd player | J416: 0.4482706221 | M416: Has ceramic tile floor | O416: 0.4397354518
C417: Has earth/sand floor | E417: -0.433959573 | H417: Has cement floor | J417: -0.4474249626 | M417: has electric/gas oven | O417: 0.4210869717
C418: has vhs/betamax | E418: 0.4241834988 | H418: has car/truck | J418: 0.4436524261 | M418: has a dvd player | O418: 0.3548851737
C419: has microwave oven | E419: 0.4228454394 | H419: has access to internet | J419: 0.4373516412 | M419: Number of members per sleeping room | O419: -0.3493404798
C420: Household fuel type: natural gas | E420: 0.4136892257 | H420: Has bricks wall | J420: 0.4182887483 | M420: Has wood planks wall | O420: -0.3478123222
C421: Number of members per sleeping room | E421: -0.4127036908 | H421: has electric/gas water heater | J421: 0.4181868621 | M421: has a computer | O421: 0.3409868684
C422: has car/truck | E422: 0.4066653923 | H422: Number of members per sleeping room | J422: -0.4145394125 | M422: has car/truck | O422: 0.3277746737
... 179 more rows

Sheet DHS10
A2: =A1026 -> Colombia
A3: =A1034 -> 2010
A4: Use of drinking water sources
A5: by wealth quintile and sub-national region
A6: Notes:
A7: WHO/UNICEF JMP customised wealth index excludes water,
A8: sanitation and hygiene assets.
A9: Survey used for analysis: | B9: =A1025 -> DHS10
A10: =B1028 -> 
A11: =B1027 -> 
A14: Use of drinking water sources | C14: NATIONAL wealth index quintile | H14: URBAN wealth index quintile | M14: RURAL wealth index quintile | R14: SUB-REGIONS: | BA14: Raw numbers of respondents: | BB14: Use of drinking water sources | BC14: NATIONAL wealth index quintile | BH14: URBAN wealth index quintile | BM14: RURAL wealth index quintile | BR14: SUB-REGIONS:
A15: Weighted percentage (used in graphs) | C15: Poorest | D15: Poor | E15: Middle | F15: Rich | G15: Richest | H15: Poorest | I15: Poor | J15: Middle | K15: Rich | L15: Richest | M15: Poorest | N15: Poor | O15: Middle | P15: Rich | Q15: Richest | R15: Atlántica | S15: Bogotá | T15: Central | U15: Oriental | V15: Pacífica | W15: Territorios Nacionales | BA15: Water data, raw numbers (weighted) | BC15: Poorest | BD15: Poor | BE15: Middle | BF15: Rich | BG15: Richest | BH15: Poorest | BI15: Poor | BJ15: Middle | BK15: Rich | BL15: Richest | BM15: Poorest | BN15: Poor | BO15: Middle | BP15: Rich | BQ15: Richest | BR15: Atlántica | BS15: Bogotá | BT15: Central | BU15: Oriental | BV15: Pacífica | BW15: Territorios Nacionales
A16: Water | B16: Improved | C16: =C58+C59+C60+C61+C64+C65+C66+C67+C63*0.25 -> 75.04729603 | D16: 93.35288983 | E16: 97.70954654 | F16: 99.6338913 | G16: 99.82205412 | H16: 95.97645905 | I16: 99.12300986 | J16: 99.56972581 | K16: 99.87041933 | L16: 99.78052168 | M16: 54.04173896 | N16: 72.2448202 | O16: 79.09593205 | P16: 84.50240038 | Q16: 90.50684911 | R16: 90.74400546 | S16: 99.86929058 | T16: 93.37505294 | U16: 88.87545617 | V16: 94.23684534 | W16: 88.15502112 | BA16: Water | BB16: Improved | BC16: N/A | BD16: N/A | BE16: N/A | BF16: N/A | BG16: N/A | BH16: N/A | BI16: N/A | BJ16: N/A | BK16: N/A | BL16: N/A | BM16: N/A | BN16: N/A | BO16: N/A | BP16: N/A | BQ16: N/A | BR16: N/A | BS16: N/A | BT16: N/A | BU16: N/A | BV16: N/A | BW16: N/A
B17: Not Improved | C17: =100-C16 -> 24.95270397 | D17: =100-D16 -> 6.64711017 | E17: 2.290453462 | F17: 0.3661086986 | G17: 0.1779458756 | H17: 4.023540951 | I17: 0.8769901427 | J17: 0.43027419 | K17: 0.1295806655 | L17: 0.2194783219 | M17: 45.95826104 | N17: 27.7551798 | O17: 20.90406795 | P17: 15.49759962 | Q17: 9.493150889 | R17: 9.255994537 | S17: 0.1307094236 | T17: 6.62494706 | U17: 11.12454383 | V17: 5.76315466 | W17: 11.84497888 | BB17: Not Improved | BC17: N/A | BD17: N/A | BE17: N/A | BF17: N/A | BG17: N/A | BH17: N/A | BI17: N/A | BJ17: N/A | BK17: N/A | BL17: N/A | BM17: N/A | BN17: N/A | BO17: N/A | BP17: N/A | BQ17: N/A | BR17: N/A | BS17: N/A | BT17: N/A | BU17: N/A | BV17: N/A | BW17: N/A
A18: Water ladder | B18: Basic | C18: =C16*C23/100 -> 74.52196496 | D18: =D16*D23/100 -> 93.25953694 | E18: 97.70954654 | F18: 99.6338913 | G18: 99.82205412 | H18: 95.78450613 | I18: 99.02388685 | J18: 99.56972581 | K18: 99.87041933 | L18: 99.78052168 | M18: 53.1230294 | N18: 71.8835961 | O18: 78.85864426 | P18: 84.50240038 | Q18: 90.41634226 | R18: 90.29028544 | S18: 99.86929058 | T18: 93.37505294 | U18: 88.87545617 | V18: 94.14260849 | W18: 88.0668661 | BA18: Water ladder | BB18: Basic | BC18: N/A | BD18: N/A | BE18: N/A | BF18: N/A | BG18: N/A | BH18: N/A | BI18: N/A | BJ18: N/A | BK18: N/A | BL18: N/A | BM18: N/A | BN18: N/A | BO18: N/A | BP18: N/A | BQ18: N/A | BR18: N/A | BS18: N/A | BT18: N/A | BU18: N/A | BV18: N/A | BW18: N/A
B19: Limited | C19: =C16*C22/100 -> 0.5253310722 | D19: =D16*D22/100 -> 0.09335288983 | E19: 0 | F19: 0 | G19: 0 | H19: 0.1919529181 | I19: 0.09912300986 | J19: 0 | K19: 0 | L19: 0 | M19: 0.9187095623 | N19: 0.361224101 | O19: 0.2372877962 | P19: 0 | Q19: 0.09050684911 | R19: 0.4537200273 | S19: 0 | T19: 0 | U19: 0 | V19: 0.09423684534 | W19: 0.08815502112 | BB19: Limited | BC19: N/A | BD19: N/A | BE19: N/A | BF19: N/A | BG19: N/A | BH19: N/A | BI19: N/A | BJ19: N/A | BK19: N/A | BL19: N/A | BM19: N/A | BN19: N/A | BO19: N/A | BP19: N/A | BQ19: N/A | BR19: N/A | BS19: N/A | BT19: N/A | BU19: N/A | BV19: N/A | BW19: N/A
B20: Unimproved | C20: =100-(C18+C19+C21) -> 10.41665433 | D20: =100-(D18+D19+D21) -> 2.483822307 | E20: 0.7772919489 | F20: 0.2200206142 | G20: 0.1744008205 | H20: 3.261511751 | I20: 0.5948018136 | J20: 0.3136665925 | K20: 0.1234117452 | L20: 0.2147336152 | M20: 21.24347734 | N20: 9.117137713 | O20: 5.638923209 | P20: 4.011559406 | Q20: 2.392158186 | R20: 6.112859208 | S20: 0.1307094236 | T20: 2.136622214 | U20: 2.667331635 | V20: 1.966807272 | W20: 8.097301612 | BB20: Unimproved | BC20: N/A | BD20: N/A | BE20: N/A | BF20: N/A | BG20: N/A | BH20: N/A | BI20: N/A | BJ20: N/A | BK20: N/A | BL20: N/A | BM20: N/A | BN20: N/A | BO20: N/A | BP20: N/A | BQ20: N/A | BR20: N/A | BS20: N/A | BT20: N/A | BU20: N/A | BV20: N/A | BW20: N/A
B21: Surface water | C21: =C63*0.75 -> 14.53604964 | D21: 4.163287863 | E21: 1.513161513 | F21: 0.1460880844 | G21: 0.003545055102 | H21: 0.7620292005 | I21: 0.2821883291 | J21: 0.1166075975 | K21: 0.006168920333 | L21: 0.004744706688 | M21: 24.7147837 | N21: 18.63804209 | O21: 15.26514474 | P21: 11.48604021 | Q21: 7.100992703 | R21: 3.14313533 | S21: 0 | T21: 4.488324847 | U21: 8.457212191 | V21: 3.796347388 | W21: 3.74767727 | BB21: Surface water | BC21: N/A | BD21: N/A | BE21: N/A | BF21: N/A | BG21: N/A | BH21: N/A | BI21: N/A | BJ21: N/A | BK21: N/A | BL21: N/A | BM21: N/A | BN21: N/A | BO21: N/A | BP21: N/A | BQ21: N/A | BR21: N/A | BS21: N/A | BT21: N/A | BU21: N/A | BV21: N/A | BW21: N/A
A22: Improved water point at more than 30 minutes | B22: Yes | C22: 0.7 | D22: 0.1 | E22: 0 | F22: 0 | G22: 0 | H22: 0.2 | I22: 0.1 | J22: 0 | K22: 0 | L22: 0 | M22: 1.7 | N22: 0.5 | O22: 0.3 | P22: 0 | Q22: 0.1 | R22: 0.5 | S22: 0 | T22: 0 | U22: 0 | V22: 0.1 | W22: 0.1 | BA22: Improved water point at more than 30 minutes | BB22: Yes | BC22: N/A | BD22: N/A | BE22: N/A | BF22: N/A | BG22: N/A | BH22: N/A | BI22: N/A | BJ22: N/A | BK22: N/A | BL22: N/A | BM22: N/A | BN22: N/A | BO22: N/A | BP22: N/A | BQ22: N/A | BR22: N/A | BS22: N/A | BT22: N/A | BU22: N/A | BV22: N/A | BW22: N/A
B23: No | C23: 99.3 | D23: 99.9 | E23: 100 | F23: 100 | G23: 100 | H23: 99.8 | I23: 99.9 | J23: 100 | K23: 100 | L23: 100 | M23: 98.3 | N23: 99.5 | O23: 99.7 | P23: 100 | Q23: 99.9 | R23: 99.5 | S23: 100 | T23: 100 | U23: 100 | V23: 99.9 | W23: 99.9 | BB23: No | BC23: N/A | BD23: N/A | BE23: N/A | BF23: N/A | BG23: N/A | BH23: N/A | BI23: N/A | BJ23: N/A | BK23: N/A | BL23: N/A | BM23: N/A | BN23: N/A | BO23: N/A | BP23: N/A | BQ23: N/A | BR23: N/A | BS23: N/A | BT23: N/A | BU23: N/A | BV23: N/A | BW23: N/A
A24: Manually calculated ratios | B24: Improved wells
B25: Improved springs
B26: Other
C27: NATIONAL wealth index quintile | H27: URBAN wealth index quintile | M27: RURAL wealth index quintile | R27: SUB-REGIONS: | BA27: Raw numbers of respondents: | BB27: Use of drinking water sources | BC27: NATIONAL wealth index quintile | BH27: URBAN wealth index quintile | BM27: RURAL wealth index quintile | BR27: SUB-REGIONS:
A28: Percentage based on weighted population | C28: Poorest | D28: Poor | E28: Middle | F28: Rich | G28: Richest | H28: Poorest | I28: Poor | J28: Middle | K28: Rich | L28: Richest | M28: Poorest | N28: Poor | O28: Middle | P28: Rich | Q28: Richest | R28: Atlántica | S28: Bogotá | T28: Central | U28: Oriental | V28: Pacífica | W28: Territorios Nacionales | BA28: Water data, raw numbers (weighted) | BC28: Poorest | BD28: Poor | BE28: Middle | BF28: Rich | BG28: Richest | BH28: Poorest | BI28: Poor | BJ28: Middle | BK28: Rich | BL28: Richest | BM28: Poorest | BN28: Poor | BO28: Middle | BP28: Rich | BQ28: Richest | BR28: Atlántica | BS28: Bogotá | BT28: Central | BU28: Oriental | BV28: Pacífica | BW28: Territorios Nacionales
A29: Piped water | B29: Yes | C29: 57.1 | D29: 85.1 | E29: 94.4 | F29: 98.6 | G29: 99.6 | H29: 86.6 | I29: 96.3 | J29: 98.3 | K29: 99.2 | L29: 99.6 | M29: 28.6 | N29: 55.4 | O29: 63.3 | P29: 71.8 | Q29: 81.4 | R29: 77.8 | S29: 99.9 | T29: 90.6 | U29: 83.6 | V29: 86.3 | W29: 63.9 | BA29: Piped water | BB29: Yes | BC29: N/A | BD29: N/A | BE29: N/A | BF29: N/A | BG29: N/A | BH29: N/A | BI29: N/A | BJ29: N/A | BK29: N/A | BL29: N/A | BM29: N/A | BN29: N/A | BO29: N/A | BP29: N/A | BQ29: N/A | BR29: N/A | BS29: N/A | BT29: N/A | BU29: N/A | BV29: N/A | BW29: N/A
B30: No | C30: 42.9 | D30: 14.9 | E30: 5.6 | F30: 1.4 | G30: 0.4 | H30: 13.4 | I30: 3.7 | J30: 1.7 | K30: 0.8 | L30: 0.4 | M30: 71.4 | N30: 44.6 | O30: 36.7 | P30: 28.2 | Q30: 18.6 | R30: 22.2 | S30: 0.1 | T30: 9.4 | U30: 16.4 | V30: 13.7 | W30: 36.1 | BB30: No | BC30: N/A | BD30: N/A | BE30: N/A | BF30: N/A | BG30: N/A | BH30: N/A | BI30: N/A | BJ30: N/A | BK30: N/A | BL30: N/A | BM30: N/A | BN30: N/A | BO30: N/A | BP30: N/A | BQ30: N/A | BR30: N/A | BS30: N/A | BT30: N/A | BU30: N/A | BV30: N/A | BW30: N/A
A31: Piped water on premises | B31: Yes | C31: 56.7 | D31: 84.9 | E31: 94.4 | F31: 98.6 | G31: 99.6 | H31: 86.3 | I31: 96.3 | J31: 98.3 | K31: 99.2 | L31: 99.6 | M31: 28.3 | N31: 55 | O31: 63.2 | P31: 71.5 | Q31: 81.4 | R31: 77.5 | S31: 99.9 | T31: 90.5 | U31: 83.6 | V31: 86.1 | W31: 63.9 | BA31: Piped water on premises | BB31: Yes | BC31: N/A | BD31: N/A | BE31: N/A | BF31: N/A | BG31: N/A | BH31: N/A | BI31: N/A | BJ31: N/A | BK31: N/A | BL31: N/A | BM31: N/A | BN31: N/A | BO31: N/A | BP31: N/A | BQ31: N/A | BR31: N/A | BS31: N/A | BT31: N/A | BU31: N/A | BV31: N/A | BW31: N/A
B32: No | C32: 43.3 | D32: 15.1 | E32: 5.6 | F32: 1.4 | G32: 0.4 | H32: 13.7 | I32: 3.7 | J32: 1.7 | K32: 0.8 | L32: 0.4 | M32: 71.7 | N32: 45 | O32: 36.8 | P32: 28.5 | Q32: 18.6 | R32: 22.5 | S32: 0.1 | T32: 9.5 | U32: 16.4 | V32: 13.9 | W32: 36.1 | BB32: No | BC32: N/A | BD32: N/A | BE32: N/A | BF32: N/A | BG32: N/A | BH32: N/A | BI32: N/A | BJ32: N/A | BK32: N/A | BL32: N/A | BM32: N/A | BN32: N/A | BO32: N/A | BP32: N/A | BQ32: N/A | BR32: N/A | BS32: N/A | BT32: N/A | BU32: N/A | BV32: N/A | BW32: N/A
A33: Piped water into dwelling | B33: Yes | C33: N/A | D33: N/A | E33: N/A | F33: N/A | G33: N/A | H33: N/A | I33: N/A | J33: N/A | K33: N/A | L33: N/A | M33: N/A | N33: N/A | O33: N/A | P33: N/A | Q33: N/A | R33: N/A | S33: N/A | T33: N/A | U33: N/A | V33: N/A | W33: N/A | BA33: Piped water into dwelling | BB33: Yes | BC33: N/A | BD33: N/A | BE33: N/A | BF33: N/A | BG33: N/A | BH33: N/A | BI33: N/A | BJ33: N/A | BK33: N/A | BL33: N/A | BM33: N/A | BN33: N/A | BO33: N/A | BP33: N/A | BQ33: N/A | BR33: N/A | BS33: N/A | BT33: N/A | BU33: N/A | BV33: N/A | BW33: N/A
B34: No | C34: N/A | D34: N/A | E34: N/A | F34: N/A | G34: N/A | H34: N/A | I34: N/A | J34: N/A | K34: N/A | L34: N/A | M34: N/A | N34: N/A | O34: N/A | P34: N/A | Q34: N/A | R34: N/A | S34: N/A | T34: N/A | U34: N/A | V34: N/A | W34: N/A | BB34: No | BC34: N/A | BD34: N/A | BE34: N/A | BF34: N/A | BG34: N/A | BH34: N/A | BI34: N/A | BJ34: N/A | BK34: N/A | BL34: N/A | BM34: N/A | BN34: N/A | BO34: N/A | BP34: N/A | BQ34: N/A | BR34: N/A | BS34: N/A | BT34: N/A | BU34: N/A | BV34: N/A | BW34: N/A
A35: Water source on premises | B35: Yes | C35: 83.3 | D35: 97.4 | E35: 99.6 | F35: 100 | G35: 99.9 | H35: 96.9 | I35: 99.6 | J35: 99.9 | K35: 100 | L35: 99.9 | M35: 60.2 | N35: 85.9 | O35: 92.7 | P35: 94.9 | Q35: 98.3 | R35: 88.9 | S35: 100 | T35: 97.4 | U35: 97.7 | V35: 97 | W35: 94.8 | BA35: Water source on premises | BB35: Yes | BC35: N/A | BD35: N/A | BE35: N/A | BF35: N/A | BG35: N/A | BH35: N/A | BI35: N/A | BJ35: N/A | BK35: N/A | BL35: N/A | BM35: N/A | BN35: N/A | BO35: N/A | BP35: N/A | BQ35: N/A | BR35: N/A | BS35: N/A | BT35: N/A | BU35: N/A | BV35: N/A | BW35: N/A
B36: No | C36: 16.7 | D36: 2.6 | E36: 0.4 | F36: 0 | G36: 0.1 | H36: 3.1 | I36: 0.4 | J36: 0.1 | K36: 0 | L36: 0.1 | M36: 39.8 | N36: 14.1 | O36: 7.3 | P36: 5.1 | Q36: 1.7 | R36: 11.1 | S36: 0 | T36: 2.6 | U36: 2.3 | V36: 3 | W36: 5.2 | BB36: No | BC36: N/A | BD36: N/A | BE36: N/A | BF36: N/A | BG36: N/A | BH36: N/A | BI36: N/A | BJ36: N/A | BK36: N/A | BL36: N/A | BM36: N/A | BN36: N/A | BO36: N/A | BP36: N/A | BQ36: N/A | BR36: N/A | BS36: N/A | BT36: N/A | BU36: N/A | BV36: N/A | BW36: N/A
A37: Improved Water source on premises | B37: Yes | C37: 66 | D37: 90.8 | E37: 97 | F37: 99.6 | G37: 99.8 | H37: 94.1 | I37: 98.7 | J37: 99.5 | K37: 99.9 | L37: 99.7 | M37: 38.2 | N37: 62 | O37: 71.7 | P37: 78.8 | Q37: 87.4 | R37: 85.5 | S37: 99.9 | T37: 91.6 | U37: 85.7 | V37: 92.4 | W37: 83.8 | BA37: Improved water source on premises | BB37: Yes | BC37: N/A | BD37: N/A | BE37: N/A | BF37: N/A | BG37: N/A | BH37: N/A | BI37: N/A | BJ37: N/A | BK37: N/A | BL37: N/A | BM37: N/A | BN37: N/A | BO37: N/A | BP37: N/A | BQ37: N/A | BR37: N/A | BS37: N/A | BT37: N/A | BU37: N/A | BV37: N/A | BW37: N/A
B38: No | C38: 34 | D38: 9.2 | E38: 3 | F38: 0.4 | G38: 0.2 | H38: 5.9 | I38: 1.3 | J38: 0.5 | K38: 0.1 | L38: 0.3 | M38: 61.8 | N38: 38 | O38: 28.3 | P38: 21.2 | Q38: 12.6 | R38: 14.5 | S38: 0.1 | T38: 8.4 | U38: 14.3 | V38: 7.6 | W38: 16.2 | BB38: No | BC38: N/A | BD38: N/A | BE38: N/A | BF38: N/A | BG38: N/A | BH38: N/A | BI38: N/A | BJ38: N/A | BK38: N/A | BL38: N/A | BM38: N/A | BN38: N/A | BO38: N/A | BP38: N/A | BQ38: N/A | BR38: N/A | BS38: N/A | BT38: N/A | BU38: N/A | BV38: N/A | BW38: N/A
A39: Piped water on premises available when needed | B39: Yes | C39: N/A | D39: N/A | E39: N/A | F39: N/A | G39: N/A | H39: N/A | I39: N/A | J39: N/A | K39: N/A | L39: N/A | M39: N/A | N39: N/A | O39: N/A | P39: N/A | Q39: N/A | R39: N/A | S39: N/A | T39: N/A | U39: N/A | V39: N/A | W39: N/A | BA39: Piped water on premises available when needed | BB39: Yes | BC39: N/A | BD39: N/A | BE39: N/A | BF39: N/A | BG39: N/A | BH39: N/A | BI39: N/A | BJ39: N/A | BK39: N/A | BL39: N/A | BM39: N/A | BN39: N/A | BO39: N/A | BP39: N/A | BQ39: N/A | BR39: N/A | BS39: N/A | BT39: N/A | BU39: N/A | BV39: N/A | BW39: N/A
B40: No | C40: N/A | D40: N/A | E40: N/A | F40: N/A | G40: N/A | H40: N/A | I40: N/A | J40: N/A | K40: N/A | L40: N/A | M40: N/A | N40: N/A | O40: N/A | P40: N/A | Q40: N/A | R40: N/A | S40: N/A | T40: N/A | U40: N/A | V40: N/A | W40: N/A | BB40: No | BC40: N/A | BD40: N/A | BE40: N/A | BF40: N/A | BG40: N/A | BH40: N/A | BI40: N/A | BJ40: N/A | BK40: N/A | BL40: N/A | BM40: N/A | BN40: N/A | BO40: N/A | BP40: N/A | BQ40: N/A | BR40: N/A | BS40: N/A | BT40: N/A | BU40: N/A | BV40: N/A | BW40: N/A
A41: Water point at more than 30 minutes | B41: Yes | C41: 2.4 | D41: 0.1 | E41: 0.1 | F41: 0 | G41: 0 | H41: 0.4 | I41: 0.1 | J41: 0 | K41: 0 | L41: 0 | M41: 6.1 | N41: 1.8 | O41: 0.9 | P41: 0.1 | Q41: 0.2 | R41: 1.7 | S41: 0 | T41: 0.2 | U41: 0.1 | V41: 0.6 | W41: 0.1 | BA41: Water point at more than 30 minutes | BB41: Yes | BC41: N/A | BD41: N/A | BE41: N/A | BF41: N/A | BG41: N/A | BH41: N/A | BI41: N/A | BJ41: N/A | BK41: N/A | BL41: N/A | BM41: N/A | BN41: N/A | BO41: N/A | BP41: N/A | BQ41: N/A | BR41: N/A | BS41: N/A | BT41: N/A | BU41: N/A | BV41: N/A | BW41: N/A
B42: No | C42: 97.6 | D42: 99.9 | E42: 99.9 | F42: 100 | G42: 100 | H42: 99.6 | I42: 99.9 | J42: 100 | K42: 100 | L42: 100 | M42: 93.9 | N42: 98.2 | O42: 99.1 | P42: 99.9 | Q42: 99.8 | R42: 98.3 | S42: 100 | T42: 99.8 | U42: 99.9 | V42: 99.4 | W42: 99.9 | BB42: No | BC42: N/A | BD42: N/A | BE42: N/A | BF42: N/A | BG42: N/A | BH42: N/A | BI42: N/A | BJ42: N/A | BK42: N/A | BL42: N/A | BM42: N/A | BN42: N/A | BO42: N/A | BP42: N/A | BQ42: N/A | BR42: N/A | BS42: N/A | BT42: N/A | BU42: N/A | BV42: N/A | BW42: N/A
A43: Water source available when needed | B43: Yes | C43: N/A | D43: N/A | E43: N/A | F43: N/A | G43: N/A | H43: N/A | I43: N/A | J43: N/A | K43: N/A | L43: N/A | M43: N/A | N43: N/A | O43: N/A | P43: N/A | Q43: N/A | R43: N/A | S43: N/A | T43: N/A | U43: N/A | V43: N/A | W43: N/A | BA43: Water source available when needed | BB43: Yes | BC43: N/A | BD43: N/A | BE43: N/A | BF43: N/A | BG43: N/A | BH43: N/A | BI43: N/A | BJ43: N/A | BK43: N/A | BL43: N/A | BM43: N/A | BN43: N/A | BO43: N/A | BP43: N/A | BQ43: N/A | BR43: N/A | BS43: N/A | BT43: N/A | BU43: N/A | BV43: N/A | BW43: N/A
B44: No | C44: N/A | D44: N/A | E44: N/A | F44: N/A | G44: N/A | H44: N/A | I44: N/A | J44: N/A | K44: N/A | L44: N/A | M44: N/A | N44: N/A | O44: N/A | P44: N/A | Q44: N/A | R44: N/A | S44: N/A | T44: N/A | U44: N/A | V44: N/A | W44: N/A | BB44: No | BC44: N/A | BD44: N/A | BE44: N/A | BF44: N/A | BG44: N/A | BH44: N/A | BI44: N/A | BJ44: N/A | BK44: N/A | BL44: N/A | BM44: N/A | BN44: N/A | BO44: N/A | BP44: N/A | BQ44: N/A | BR44: N/A | BS44: N/A | BT44: N/A | BU44: N/A | BV44: N/A | BW44: N/A
A45: Improved water source available when needed | B45: Yes | C45: N/A | D45: N/A | E45: N/A | F45: N/A | G45: N/A | H45: N/A | I45: N/A | J45: N/A | K45: N/A | L45: N/A | M45: N/A | N45: N/A | O45: N/A | P45: N/A | Q45: N/A | R45: N/A | S45: N/A | T45: N/A | U45: N/A | V45: N/A | W45: N/A | BA45: Improved water source available when needed | BB45: Yes | BC45: N/A | BD45: N/A | BE45: N/A | BF45: N/A | BG45: N/A | BH45: N/A | BI45: N/A | BJ45: N/A | BK45: N/A | BL45: N/A | BM45: N/A | BN45: N/A | BO45: N/A | BP45: N/A | BQ45: N/A | BR45: N/A | BS45: N/A | BT45: N/A | BU45: N/A | BV45: N/A | BW45: N/A
B46: No | C46: N/A | D46: N/A | E46: N/A | F46: N/A | G46: N/A | H46: N/A | I46: N/A | J46: N/A | K46: N/A | L46: N/A | M46: N/A | N46: N/A | O46: N/A | P46: N/A | Q46: N/A | R46: N/A | S46: N/A | T46: N/A | U46: N/A | V46: N/A | W46: N/A | BB46: No | BC46: N/A | BD46: N/A | BE46: N/A | BF46: N/A | BG46: N/A | BH46: N/A | BI46: N/A | BJ46: N/A | BK46: N/A | BL46: N/A | BM46: N/A | BN46: N/A | BO46: N/A | BP46: N/A | BQ46: N/A | BR46: N/A | BS46: N/A | BT46: N/A | BU46: N/A | BV46: N/A | BW46: N/A
A47: Microbiological quality at point of collection | B47: Not contaminated (No E. coli in 100 mL) | C47: N/A | D47: N/A | E47: N/A | F47: N/A | G47: N/A | H47: N/A | I47: N/A | J47: N/A | K47: N/A | L47: N/A | M47: N/A | N47: N/A | O47: N/A | P47: N/A | Q47: N/A | R47: N/A | S47: N/A | T47: N/A | U47: N/A | V47: N/A | W47: N/A | BA47: Microbiological quality at point of collection | BB47: Not contaminated (No E. coli in 100 mL) | BC47: N/A | BD47: N/A | BE47: N/A | BF47: N/A | BG47: N/A | BH47: N/A | BI47: N/A | BJ47: N/A | BK47: N/A | BL47: N/A | BM47: N/A | BN47: N/A | BO47: N/A | BP47: N/A | BQ47: N/A | BR47: N/A | BS47: N/A | BT47: N/A | BU47: N/A | BV47: N/A | BW47: N/A
B48: Contaminated (E. coli detected in 100 mL) | C48: N/A | D48: N/A | E48: N/A | F48: N/A | G48: N/A | H48: N/A | I48: N/A | J48: N/A | K48: N/A | L48: N/A | M48: N/A | N48: N/A | O48: N/A | P48: N/A | Q48: N/A | R48: N/A | S48: N/A | T48: N/A | U48: N/A | V48: N/A | W48: N/A | BB48: Contaminated (E. coli detected in 100 mL) | BC48: N/A | BD48: N/A | BE48: N/A | BF48: N/A | BG48: N/A | BH48: N/A | BI48: N/A | BJ48: N/A | BK48: N/A | BL48: N/A | BM48: N/A | BN48: N/A | BO48: N/A | BP48: N/A | BQ48: N/A | BR48: N/A | BS48: N/A | BT48: N/A | BU48: N/A | BV48: N/A | BW48: N/A
B49: Highly contaminated (>100 CFU/100 mL) | C49: N/A | D49: N/A | E49: N/A | F49: N/A | G49: N/A | H49: N/A | I49: N/A | J49: N/A | K49: N/A | L49: N/A | M49: N/A | N49: N/A | O49: N/A | P49: N/A | Q49: N/A | R49: N/A | S49: N/A | T49: N/A | U49: N/A | V49: N/A | W49: N/A | BB49: Highly contaminated (>100 CFU/100 mL) | BC49: N/A | BD49: N/A | BE49: N/A | BF49: N/A | BG49: N/A | BH49: N/A | BI49: N/A | BJ49: N/A | BK49: N/A | BL49: N/A | BM49: N/A | BN49: N/A | BO49: N/A | BP49: N/A | BQ49: N/A | BR49: N/A | BS49: N/A | BT49: N/A | BU49: N/A | BV49: N/A | BW49: N/A
A50: Microbiological quality of improved water sources at point of collection | B50: Not contaminated (No E. coli in 100 mL) | C50: N/A | D50: N/A | E50: N/A | F50: N/A | G50: N/A | H50: N/A | I50: N/A | J50: N/A | K50: N/A | L50: N/A | M50: N/A | N50: N/A | O50: N/A | P50: N/A | Q50: N/A | R50: N/A | S50: N/A | T50: N/A | U50: N/A | V50: N/A | W50: N/A | BA50: Microbiological quality of improved water sources at point of collection | BB50: Not contaminated (No E. coli in 100 mL) | BC50: N/A | BD50: N/A | BE50: N/A | BF50: N/A | BG50: N/A | BH50: N/A | BI50: N/A | BJ50: N/A | BK50: N/A | BL50: N/A | BM50: N/A | BN50: N/A | BO50: N/A | BP50: N/A | BQ50: N/A | BR50: N/A | BS50: N/A | BT50: N/A | BU50: N/A | BV50: N/A | BW50: N/A
B51: Contaminated (E. coli detected in 100 mL) | C51: N/A | D51: N/A | E51: N/A | F51: N/A | G51: N/A | H51: N/A | I51: N/A | J51: N/A | K51: N/A | L51: N/A | M51: N/A | N51: N/A | O51: N/A | P51: N/A | Q51: N/A | R51: N/A | S51: N/A | T51: N/A | U51: N/A | V51: N/A | W51: N/A | BB51: Contaminated (E. coli detected in 100 mL) | BC51: N/A | BD51: N/A | BE51: N/A | BF51: N/A | BG51: N/A | BH51: N/A | BI51: N/A | BJ51: N/A | BK51: N/A | BL51: N/A | BM51: N/A | BN51: N/A | BO51: N/A | BP51: N/A | BQ51: N/A | BR51: N/A | BS51: N/A | BT51: N/A | BU51: N/A | BV51: N/A | BW51: N/A
B52: Highly contaminated (>100 CFU/100 mL) | C52: N/A | D52: N/A | E52: N/A | F52: N/A | G52: N/A | H52: N/A | I52: N/A | J52: N/A | K52: N/A | L52: N/A | M52: N/A | N52: N/A | O52: N/A | P52: N/A | Q52: N/A | R52: N/A | S52: N/A | T52: N/A | U52: N/A | V52: N/A | W52: N/A | BB52: Highly contaminated (>100 CFU/100 mL) | BC52: N/A | BD52: N/A | BE52: N/A | BF52: N/A | BG52: N/A | BH52: N/A | BI52: N/A | BJ52: N/A | BK52: N/A | BL52: N/A | BM52: N/A | BN52: N/A | BO52: N/A | BP52: N/A | BQ52: N/A | BR52: N/A | BS52: N/A | BT52: N/A | BU52: N/A | BV52: N/A | BW52: N/A
A53: Microbiological quality of piped on premises at point of collection | B53: Not contaminated (No E. coli in 100 mL) | C53: N/A | D53: N/A | E53: N/A | F53: N/A | G53: N/A | H53: N/A | I53: N/A | J53: N/A | K53: N/A | L53: N/A | M53: N/A | N53: N/A | O53: N/A | P53: N/A | Q53: N/A | R53: N/A | S53: N/A | T53: N/A | U53: N/A | V53: N/A | W53: N/A | BA53: Microbiological quality of piped on premises at point of collection | BB53: Not contaminated (No E. coli in 100 mL) | BC53: N/A | BD53: N/A | BE53: N/A | BF53: N/A | BG53: N/A | BH53: N/A | BI53: N/A | BJ53: N/A | BK53: N/A | BL53: N/A | BM53: N/A | BN53: N/A | BO53: N/A | BP53: N/A | BQ53: N/A | BR53: N/A | BS53: N/A | BT53: N/A | BU53: N/A | BV53: N/A | BW53: N/A
B54: Contaminated (E. coli detected in 100 mL) | C54: N/A | D54: N/A | E54: N/A | F54: N/A | G54: N/A | H54: N/A | I54: N/A | J54: N/A | K54: N/A | L54: N/A | M54: N/A | N54: N/A | O54: N/A | P54: N/A | Q54: N/A | R54: N/A | S54: N/A | T54: N/A | U54: N/A | V54: N/A | W54: N/A | BB54: Contaminated (E. coli detected in 100 mL) | BC54: N/A | BD54: N/A | BE54: N/A | BF54: N/A | BG54: N/A | BH54: N/A | BI54: N/A | BJ54: N/A | BK54: N/A | BL54: N/A | BM54: N/A | BN54: N/A | BO54: N/A | BP54: N/A | BQ54: N/A | BR54: N/A | BS54: N/A | BT54: N/A | BU54: N/A | BV54: N/A | BW54: N/A
B55: Highly contaminated (>100 CFU/100 mL) | C55: N/A | D55: N/A | E55: N/A | F55: N/A | G55: N/A | H55: N/A | I55: N/A | J55: N/A | K55: N/A | L55: N/A | M55: N/A | N55: N/A | O55: N/A | P55: N/A | Q55: N/A | R55: N/A | S55: N/A | T55: N/A | U55: N/A | V55: N/A | W55: N/A | BB55: Highly contaminated (>100 CFU/100 mL) | BC55: N/A | BD55: N/A | BE55: N/A | BF55: N/A | BG55: N/A | BH55: N/A | BI55: N/A | BJ55: N/A | BK55: N/A | BL55: N/A | BM55: N/A | BN55: N/A | BO55: N/A | BP55: N/A | BQ55: N/A | BR55: N/A | BS55: N/A | BT55: N/A | BU55: N/A | BV55: N/A | BW55: N/A
C56: NATIONAL wealth index quintile | H56: URBAN wealth index quintile | M56: RURAL wealth index quintile | R56: SUB-REGIONS: | BA56: Raw numbers of respondents: | BB56: Use of drinking water sources | BC56: NATIONAL wealth index quintile | BH56: URBAN wealth index quintile | BM56: RURAL wealth index quintile | BR56: SUB-REGIONS:
A57: Percentage based on weighted population | C57: Poorest | D57: Poor | E57: Middle | F57: Rich | G57: Richest | H57: Poorest | I57: Poor | J57: Middle | K57: Rich | L57: Richest | M57: Poorest | N57: Poor | O57: Middle | P57: Rich | Q57: Richest | R57: Atlántica | S57: Bogotá | T57: Central | U57: Oriental | V57: Pacífica | W57: Territorios Nacionales | BA57: Water data, raw numbers (weighted) | BC57: Poorest | BD57: Poor | BE57: Middle | BF57: Rich | BG57: Richest | BH57: Poorest | BI57: Poor | BJ57: Middle | BK57: Rich | BL57: Richest | BM57: Poorest | BN57: Poor | BO57: Middle | BP57: Rich | BQ57: Richest | BR57: Atlántica | BS57: Bogotá | BT57: Central | BU57: Oriental | BV57: Pacífica | BW57: Territorios Nacionales
A58: Source of drinking water | B58: Piped water from utility company | C58: 27.36182621 | D58: 63.40825367 | E58: 81.93135553 | F58: 92.90957888 | G58: 95.31541326 | H58: 79.9829564 | I58: 91.01526428 | J58: 93.71466243 | K58: 94.94061757 | L58: 95.18407837 | M58: 4.012039474 | N58: 9.216781033 | O58: 13.18294198 | P58: 23.44929164 | Q58: 32.87626506 | R58: 63.99614321 | S58: 98.40112959 | T58: 73.59580631 | U58: 62.25680165 | V58: 67.8559505 | W58: 48.10540723
B59: Piped water from rural system | C59: 28.48862353 | D59: 17.52690824 | E59: 8.333296519 | F59: 1.248994977 | G59: 0.1566057117 | H59: 2.760396195 | I59: 1.006206267 | J59: 0.3492132392 | K59: 0.1886730637 | L59: 0.1581408316 | M59: 24.21342199 | N59: 45.64086024 | O59: 49.23893353 | P59: 45.05929114 | Q59: 43.53928518 | R59: 8.967012822 | S59: 0.1841331182 | T59: 14.74606591 | U59: 14.2378057 | V59: 16.44819781 | W59: 8.567535437
B60: Public tap | C60: 0.3557120025 | D60: 0.1535210857 | E60: 0.02917034409 | F60: 0 | G60: 0 | H60: 0.2944662396 | I60: 0.0396409279 | J60: 0 | K60: 0 | L60: 0 | M60: 0.3238881457 | N60: 0.3725943434 | O60: 0.06387244184 | P60: 0.2969227556 | Q60: 0.08657496153 | R60: 0.3423336486 | S60: 0 | T60: 0.04074051039 | U60: 0.02264822152 | V60: 0.1376896445 | W60: 0.03472251456
B61: Open well with sump pump | C61: 3.542627254 | D61: 2.082474618 | E61: 1.030164032 | F61: 0.2587719909 | G61: 0.05004022493 | H61: 1.290767476 | I61: 0.7654965519 | J61: 0.2513973188 | K61: 0.1502046293 | L61: 0.04352685318 | M61: 4.515328187 | N61: 4.267379751 | O61: 4.387224222 | P61: 3.911859378 | Q61: 3.103767523 | R61: 2.764345576 | S61: 0 | T61: 0.5882266903 | U61: 1.477439674 | V61: 1.078338175 | W61: 10.06959131
B62: Open well without sump pump | C62: 8.138552851 | D62: 1.774435894 | E62: 0.540536099 | F62: 0.07477873327 | G62: 0.03559111795 | H62: 1.243657745 | I62: 0.2973355766 | J62: 0.1340031826 | K62: 0.02721619724 | L62: 0.04122771503 | M62: 18.19871706 | N62: 8.146632247 | O62: 4.762457066 | P62: 3.545477482 | Q62: 2.038008644 | R62: 4.902176876 | S62: 0 | T62: 1.61627071 | U62: 1.90817425 | V62: 1.1532319 | W62: 6.976762781
B63: River/stream/spring | C63: 19.38139953 | D63: 5.551050484 | E63: 2.017548685 | F63: 0.1947841125 | G63: 0.004726740137 | H63: 1.016038934 | I63: 0.3762511055 | J63: 0.1554767966 | K63: 0.00822522711 | L63: 0.006326275584 | M63: 32.95304494 | N63: 24.85072278 | O63: 20.35352632 | P63: 15.31472029 | Q63: 9.467990271 | R63: 4.190847106 | S63: 0 | T63: 5.984433129 | U63: 11.27628292 | V63: 5.061796517 | W63: 4.996903027
B64: Rain water | C64: 7.202612554 | D64: 2.250508306 | E64: 0.7400020812 | F64: 0.2951341035 | G64: 0.05264091072 | H64: 5.002335728 | I64: 1.067375911 | J64: 0.3965169546 | K64: 0.2121005088 | L64: 0.05636124262 | M64: 11.31403591 | N64: 4.547289328 | O64: 3.070187183 | P64: 1.994114937 | Q64: 0.892656771 | R64: 4.100633104 | S64: 0 | T64: 0.6070592293 | U64: 0.4544038005 | V64: 4.896787786 | W64: 10.33369781
B65: Tanker truck | C65: 0.6500288558 | D65: 0.338092274 | E65: 0.1102317273 | F65: 0.019676012 | G65: 0.009788139563 | H65: 0.4592547317 | I65: 0.05635975744 | J65: 0.04390659221 | K65: 0.01902083269 | L65: 0 | M65: 0.471460218 | N65: 0.4820195154 | O65: 0.8974332282 | P65: 0.5744399641 | Q65: 0.3298473397 | R65: 1.051265201 | S65: 0 | T65: 0 | U65: 0 | V65: 0.06832534247 | W65: 0
B66: Water in drums/big cans | C66: 1.210704949 | D66: 1.236648057 | E66: 0.310219448 | F66: 0.1606304797 | G66: 0.03281845648 | H66: 1.544520975 | I66: 0.3817010434 | J66: 0.1759663209 | K66: 0.07897701347 | L66: 0.02528208509 | M66: 0.4950019461 | N66: 0.8487256078 | O66: 1.771780987 | P66: 1.200352083 | Q66: 0.8415962818 | R66: 2.666485289 | S66: 0 | T66: 0.01672977701 | U66: 0.002404568331 | V66: 0.2497398246 | W66: 0.03785996096
B67: Bottled water | C67: 1.389810787 | D67: 4.968720962 | E67: 4.72071969 | F67: 4.692408833 | G67: 4.203565738 | H67: 4.387751568 | I67: 4.696902345 | J67: 4.599193758 | K67: 4.278769405 | L67: 4.31155073 | M67: 0.4583018548 | N67: 0.6564896831 | O67: 1.395176899 | P67: 4.18744841 | Q67: 6.46985843 | R67: 5.808074832 | S67: 1.284027867 | T67: 2.284316228 | U67: 7.604881828 | V67: 2.236367134 | W67: 9.75698109
B68: Other | C68: 2.278101475 | D68: 0.7093864136 | E68: 0.2367558498 | F68: 0.1452418809 | G68: 0.1388097025 | H68: 2.017854006 | I68: 0.297466237 | J68: 0.1796634098 | K68: 0.09619554794 | L68: 0.1735059002 | M68: 3.044760275 | N68: 0.9705054662 | O68: 0.876466143 | P68: 0.4660819241 | Q68: 0.3541495426 | R68: 1.210682332 | S68: 0.1307094236 | T68: 0.5203515035 | U68: 0.759157385 | V68: 0.8135753718 | W68: 1.120538832
A108: =A1026 -> Colombia
A109: =A1034 -> 2010
A110: Use of sanitation facilities
A111: by wealth quintile and sub-national region
A112: Notes:
A113: WHO/UNICEF JMP customised wealth index excludes water,
A114: sanitation and hygiene assets.
A115: Survey used for analysis: | B115: =A1025 -> DHS10
A116: =B1030 -> Ratio of Improved latrines based on: | B116: 50% Rule
A120: Use of sanitation facilities | C120: NATIONAL wealth index quintile | H120: URBAN wealth index quintile | M120: RURAL wealth index quintile | R120: SUB-REGIONS: | BA120: Raw numbers of respondents: | BB120: Use of sanitation facilities | BC120: NATIONAL wealth index quintile | BH120: URBAN wealth index quintile | BM120: RURAL wealth index quintile | BR120: SUB-REGIONS:
A121: Weighted percentage (used in graphs) | C121: Poorest | D121: Poor | E121: Middle | F121: Rich | G121: Richest | H121: Poorest | I121: Poor | J121: Middle | K121: Rich | L121: Richest | M121: Poorest | N121: Poor | O121: Middle | P121: Rich | Q121: Richest | R121: Atlántica | S121: Bogotá | T121: Central | U121: Oriental | V121: Pacífica | W121: Territorios Nacionales | BA121: Sanitation data, raw numbers (weighted) | BC121: Poorest | BD121: Poor | BE121: Middle | BF121: Rich | BG121: Richest | BH121: Poorest | BI121: Poor | BJ121: Middle | BK121: Rich | BL121: Richest | BM121: Poorest | BN121: Poor | BO121: Middle | BP121: Rich | BQ121: Richest | BR121: Atlántica | BS121: Bogotá | BT121: Central | BU121: Oriental | BV121: Pacífica | BW121: Territorios Nacionales
A122: Sanitation | B122: Improved | C122: =C153+C154+C156*0.5 -> 60.31212737 | D122: =D153+D154+D156*0.5 -> 90.22443097 | E122: 96.88863927 | F122: 99.42082813 | G122: 99.89115622 | H122: 84.25073366 | I122: 97.79454112 | J122: 99.33906059 | K122: 99.7212709 | L122: 99.91243833 | M122: 35.21104281 | N122: 66.59882637 | O122: 71.07638144 | P122: 82.52550511 | Q122: 89.7771616 | R122: 85.1171861 | S122: 99.56173899 | T122: 87.27043743 | U122: 89.55453464 | V122: 87.23337719 | W122: 87.97506214 | BA122: Sanitation | BB122: Improved | BC122: N/A | BD122: N/A | BE122: N/A | BF122: N/A | BG122: N/A | BH122: N/A | BI122: N/A | BJ122: N/A | BK122: N/A | BL122: N/A | BM122: N/A | BN122: N/A | BO122: N/A | BP122: N/A | BQ122: N/A | BR122: N/A | BS122: N/A | BT122: N/A | BU122: N/A | BV122: N/A | BW122: N/A
B123: Not Improved | C123: =100-C122 -> 39.68787263 | D123: =100-D122 -> 9.775569034 | E123: 3.111360725 | F123: 0.5791718683 | G123: 0.108843778 | H123: 15.74926634 | I123: 2.205458884 | J123: 0.6609394125 | K123: 0.2787290969 | L123: 0.08756167462 | M123: 64.78895719 | N123: 33.40117363 | O123: 28.92361856 | P123: 17.47449489 | Q123: 10.2228384 | R123: 14.8828139 | S123: 0.4382610085 | T123: 12.72956257 | U123: 10.44546536 | V123: 12.76662281 | W123: 12.02493786 | BB123: Not Improved | BC123: N/A | BD123: N/A | BE123: N/A | BF123: N/A | BG123: N/A | BH123: N/A | BI123: N/A | BJ123: N/A | BK123: N/A | BL123: N/A | BM123: N/A | BN123: N/A | BO123: N/A | BP123: N/A | BQ123: N/A | BR123: N/A | BS123: N/A | BT123: N/A | BU123: N/A | BV123: N/A | BW123: N/A
A124: Sanitation ladder | B124: Basic | C124: =C122*C129/100 -> 49.69719295 | D124: =D122*D129/100 -> 73.08178908 | E124: 86.32777759 | F124: 93.85326176 | G124: 97.49376847 | H124: 61.75578777 | I124: 84.59227807 | J124: 92.08730916 | K124: 95.13409244 | L124: 97.91418956 | M124: 32.39415938 | N124: 58.74016486 | O124: 62.8315212 | P124: 72.6224445 | Q124: 83.31320596 | R124: 75.66917845 | S124: 90.00381205 | T124: 79.59063894 | U124: 78.09155421 | V124: 75.28240451 | W124: 73.81107713 | BA124: Sanitation ladder | BB124: Basic | BC124: N/A | BD124: N/A | BE124: N/A | BF124: N/A | BG124: N/A | BH124: N/A | BI124: N/A | BJ124: N/A | BK124: N/A | BL124: N/A | BM124: N/A | BN124: N/A | BO124: N/A | BP124: N/A | BQ124: N/A | BR124: N/A | BS124: N/A | BT124: N/A | BU124: N/A | BV124: N/A | BW124: N/A
B125: Limited | C125: =C122*C128/100 -> 10.61493442 | D125: =D122*D128/100 -> 17.14264188 | E125: 10.56086168 | F125: 5.567566375 | G125: 2.397387749 | H125: 22.49494589 | I125: 13.20226305 | J125: 7.251751423 | K125: 4.587178462 | L125: 1.998248767 | M125: 2.816883425 | N125: 7.858661512 | O125: 8.244860248 | P125: 9.903060613 | Q125: 6.463955635 | R125: 9.448007658 | S125: 9.557926943 | T125: 7.679798494 | U125: 11.46298043 | V125: 11.95097267 | W125: 14.163985 | BB125: Limited | BC125: N/A | BD125: N/A | BE125: N/A | BF125: N/A | BG125: N/A | BH125: N/A | BI125: N/A | BJ125: N/A | BK125: N/A | BL125: N/A | BM125: N/A | BN125: N/A | BO125: N/A | BP125: N/A | BQ125: N/A | BR125: N/A | BS125: N/A | BT125: N/A | BU125: N/A | BV125: N/A | BW125: N/A
B126: Unimproved | C126: =100-(C124+C125+C127) -> 15.04868297 | D126: =100-(D124+D125+D127) -> 7.947860847 | E126: 2.949818122 | F126: 0.579036968 | G126: 0.108843778 | H126: 8.622674252 | I126: 1.945162764 | J126: 0.6607592287 | K126: 0.2787290969 | L126: 0.08756167462 | M126: 10.41633796 | N126: 15.98436903 | O126: 20.23608782 | P126: 14.59825937 | Q126: 9.95400754 | R126: 1.761826589 | S126: 0.3152403745 | T126: 9.878647575 | U126: 6.029017666 | V126: 6.925473745 | W126: 6.607318371 | BB126: Unimproved | BC126: N/A | BD126: N/A | BE126: N/A | BF126: N/A | BG126: N/A | BH126: N/A | BI126: N/A | BJ126: N/A | BK126: N/A | BL126: N/A | BM126: N/A | BN126: N/A | BO126: N/A | BP126: N/A | BQ126: N/A | BR126: N/A | BS126: N/A | BT126: N/A | BU126: N/A | BV126: N/A | BW126: N/A
B127: Open defecation | C127: =C158 -> 24.63918966 | D127: =D158 -> 1.827708187 | E127: 0.1615426032 | F127: 0.0001349002461 | G127: 0 | H127: 7.126592086 | I127: 0.2602961191 | J127: 0.0001801837593 | K127: 0 | L127: 0 | M127: 54.37261923 | N127: 17.4168046 | O127: 8.687530738 | P127: 2.876235516 | Q127: 0.2688308638 | R127: 13.12098731 | S127: 0.123020634 | T127: 2.850914996 | U127: 4.416447691 | V127: 5.841149068 | W127: 5.417619493 | BB127: Open defecation | BC127: N/A | BD127: N/A | BE127: N/A | BF127: N/A | BG127: N/A | BH127: N/A | BI127: N/A | BJ127: N/A | BK127: N/A | BL127: N/A | BM127: N/A | BN127: N/A | BO127: N/A | BP127: N/A | BQ127: N/A | BR127: N/A | BS127: N/A | BT127: N/A | BU127: N/A | BV127: N/A | BW127: N/A
A128: Shared among Improved Sanitation | B128: Yes | C128: 17.6 | D128: 19 | E128: 10.9 | F128: 5.6 | G128: 2.4 | H128: 26.7 | I128: 13.5 | J128: 7.3 | K128: 4.6 | L128: 2 | M128: 8 | N128: 11.8 | O128: 11.6 | P128: 12 | Q128: 7.2 | R128: 11.1 | S128: 9.6 | T128: 8.8 | U128: 12.8 | V128: 13.7 | W128: 16.1 | BA128: Shared among improved sanitation facilities | BB128: Yes | BC128: N/A | BD128: N/A | BE128: N/A | BF128: N/A | BG128: N/A | BH128: N/A | BI128: N/A | BJ128: N/A | BK128: N/A | BL128: N/A | BM128: N/A | BN128: N/A | BO128: N/A | BP128: N/A | BQ128: N/A | BR128: N/A | BS128: N/A | BT128: N/A | BU128: N/A | BV128: N/A | BW128: N/A
B129: No | C129: 82.4 | D129: 81 | E129: 89.1 | F129: 94.4 | G129: 97.6 | H129: 73.3 | I129: 86.5 | J129: 92.7 | K129: 95.4 | L129: 98 | M129: 92 | N129: 88.2 | O129: 88.4 | P129: 88 | Q129: 92.8 | R129: 88.9 | S129: 90.4 | T129: 91.2 | U129: 87.2 | V129: 86.3 | W129: 83.9 | BB129: No | BC129: N/A | BD129: N/A | BE129: N/A | BF129: N/A | BG129: N/A | BH129: N/A | BI129: N/A | BJ129: N/A | BK129: N/A | BL129: N/A | BM129: N/A | BN129: N/A | BO129: N/A | BP129: N/A | BQ129: N/A | BR129: N/A | BS129: N/A | BT129: N/A | BU129: N/A | BV129: N/A | BW129: N/A
A130: Manually calculated ratios | B130: Improved latrines
B131: Other
B132: Other
C133: NATIONAL wealth index quintile | H133: URBAN wealth index quintile | M133: RURAL wealth index quintile | R133: SUB-REGIONS: | BA133: Raw numbers of respondents: | BB133: Use of sanitation facilities | BC133: NATIONAL wealth index quintile | BH133: URBAN wealth index quintile | BM133: RURAL wealth index quintile | BR133: SUB-REGIONS:
A134: Percentage based on weighted population | C134: Poorest | D134: Poor | E134: Middle | F134: Rich | G134: Richest | H134: Poorest | I134: Poor | J134: Middle | K134: Rich | L134: Richest | M134: Poorest | N134: Poor | O134: Middle | P134: Rich | Q134: Richest | R134: Atlántica | S134: Bogotá | T134: Central | U134: Oriental | V134: Pacífica | W134: Territorios Nacionales | BA134: Sanitation data, raw numbers (weighted) | BC134: Poorest | BD134: Poor | BE134: Middle | BF134: Rich | BG134: Richest | BH134: Poorest | BI134: Poor | BJ134: Middle | BK134: Rich | BL134: Richest | BM134: Poorest | BN134: Poor | BO134: Middle | BP134: Rich | BQ134: Richest | BR134: Atlántica | BS134: Bogotá | BT134: Central | BU134: Oriental | BV134: Pacífica | BW134: Territorios Nacionales
A135: Sanitation type | B135: Sewer connection | C135: 20.55544161 | D135: 62.11554048 | E135: 85.30288308 | F135: 96.62770969 | G135: 99.25364875 | H135: 67.87173785 | I135: 90.37127608 | J135: 96.58557171 | K135: 98.63693628 | L135: 99.35657829 | M135: 2.734270938 | N135: 8.96854039 | O135: 13.93429879 | P135: 27.52429167 | Q135: 47.13518008 | R135: 52.06596223 | S135: 99.39258562 | T135: 77.12360496 | U135: 68.97009053 | V135: 70.33710272 | W135: 61.02262276 | BA135: Sanitation type | BB135: Sewer connection | BC135: N/A | BD135: N/A | BE135: N/A | BF135: N/A | BG135: N/A | BH135: N/A | BI135: N/A | BJ135: N/A | BK135: N/A | BL135: N/A | BM135: N/A | BN135: N/A | BO135: N/A | BP135: N/A | BQ135: N/A | BR135: N/A | BS135: N/A | BT135: N/A | BU135: N/A | BV135: N/A | BW135: N/A
B136: Septic tank connection | C136: 38.16263179 | D136: 27.90550489 | E136: 11.51851458 | F136: 2.785811192 | G136: 0.6350307707 | H136: 16.02976957 | I136: 7.403340616 | J136: 2.736118005 | K136: 1.084334628 | L136: 0.5525452214 | M136: 29.9087195 | N136: 55.55668931 | O136: 56.1809008 | P136: 54.54119139 | Q136: 42.43353758 | R136: 32.67703681 | S136: 0.1537757925 | T136: 9.91960618 | U136: 20.39106788 | V136: 15.89622584 | W136: 25.23433193 | BB136: Septic tank connection | BC136: N/A | BD136: N/A | BE136: N/A | BF136: N/A | BG136: N/A | BH136: N/A | BI136: N/A | BJ136: N/A | BK136: N/A | BL136: N/A | BM136: N/A | BN136: N/A | BO136: N/A | BP136: N/A | BQ136: N/A | BR136: N/A | BS136: N/A | BT136: N/A | BU136: N/A | BV136: N/A | BW136: N/A
B137: Improved latrines | C137: =C156*0.5 -> 1.594053976 | D137: =D156*0.5 -> 0.2033855944 | E137: 0.06724161648 | F137: 0.007307254135 | G137: 0.002476696706 | H137: 0.3492262472 | I137: 0.01992441774 | J137: 0.01737086955 | K137: 0 | L137: 0.003314814321 | M137: 2.568052367 | N137: 2.073596671 | O137: 0.9611818516 | P137: 0.46002205 | Q137: 0.2084439376 | R137: 0.3741870721 | S137: 0.01537757925 | T137: 0.2272262951 | U137: 0.1933762314 | V137: 1.000048635 | W137: 1.71810745 | BB137: Improved latrines | BC137: N/A | BD137: N/A | BE137: N/A | BF137: N/A | BG137: N/A | BH137: N/A | BI137: N/A | BJ137: N/A | BK137: N/A | BL137: N/A | BM137: N/A | BN137: N/A | BO137: N/A | BP137: N/A | BQ137: N/A | BR137: N/A | BS137: N/A | BT137: N/A | BU137: N/A | BV137: N/A | BW137: N/A
B138: Unimproved facilities | C138: =100-(C135+C136+C137+C139) -> 15.04868297 | D138: =100-(D135+D136+D137+D139) -> 7.947860847 | E138: 2.949818122 | F138: 0.579036968 | G138: 0.108843778 | H138: 8.622674252 | I138: 1.945162764 | J138: 0.6607592287 | K138: 0.2787290969 | L138: 0.08756167462 | M138: 10.41633796 | N138: 15.98436903 | O138: 20.23608782 | P138: 14.59825937 | Q138: 9.95400754 | R138: 1.761826589 | S138: 0.3152403745 | T138: 9.878647575 | U138: 6.029017666 | V138: 6.925473745 | W138: 6.607318371 | BB138: Unimproved facilities | BC138: N/A | BD138: N/A | BE138: N/A | BF138: N/A | BG138: N/A | BH138: N/A | BI138: N/A | BJ138: N/A | BK138: N/A | BL138: N/A | BM138: N/A | BN138: N/A | BO138: N/A | BP138: N/A | BQ138: N/A | BR138: N/A | BS138: N/A | BT138: N/A | BU138: N/A | BV138: N/A | BW138: N/A
B139: Open defecation | C139: 24.63918966 | D139: 1.827708187 | E139: 0.1615426032 | F139: 0.0001349002461 | G139: 0 | H139: 7.126592086 | I139: 0.2602961191 | J139: 0.0001801837593 | K139: 0 | L139: 0 | M139: 54.37261923 | N139: 17.4168046 | O139: 8.687530738 | P139: 2.876235516 | Q139: 0.2688308638 | R139: 13.12098731 | S139: 0.123020634 | T139: 2.850914996 | U139: 4.416447691 | V139: 5.841149068 | W139: 5.417619493 | BB139: Open defecation | BC139: N/A | BD139: N/A | BE139: N/A | BF139: N/A | BG139: N/A | BH139: N/A | BI139: N/A | BJ139: N/A | BK139: N/A | BL139: N/A | BM139: N/A | BN139: N/A | BO139: N/A | BP139: N/A | BQ139: N/A | BR139: N/A | BS139: N/A | BT139: N/A | BU139: N/A | BV139: N/A | BW139: N/A
A140: Septic tank emptying practices | B140: Not emptied/treated and disposed in situ | C140: N/A | D140: N/A | E140: N/A | F140: N/A | G140: N/A | H140: N/A | I140: N/A | J140: N/A | K140: N/A | L140: N/A | M140: N/A | N140: N/A | O140: N/A | P140: N/A | Q140: N/A | R140: N/A | S140: N/A | T140: N/A | U140: N/A | V140: N/A | W140: N/A | BA140: Septic tank emptying practices | BB140: Not emptied/treated and disposed in situ | BC140: N/A | BD140: N/A | BE140: N/A | BF140: N/A | BG140: N/A | BH140: N/A | BI140: N/A | BJ140: N/A | BK140: N/A | BL140: N/A | BM140: N/A | BN140: N/A | BO140: N/A | BP140: N/A | BQ140: N/A | BR140: N/A | BS140: N/A | BT140: N/A | BU140: N/A | BV140: N/A | BW140: N/A
B141: Emptied and buried on site | C141: N/A | D141: N/A | E141: N/A | F141: N/A | G141: N/A | H141: N/A | I141: N/A | J141: N/A | K141: N/A | L141: N/A | M141: N/A | N141: N/A | O141: N/A | P141: N/A | Q141: N/A | R141: N/A | S141: N/A | T141: N/A | U141: N/A | V141: N/A | W141: N/A | BB141: Emptied and buried on site | BC141: N/A | BD141: N/A | BE141: N/A | BF141: N/A | BG141: N/A | BH141: N/A | BI141: N/A | BJ141: N/A | BK141: N/A | BL141: N/A | BM141: N/A | BN141: N/A | BO141: N/A | BP141: N/A | BQ141: N/A | BR141: N/A | BS141: N/A | BT141: N/A | BU141: N/A | BV141: N/A | BW141: N/A
B142: Emptied and discharged locally | C142: N/A | D142: N/A | E142: N/A | F142: N/A | G142: N/A | H142: N/A | I142: N/A | J142: N/A | K142: N/A | L142: N/A | M142: N/A | N142: N/A | O142: N/A | P142: N/A | Q142: N/A | R142: N/A | S142: N/A | T142: N/A | U142: N/A | V142: N/A | W142: N/A | BB142: Emptied and discharged locally | BC142: N/A | BD142: N/A | BE142: N/A | BF142: N/A | BG142: N/A | BH142: N/A | BI142: N/A | BJ142: N/A | BK142: N/A | BL142: N/A | BM142: N/A | BN142: N/A | BO142: N/A | BP142: N/A | BQ142: N/A | BR142: N/A | BS142: N/A | BT142: N/A | BU142: N/A | BV142: N/A | BW142: N/A
B143: Emptied and removed offsite | C143: N/A | D143: N/A | E143: N/A | F143: N/A | G143: N/A | H143: N/A | I143: N/A | J143: N/A | K143: N/A | L143: N/A | M143: N/A | N143: N/A | O143: N/A | P143: N/A | Q143: N/A | R143: N/A | S143: N/A | T143: N/A | U143: N/A | V143: N/A | W143: N/A | BB143: Emptied and removed offsite | BC143: N/A | BD143: N/A | BE143: N/A | BF143: N/A | BG143: N/A | BH143: N/A | BI143: N/A | BJ143: N/A | BK143: N/A | BL143: N/A | BM143: N/A | BN143: N/A | BO143: N/A | BP143: N/A | BQ143: N/A | BR143: N/A | BS143: N/A | BT143: N/A | BU143: N/A | BV143: N/A | BW143: N/A
A144: Latrine emptying practices | B144: Not emptied/treated and disposed in situ | C144: N/A | D144: N/A | E144: N/A | F144: N/A | G144: N/A | H144: N/A | I144: N/A | J144: N/A | K144: N/A | L144: N/A | M144: N/A | N144: N/A | O144: N/A | P144: N/A | Q144: N/A | R144: N/A | S144: N/A | T144: N/A | U144: N/A | V144: N/A | W144: N/A | BA144: Latrine emptying practices | BB144: Not emptied/treated and disposed in situ | BC144: N/A | BD144: N/A | BE144: N/A | BF144: N/A | BG144: N/A | BH144: N/A | BI144: N/A | BJ144: N/A | BK144: N/A | BL144: N/A | BM144: N/A | BN144: N/A | BO144: N/A | BP144: N/A | BQ144: N/A | BR144: N/A | BS144: N/A | BT144: N/A | BU144: N/A | BV144: N/A | BW144: N/A
B145: Emptied and buried on site | C145: N/A | D145: N/A | E145: N/A | F145: N/A | G145: N/A | H145: N/A | I145: N/A | J145: N/A | K145: N/A | L145: N/A | M145: N/A | N145: N/A | O145: N/A | P145: N/A | Q145: N/A | R145: N/A | S145: N/A | T145: N/A | U145: N/A | V145: N/A | W145: N/A | BB145: Emptied and buried on site | BC145: N/A | BD145: N/A | BE145: N/A | BF145: N/A | BG145: N/A | BH145: N/A | BI145: N/A | BJ145: N/A | BK145: N/A | BL145: N/A | BM145: N/A | BN145: N/A | BO145: N/A | BP145: N/A | BQ145: N/A | BR145: N/A | BS145: N/A | BT145: N/A | BU145: N/A | BV145: N/A | BW145: N/A
B146: Emptied and discharged locally | C146: N/A | D146: N/A | E146: N/A | F146: N/A | G146: N/A | H146: N/A | I146: N/A | J146: N/A | K146: N/A | L146: N/A | M146: N/A | N146: N/A | O146: N/A | P146: N/A | Q146: N/A | R146: N/A | S146: N/A | T146: N/A | U146: N/A | V146: N/A | W146: N/A | BB146: Emptied and discharged locally | BC146: N/A | BD146: N/A | BE146: N/A | BF146: N/A | BG146: N/A | BH146: N/A | BI146: N/A | BJ146: N/A | BK146: N/A | BL146: N/A | BM146: N/A | BN146: N/A | BO146: N/A | BP146: N/A | BQ146: N/A | BR146: N/A | BS146: N/A | BT146: N/A | BU146: N/A | BV146: N/A | BW146: N/A
